Workbook

Sheet ITTM
A1: Codooper | L1: Converter coordenada | P1: Converter coordenada alternativa
A2: Dia/nº | B2: 0 | C2: 1 | D2: 2 | E2: 3 | F2: 4 | G2: 5 | H2: 6 | I2: 7 | J2: 8 | K2: 9 | L2: 29snd123456789 | T2: =RIGHT(LEFT(L2,5),1) -> d | U2: =RIGHT(LEFT(L2,6),1) -> 1 | V2: =RIGHT(LEFT(L2,7),1) -> 2 | W2: =RIGHT(LEFT(L2,8),1) -> 3 | X2: =RIGHT(LEFT(L2,9),1) -> 4 | Y2: =RIGHT(LEFT(L2,10),1) -> 5 | Z2: =RIGHT(LEFT(L2,11),1) -> 6 | AA2: =RIGHT(LEFT(L2,12),1) -> 7 | AB2: =RIGHT(LEFT(L2,13),1) -> 8 | AC2: =RIGHT(LEFT(L2,14),1) -> 9 | AD2: =RIGHT(LEFT(L2,15),1) -> 9
A3: Seg | B3: P | C3: e | D3: r | E3: n | F3: a | G3: m | H3: b | I3: u | J3: c | K3: o | L3: Coordenada convertida | P3: Coordenada alternativa convertida
A4: Ter | L4: ROsndERNAMBUCO | P4: eoSMEçpyulwqdia
A5: Qua | L5: "des"Converter coordenada | P5: "des"Converter coordenada alternativa
A6: Qui | L6: eoSMEçpyulwqdia
A7: Sex | B7: P | C7: E | D7: R | E7: N | F7: A | G7: M | H7: B | I7: U | J7: C | K7: O | L7: Coordenada Desconvertida | P7: Coordenada alternativa Desconvertida
A8: Sab | L8: 29SME9856810270
A9: Dom
A10: Autentex
A11: BIG | B11: 1 | C11: 2 | D11: 3 | E11: 4 | F11: 5 | G11: 6 | H11: 7 | I11: 8 | J11: 9 | K11: 0
A13: EC
A14: OJ
A15: TI
A16: S3/GAC | B16: H1B | C16: SECTM | D16: L4D | E16: SECALIM | F16: F0C | G16: RESERVA4 | H16: N6U
A17: PCT/GAC | B17: P4Z | C17: CBTR TR | D17: V5X | E17: SECMAN | F17: U3J
A18: Cmdt btr | B18: B4T | C18: SARG TR | D18: F8K | E18: RESERVA1 | F18: F9O
A19: COB | B19: T5S | C19: PCT | D19: N4K | E19: RESERVA2 | F19: J2B
A20: OAV1 | B20: U3T | C20: SECMUN | D20: Y1D | E20: RESERVA3 | F20: W6H

Sheet Coordenadas Rectangulares
G2: Posição da Bateria
G3: 60000 | H3: 60000 | I3: 170
C6: PEDIDO DE TIRO
P8: Dist | Q8: =IF(ISBLANK(H9),"",ROUND((SQRT(POWER((H9-G3),2)+POWER((I9-H3),2))),-1)) ->  | R8: (m)
C9: Coordenadas Rectangulares | K9: Rumo
P11: Dç | Q11: =IF(AND(I9-H3>0,H9-G3>=0),((ATAN((H9-G3)/(I9-H3)))*6400/(2*PI())),IF(AND(I9-H3<=0,H9-G3>0),1600+((IMABS(ATAN((I9-H3)/(H9-G3)))*6400/(2*PI()))))) -> FALSE | R11: =IF(AND(I9-H3<0,H9-G3<=0),3200+((ATAN((H9-G3)/(I9-H3)))*6400/(2*PI())),IF(AND(I9-H3>=0,H9-G3<0),4800+((IMABS(ATAN((I9-H3)/(H9-G3)))*6400/(2*PI()))))) -> 4000
P13: Cg
C15: Dç | E15: =IF(ISBLANK(H9),"",IF(R11=FALSE,Q11,R11)) ->  | F15: (mil) | H15: Elv | I15: =IF(ISBLANK(H9),"",IF(ISERROR(IF(ISBLANK(Q13),"",IF(Q13=0,VLOOKUP(Q8,TTN!A3:B77,2,FALSE),IF(Q13=2,VLOOKUP(Q8,TTN!E3:F173,2,FALSE),IF(Q13=2,VLOOKUP(Q8,TTN!E3:F173,2,FALSE),IF(Q13=4,VLOOKUP(Q8,TTN!I3:J221,2,FALSE),IF(Q13=6,VLOOKUP(Q8,TTN!M3:N213,2,FALSE),IF(Q13=8,VLOOKUP(Q8,TTN!Q3:R234,2,FALSE),IF(Q13=9,VLOOKUP(Q8,TTN!U3:V173,2,FALSE)))))))))),"Cg Insuf",IF(ISBLANK(Q13),"",IF(Q13=0,VLOOKUP(Q8,TTN!A3:B77,2,FALSE),IF(Q13=2,VLOOKUP(Q8,TTN!E3:F173,2,FALSE),IF(Q13=2,VLOOKUP(Q8,TTN!E3:F173,2,FALSE),IF(Q13=4,VLOOKUP(Q8,TTN!I3:J221,2,FALSE),IF(Q13=6,VLOOKUP(Q8,TTN!M3:N213,2,FALSE),IF(Q13=8,VLOOKUP(Q8,TTN!Q3:R234,2,FALSE),IF(Q13=9,VLOOKUP(Q8,TTN!U3:V173,2,FALSE))))))))))) ->  | J15: (mil) | K15: Dur Traj | L15: =IF(ISBLANK(H9),"",IF(ISERROR(IF(ISBLANK(Q13),"",IF(Q13=0,VLOOKUP(Q8,TTN!A3:C77,3,FALSE),IF(Q13=2,VLOOKUP(Q8,TTN!E3:G173,3,FALSE),IF(Q13=2,VLOOKUP(Q8,TTN!E3:G173,3,FALSE),IF(Q13=4,VLOOKUP(Q8,TTN!I3:K221,3,FALSE),IF(Q13=6,VLOOKUP(Q8,TTN!M3:O213,3,FALSE),IF(Q13=8,VLOOKUP(Q8,TTN!Q3:S234,3,FALSE),IF(Q13=9,VLOOKUP(Q8,TTN!U3:W173,2,FALSE)))))))))),"Cg Insuf",IF(ISBLANK(Q13),"",IF(Q13=0,VLOOKUP(Q8,TTN!A3:C77,3,FALSE),IF(Q13=2,VLOOKUP(Q8,TTN!E3:H173,3,FALSE),IF(Q13=2,VLOOKUP(Q8,TTN!E3:G173,3,FALSE),IF(Q13=4,VLOOKUP(Q8,TTN!I3:K221,3,FALSE),IF(Q13=6,VLOOKUP(Q8,TTN!M3:O213,3,FALSE),IF(Q13=8,VLOOKUP(Q8,TTN!Q3:S234,3,FALSE),IF(Q13=9,VLOOKUP(Q8,TTN!U3:W173,3,FALSE))))))))))) ->  | M15: (s)
C17: CORREÇÕES
C20: Rumo | E20: Direção(E-) | G20: Alcance(Enc-) | I20: Coordenadas da Correção | M20: Dist Top | P20: Dç (mil) | R20: Elv(mil) | T20: Dur Traj(s)
C22: =IF(ISBLANK(L9),"Int Rumo",L9) -> Int Rumo | I22: =IF(ISBLANK(E22),"",H9+(H25*SIN(H24*(2*PI())/6400))) ->  | J22: =IF(ISBLANK(E22),"",I9+(H25*COS(H24*(2*PI())/6400))) ->  | K22: =IF(ISBLANK(E22),"",J9) ->  | M22: =IF(ISBLANK(E22),"",ROUND(SQRT(POWER((I22-$G$3),2)+POWER((J22-$H$3),2)),-1)) ->  | P22: =IF(ISBLANK(E22),"",IF(T25=FALSE,R25,T25)) ->  | R22: =IF(ISBLANK(E22),"",IF(ISERROR(IF(ISBLANK(Q13),"",IF(Q13=0,VLOOKUP(M22,TTN!A3:B77,2,FALSE),IF(Q13=2,VLOOKUP(M22,TTN!E3:F173,2,FALSE),IF(Q13=2,VLOOKUP(M22,TTN!E3:F173,2,FALSE),IF(Q13=4,VLOOKUP(M22,TTN!I3:J221,2,FALSE),IF(Q13=6,VLOOKUP(M22,TTN!M3:N213,2,FALSE),IF(Q13=8,VLOOKUP(M22,TTN!Q3:R234,2,FALSE),IF(Q13=9,VLOOKUP(M22,TTN!U3:V173,2,FALSE)))))))))),"Cg Insuf",IF(ISBLANK(Q13),"",IF(Q13=0,VLOOKUP(M22,TTN!A3:B77,2,FALSE),IF(Q13=2,VLOOKUP(M22,TTN!E3:F173,2,FALSE),IF(Q13=2,VLOOKUP(M22,TTN!E3:F173,2,FALSE),IF(Q13=4,VLOOKUP(M22,TTN!I3:J221,2,FALSE),IF(Q13=6,VLOOKUP(M22,TTN!M3:N213,2,FALSE),IF(Q13=8,VLOOKUP(M22,TTN!Q3:R234,2,FALSE),IF(Q13=9,VLOOKUP(M22,TTN!U3:V173,2,FALSE))))))))))) ->  | T22: =IF(ISBLANK(E22),"",IF(ISERROR(IF(ISBLANK(Q13),"",IF(Q13=0,VLOOKUP(M22,TTN!A3:C77,3,FALSE),IF(Q13=2,VLOOKUP(M22,TTN!E3:G173,3,FALSE),IF(Q13=2,VLOOKUP(M22,TTN!E3:G173,3,FALSE),IF(Q13=4,VLOOKUP(M22,TTN!I3:K221,3,FALSE),IF(Q13=6,VLOOKUP(M22,TTN!M3:O213,3,FALSE),IF(Q13=8,VLOOKUP(M22,TTN!Q3:S234,3,FALSE),IF(Q13=9,VLOOKUP(M22,TTN!U3:W173,2,FALSE)))))))))),"Cg Insuf",IF(ISBLANK(Q13),"",IF(Q13=0,VLOOKUP(M22,TTN!A3:C77,3,FALSE),IF(Q13=2,VLOOKUP(M22,TTN!E3:H173,3,FALSE),IF(Q13=2,VLOOKUP(M22,TTN!E3:G173,3,FALSE),IF(Q13=4,VLOOKUP(M22,TTN!I3:K221,3,FALSE),IF(Q13=6,VLOOKUP(M22,TTN!M3:O213,3,FALSE),IF(Q13=8,VLOOKUP(M22,TTN!Q3:S234,3,FALSE),IF(Q13=9,VLOOKUP(M22,TTN!U3:W173,3,FALSE))))))))))) -> 
C24: Rumo Obj para nova Posiçao | H24: =IF(J26<>FALSE,J26,IF(J27<>FALSE,J27)) -> FALSE | J24: =IF(AND(C22+(ATAN(E22/G22)*6400/(2*PI()))>=0,(C22+(ATAN(E22/G22)*6400/(2*PI()))<=6400)),(C22+(ATAN(E22/G22)*6400/(2*PI()))),IF((C22+(ATAN(E22/G22)*6400/(2*PI())))>6400,(C22+(ATAN(E22/G22)*6400/(2*PI())))-6400,6400+(C22+(ATAN(E22/G22)*6400/(2*PI()))))) ->  | K24: =IF(AND(E22>0,G22>0),J24) -> FALSE | L24: =IF(AND(E22>0,G22<0),J24+3200) -> FALSE | M24: =IF(AND(E22<0,G22<0),J24+3200) -> FALSE | N24: =IF(AND(E22<0,G22>0),J24) -> FALSE
C25: Dist Obj Para nova Posição | H25: =IMABS(E22/(SIN(ATAN(E22/G22)))) ->  | R25: =IF(AND(J22-H3>=0,I22-G3>=0),((ATAN((I22-G3)/(J22-H3)))*6400/(2*PI())),IF(AND(J22-H3<=0,I22-G3>0),1600+((IMABS(ATAN((J22-H3)/(I22-G3)))*6400/(2*PI()))))) ->  | T25: =IF(AND(J22-H3<0,I22-G3<=0),3200+((ATAN((I22-G3)/(J22-H3)))*6400/(2*PI())),IF(AND(J22-H3>=0,I22-G3<0),4800+((IMABS(ATAN((J22-H3)/(I22-G3)))*6400/(2*PI()))))) -> 
J26: =IF(K24<>FALSE,K24,IF(L24<>FALSE,L24)) -> FALSE
J27: =IF(M24<>FALSE,M24,IF(N24<>FALSE,N24)) -> FALSE
C29: Rumo | E29: Direção(E-) | G29: Alcance(Enc-) | I29: Coordenadas da Correção | M29: Dist Top | P29: Dç (mil) | R29: Elv(mil) | T29: Dur Traj(s)
C31: =IF(ISBLANK(L9),"Int Rumo",L9) -> Int Rumo | I31: =IF(ISBLANK(E31),"",I22+(H34*SIN(H33*(2*PI())/6400))) ->  | J31: =IF(ISBLANK(E31),"",J22+(H34*COS(H33*(2*PI())/6400))) ->  | K31: =IF(ISBLANK(E31),"",K22) ->  | M31: =IF(ISBLANK(E31),"",ROUND(SQRT(POWER((I31-$G$3),2)+POWER((J31-$H$3),2)),-1)) ->  | P31: =IF(ISBLANK(E31),"",IF(T34=FALSE,R34,T34)) ->  | R31: =IF(ISBLANK(E31),"",IF(ISERROR(IF(ISBLANK(Q13),"",IF(Q13=0,VLOOKUP(M31,TTN!A12:B86,2,FALSE),IF(Q13=2,VLOOKUP(M31,TTN!E12:F182,2,FALSE),IF(Q13=2,VLOOKUP(M31,TTN!E12:F182,2,FALSE),IF(Q13=4,VLOOKUP(M31,TTN!I12:J230,2,FALSE),IF(Q13=6,VLOOKUP(M31,TTN!M12:N222,2,FALSE),IF(Q13=8,VLOOKUP(M31,TTN!Q12:R243,2,FALSE),IF(Q13=9,VLOOKUP(M31,TTN!U12:V182,2,FALSE)))))))))),"Cg Insuf",IF(ISBLANK(Q13),"",IF(Q13=0,VLOOKUP(M31,TTN!A12:B86,2,FALSE),IF(Q13=2,VLOOKUP(M31,TTN!E12:F182,2,FALSE),IF(Q13=2,VLOOKUP(M31,TTN!E12:F182,2,FALSE),IF(Q13=4,VLOOKUP(M31,TTN!I12:J230,2,FALSE),IF(Q13=6,VLOOKUP(M31,TTN!M12:N222,2,FALSE),IF(Q13=8,VLOOKUP(M31,TTN!Q12:R243,2,FALSE),IF(Q13=9,VLOOKUP(M31,TTN!U12:V182,2,FALSE))))))))))) ->  | T31: =IF(ISBLANK(E31),"",IF(ISERROR(IF(ISBLANK(Q13),"",IF(Q13=0,VLOOKUP(M31,TTN!A12:C86,3,FALSE),IF(Q13=2,VLOOKUP(M31,TTN!E12:G182,3,FALSE),IF(Q13=2,VLOOKUP(M31,TTN!E12:G182,3,FALSE),IF(Q13=4,VLOOKUP(M31,TTN!I12:K230,3,FALSE),IF(Q13=6,VLOOKUP(M31,TTN!M12:O222,3,FALSE),IF(Q13=8,VLOOKUP(M31,TTN!Q12:S243,3,FALSE),IF(Q13=9,VLOOKUP(M31,TTN!U12:W182,2,FALSE)))))))))),"Cg Insuf",IF(ISBLANK(Q13),"",IF(Q13=0,VLOOKUP(M31,TTN!A12:C86,3,FALSE),IF(Q13=2,VLOOKUP(M31,TTN!E12:H182,3,FALSE),IF(Q13=2,VLOOKUP(M31,TTN!E12:G182,3,FALSE),IF(Q13=4,VLOOKUP(M31,TTN!I12:K230,3,FALSE),IF(Q13=6,VLOOKUP(M31,TTN!M12:O222,3,FALSE),IF(Q13=8,VLOOKUP(M31,TTN!Q12:S243,3,FALSE),IF(Q13=9,VLOOKUP(M31,TTN!U12:W182,3,FALSE))))))))))) -> 
C33: Rumo Obj para nova Posiçao | H33: =IF(J35<>FALSE,J35,IF(J36<>FALSE,J36)) -> FALSE | J33: =IF(AND(C31+(ATAN(E31/G31)*6400/(2*PI()))>=0,(C31+(ATAN(E31/G31)*6400/(2*PI()))<=6400)),(C31+(ATAN(E31/G31)*6400/(2*PI()))),IF((C31+(ATAN(E31/G31)*6400/(2*PI())))>6400,(C31+(ATAN(E31/G31)*6400/(2*PI())))-6400,6400+(C31+(ATAN(E31/G31)*6400/(2*PI()))))) ->  | K33: =IF(AND(E31>0,G31>0),J33) -> FALSE | L33: =IF(AND(E31>0,G31<0),J33+3200) -> FALSE | M33: =IF(AND(E31<0,G31<0),J33+3200) -> FALSE | N33: =IF(AND(E31<0,G31>0),J33) -> FALSE
C34: Dist Obj Para nova Posição | H34: =IMABS(E31/(SIN(ATAN(E31/G31)))) ->  | R34: =IF(AND(J31-H3>=0,I31-G3>=0),((ATAN((I31-G3)/(J31-H3)))*6400/(2*PI())),IF(AND(J31-H3<=0,I31-G3>0),1600+((IMABS(ATAN((J31-H3)/(I31-G3)))*6400/(2*PI()))))) ->  | T34: =IF(AND(J31-H3<0,I31-G3<=0),3200+((ATAN((I31-G3)/(J31-H3)))*6400/(2*PI())),IF(AND(J31-H3>=0,I31-G3<0),4800+((IMABS(ATAN((J31-H3)/(I31-G3)))*6400/(2*PI()))))) -> 
J35: =IF(K33<>FALSE,K33,IF(L33<>FALSE,L33)) -> FALSE
J36: =IF(M33<>FALSE,M33,IF(N33<>FALSE,N33)) -> FALSE
C38: Rumo | E38: Direção(E-) | G38: Alcance(Enc-) | I38: Coordenadas da Correção | M38: Dist Top | P38: Dç (mil) | R38: Elv(mil) | T38: Dur Traj(s)
C40: =IF(ISBLANK(L9),"Int Rumo",L9) -> Int Rumo | I40: =IF(ISBLANK(E40),"",I31+(H43*SIN(H42*(2*PI())/6400))) ->  | J40: =IF(ISBLANK(E40),"",J31+(H43*COS(H42*(2*PI())/6400))) ->  | K40: =IF(ISBLANK(E40),"",K31) ->  | M40: =IF(ISBLANK(E40),"",ROUND(SQRT(POWER((I40-$G$3),2)+POWER((J40-$H$3),2)),-1)) ->  | P40: =IF(ISBLANK(E40),"",IF(T43=FALSE,R43,T43)) ->  | R40: =IF(ISBLANK(E40),"",IF(ISERROR(IF(ISBLANK(Q13),"",IF(Q13=0,VLOOKUP(M40,TTN!A21:B95,2,FALSE),IF(Q13=2,VLOOKUP(M40,TTN!E21:F191,2,FALSE),IF(Q13=2,VLOOKUP(M40,TTN!E21:F191,2,FALSE),IF(Q13=4,VLOOKUP(M40,TTN!I21:J239,2,FALSE),IF(Q13=6,VLOOKUP(M40,TTN!M21:N231,2,FALSE),IF(Q13=8,VLOOKUP(M40,TTN!Q21:R252,2,FALSE),IF(Q13=9,VLOOKUP(M40,TTN!U21:V191,2,FALSE)))))))))),"Cg Insuf",IF(ISBLANK(Q13),"",IF(Q13=0,VLOOKUP(M40,TTN!A21:B95,2,FALSE),IF(Q13=2,VLOOKUP(M40,TTN!E21:F191,2,FALSE),IF(Q13=2,VLOOKUP(M40,TTN!E21:F191,2,FALSE),IF(Q13=4,VLOOKUP(M40,TTN!I21:J239,2,FALSE),IF(Q13=6,VLOOKUP(M40,TTN!M21:N231,2,FALSE),IF(Q13=8,VLOOKUP(M40,TTN!Q21:R252,2,FALSE),IF(Q13=9,VLOOKUP(M40,TTN!U21:V191,2,FALSE))))))))))) ->  | T40: =IF(ISBLANK(E40),"",IF(ISERROR(IF(ISBLANK(Q13),"",IF(Q13=0,VLOOKUP(M40,TTN!A12:C86,3,FALSE),IF(Q13=2,VLOOKUP(M40,TTN!E12:G182,3,FALSE),IF(Q13=2,VLOOKUP(M40,TTN!E12:G182,3,FALSE),IF(Q13=4,VLOOKUP(M40,TTN!I12:K230,3,FALSE),IF(Q13=6,VLOOKUP(M40,TTN!M12:O222,3,FALSE),IF(Q13=8,VLOOKUP(M40,TTN!Q12:S243,3,FALSE),IF(Q13=9,VLOOKUP(M40,TTN!U12:W182,2,FALSE)))))))))),"Cg Insuf",IF(ISBLANK(Q13),"",IF(Q13=0,VLOOKUP(M40,TTN!A12:C86,3,FALSE),IF(Q13=2,VLOOKUP(M40,TTN!E12:H182,3,FALSE),IF(Q13=2,VLOOKUP(M40,TTN!E12:G182,3,FALSE),IF(Q13=4,VLOOKUP(M40,TTN!I12:K230,3,FALSE),IF(Q13=6,VLOOKUP(M40,TTN!M12:O222,3,FALSE),IF(Q13=8,VLOOKUP(M40,TTN!Q12:S243,3,FALSE),IF(Q13=9,VLOOKUP(M40,TTN!U12:W182,3,FALSE))))))))))) -> 
C42: Rumo Obj para nova Posiçao | H42: =IF(J44<>FALSE,J44,IF(J45<>FALSE,J45)) -> FALSE | J42: =IF(AND(C40+(ATAN(E40/G40)*6400/(2*PI()))>=0,(C40+(ATAN(E40/G40)*6400/(2*PI()))<=6400)),(C40+(ATAN(E40/G40)*6400/(2*PI()))),IF((C40+(ATAN(E40/G40)*6400/(2*PI())))>6400,(C40+(ATAN(E40/G40)*6400/(2*PI())))-6400,6400+(C40+(ATAN(E40/G40)*6400/(2*PI()))))) ->  | K42: =IF(AND(E40>0,G40>0),J42) -> FALSE | L42: =IF(AND(E40>0,G40<0),J42+3200) -> FALSE | M42: =IF(AND(E40<0,G40<0),J42+3200) -> FALSE | N42: =IF(AND(E40<0,G40>0),J42) -> FALSE
C43: Dist Obj Para nova Posição | H43: =IMABS(E40/(SIN(ATAN(E40/G40)))) ->  | R43: =IF(AND(J40-H3>=0,I40-G3>=0),((ATAN((I40-G3)/(J40-H3)))*6400/(2*PI())),IF(AND(J40-H3<=0,I40-G3>0),1600+((IMABS(ATAN((J40-H3)/(I40-G3)))*6400/(2*PI()))))) ->  | T43: =IF(AND(J40-H3<0,I40-G3<=0),3200+((ATAN((I40-G3)/(J40-H3)))*6400/(2*PI())),IF(AND(J40-H3>=0,I40-G3<0),4800+((IMABS(ATAN((J40-H3)/(I40-G3)))*6400/(2*PI()))))) -> 
J44: =IF(K42<>FALSE,K42,IF(L42<>FALSE,L42)) -> FALSE
J45: =IF(M42<>FALSE,M42,IF(N42<>FALSE,N42)) -> FALSE
C47: Rumo | E47: Direção(E-) | G47: Alcance(Enc-) | I47: Coordenadas da Correção | M47: Dist Top | P47: Dç (mil) | R47: Elv(mil) | T47: Dur Traj(s)
C49: =IF(ISBLANK(L9),"Int Rumo",L9) -> Int Rumo | I49: =IF(ISBLANK(E49),"",I40+(H52*SIN(H51*(2*PI())/6400))) ->  | J49: =IF(ISBLANK(E49),"",J40+(H52*COS(H51*(2*PI())/6400))) ->  | K49: =IF(ISBLANK(E49),"",K40) ->  | M49: =IF(ISBLANK(E49),"",ROUND(SQRT(POWER((I49-$G$3),2)+POWER((J49-$H$3),2)),-1)) ->  | P49: =IF(ISBLANK(E49),"",IF(T52=FALSE,R52,T52)) ->  | R49: =IF(ISBLANK(E49),"",IF(ISERROR(IF(ISBLANK(Q13),"",IF(Q13=0,VLOOKUP(M49,TTN!A30:B104,2,FALSE),IF(Q13=2,VLOOKUP(M49,TTN!E30:F200,2,FALSE),IF(Q13=2,VLOOKUP(M49,TTN!E30:F200,2,FALSE),IF(Q13=4,VLOOKUP(M49,TTN!I30:J248,2,FALSE),IF(Q13=6,VLOOKUP(M49,TTN!M30:N240,2,FALSE),IF(Q13=8,VLOOKUP(M49,TTN!Q30:R261,2,FALSE),IF(Q13=9,VLOOKUP(M49,TTN!U30:V200,2,FALSE)))))))))),"Cg Insuf",IF(ISBLANK(Q13),"",IF(Q13=0,VLOOKUP(M49,TTN!A30:B104,2,FALSE),IF(Q13=2,VLOOKUP(M49,TTN!E30:F200,2,FALSE),IF(Q13=2,VLOOKUP(M49,TTN!E30:F200,2,FALSE),IF(Q13=4,VLOOKUP(M49,TTN!I30:J248,2,FALSE),IF(Q13=6,VLOOKUP(M49,TTN!M30:N240,2,FALSE),IF(Q13=8,VLOOKUP(M49,TTN!Q30:R261,2,FALSE),IF(Q13=9,VLOOKUP(M49,TTN!U30:V200,2,FALSE))))))))))) ->  | T49: =IF(ISBLANK(E49),"",IF(ISERROR(IF(ISBLANK(Q13),"",IF(Q13=0,VLOOKUP(M49,TTN!A21:C95,3,FALSE),IF(Q13=2,VLOOKUP(M49,TTN!E21:G191,3,FALSE),IF(Q13=2,VLOOKUP(M49,TTN!E21:G191,3,FALSE),IF(Q13=4,VLOOKUP(M49,TTN!I21:K239,3,FALSE),IF(Q13=6,VLOOKUP(M49,TTN!M21:O231,3,FALSE),IF(Q13=8,VLOOKUP(M49,TTN!Q21:S252,3,FALSE),IF(Q13=9,VLOOKUP(M49,TTN!U21:W191,2,FALSE)))))))))),"Cg Insuf",IF(ISBLANK(Q13),"",IF(Q13=0,VLOOKUP(M49,TTN!A21:C95,3,FALSE),IF(Q13=2,VLOOKUP(M49,TTN!E21:H191,3,FALSE),IF(Q13=2,VLOOKUP(M49,TTN!E21:G191,3,FALSE),IF(Q13=4,VLOOKUP(M49,TTN!I21:K239,3,FALSE),IF(Q13=6,VLOOKUP(M49,TTN!M21:O231,3,FALSE),IF(Q13=8,VLOOKUP(M49,TTN!Q21:S252,3,FALSE),IF(Q13=9,VLOOKUP(M49,TTN!U21:W191,3,FALSE))))))))))) -> 
C51: Rumo Obj para nova Posiçao | H51: =IF(J53<>FALSE,J53,IF(J54<>FALSE,J54)) -> FALSE | J51: =IF(AND(C49+(ATAN(E49/G49)*6400/(2*PI()))>=0,(C49+(ATAN(E49/G49)*6400/(2*PI()))<=6400)),(C49+(ATAN(E49/G49)*6400/(2*PI()))),IF((C49+(ATAN(E49/G49)*6400/(2*PI())))>6400,(C49+(ATAN(E49/G49)*6400/(2*PI())))-6400,6400+(C49+(ATAN(E49/G49)*6400/(2*PI()))))) ->  | K51: =IF(AND(E49>0,G49>0),J51) -> FALSE | L51: =IF(AND(E49>0,G49<0),J51+3200) -> FALSE | M51: =IF(AND(E49<0,G49<0),J51+3200) -> FALSE | N51: =IF(AND(E49<0,G49>0),J51) -> FALSE
C52: Dist Obj Para nova Posição | H52: =IMABS(E49/(SIN(ATAN(E49/G49)))) ->  | R52: =IF(AND(J49-H3>=0,I49-G3>=0),((ATAN((I49-G3)/(J49-H3)))*6400/(2*PI())),IF(AND(J49-H3<=0,I49-G3>0),1600+((IMABS(ATAN((J49-H3)/(I49-G3)))*6400/(2*PI()))))) ->  | T52: =IF(AND(J49-H3<0,I49-G3<=0),3200+((ATAN((I49-G3)/(J49-H3)))*6400/(2*PI())),IF(AND(J49-H3>=0,I49-G3<0),4800+((IMABS(ATAN((J49-H3)/(I49-G3)))*6400/(2*PI()))))) -> 
J53: =IF(K51<>FALSE,K51,IF(L51<>FALSE,L51)) -> FALSE
J54: =IF(M51<>FALSE,M51,IF(N51<>FALSE,N51)) -> FALSE
C56: Rumo | E56: Direção(E-) | G56: Alcance(Enc-) | I56: Coordenadas da Correção | M56: Dist Top | P56: Dç (mil) | R56: Elv(mil) | T56: Dur Traj(s)
C58: =IF(ISBLANK(L9),"Int Rumo",L9) -> Int Rumo | I58: =IF(ISBLANK(E58),"",I49+(H61*SIN(H60*(2*PI())/6400))) ->  | J58: =IF(ISBLANK(E58),"",J49+(H61*COS(H60*(2*PI())/6400))) ->  | K58: =IF(ISBLANK(E58),"",K49) ->  | M58: =IF(ISBLANK(E58),"",ROUND(SQRT(POWER((I58-$G$3),2)+POWER((J58-$H$3),2)),-1)) ->  | P58: =IF(ISBLANK(E58),"",IF(T61=FALSE,R61,T61)) ->  | R58: =IF(ISBLANK(E58),"",IF(ISERROR(IF(ISBLANK(Q13),"",IF(Q13=0,VLOOKUP(M58,TTN!A39:B113,2,FALSE),IF(Q13=2,VLOOKUP(M58,TTN!E39:F209,2,FALSE),IF(Q13=2,VLOOKUP(M58,TTN!E39:F209,2,FALSE),IF(Q13=4,VLOOKUP(M58,TTN!I39:J257,2,FALSE),IF(Q13=6,VLOOKUP(M58,TTN!M39:N249,2,FALSE),IF(Q13=8,VLOOKUP(M58,TTN!Q39:R270,2,FALSE),IF(Q13=9,VLOOKUP(M58,TTN!U39:V209,2,FALSE)))))))))),"Cg Insuf",IF(ISBLANK(Q13),"",IF(Q13=0,VLOOKUP(M58,TTN!A39:B113,2,FALSE),IF(Q13=2,VLOOKUP(M58,TTN!E39:F209,2,FALSE),IF(Q13=2,VLOOKUP(M58,TTN!E39:F209,2,FALSE),IF(Q13=4,VLOOKUP(M58,TTN!I39:J257,2,FALSE),IF(Q13=6,VLOOKUP(M58,TTN!M39:N249,2,FALSE),IF(Q13=8,VLOOKUP(M58,TTN!Q39:R270,2,FALSE),IF(Q13=9,VLOOKUP(M58,TTN!U39:V209,2,FALSE))))))))))) ->  | T58: =IF(ISBLANK(E58),"",IF(ISERROR(IF(ISBLANK(Q13),"",IF(Q13=0,VLOOKUP(M58,TTN!A30:C104,3,FALSE),IF(Q13=2,VLOOKUP(M58,TTN!E30:G200,3,FALSE),IF(Q13=2,VLOOKUP(M58,TTN!E30:G200,3,FALSE),IF(Q13=4,VLOOKUP(M58,TTN!I30:K248,3,FALSE),IF(Q13=6,VLOOKUP(M58,TTN!M30:O240,3,FALSE),IF(Q13=8,VLOOKUP(M58,TTN!Q30:S261,3,FALSE),IF(Q13=9,VLOOKUP(M58,TTN!U30:W200,2,FALSE)))))))))),"Cg Insuf",IF(ISBLANK(Q13),"",IF(Q13=0,VLOOKUP(M58,TTN!A30:C104,3,FALSE),IF(Q13=2,VLOOKUP(M58,TTN!E30:H200,3,FALSE),IF(Q13=2,VLOOKUP(M58,TTN!E30:G200,3,FALSE),IF(Q13=4,VLOOKUP(M58,TTN!I30:K248,3,FALSE),IF(Q13=6,VLOOKUP(M58,TTN!M30:O240,3,FALSE),IF(Q13=8,VLOOKUP(M58,TTN!Q30:S261,3,FALSE),IF(Q13=9,VLOOKUP(M58,TTN!U30:W200,3,FALSE))))))))))) -> 
C60: Rumo Obj para nova Posiçao | H60: =IF(J62<>FALSE,J62,IF(J63<>FALSE,J63)) -> FALSE | J60: =IF(AND(C58+(ATAN(E58/G58)*6400/(2*PI()))>=0,(C58+(ATAN(E58/G58)*6400/(2*PI()))<=6400)),(C58+(ATAN(E58/G58)*6400/(2*PI()))),IF((C58+(ATAN(E58/G58)*6400/(2*PI())))>6400,(C58+(ATAN(E58/G58)*6400/(2*PI())))-6400,6400+(C58+(ATAN(E58/G58)*6400/(2*PI()))))) ->  | K60: =IF(AND(E58>0,G58>0),J60) -> FALSE | L60: =IF(AND(E58>0,G58<0),J60+3200) -> FALSE | M60: =IF(AND(E58<0,G58<0),J60+3200) -> FALSE | N60: =IF(AND(E58<0,G58>0),J60) -> FALSE
C61: Dist Obj Para nova Posição | H61: =IMABS(E58/(SIN(ATAN(E58/G58)))) ->  | R61: =IF(AND(J58-H3>=0,I58-G3>=0),((ATAN((I58-G3)/(J58-H3)))*6400/(2*PI())),IF(AND(J58-H3<=0,I58-G3>0),1600+((IMABS(ATAN((J58-H3)/(I58-G3)))*6400/(2*PI()))))) ->  | T61: =IF(AND(J58-H3<0,I58-G3<=0),3200+((ATAN((I58-G3)/(J58-H3)))*6400/(2*PI())),IF(AND(J58-H3>=0,I58-G3<0),4800+((IMABS(ATAN((J58-H3)/(I58-G3)))*6400/(2*PI()))))) -> 
J62: =IF(K60<>FALSE,K60,IF(L60<>FALSE,L60)) -> FALSE
J63: =IF(M60<>FALSE,M60,IF(N60<>FALSE,N60)) -> FALSE
C65: Rumo | E65: Direção(E-) | G65: Alcance(Enc-) | I65: Coordenadas da Correção | M65: Dist Top | P65: Dç (mil) | R65: Elv(mil) | T65: Dur Traj(s)
C67: =IF(ISBLANK(L9),"Int Rumo",L9) -> Int Rumo | I67: =IF(ISBLANK(E67),"",I58+(H70*SIN(H69*(2*PI())/6400))) ->  | J67: =IF(ISBLANK(E67),"",J58+(H70*COS(H69*(2*PI())/6400))) ->  | K67: =IF(ISBLANK(E67),"",K58) ->  | M67: =IF(ISBLANK(E67),"",ROUND(SQRT(POWER((I67-$G$3),2)+POWER((J67-$H$3),2)),-1)) ->  | P67: =IF(ISBLANK(E67),"",IF(T70=FALSE,R70,T70)) ->  | R67: =IF(ISBLANK(E67),"",IF(ISERROR(IF(ISBLANK(Q13),"",IF(Q13=0,VLOOKUP(M67,TTN!A48:B122,2,FALSE),IF(Q13=2,VLOOKUP(M67,TTN!E48:F218,2,FALSE),IF(Q13=2,VLOOKUP(M67,TTN!E48:F218,2,FALSE),IF(Q13=4,VLOOKUP(M67,TTN!I48:J266,2,FALSE),IF(Q13=6,VLOOKUP(M67,TTN!M48:N258,2,FALSE),IF(Q13=8,VLOOKUP(M67,TTN!Q48:R279,2,FALSE),IF(Q13=9,VLOOKUP(M67,TTN!U48:V218,2,FALSE)))))))))),"Cg Insuf",IF(ISBLANK(Q13),"",IF(Q13=0,VLOOKUP(M67,TTN!A48:B122,2,FALSE),IF(Q13=2,VLOOKUP(M67,TTN!E48:F218,2,FALSE),IF(Q13=2,VLOOKUP(M67,TTN!E48:F218,2,FALSE),IF(Q13=4,VLOOKUP(M67,TTN!I48:J266,2,FALSE),IF(Q13=6,VLOOKUP(M67,TTN!M48:N258,2,FALSE),IF(Q13=8,VLOOKUP(M67,TTN!Q48:R279,2,FALSE),IF(Q13=9,VLOOKUP(M67,TTN!U48:V218,2,FALSE))))))))))) ->  | T67: =IF(ISBLANK(E67),"",IF(ISERROR(IF(ISBLANK(Q13),"",IF(Q13=0,VLOOKUP(M67,TTN!A39:C113,3,FALSE),IF(Q13=2,VLOOKUP(M67,TTN!E39:G209,3,FALSE),IF(Q13=2,VLOOKUP(M67,TTN!E39:G209,3,FALSE),IF(Q13=4,VLOOKUP(M67,TTN!I39:K257,3,FALSE),IF(Q13=6,VLOOKUP(M67,TTN!M39:O249,3,FALSE),IF(Q13=8,VLOOKUP(M67,TTN!Q39:S270,3,FALSE),IF(Q13=9,VLOOKUP(M67,TTN!U39:W209,2,FALSE)))))))))),"Cg Insuf",IF(ISBLANK(Q13),"",IF(Q13=0,VLOOKUP(M67,TTN!A39:C113,3,FALSE),IF(Q13=2,VLOOKUP(M67,TTN!E39:H209,3,FALSE),IF(Q13=2,VLOOKUP(M67,TTN!E39:G209,3,FALSE),IF(Q13=4,VLOOKUP(M67,TTN!I39:K257,3,FALSE),IF(Q13=6,VLOOKUP(M67,TTN!M39:O249,3,FALSE),IF(Q13=8,VLOOKUP(M67,TTN!Q39:S270,3,FALSE),IF(Q13=9,VLOOKUP(M67,TTN!U39:W209,3,FALSE))))))))))) -> 
C69: Rumo Obj para nova Posiçao | H69: =IF(J71<>FALSE,J71,IF(J72<>FALSE,J72)) -> FALSE | J69: =IF(AND(C67+(ATAN(E67/G67)*6400/(2*PI()))>=0,(C67+(ATAN(E67/G67)*6400/(2*PI()))<=6400)),(C67+(ATAN(E67/G67)*6400/(2*PI()))),IF((C67+(ATAN(E67/G67)*6400/(2*PI())))>6400,(C67+(ATAN(E67/G67)*6400/(2*PI())))-6400,6400+(C67+(ATAN(E67/G67)*6400/(2*PI()))))) ->  | K69: =IF(AND(E67>0,G67>0),J69) -> FALSE | L69: =IF(AND(E67>0,G67<0),J69+3200) -> FALSE | M69: =IF(AND(E67<0,G67<0),J69+3200) -> FALSE | N69: =IF(AND(E67<0,G67>0),J69) -> FALSE
C70: Dist Obj Para nova Posição | H70: =IMABS(E67/(SIN(ATAN(E67/G67)))) ->  | R70: =IF(AND(J67-H3>=0,I67-G3>=0),((ATAN((I67-G3)/(J67-H3)))*6400/(2*PI())),IF(AND(J67-H3<=0,I67-G3>0),1600+((IMABS(ATAN((J67-H3)/(I67-G3)))*6400/(2*PI()))))) ->  | T70: =IF(AND(J67-H3<0,I67-G3<=0),3200+((ATAN((I67-G3)/(J67-H3)))*6400/(2*PI())),IF(AND(J67-H3>=0,I67-G3<0),4800+((IMABS(ATAN((J67-H3)/(I67-G3)))*6400/(2*PI()))))) -> 
J71: =IF(K69<>FALSE,K69,IF(L69<>FALSE,L69)) -> FALSE
J72: =IF(M69<>FALSE,M69,IF(N69<>FALSE,N69)) -> FALSE

Sheet Desvios de PR
G2: Posição da Bateria | K2: Coordenadas do PR
C6: Pedido de Tiro
P8: Dist | Q8: =IF(ISBLANK(H12),"",ROUND((SQRT(POWER((H9-G3),2)+POWER((I9-H3),2))),-1)) ->  | R8: (m)
C9: Coordenadas Rectangulares | H9: =IF(ISBLANK(H12),"",K3+(AB13*SIN(AB12*(2*PI())/6400))) ->  | I9: =IF(ISBLANK(H12),"",L3+(AB13*COS(AB12*(2*PI())/6400))) ->  | J9: =IF(ISBLANK(H12),"",IF(N12<>0,M3+N12,M3+(Z16*(AB13/1000)))) -> 
P11: Dç | Q11: =IF(AND(I9-H3>0,H9-G3>=0),((ATAN((H9-G3)/(I9-H3)))*6400/(2*PI())),IF(AND(I9-H3<=0,H9-G3>0),1600+((IMABS(ATAN((I9-H3)/(H9-G3)))*6400/(2*PI()))))) ->  | R11: =IF(AND(I9-H3<0,H9-G3<=0),3200+((ATAN((H9-G3)/(I9-H3)))*6400/(2*PI())),IF(AND(I9-H3>=0,H9-G3<0),4800+((IMABS(ATAN((I9-H3)/(H9-G3)))*6400/(2*PI()))))) -> 
C12: Desvios | G12: Rumo | I12: Esq(-)/Dir | K12: Alg/Enc (-) | M12: Ac/Ab | X12: RUMO PR PARA NOVA POSIÇÃO | AB12: =IF(AD14<>FALSE,AD14,IF(AD15<>FALSE,AD15)) -> FALSE | AD12: =IF(AND(H12+(ATAN(J12/L12)*6400/(2*PI()))>=0,(H12+(ATAN(J12/L12)*6400/(2*PI()))<=6400)),(H12+(ATAN(J12/L12)*6400/(2*PI()))),IF((H12+(ATAN(J12/L12)*6400/(2*PI())))>6400,(H12+(ATAN(J12/L12)*6400/(2*PI())))-6400,6400+(H12+(ATAN(J12/L12)*6400/(2*PI()))))) ->  | AE12: =IF(AND(J12>0,L12>0),AD12) -> FALSE | AF12: =IF(AND(J12>0,L12<0),AD12+3200) -> FALSE | AG12: =IF(AND(J12<0,L12<0),AD12+3200) -> FALSE | AH12: =IF(AND(J12<0,L12>0),AD12) -> FALSE
P13: Cg | X13: DIST PR PARA OBJ | AB13: =IMABS(J12/(SIN(ATAN(J12/L12)))) -> 
AD14: =IF(AE12<>FALSE,AE12,IF(AF12<>FALSE,AF12)) -> FALSE
AD15: =IF(AG12<>FALSE,AG12,IF(AH12<>FALSE,AH12)) -> FALSE
C16: Dç | E16: =IF(ISBLANK(H12),"",IF(R11=FALSE,Q11,R11)) ->  | F16: (mil) | H16: Elv | I16: =IF(ISERROR(IF(ISBLANK(Q13),"",IF(Q13=0,VLOOKUP(Q8,TTN!A3:B77,2,FALSE),IF(Q13=2,VLOOKUP(Q8,TTN!E3:F173,2,FALSE),IF(Q13=2,VLOOKUP(Q8,TTN!E3:F173,2,FALSE),IF(Q13=4,VLOOKUP(Q8,TTN!I3:J221,2,FALSE),IF(Q13=6,VLOOKUP(Q8,TTN!M3:N213,2,FALSE),IF(Q13=8,VLOOKUP(Q8,TTN!Q3:R234,2,FALSE),IF(Q13=9,VLOOKUP(Q8,TTN!U3:V173,2,FALSE)))))))))),"Cg Insuf",IF(ISBLANK(Q13),"",IF(Q13=0,VLOOKUP(Q8,TTN!A3:B77,2,FALSE),IF(Q13=2,VLOOKUP(Q8,TTN!E3:F173,2,FALSE),IF(Q13=2,VLOOKUP(Q8,TTN!E3:F173,2,FALSE),IF(Q13=4,VLOOKUP(Q8,TTN!I3:J221,2,FALSE),IF(Q13=6,VLOOKUP(Q8,TTN!M3:N213,2,FALSE),IF(Q13=8,VLOOKUP(Q8,TTN!Q3:R234,2,FALSE),IF(Q13=9,VLOOKUP(Q8,TTN!U3:V173,2,FALSE)))))))))) ->  | J16: (mil) | K16: Dur Traj | L16: =IF(ISERROR(IF(ISBLANK(Q13),"",IF(Q13=0,VLOOKUP(Q8,TTN!A3:C77,3,FALSE),IF(Q13=2,VLOOKUP(Q8,TTN!E3:G173,3,FALSE),IF(Q13=2,VLOOKUP(Q8,TTN!E3:G173,3,FALSE),IF(Q13=4,VLOOKUP(Q8,TTN!I3:K221,3,FALSE),IF(Q13=6,VLOOKUP(Q8,TTN!M3:O213,3,FALSE),IF(Q13=8,VLOOKUP(Q8,TTN!Q3:S234,3,FALSE),IF(Q13=9,VLOOKUP(Q8,TTN!U3:W173,2,FALSE)))))))))),"Cg Insuf",IF(ISBLANK(Q13),"",IF(Q13=0,VLOOKUP(Q8,TTN!A3:C77,3,FALSE),IF(Q13=2,VLOOKUP(Q8,TTN!E3:H173,3,FALSE),IF(Q13=2,VLOOKUP(Q8,TTN!E3:G173,3,FALSE),IF(Q13=4,VLOOKUP(Q8,TTN!I3:K221,3,FALSE),IF(Q13=6,VLOOKUP(Q8,TTN!M3:O213,3,FALSE),IF(Q13=8,VLOOKUP(Q8,TTN!Q3:S234,3,FALSE),IF(Q13=9,VLOOKUP(Q8,TTN!U3:W173,3,FALSE)))))))))) ->  | M16: (s) | X16: Ang Si
C18: CORREÇÕES
C20: Rumo | E20: Direção(E-) | G20: Alcance(Enc-) | I20: Coordenadas da Correção | M20: Dist Top | P20: Dç (mil) | R20: Elv(mil) | T20: Dur Traj(s)
C22: =IF(ISBLANK(H12),"Int Rumo",H12) -> Int Rumo | I22: =IF(ISBLANK(E22),"",H9+(H25*SIN(H24*(2*PI())/6400))) ->  | J22: =IF(ISBLANK(E22),"",I9+(H25*COS(H24*(2*PI())/6400))) ->  | K22: =IF(ISBLANK(E22),"",J9) ->  | M22: =IF(ISBLANK(E22),"",ROUND(SQRT(POWER((I22-$G$3),2)+POWER((J22-$H$3),2)),-1)) ->  | P22: =IF(ISBLANK(E22),"",IF(T25=FALSE,R25,T25)) ->  | R22: =IF(ISBLANK(E22),"",IF(ISERROR(IF(ISBLANK(Q13),"",IF(Q13=0,VLOOKUP(M22,TTN!A3:B77,2,FALSE),IF(Q13=2,VLOOKUP(M22,TTN!E3:F173,2,FALSE),IF(Q13=2,VLOOKUP(M22,TTN!E3:F173,2,FALSE),IF(Q13=4,VLOOKUP(M22,TTN!I3:J221,2,FALSE),IF(Q13=6,VLOOKUP(M22,TTN!M3:N213,2,FALSE),IF(Q13=8,VLOOKUP(M22,TTN!Q3:R234,2,FALSE),IF(Q13=9,VLOOKUP(M22,TTN!U3:V173,2,FALSE)))))))))),"Cg Insuf",IF(ISBLANK(Q13),"",IF(Q13=0,VLOOKUP(M22,TTN!A3:B77,2,FALSE),IF(Q13=2,VLOOKUP(M22,TTN!E3:F173,2,FALSE),IF(Q13=2,VLOOKUP(M22,TTN!E3:F173,2,FALSE),IF(Q13=4,VLOOKUP(M22,TTN!I3:J221,2,FALSE),IF(Q13=6,VLOOKUP(M22,TTN!M3:N213,2,FALSE),IF(Q13=8,VLOOKUP(M22,TTN!Q3:R234,2,FALSE),IF(Q13=9,VLOOKUP(M22,TTN!U3:V173,2,FALSE))))))))))) ->  | T22: =IF(ISBLANK(E22),"",IF(ISERROR(IF(ISBLANK(Q13),"",IF(Q13=0,VLOOKUP(M22,TTN!A3:C77,3,FALSE),IF(Q13=2,VLOOKUP(M22,TTN!E3:G173,3,FALSE),IF(Q13=2,VLOOKUP(M22,TTN!E3:G173,3,FALSE),IF(Q13=4,VLOOKUP(M22,TTN!I3:K221,3,FALSE),IF(Q13=6,VLOOKUP(M22,TTN!M3:O213,3,FALSE),IF(Q13=8,VLOOKUP(M22,TTN!Q3:S234,3,FALSE),IF(Q13=9,VLOOKUP(M22,TTN!U3:W173,2,FALSE)))))))))),"Cg Insuf",IF(ISBLANK(Q13),"",IF(Q13=0,VLOOKUP(M22,TTN!A3:C77,3,FALSE),IF(Q13=2,VLOOKUP(M22,TTN!E3:H173,3,FALSE),IF(Q13=2,VLOOKUP(M22,TTN!E3:G173,3,FALSE),IF(Q13=4,VLOOKUP(M22,TTN!I3:K221,3,FALSE),IF(Q13=6,VLOOKUP(M22,TTN!M3:O213,3,FALSE),IF(Q13=8,VLOOKUP(M22,TTN!Q3:S234,3,FALSE),IF(Q13=9,VLOOKUP(M22,TTN!U3:W173,3,FALSE))))))))))) -> 
C24: Rumo Obj para nova Posiçao | H24: =IF(J26<>FALSE,J26,IF(J27<>FALSE,J27)) -> FALSE | J24: =IF(AND(C22+(ATAN(E22/G22)*6400/(2*PI()))>=0,(C22+(ATAN(E22/G22)*6400/(2*PI()))<=6400)),(C22+(ATAN(E22/G22)*6400/(2*PI()))),IF((C22+(ATAN(E22/G22)*6400/(2*PI())))>6400,(C22+(ATAN(E22/G22)*6400/(2*PI())))-6400,6400+(C22+(ATAN(E22/G22)*6400/(2*PI()))))) ->  | K24: =IF(AND(E22>0,G22>0),J24) -> FALSE | L24: =IF(AND(E22>0,G22<0),J24+3200) -> FALSE | M24: =IF(AND(E22<0,G22<0),J24+3200) -> FALSE | N24: =IF(AND(E22<0,G22>0),J24) -> FALSE
C25: Dist Obj Para nova Posição | H25: =IMABS(E22/(SIN(ATAN(E22/G22)))) ->  | R25: =IF(AND(J22-H3>=0,I22-G3>=0),((ATAN((I22-G3)/(J22-H3)))*6400/(2*PI())),IF(AND(J22-H3<=0,I22-G3>0),1600+((IMABS(ATAN((J22-H3)/(I22-G3)))*6400/(2*PI()))))) ->  | T25: =IF(AND(J22-H3<0,I22-G3<=0),3200+((ATAN((I22-G3)/(J22-H3)))*6400/(2*PI())),IF(AND(J22-H3>=0,I22-G3<0),4800+((IMABS(ATAN((J22-H3)/(I22-G3)))*6400/(2*PI()))))) -> 
J26: =IF(K24<>FALSE,K24,IF(L24<>FALSE,L24)) -> FALSE
J27: =IF(M24<>FALSE,M24,IF(N24<>FALSE,N24)) -> FALSE
C29: Rumo | E29: Direção(E-) | G29: Alcance(Enc-) | I29: Coordenadas da Correção | M29: Dist Top | P29: Dç (mil) | R29: Elv(mil) | T29: Dur Traj(s)
C31: =IF(ISBLANK(H12),"Int Rumo",H12) -> Int Rumo | I31: =IF(ISBLANK(E31),"",I22+(H34*SIN(H33*(2*PI())/6400))) ->  | J31: =IF(ISBLANK(E31),"",J22+(H34*COS(H33*(2*PI())/6400))) ->  | K31: =IF(ISBLANK(E31),"",K22) ->  | M31: =IF(ISBLANK(E31),"",ROUND(SQRT(POWER((I31-$G$3),2)+POWER((J31-$H$3),2)),-1)) ->  | P31: =IF(ISBLANK(E31),"",IF(T34=FALSE,R34,T34)) ->  | R31: =IF(ISBLANK(E31),"",IF(ISERROR(IF(ISBLANK(Q13),"",IF(Q13=0,VLOOKUP(M31,TTN!A12:B86,2,FALSE),IF(Q13=2,VLOOKUP(M31,TTN!E12:F182,2,FALSE),IF(Q13=2,VLOOKUP(M31,TTN!E12:F182,2,FALSE),IF(Q13=4,VLOOKUP(M31,TTN!I12:J230,2,FALSE),IF(Q13=6,VLOOKUP(M31,TTN!M12:N222,2,FALSE),IF(Q13=8,VLOOKUP(M31,TTN!Q12:R243,2,FALSE),IF(Q13=9,VLOOKUP(M31,TTN!U12:V182,2,FALSE)))))))))),"Cg Insuf",IF(ISBLANK(Q13),"",IF(Q13=0,VLOOKUP(M31,TTN!A12:B86,2,FALSE),IF(Q13=2,VLOOKUP(M31,TTN!E12:F182,2,FALSE),IF(Q13=2,VLOOKUP(M31,TTN!E12:F182,2,FALSE),IF(Q13=4,VLOOKUP(M31,TTN!I12:J230,2,FALSE),IF(Q13=6,VLOOKUP(M31,TTN!M12:N222,2,FALSE),IF(Q13=8,VLOOKUP(M31,TTN!Q12:R243,2,FALSE),IF(Q13=9,VLOOKUP(M31,TTN!U12:V182,2,FALSE))))))))))) ->  | T31: =IF(ISBLANK(E31),"",IF(ISERROR(IF(ISBLANK(Q13),"",IF(Q13=0,VLOOKUP(M31,TTN!A12:C86,3,FALSE),IF(Q13=2,VLOOKUP(M31,TTN!E12:G182,3,FALSE),IF(Q13=2,VLOOKUP(M31,TTN!E12:G182,3,FALSE),IF(Q13=4,VLOOKUP(M31,TTN!I12:K230,3,FALSE),IF(Q13=6,VLOOKUP(M31,TTN!M12:O222,3,FALSE),IF(Q13=8,VLOOKUP(M31,TTN!Q12:S243,3,FALSE),IF(Q13=9,VLOOKUP(M31,TTN!U12:W182,2,FALSE)))))))))),"Cg Insuf",IF(ISBLANK(Q13),"",IF(Q13=0,VLOOKUP(M31,TTN!A12:C86,3,FALSE),IF(Q13=2,VLOOKUP(M31,TTN!E12:H182,3,FALSE),IF(Q13=2,VLOOKUP(M31,TTN!E12:G182,3,FALSE),IF(Q13=4,VLOOKUP(M31,TTN!I12:K230,3,FALSE),IF(Q13=6,VLOOKUP(M31,TTN!M12:O222,3,FALSE),IF(Q13=8,VLOOKUP(M31,TTN!Q12:S243,3,FALSE),IF(Q13=9,VLOOKUP(M31,TTN!U12:W182,3,FALSE))))))))))) -> 
C33: Rumo Obj para nova Posiçao | H33: =IF(J35<>FALSE,J35,IF(J36<>FALSE,J36)) -> FALSE | J33: =IF(AND(C31+(ATAN(E31/G31)*6400/(2*PI()))>=0,(C31+(ATAN(E31/G31)*6400/(2*PI()))<=6400)),(C31+(ATAN(E31/G31)*6400/(2*PI()))),IF((C31+(ATAN(E31/G31)*6400/(2*PI())))>6400,(C31+(ATAN(E31/G31)*6400/(2*PI())))-6400,6400+(C31+(ATAN(E31/G31)*6400/(2*PI()))))) ->  | K33: =IF(AND(E31>0,G31>0),J33) -> FALSE | L33: =IF(AND(E31>0,G31<0),J33+3200) -> FALSE | M33: =IF(AND(E31<0,G31<0),J33+3200) -> FALSE | N33: =IF(AND(E31<0,G31>0),J33) -> FALSE
C34: Dist Obj Para nova Posição | H34: =IMABS(E31/(SIN(ATAN(E31/G31)))) ->  | R34: =IF(AND(J31-H3>=0,I31-G3>=0),((ATAN((I31-G3)/(J31-H3)))*6400/(2*PI())),IF(AND(J31-H3<=0,I31-G3>0),1600+((IMABS(ATAN((J31-H3)/(I31-G3)))*6400/(2*PI()))))) ->  | T34: =IF(AND(J31-H3<0,I31-G3<=0),3200+((ATAN((I31-G3)/(J31-H3)))*6400/(2*PI())),IF(AND(J31-H3>=0,I31-G3<0),4800+((IMABS(ATAN((J31-H3)/(I31-G3)))*6400/(2*PI()))))) -> 
J35: =IF(K33<>FALSE,K33,IF(L33<>FALSE,L33)) -> FALSE
J36: =IF(M33<>FALSE,M33,IF(N33<>FALSE,N33)) -> FALSE
C38: Rumo | E38: Direção(E-) | G38: Alcance(Enc-) | I38: Coordenadas da Correção | M38: Dist Top | P38: Dç (mil) | R38: Elv(mil) | T38: Dur Traj(s)
C40: =IF(ISBLANK(H12),"Int Rumo",H12) -> Int Rumo | I40: =IF(ISBLANK(E40),"",I31+(H43*SIN(H42*(2*PI())/6400))) ->  | J40: =IF(ISBLANK(E40),"",J31+(H43*COS(H42*(2*PI())/6400))) ->  | K40: =IF(ISBLANK(E40),"",K31) ->  | M40: =IF(ISBLANK(E40),"",ROUND(SQRT(POWER((I40-$G$3),2)+POWER((J40-$H$3),2)),-1)) ->  | P40: =IF(ISBLANK(E40),"",IF(T43=FALSE,R43,T43)) ->  | R40: =IF(ISBLANK(E40),"",IF(ISERROR(IF(ISBLANK(Q13),"",IF(Q13=0,VLOOKUP(M40,TTN!A21:B95,2,FALSE),IF(Q13=2,VLOOKUP(M40,TTN!E21:F191,2,FALSE),IF(Q13=2,VLOOKUP(M40,TTN!E21:F191,2,FALSE),IF(Q13=4,VLOOKUP(M40,TTN!I21:J239,2,FALSE),IF(Q13=6,VLOOKUP(M40,TTN!M21:N231,2,FALSE),IF(Q13=8,VLOOKUP(M40,TTN!Q21:R252,2,FALSE),IF(Q13=9,VLOOKUP(M40,TTN!U21:V191,2,FALSE)))))))))),"Cg Insuf",IF(ISBLANK(Q13),"",IF(Q13=0,VLOOKUP(M40,TTN!A21:B95,2,FALSE),IF(Q13=2,VLOOKUP(M40,TTN!E21:F191,2,FALSE),IF(Q13=2,VLOOKUP(M40,TTN!E21:F191,2,FALSE),IF(Q13=4,VLOOKUP(M40,TTN!I21:J239,2,FALSE),IF(Q13=6,VLOOKUP(M40,TTN!M21:N231,2,FALSE),IF(Q13=8,VLOOKUP(M40,TTN!Q21:R252,2,FALSE),IF(Q13=9,VLOOKUP(M40,TTN!U21:V191,2,FALSE))))))))))) ->  | T40: =IF(ISBLANK(E40),"",IF(ISERROR(IF(ISBLANK(Q13),"",IF(Q13=0,VLOOKUP(M40,TTN!A12:C86,3,FALSE),IF(Q13=2,VLOOKUP(M40,TTN!E12:G182,3,FALSE),IF(Q13=2,VLOOKUP(M40,TTN!E12:G182,3,FALSE),IF(Q13=4,VLOOKUP(M40,TTN!I12:K230,3,FALSE),IF(Q13=6,VLOOKUP(M40,TTN!M12:O222,3,FALSE),IF(Q13=8,VLOOKUP(M40,TTN!Q12:S243,3,FALSE),IF(Q13=9,VLOOKUP(M40,TTN!U12:W182,2,FALSE)))))))))),"Cg Insuf",IF(ISBLANK(Q13),"",IF(Q13=0,VLOOKUP(M40,TTN!A12:C86,3,FALSE),IF(Q13=2,VLOOKUP(M40,TTN!E12:H182,3,FALSE),IF(Q13=2,VLOOKUP(M40,TTN!E12:G182,3,FALSE),IF(Q13=4,VLOOKUP(M40,TTN!I12:K230,3,FALSE),IF(Q13=6,VLOOKUP(M40,TTN!M12:O222,3,FALSE),IF(Q13=8,VLOOKUP(M40,TTN!Q12:S243,3,FALSE),IF(Q13=9,VLOOKUP(M40,TTN!U12:W182,3,FALSE))))))))))) -> 
C42: Rumo Obj para nova Posiçao | H42: =IF(J44<>FALSE,J44,IF(J45<>FALSE,J45)) -> FALSE | J42: =IF(AND(C40+(ATAN(E40/G40)*6400/(2*PI()))>=0,(C40+(ATAN(E40/G40)*6400/(2*PI()))<=6400)),(C40+(ATAN(E40/G40)*6400/(2*PI()))),IF((C40+(ATAN(E40/G40)*6400/(2*PI())))>6400,(C40+(ATAN(E40/G40)*6400/(2*PI())))-6400,6400+(C40+(ATAN(E40/G40)*6400/(2*PI()))))) ->  | K42: =IF(AND(E40>0,G40>0),J42) -> FALSE | L42: =IF(AND(E40>0,G40<0),J42+3200) -> FALSE | M42: =IF(AND(E40<0,G40<0),J42+3200) -> FALSE | N42: =IF(AND(E40<0,G40>0),J42) -> FALSE
C43: Dist Obj Para nova Posição | H43: =IMABS(E40/(SIN(ATAN(E40/G40)))) ->  | R43: =IF(AND(J40-H3>=0,I40-G3>=0),((ATAN((I40-G3)/(J40-H3)))*6400/(2*PI())),IF(AND(J40-H3<=0,I40-G3>0),1600+((IMABS(ATAN((J40-H3)/(I40-G3)))*6400/(2*PI()))))) ->  | T43: =IF(AND(J40-H3<0,I40-G3<=0),3200+((ATAN((I40-G3)/(J40-H3)))*6400/(2*PI())),IF(AND(J40-H3>=0,I40-G3<0),4800+((IMABS(ATAN((J40-H3)/(I40-G3)))*6400/(2*PI()))))) -> 
J44: =IF(K42<>FALSE,K42,IF(L42<>FALSE,L42)) -> FALSE
J45: =IF(M42<>FALSE,M42,IF(N42<>FALSE,N42)) -> FALSE
C47: Rumo | E47: Direção(E-) | G47: Alcance(Enc-) | I47: Coordenadas da Correção | M47: Dist Top | P47: Dç (mil) | R47: Elv(mil) | T47: Dur Traj(s)
C49: =IF(ISBLANK(H12),"Int Rumo",H12) -> Int Rumo | I49: =IF(ISBLANK(E49),"",I40+(H52*SIN(H51*(2*PI())/6400))) ->  | J49: =IF(ISBLANK(E49),"",J40+(H52*COS(H51*(2*PI())/6400))) ->  | K49: =IF(ISBLANK(E49),"",K40) ->  | M49: =IF(ISBLANK(E49),"",ROUND(SQRT(POWER((I49-$G$3),2)+POWER((J49-$H$3),2)),-1)) ->  | P49: =IF(ISBLANK(E49),"",IF(T52=FALSE,R52,T52)) ->  | R49: =IF(ISBLANK(E49),"",IF(ISERROR(IF(ISBLANK(Q13),"",IF(Q13=0,VLOOKUP(M49,TTN!A30:B104,2,FALSE),IF(Q13=2,VLOOKUP(M49,TTN!E30:F200,2,FALSE),IF(Q13=2,VLOOKUP(M49,TTN!E30:F200,2,FALSE),IF(Q13=4,VLOOKUP(M49,TTN!I30:J248,2,FALSE),IF(Q13=6,VLOOKUP(M49,TTN!M30:N240,2,FALSE),IF(Q13=8,VLOOKUP(M49,TTN!Q30:R261,2,FALSE),IF(Q13=9,VLOOKUP(M49,TTN!U30:V200,2,FALSE)))))))))),"Cg Insuf",IF(ISBLANK(Q13),"",IF(Q13=0,VLOOKUP(M49,TTN!A30:B104,2,FALSE),IF(Q13=2,VLOOKUP(M49,TTN!E30:F200,2,FALSE),IF(Q13=2,VLOOKUP(M49,TTN!E30:F200,2,FALSE),IF(Q13=4,VLOOKUP(M49,TTN!I30:J248,2,FALSE),IF(Q13=6,VLOOKUP(M49,TTN!M30:N240,2,FALSE),IF(Q13=8,VLOOKUP(M49,TTN!Q30:R261,2,FALSE),IF(Q13=9,VLOOKUP(M49,TTN!U30:V200,2,FALSE))))))))))) ->  | T49: =IF(ISBLANK(E49),"",IF(ISERROR(IF(ISBLANK(Q13),"",IF(Q13=0,VLOOKUP(M49,TTN!A21:C95,3,FALSE),IF(Q13=2,VLOOKUP(M49,TTN!E21:G191,3,FALSE),IF(Q13=2,VLOOKUP(M49,TTN!E21:G191,3,FALSE),IF(Q13=4,VLOOKUP(M49,TTN!I21:K239,3,FALSE),IF(Q13=6,VLOOKUP(M49,TTN!M21:O231,3,FALSE),IF(Q13=8,VLOOKUP(M49,TTN!Q21:S252,3,FALSE),IF(Q13=9,VLOOKUP(M49,TTN!U21:W191,2,FALSE)))))))))),"Cg Insuf",IF(ISBLANK(Q13),"",IF(Q13=0,VLOOKUP(M49,TTN!A21:C95,3,FALSE),IF(Q13=2,VLOOKUP(M49,TTN!E21:H191,3,FALSE),IF(Q13=2,VLOOKUP(M49,TTN!E21:G191,3,FALSE),IF(Q13=4,VLOOKUP(M49,TTN!I21:K239,3,FALSE),IF(Q13=6,VLOOKUP(M49,TTN!M21:O231,3,FALSE),IF(Q13=8,VLOOKUP(M49,TTN!Q21:S252,3,FALSE),IF(Q13=9,VLOOKUP(M49,TTN!U21:W191,3,FALSE))))))))))) -> 
C51: Rumo Obj para nova Posiçao | H51: =IF(J53<>FALSE,J53,IF(J54<>FALSE,J54)) -> FALSE | J51: =IF(AND(C49+(ATAN(E49/G49)*6400/(2*PI()))>=0,(C49+(ATAN(E49/G49)*6400/(2*PI()))<=6400)),(C49+(ATAN(E49/G49)*6400/(2*PI()))),IF((C49+(ATAN(E49/G49)*6400/(2*PI())))>6400,(C49+(ATAN(E49/G49)*6400/(2*PI())))-6400,6400+(C49+(ATAN(E49/G49)*6400/(2*PI()))))) ->  | K51: =IF(AND(E49>0,G49>0),J51) -> FALSE | L51: =IF(AND(E49>0,G49<0),J51+3200) -> FALSE | M51: =IF(AND(E49<0,G49<0),J51+3200) -> FALSE | N51: =IF(AND(E49<0,G49>0),J51) -> FALSE
C52: Dist Obj Para nova Posição | H52: =IMABS(E49/(SIN(ATAN(E49/G49)))) ->  | R52: =IF(AND(J49-H3>=0,I49-G3>=0),((ATAN((I49-G3)/(J49-H3)))*6400/(2*PI())),IF(AND(J49-H3<=0,I49-G3>0),1600+((IMABS(ATAN((J49-H3)/(I49-G3)))*6400/(2*PI()))))) ->  | T52: =IF(AND(J49-H3<0,I49-G3<=0),3200+((ATAN((I49-G3)/(J49-H3)))*6400/(2*PI())),IF(AND(J49-H3>=0,I49-G3<0),4800+((IMABS(ATAN((J49-H3)/(I49-G3)))*6400/(2*PI()))))) -> 
J53: =IF(K51<>FALSE,K51,IF(L51<>FALSE,L51)) -> FALSE
J54: =IF(M51<>FALSE,M51,IF(N51<>FALSE,N51)) -> FALSE
C56: Rumo | E56: Direção(E-) | G56: Alcance(Enc-) | I56: Coordenadas da Correção | M56: Dist Top | P56: Dç (mil) | R56: Elv(mil) | T56: Dur Traj(s)
C58: =IF(ISBLANK(H12),"Int Rumo",H12) -> Int Rumo | I58: =IF(ISBLANK(E58),"",I49+(H61*SIN(H60*(2*PI())/6400))) ->  | J58: =IF(ISBLANK(E58),"",J49+(H61*COS(H60*(2*PI())/6400))) ->  | K58: =IF(ISBLANK(E58),"",K49) ->  | M58: =IF(ISBLANK(E58),"",ROUND(SQRT(POWER((I58-$G$3),2)+POWER((J58-$H$3),2)),-1)) ->  | P58: =IF(ISBLANK(E58),"",IF(T61=FALSE,R61,T61)) ->  | R58: =IF(ISBLANK(E58),"",IF(ISERROR(IF(ISBLANK(Q13),"",IF(Q13=0,VLOOKUP(M58,TTN!A39:B113,2,FALSE),IF(Q13=2,VLOOKUP(M58,TTN!E39:F209,2,FALSE),IF(Q13=2,VLOOKUP(M58,TTN!E39:F209,2,FALSE),IF(Q13=4,VLOOKUP(M58,TTN!I39:J257,2,FALSE),IF(Q13=6,VLOOKUP(M58,TTN!M39:N249,2,FALSE),IF(Q13=8,VLOOKUP(M58,TTN!Q39:R270,2,FALSE),IF(Q13=9,VLOOKUP(M58,TTN!U39:V209,2,FALSE)))))))))),"Cg Insuf",IF(ISBLANK(Q13),"",IF(Q13=0,VLOOKUP(M58,TTN!A39:B113,2,FALSE),IF(Q13=2,VLOOKUP(M58,TTN!E39:F209,2,FALSE),IF(Q13=2,VLOOKUP(M58,TTN!E39:F209,2,FALSE),IF(Q13=4,VLOOKUP(M58,TTN!I39:J257,2,FALSE),IF(Q13=6,VLOOKUP(M58,TTN!M39:N249,2,FALSE),IF(Q13=8,VLOOKUP(M58,TTN!Q39:R270,2,FALSE),IF(Q13=9,VLOOKUP(M58,TTN!U39:V209,2,FALSE))))))))))) ->  | T58: =IF(ISBLANK(E58),"",IF(ISERROR(IF(ISBLANK(Q13),"",IF(Q13=0,VLOOKUP(M58,TTN!A30:C104,3,FALSE),IF(Q13=2,VLOOKUP(M58,TTN!E30:G200,3,FALSE),IF(Q13=2,VLOOKUP(M58,TTN!E30:G200,3,FALSE),IF(Q13=4,VLOOKUP(M58,TTN!I30:K248,3,FALSE),IF(Q13=6,VLOOKUP(M58,TTN!M30:O240,3,FALSE),IF(Q13=8,VLOOKUP(M58,TTN!Q30:S261,3,FALSE),IF(Q13=9,VLOOKUP(M58,TTN!U30:W200,2,FALSE)))))))))),"Cg Insuf",IF(ISBLANK(Q13),"",IF(Q13=0,VLOOKUP(M58,TTN!A30:C104,3,FALSE),IF(Q13=2,VLOOKUP(M58,TTN!E30:H200,3,FALSE),IF(Q13=2,VLOOKUP(M58,TTN!E30:G200,3,FALSE),IF(Q13=4,VLOOKUP(M58,TTN!I30:K248,3,FALSE),IF(Q13=6,VLOOKUP(M58,TTN!M30:O240,3,FALSE),IF(Q13=8,VLOOKUP(M58,TTN!Q30:S261,3,FALSE),IF(Q13=9,VLOOKUP(M58,TTN!U30:W200,3,FALSE))))))))))) -> 
C60: Rumo Obj para nova Posiçao | H60: =IF(J62<>FALSE,J62,IF(J63<>FALSE,J63)) -> FALSE | J60: =IF(AND(C58+(ATAN(E58/G58)*6400/(2*PI()))>=0,(C58+(ATAN(E58/G58)*6400/(2*PI()))<=6400)),(C58+(ATAN(E58/G58)*6400/(2*PI()))),IF((C58+(ATAN(E58/G58)*6400/(2*PI())))>6400,(C58+(ATAN(E58/G58)*6400/(2*PI())))-6400,6400+(C58+(ATAN(E58/G58)*6400/(2*PI()))))) ->  | K60: =IF(AND(E58>0,G58>0),J60) -> FALSE | L60: =IF(AND(E58>0,G58<0),J60+3200) -> FALSE | M60: =IF(AND(E58<0,G58<0),J60+3200) -> FALSE | N60: =IF(AND(E58<0,G58>0),J60) -> FALSE
C61: Dist Obj Para nova Posição | H61: =IMABS(E58/(SIN(ATAN(E58/G58)))) ->  | R61: =IF(AND(J58-H3>=0,I58-G3>=0),((ATAN((I58-G3)/(J58-H3)))*6400/(2*PI())),IF(AND(J58-H3<=0,I58-G3>0),1600+((IMABS(ATAN((J58-H3)/(I58-G3)))*6400/(2*PI()))))) ->  | T61: =IF(AND(J58-H3<0,I58-G3<=0),3200+((ATAN((I58-G3)/(J58-H3)))*6400/(2*PI())),IF(AND(J58-H3>=0,I58-G3<0),4800+((IMABS(ATAN((J58-H3)/(I58-G3)))*6400/(2*PI()))))) -> 
J62: =IF(K60<>FALSE,K60,IF(L60<>FALSE,L60)) -> FALSE
J63: =IF(M60<>FALSE,M60,IF(N60<>FALSE,N60)) -> FALSE
C65: Rumo | E65: Direção(E-) | G65: Alcance(Enc-) | I65: Coordenadas da Correção | M65: Dist Top | P65: Dç (mil) | R65: Elv(mil) | T65: Dur Traj(s)
C67: =IF(ISBLANK(H12),"Int Rumo",H12) -> Int Rumo | I67: =IF(ISBLANK(E67),"",I58+(H70*SIN(H69*(2*PI())/6400))) ->  | J67: =IF(ISBLANK(E67),"",J58+(H70*COS(H69*(2*PI())/6400))) ->  | K67: =IF(ISBLANK(E67),"",K58) ->  | M67: =IF(ISBLANK(E67),"",ROUND(SQRT(POWER((I67-$G$3),2)+POWER((J67-$H$3),2)),-1)) ->  | P67: =IF(ISBLANK(E67),"",IF(T70=FALSE,R70,T70)) ->  | R67: =IF(ISBLANK(E67),"",IF(ISERROR(IF(ISBLANK(Q13),"",IF(Q13=0,VLOOKUP(M67,TTN!A48:B122,2,FALSE),IF(Q13=2,VLOOKUP(M67,TTN!E48:F218,2,FALSE),IF(Q13=2,VLOOKUP(M67,TTN!E48:F218,2,FALSE),IF(Q13=4,VLOOKUP(M67,TTN!I48:J266,2,FALSE),IF(Q13=6,VLOOKUP(M67,TTN!M48:N258,2,FALSE),IF(Q13=8,VLOOKUP(M67,TTN!Q48:R279,2,FALSE),IF(Q13=9,VLOOKUP(M67,TTN!U48:V218,2,FALSE)))))))))),"Cg Insuf",IF(ISBLANK(Q13),"",IF(Q13=0,VLOOKUP(M67,TTN!A48:B122,2,FALSE),IF(Q13=2,VLOOKUP(M67,TTN!E48:F218,2,FALSE),IF(Q13=2,VLOOKUP(M67,TTN!E48:F218,2,FALSE),IF(Q13=4,VLOOKUP(M67,TTN!I48:J266,2,FALSE),IF(Q13=6,VLOOKUP(M67,TTN!M48:N258,2,FALSE),IF(Q13=8,VLOOKUP(M67,TTN!Q48:R279,2,FALSE),IF(Q13=9,VLOOKUP(M67,TTN!U48:V218,2,FALSE))))))))))) ->  | T67: =IF(ISBLANK(E67),"",IF(ISERROR(IF(ISBLANK(Q13),"",IF(Q13=0,VLOOKUP(M67,TTN!A39:C113,3,FALSE),IF(Q13=2,VLOOKUP(M67,TTN!E39:G209,3,FALSE),IF(Q13=2,VLOOKUP(M67,TTN!E39:G209,3,FALSE),IF(Q13=4,VLOOKUP(M67,TTN!I39:K257,3,FALSE),IF(Q13=6,VLOOKUP(M67,TTN!M39:O249,3,FALSE),IF(Q13=8,VLOOKUP(M67,TTN!Q39:S270,3,FALSE),IF(Q13=9,VLOOKUP(M67,TTN!U39:W209,2,FALSE)))))))))),"Cg Insuf",IF(ISBLANK(Q13),"",IF(Q13=0,VLOOKUP(M67,TTN!A39:C113,3,FALSE),IF(Q13=2,VLOOKUP(M67,TTN!E39:H209,3,FALSE),IF(Q13=2,VLOOKUP(M67,TTN!E39:G209,3,FALSE),IF(Q13=4,VLOOKUP(M67,TTN!I39:K257,3,FALSE),IF(Q13=6,VLOOKUP(M67,TTN!M39:O249,3,FALSE),IF(Q13=8,VLOOKUP(M67,TTN!Q39:S270,3,FALSE),IF(Q13=9,VLOOKUP(M67,TTN!U39:W209,3,FALSE))))))))))) -> 
C69: Rumo Obj para nova Posiçao | H69: =IF(J71<>FALSE,J71,IF(J72<>FALSE,J72)) -> FALSE | J69: =IF(AND(C67+(ATAN(E67/G67)*6400/(2*PI()))>=0,(C67+(ATAN(E67/G67)*6400/(2*PI()))<=6400)),(C67+(ATAN(E67/G67)*6400/(2*PI()))),IF((C67+(ATAN(E67/G67)*6400/(2*PI())))>6400,(C67+(ATAN(E67/G67)*6400/(2*PI())))-6400,6400+(C67+(ATAN(E67/G67)*6400/(2*PI()))))) ->  | K69: =IF(AND(E67>0,G67>0),J69) -> FALSE | L69: =IF(AND(E67>0,G67<0),J69+3200) -> FALSE | M69: =IF(AND(E67<0,G67<0),J69+3200) -> FALSE | N69: =IF(AND(E67<0,G67>0),J69) -> FALSE
C70: Dist Obj Para nova Posição | H70: =IMABS(E67/(SIN(ATAN(E67/G67)))) ->  | R70: =IF(AND(J67-H3>=0,I67-G3>=0),((ATAN((I67-G3)/(J67-H3)))*6400/(2*PI())),IF(AND(J67-H3<=0,I67-G3>0),1600+((IMABS(ATAN((J67-H3)/(I67-G3)))*6400/(2*PI()))))) ->  | T70: =IF(AND(J67-H3<0,I67-G3<=0),3200+((ATAN((I67-G3)/(J67-H3)))*6400/(2*PI())),IF(AND(J67-H3>=0,I67-G3<0),4800+((IMABS(ATAN((J67-H3)/(I67-G3)))*6400/(2*PI()))))) -> 
J71: =IF(K69<>FALSE,K69,IF(L69<>FALSE,L69)) -> FALSE
J72: =IF(M69<>FALSE,M69,IF(N69<>FALSE,N69)) -> FALSE

Sheet Coordenadas Polares
G2: Posição da Bateria | K2: Posição Oav's
U3: Preencher
U4: Devolvido
C6: Pedido de Tiro
P8: Dist | Q8: =IF(ISBLANK(H12),"",ROUND((SQRT(POWER((H9-G3),2)+POWER((I9-H3),2))),-1)) ->  | R8: (m)
C9: Coordenadas Rectangulares | H9: =IF(ISBLANK(H12),"",K3+(J12*SIN(H12*(2*PI())/6400))) ->  | I9: =IF(ISBLANK(H12),"",L3+(J12*COS(H12*(2*PI())/6400))) ->  | J9: =IF(ISBLANK(H12),"",IF(L12<>0,M3+L12,M3+(X9*(J12/1000)))) -> 
P11: Dç | Q11: =IF(AND(I9-H3>0,H9-G3>=0),((ATAN((H9-G3)/(I9-H3)))*6400/(2*PI())),IF(AND(I9-H3<=0,H9-G3>0),1600+((IMABS(ATAN((I9-H3)/(H9-G3)))*6400/(2*PI()))))) ->  | R11: =IF(AND(I9-H3<0,H9-G3<=0),3200+((ATAN((H9-G3)/(I9-H3)))*6400/(2*PI())),IF(AND(I9-H3>=0,H9-G3<0),4800+((IMABS(ATAN((I9-H3)/(H9-G3)))*6400/(2*PI()))))) -> 
C12: Coordenadas Polares | G12: Rumo | I12: Dist | K12: Ac/Ab
P13: Cg
C16: Dç | E16: =IF(ISBLANK(H12),"",IF(R11=FALSE,Q11,R11)) ->  | F16: (mil) | H16: Elv | I16: =IF(ISERROR(IF(ISBLANK(Q13),"",IF(Q13=0,VLOOKUP(Q8,TTN!A3:B77,2,FALSE),IF(Q13=2,VLOOKUP(Q8,TTN!E3:F173,2,FALSE),IF(Q13=2,VLOOKUP(Q8,TTN!E3:F173,2,FALSE),IF(Q13=4,VLOOKUP(Q8,TTN!I3:J221,2,FALSE),IF(Q13=6,VLOOKUP(Q8,TTN!M3:N213,2,FALSE),IF(Q13=8,VLOOKUP(Q8,TTN!Q3:R234,2,FALSE),IF(Q13=9,VLOOKUP(Q8,TTN!U3:V173,2,FALSE)))))))))),"Cg Insuf",IF(ISBLANK(Q13),"",IF(Q13=0,VLOOKUP(Q8,TTN!A3:B77,2,FALSE),IF(Q13=2,VLOOKUP(Q8,TTN!E3:F173,2,FALSE),IF(Q13=2,VLOOKUP(Q8,TTN!E3:F173,2,FALSE),IF(Q13=4,VLOOKUP(Q8,TTN!I3:J221,2,FALSE),IF(Q13=6,VLOOKUP(Q8,TTN!M3:N213,2,FALSE),IF(Q13=8,VLOOKUP(Q8,TTN!Q3:R234,2,FALSE),IF(Q13=9,VLOOKUP(Q8,TTN!U3:V173,2,FALSE)))))))))) ->  | J16: (mil) | K16: Dur Traj | L16: =IF(ISERROR(IF(ISBLANK(Q13),"",IF(Q13=0,VLOOKUP(Q8,TTN!A3:C77,3,FALSE),IF(Q13=2,VLOOKUP(Q8,TTN!E3:G173,3,FALSE),IF(Q13=2,VLOOKUP(Q8,TTN!E3:G173,3,FALSE),IF(Q13=4,VLOOKUP(Q8,TTN!I3:K221,3,FALSE),IF(Q13=6,VLOOKUP(Q8,TTN!M3:O213,3,FALSE),IF(Q13=8,VLOOKUP(Q8,TTN!Q3:S234,3,FALSE),IF(Q13=9,VLOOKUP(Q8,TTN!U3:W173,2,FALSE)))))))))),"Cg Insuf",IF(ISBLANK(Q13),"",IF(Q13=0,VLOOKUP(Q8,TTN!A3:C77,3,FALSE),IF(Q13=2,VLOOKUP(Q8,TTN!E3:H173,3,FALSE),IF(Q13=2,VLOOKUP(Q8,TTN!E3:G173,3,FALSE),IF(Q13=4,VLOOKUP(Q8,TTN!I3:K221,3,FALSE),IF(Q13=6,VLOOKUP(Q8,TTN!M3:O213,3,FALSE),IF(Q13=8,VLOOKUP(Q8,TTN!Q3:S234,3,FALSE),IF(Q13=9,VLOOKUP(Q8,TTN!U3:W173,3,FALSE)))))))))) ->  | M16: (s)
C18: CORREÇÕES
C20: Rumo | E20: Direção(E-) | G20: Alcance(Enc-) | I20: Coordenadas da Correção | M20: Dist Top | P20: Dç (mil) | R20: Elv(mil) | T20: Dur Traj(s)
C22: =IF(ISBLANK(H12),"Int Rumo",H12) -> Int Rumo | I22: =IF(ISBLANK(E22),"",H9+(H25*SIN(H24*(2*PI())/6400))) ->  | J22: =IF(ISBLANK(E22),"",I9+(H25*COS(H24*(2*PI())/6400))) ->  | K22: =IF(ISBLANK(E22),"",J9) ->  | M22: =IF(ISBLANK(E22),"",ROUND(SQRT(POWER((I22-$G$3),2)+POWER((J22-$H$3),2)),-1)) ->  | P22: =IF(ISBLANK(E22),"",IF(T25=FALSE,R25,T25)) ->  | R22: =IF(ISBLANK(E22),"",IF(ISERROR(IF(ISBLANK(Q13),"",IF(Q13=0,VLOOKUP(M22,TTN!A3:B77,2,FALSE),IF(Q13=2,VLOOKUP(M22,TTN!E3:F173,2,FALSE),IF(Q13=2,VLOOKUP(M22,TTN!E3:F173,2,FALSE),IF(Q13=4,VLOOKUP(M22,TTN!I3:J221,2,FALSE),IF(Q13=6,VLOOKUP(M22,TTN!M3:N213,2,FALSE),IF(Q13=8,VLOOKUP(M22,TTN!Q3:R234,2,FALSE),IF(Q13=9,VLOOKUP(M22,TTN!U3:V173,2,FALSE)))))))))),"Cg Insuf",IF(ISBLANK(Q13),"",IF(Q13=0,VLOOKUP(M22,TTN!A3:B77,2,FALSE),IF(Q13=2,VLOOKUP(M22,TTN!E3:F173,2,FALSE),IF(Q13=2,VLOOKUP(M22,TTN!E3:F173,2,FALSE),IF(Q13=4,VLOOKUP(M22,TTN!I3:J221,2,FALSE),IF(Q13=6,VLOOKUP(M22,TTN!M3:N213,2,FALSE),IF(Q13=8,VLOOKUP(M22,TTN!Q3:R234,2,FALSE),IF(Q13=9,VLOOKUP(M22,TTN!U3:V173,2,FALSE))))))))))) ->  | T22: =IF(ISBLANK(E22),"",IF(ISERROR(IF(ISBLANK(Q13),"",IF(Q13=0,VLOOKUP(M22,TTN!A3:C77,3,FALSE),IF(Q13=2,VLOOKUP(M22,TTN!E3:G173,3,FALSE),IF(Q13=2,VLOOKUP(M22,TTN!E3:G173,3,FALSE),IF(Q13=4,VLOOKUP(M22,TTN!I3:K221,3,FALSE),IF(Q13=6,VLOOKUP(M22,TTN!M3:O213,3,FALSE),IF(Q13=8,VLOOKUP(M22,TTN!Q3:S234,3,FALSE),IF(Q13=9,VLOOKUP(M22,TTN!U3:W173,2,FALSE)))))))))),"Cg Insuf",IF(ISBLANK(Q13),"",IF(Q13=0,VLOOKUP(M22,TTN!A3:C77,3,FALSE),IF(Q13=2,VLOOKUP(M22,TTN!E3:H173,3,FALSE),IF(Q13=2,VLOOKUP(M22,TTN!E3:G173,3,FALSE),IF(Q13=4,VLOOKUP(M22,TTN!I3:K221,3,FALSE),IF(Q13=6,VLOOKUP(M22,TTN!M3:O213,3,FALSE),IF(Q13=8,VLOOKUP(M22,TTN!Q3:S234,3,FALSE),IF(Q13=9,VLOOKUP(M22,TTN!U3:W173,3,FALSE))))))))))) -> 
C24: Rumo Obj para nova Posiçao | H24: =IF(J26<>FALSE,J26,IF(J27<>FALSE,J27)) -> FALSE | J24: =IF(AND(C22+(ATAN(E22/G22)*6400/(2*PI()))>=0,(C22+(ATAN(E22/G22)*6400/(2*PI()))<=6400)),(C22+(ATAN(E22/G22)*6400/(2*PI()))),IF((C22+(ATAN(E22/G22)*6400/(2*PI())))>6400,(C22+(ATAN(E22/G22)*6400/(2*PI())))-6400,6400+(C22+(ATAN(E22/G22)*6400/(2*PI()))))) ->  | K24: =IF(AND(E22>0,G22>0),J24) -> FALSE | L24: =IF(AND(E22>0,G22<0),J24+3200) -> FALSE | M24: =IF(AND(E22<0,G22<0),J24+3200) -> FALSE | N24: =IF(AND(E22<0,G22>0),J24) -> FALSE
C25: Dist Obj Para nova Posição | H25: =IMABS(E22/(SIN(ATAN(E22/G22)))) ->  | R25: =IF(AND(J22-H3>=0,I22-G3>=0),((ATAN((I22-G3)/(J22-H3)))*6400/(2*PI())),IF(AND(J22-H3<=0,I22-G3>0),1600+((IMABS(ATAN((J22-H3)/(I22-G3)))*6400/(2*PI()))))) ->  | T25: =IF(AND(J22-H3<0,I22-G3<=0),3200+((ATAN((I22-G3)/(J22-H3)))*6400/(2*PI())),IF(AND(J22-H3>=0,I22-G3<0),4800+((IMABS(ATAN((J22-H3)/(I22-G3)))*6400/(2*PI()))))) -> 
J26: =IF(K24<>FALSE,K24,IF(L24<>FALSE,L24)) -> FALSE
J27: =IF(M24<>FALSE,M24,IF(N24<>FALSE,N24)) -> FALSE
C29: Rumo | E29: Direção(E-) | G29: Alcance(Enc-) | I29: Coordenadas da Correção | M29: Dist Top | P29: Dç (mil) | R29: Elv(mil) | T29: Dur Traj(s)
C31: =IF(ISBLANK(H12),"Int Rumo",H12) -> Int Rumo | I31: =IF(ISBLANK(E31),"",I22+(H34*SIN(H33*(2*PI())/6400))) ->  | J31: =IF(ISBLANK(E31),"",J22+(H34*COS(H33*(2*PI())/6400))) ->  | K31: =IF(ISBLANK(E31),"",K22) ->  | M31: =IF(ISBLANK(E31),"",ROUND(SQRT(POWER((I31-$G$3),2)+POWER((J31-$H$3),2)),-1)) ->  | P31: =IF(ISBLANK(E31),"",IF(T34=FALSE,R34,T34)) ->  | R31: =IF(ISBLANK(E31),"",IF(ISERROR(IF(ISBLANK(Q13),"",IF(Q13=0,VLOOKUP(M31,TTN!A12:B86,2,FALSE),IF(Q13=2,VLOOKUP(M31,TTN!E12:F182,2,FALSE),IF(Q13=2,VLOOKUP(M31,TTN!E12:F182,2,FALSE),IF(Q13=4,VLOOKUP(M31,TTN!I12:J230,2,FALSE),IF(Q13=6,VLOOKUP(M31,TTN!M12:N222,2,FALSE),IF(Q13=8,VLOOKUP(M31,TTN!Q12:R243,2,FALSE),IF(Q13=9,VLOOKUP(M31,TTN!U12:V182,2,FALSE)))))))))),"Cg Insuf",IF(ISBLANK(Q13),"",IF(Q13=0,VLOOKUP(M31,TTN!A12:B86,2,FALSE),IF(Q13=2,VLOOKUP(M31,TTN!E12:F182,2,FALSE),IF(Q13=2,VLOOKUP(M31,TTN!E12:F182,2,FALSE),IF(Q13=4,VLOOKUP(M31,TTN!I12:J230,2,FALSE),IF(Q13=6,VLOOKUP(M31,TTN!M12:N222,2,FALSE),IF(Q13=8,VLOOKUP(M31,TTN!Q12:R243,2,FALSE),IF(Q13=9,VLOOKUP(M31,TTN!U12:V182,2,FALSE))))))))))) ->  | T31: =IF(ISBLANK(E31),"",IF(ISERROR(IF(ISBLANK(Q13),"",IF(Q13=0,VLOOKUP(M31,TTN!A12:C86,3,FALSE),IF(Q13=2,VLOOKUP(M31,TTN!E12:G182,3,FALSE),IF(Q13=2,VLOOKUP(M31,TTN!E12:G182,3,FALSE),IF(Q13=4,VLOOKUP(M31,TTN!I12:K230,3,FALSE),IF(Q13=6,VLOOKUP(M31,TTN!M12:O222,3,FALSE),IF(Q13=8,VLOOKUP(M31,TTN!Q12:S243,3,FALSE),IF(Q13=9,VLOOKUP(M31,TTN!U12:W182,2,FALSE)))))))))),"Cg Insuf",IF(ISBLANK(Q13),"",IF(Q13=0,VLOOKUP(M31,TTN!A12:C86,3,FALSE),IF(Q13=2,VLOOKUP(M31,TTN!E12:H182,3,FALSE),IF(Q13=2,VLOOKUP(M31,TTN!E12:G182,3,FALSE),IF(Q13=4,VLOOKUP(M31,TTN!I12:K230,3,FALSE),IF(Q13=6,VLOOKUP(M31,TTN!M12:O222,3,FALSE),IF(Q13=8,VLOOKUP(M31,TTN!Q12:S243,3,FALSE),IF(Q13=9,VLOOKUP(M31,TTN!U12:W182,3,FALSE))))))))))) -> 
C33: Rumo Obj para nova Posiçao | H33: =IF(J35<>FALSE,J35,IF(J36<>FALSE,J36)) -> FALSE | J33: =IF(AND(C31+(ATAN(E31/G31)*6400/(2*PI()))>=0,(C31+(ATAN(E31/G31)*6400/(2*PI()))<=6400)),(C31+(ATAN(E31/G31)*6400/(2*PI()))),IF((C31+(ATAN(E31/G31)*6400/(2*PI())))>6400,(C31+(ATAN(E31/G31)*6400/(2*PI())))-6400,6400+(C31+(ATAN(E31/G31)*6400/(2*PI()))))) ->  | K33: =IF(AND(E31>0,G31>0),J33) -> FALSE | L33: =IF(AND(E31>0,G31<0),J33+3200) -> FALSE | M33: =IF(AND(E31<0,G31<0),J33+3200) -> FALSE | N33: =IF(AND(E31<0,G31>0),J33) -> FALSE
C34: Dist Obj Para nova Posição | H34: =IMABS(E31/(SIN(ATAN(E31/G31)))) ->  | R34: =IF(AND(J31-H3>=0,I31-G3>=0),((ATAN((I31-G3)/(J31-H3)))*6400/(2*PI())),IF(AND(J31-H3<=0,I31-G3>0),1600+((IMABS(ATAN((J31-H3)/(I31-G3)))*6400/(2*PI()))))) ->  | T34: =IF(AND(J31-H3<0,I31-G3<=0),3200+((ATAN((I31-G3)/(J31-H3)))*6400/(2*PI())),IF(AND(J31-H3>=0,I31-G3<0),4800+((IMABS(ATAN((J31-H3)/(I31-G3)))*6400/(2*PI()))))) -> 
J35: =IF(K33<>FALSE,K33,IF(L33<>FALSE,L33)) -> FALSE
J36: =IF(M33<>FALSE,M33,IF(N33<>FALSE,N33)) -> FALSE
C38: Rumo | E38: Direção(E-) | G38: Alcance(Enc-) | I38: Coordenadas da Correção | M38: Dist Top | P38: Dç (mil) | R38: Elv(mil) | T38: Dur Traj(s)
C40: =IF(ISBLANK(H12),"Int Rumo",H12) -> Int Rumo | I40: =IF(ISBLANK(E40),"",I31+(H43*SIN(H42*(2*PI())/6400))) ->  | J40: =IF(ISBLANK(E40),"",J31+(H43*COS(H42*(2*PI())/6400))) ->  | K40: =IF(ISBLANK(E40),"",K31) ->  | M40: =IF(ISBLANK(E40),"",ROUND(SQRT(POWER((I40-$G$3),2)+POWER((J40-$H$3),2)),-1)) ->  | P40: =IF(ISBLANK(E40),"",IF(T43=FALSE,R43,T43)) ->  | R40: =IF(ISBLANK(E40),"",IF(ISERROR(IF(ISBLANK(Q13),"",IF(Q13=0,VLOOKUP(M40,TTN!A21:B95,2,FALSE),IF(Q13=2,VLOOKUP(M40,TTN!E21:F191,2,FALSE),IF(Q13=2,VLOOKUP(M40,TTN!E21:F191,2,FALSE),IF(Q13=4,VLOOKUP(M40,TTN!I21:J239,2,FALSE),IF(Q13=6,VLOOKUP(M40,TTN!M21:N231,2,FALSE),IF(Q13=8,VLOOKUP(M40,TTN!Q21:R252,2,FALSE),IF(Q13=9,VLOOKUP(M40,TTN!U21:V191,2,FALSE)))))))))),"Cg Insuf",IF(ISBLANK(Q13),"",IF(Q13=0,VLOOKUP(M40,TTN!A21:B95,2,FALSE),IF(Q13=2,VLOOKUP(M40,TTN!E21:F191,2,FALSE),IF(Q13=2,VLOOKUP(M40,TTN!E21:F191,2,FALSE),IF(Q13=4,VLOOKUP(M40,TTN!I21:J239,2,FALSE),IF(Q13=6,VLOOKUP(M40,TTN!M21:N231,2,FALSE),IF(Q13=8,VLOOKUP(M40,TTN!Q21:R252,2,FALSE),IF(Q13=9,VLOOKUP(M40,TTN!U21:V191,2,FALSE))))))))))) ->  | T40: =IF(ISBLANK(E40),"",IF(ISERROR(IF(ISBLANK(Q13),"",IF(Q13=0,VLOOKUP(M40,TTN!A12:C86,3,FALSE),IF(Q13=2,VLOOKUP(M40,TTN!E12:G182,3,FALSE),IF(Q13=2,VLOOKUP(M40,TTN!E12:G182,3,FALSE),IF(Q13=4,VLOOKUP(M40,TTN!I12:K230,3,FALSE),IF(Q13=6,VLOOKUP(M40,TTN!M12:O222,3,FALSE),IF(Q13=8,VLOOKUP(M40,TTN!Q12:S243,3,FALSE),IF(Q13=9,VLOOKUP(M40,TTN!U12:W182,2,FALSE)))))))))),"Cg Insuf",IF(ISBLANK(Q13),"",IF(Q13=0,VLOOKUP(M40,TTN!A12:C86,3,FALSE),IF(Q13=2,VLOOKUP(M40,TTN!E12:H182,3,FALSE),IF(Q13=2,VLOOKUP(M40,TTN!E12:G182,3,FALSE),IF(Q13=4,VLOOKUP(M40,TTN!I12:K230,3,FALSE),IF(Q13=6,VLOOKUP(M40,TTN!M12:O222,3,FALSE),IF(Q13=8,VLOOKUP(M40,TTN!Q12:S243,3,FALSE),IF(Q13=9,VLOOKUP(M40,TTN!U12:W182,3,FALSE))))))))))) -> 
C42: Rumo Obj para nova Posiçao | H42: =IF(J44<>FALSE,J44,IF(J45<>FALSE,J45)) -> FALSE | J42: =IF(AND(C40+(ATAN(E40/G40)*6400/(2*PI()))>=0,(C40+(ATAN(E40/G40)*6400/(2*PI()))<=6400)),(C40+(ATAN(E40/G40)*6400/(2*PI()))),IF((C40+(ATAN(E40/G40)*6400/(2*PI())))>6400,(C40+(ATAN(E40/G40)*6400/(2*PI())))-6400,6400+(C40+(ATAN(E40/G40)*6400/(2*PI()))))) ->  | K42: =IF(AND(E40>0,G40>0),J42) -> FALSE | L42: =IF(AND(E40>0,G40<0),J42+3200) -> FALSE | M42: =IF(AND(E40<0,G40<0),J42+3200) -> FALSE | N42: =IF(AND(E40<0,G40>0),J42) -> FALSE
C43: Dist Obj Para nova Posição | H43: =IMABS(E40/(SIN(ATAN(E40/G40)))) ->  | R43: =IF(AND(J40-H3>=0,I40-G3>=0),((ATAN((I40-G3)/(J40-H3)))*6400/(2*PI())),IF(AND(J40-H3<=0,I40-G3>0),1600+((IMABS(ATAN((J40-H3)/(I40-G3)))*6400/(2*PI()))))) ->  | T43: =IF(AND(J40-H3<0,I40-G3<=0),3200+((ATAN((I40-G3)/(J40-H3)))*6400/(2*PI())),IF(AND(J40-H3>=0,I40-G3<0),4800+((IMABS(ATAN((J40-H3)/(I40-G3)))*6400/(2*PI()))))) -> 
J44: =IF(K42<>FALSE,K42,IF(L42<>FALSE,L42)) -> FALSE
J45: =IF(M42<>FALSE,M42,IF(N42<>FALSE,N42)) -> FALSE
C47: Rumo | E47: Direção(E-) | G47: Alcance(Enc-) | I47: Coordenadas da Correção | M47: Dist Top | P47: Dç (mil) | R47: Elv(mil) | T47: Dur Traj(s)
C49: =IF(ISBLANK(H12),"Int Rumo",H12) -> Int Rumo | I49: =IF(ISBLANK(E49),"",I40+(H52*SIN(H51*(2*PI())/6400))) ->  | J49: =IF(ISBLANK(E49),"",J40+(H52*COS(H51*(2*PI())/6400))) ->  | K49: =IF(ISBLANK(E49),"",K40) ->  | M49: =IF(ISBLANK(E49),"",ROUND(SQRT(POWER((I49-$G$3),2)+POWER((J49-$H$3),2)),-1)) ->  | P49: =IF(ISBLANK(E49),"",IF(T52=FALSE,R52,T52)) ->  | R49: =IF(ISBLANK(E49),"",IF(ISERROR(IF(ISBLANK(Q13),"",IF(Q13=0,VLOOKUP(M49,TTN!A30:B104,2,FALSE),IF(Q13=2,VLOOKUP(M49,TTN!E30:F200,2,FALSE),IF(Q13=2,VLOOKUP(M49,TTN!E30:F200,2,FALSE),IF(Q13=4,VLOOKUP(M49,TTN!I30:J248,2,FALSE),IF(Q13=6,VLOOKUP(M49,TTN!M30:N240,2,FALSE),IF(Q13=8,VLOOKUP(M49,TTN!Q30:R261,2,FALSE),IF(Q13=9,VLOOKUP(M49,TTN!U30:V200,2,FALSE)))))))))),"Cg Insuf",IF(ISBLANK(Q13),"",IF(Q13=0,VLOOKUP(M49,TTN!A30:B104,2,FALSE),IF(Q13=2,VLOOKUP(M49,TTN!E30:F200,2,FALSE),IF(Q13=2,VLOOKUP(M49,TTN!E30:F200,2,FALSE),IF(Q13=4,VLOOKUP(M49,TTN!I30:J248,2,FALSE),IF(Q13=6,VLOOKUP(M49,TTN!M30:N240,2,FALSE),IF(Q13=8,VLOOKUP(M49,TTN!Q30:R261,2,FALSE),IF(Q13=9,VLOOKUP(M49,TTN!U30:V200,2,FALSE))))))))))) ->  | T49: =IF(ISBLANK(E49),"",IF(ISERROR(IF(ISBLANK(Q13),"",IF(Q13=0,VLOOKUP(M49,TTN!A21:C95,3,FALSE),IF(Q13=2,VLOOKUP(M49,TTN!E21:G191,3,FALSE),IF(Q13=2,VLOOKUP(M49,TTN!E21:G191,3,FALSE),IF(Q13=4,VLOOKUP(M49,TTN!I21:K239,3,FALSE),IF(Q13=6,VLOOKUP(M49,TTN!M21:O231,3,FALSE),IF(Q13=8,VLOOKUP(M49,TTN!Q21:S252,3,FALSE),IF(Q13=9,VLOOKUP(M49,TTN!U21:W191,2,FALSE)))))))))),"Cg Insuf",IF(ISBLANK(Q13),"",IF(Q13=0,VLOOKUP(M49,TTN!A21:C95,3,FALSE),IF(Q13=2,VLOOKUP(M49,TTN!E21:H191,3,FALSE),IF(Q13=2,VLOOKUP(M49,TTN!E21:G191,3,FALSE),IF(Q13=4,VLOOKUP(M49,TTN!I21:K239,3,FALSE),IF(Q13=6,VLOOKUP(M49,TTN!M21:O231,3,FALSE),IF(Q13=8,VLOOKUP(M49,TTN!Q21:S252,3,FALSE),IF(Q13=9,VLOOKUP(M49,TTN!U21:W191,3,FALSE))))))))))) -> 
C51: Rumo Obj para nova Posiçao | H51: =IF(J53<>FALSE,J53,IF(J54<>FALSE,J54)) -> FALSE | J51: =IF(AND(C49+(ATAN(E49/G49)*6400/(2*PI()))>=0,(C49+(ATAN(E49/G49)*6400/(2*PI()))<=6400)),(C49+(ATAN(E49/G49)*6400/(2*PI()))),IF((C49+(ATAN(E49/G49)*6400/(2*PI())))>6400,(C49+(ATAN(E49/G49)*6400/(2*PI())))-6400,6400+(C49+(ATAN(E49/G49)*6400/(2*PI()))))) ->  | K51: =IF(AND(E49>0,G49>0),J51) -> FALSE | L51: =IF(AND(E49>0,G49<0),J51+3200) -> FALSE | M51: =IF(AND(E49<0,G49<0),J51+3200) -> FALSE | N51: =IF(AND(E49<0,G49>0),J51) -> FALSE
C52: Dist Obj Para nova Posição | H52: =IMABS(E49/(SIN(ATAN(E49/G49)))) ->  | R52: =IF(AND(J49-H3>=0,I49-G3>=0),((ATAN((I49-G3)/(J49-H3)))*6400/(2*PI())),IF(AND(J49-H3<=0,I49-G3>0),1600+((IMABS(ATAN((J49-H3)/(I49-G3)))*6400/(2*PI()))))) ->  | T52: =IF(AND(J49-H3<0,I49-G3<=0),3200+((ATAN((I49-G3)/(J49-H3)))*6400/(2*PI())),IF(AND(J49-H3>=0,I49-G3<0),4800+((IMABS(ATAN((J49-H3)/(I49-G3)))*6400/(2*PI()))))) -> 
J53: =IF(K51<>FALSE,K51,IF(L51<>FALSE,L51)) -> FALSE
J54: =IF(M51<>FALSE,M51,IF(N51<>FALSE,N51)) -> FALSE
C56: Rumo | E56: Direção(E-) | G56: Alcance(Enc-) | I56: Coordenadas da Correção | M56: Dist Top | P56: Dç (mil) | R56: Elv(mil) | T56: Dur Traj(s)
C58: =IF(ISBLANK(H12),"Int Rumo",H12) -> Int Rumo | I58: =IF(ISBLANK(E58),"",I49+(H61*SIN(H60*(2*PI())/6400))) ->  | J58: =IF(ISBLANK(E58),"",J49+(H61*COS(H60*(2*PI())/6400))) ->  | K58: =IF(ISBLANK(E58),"",K49) ->  | M58: =IF(ISBLANK(E58),"",ROUND(SQRT(POWER((I58-$G$3),2)+POWER((J58-$H$3),2)),-1)) ->  | P58: =IF(ISBLANK(E58),"",IF(T61=FALSE,R61,T61)) ->  | R58: =IF(ISBLANK(E58),"",IF(ISERROR(IF(ISBLANK(Q13),"",IF(Q13=0,VLOOKUP(M58,TTN!A39:B113,2,FALSE),IF(Q13=2,VLOOKUP(M58,TTN!E39:F209,2,FALSE),IF(Q13=2,VLOOKUP(M58,TTN!E39:F209,2,FALSE),IF(Q13=4,VLOOKUP(M58,TTN!I39:J257,2,FALSE),IF(Q13=6,VLOOKUP(M58,TTN!M39:N249,2,FALSE),IF(Q13=8,VLOOKUP(M58,TTN!Q39:R270,2,FALSE),IF(Q13=9,VLOOKUP(M58,TTN!U39:V209,2,FALSE)))))))))),"Cg Insuf",IF(ISBLANK(Q13),"",IF(Q13=0,VLOOKUP(M58,TTN!A39:B113,2,FALSE),IF(Q13=2,VLOOKUP(M58,TTN!E39:F209,2,FALSE),IF(Q13=2,VLOOKUP(M58,TTN!E39:F209,2,FALSE),IF(Q13=4,VLOOKUP(M58,TTN!I39:J257,2,FALSE),IF(Q13=6,VLOOKUP(M58,TTN!M39:N249,2,FALSE),IF(Q13=8,VLOOKUP(M58,TTN!Q39:R270,2,FALSE),IF(Q13=9,VLOOKUP(M58,TTN!U39:V209,2,FALSE))))))))))) ->  | T58: =IF(ISBLANK(E58),"",IF(ISERROR(IF(ISBLANK(Q13),"",IF(Q13=0,VLOOKUP(M58,TTN!A30:C104,3,FALSE),IF(Q13=2,VLOOKUP(M58,TTN!E30:G200,3,FALSE),IF(Q13=2,VLOOKUP(M58,TTN!E30:G200,3,FALSE),IF(Q13=4,VLOOKUP(M58,TTN!I30:K248,3,FALSE),IF(Q13=6,VLOOKUP(M58,TTN!M30:O240,3,FALSE),IF(Q13=8,VLOOKUP(M58,TTN!Q30:S261,3,FALSE),IF(Q13=9,VLOOKUP(M58,TTN!U30:W200,2,FALSE)))))))))),"Cg Insuf",IF(ISBLANK(Q13),"",IF(Q13=0,VLOOKUP(M58,TTN!A30:C104,3,FALSE),IF(Q13=2,VLOOKUP(M58,TTN!E30:H200,3,FALSE),IF(Q13=2,VLOOKUP(M58,TTN!E30:G200,3,FALSE),IF(Q13=4,VLOOKUP(M58,TTN!I30:K248,3,FALSE),IF(Q13=6,VLOOKUP(M58,TTN!M30:O240,3,FALSE),IF(Q13=8,VLOOKUP(M58,TTN!Q30:S261,3,FALSE),IF(Q13=9,VLOOKUP(M58,TTN!U30:W200,3,FALSE))))))))))) -> 
C60: Rumo Obj para nova Posiçao | H60: =IF(J62<>FALSE,J62,IF(J63<>FALSE,J63)) -> FALSE | J60: =IF(AND(C58+(ATAN(E58/G58)*6400/(2*PI()))>=0,(C58+(ATAN(E58/G58)*6400/(2*PI()))<=6400)),(C58+(ATAN(E58/G58)*6400/(2*PI()))),IF((C58+(ATAN(E58/G58)*6400/(2*PI())))>6400,(C58+(ATAN(E58/G58)*6400/(2*PI())))-6400,6400+(C58+(ATAN(E58/G58)*6400/(2*PI()))))) ->  | K60: =IF(AND(E58>0,G58>0),J60) -> FALSE | L60: =IF(AND(E58>0,G58<0),J60+3200) -> FALSE | M60: =IF(AND(E58<0,G58<0),J60+3200) -> FALSE | N60: =IF(AND(E58<0,G58>0),J60) -> FALSE
C61: Dist Obj Para nova Posição | H61: =IMABS(E58/(SIN(ATAN(E58/G58)))) ->  | R61: =IF(AND(J58-H3>=0,I58-G3>=0),((ATAN((I58-G3)/(J58-H3)))*6400/(2*PI())),IF(AND(J58-H3<=0,I58-G3>0),1600+((IMABS(ATAN((J58-H3)/(I58-G3)))*6400/(2*PI()))))) ->  | T61: =IF(AND(J58-H3<0,I58-G3<=0),3200+((ATAN((I58-G3)/(J58-H3)))*6400/(2*PI())),IF(AND(J58-H3>=0,I58-G3<0),4800+((IMABS(ATAN((J58-H3)/(I58-G3)))*6400/(2*PI()))))) -> 
J62: =IF(K60<>FALSE,K60,IF(L60<>FALSE,L60)) -> FALSE
J63: =IF(M60<>FALSE,M60,IF(N60<>FALSE,N60)) -> FALSE
C65: Rumo | E65: Direção(E-) | G65: Alcance(Enc-) | I65: Coordenadas da Correção | M65: Dist Top | P65: Dç (mil) | R65: Elv(mil) | T65: Dur Traj(s)
C67: =IF(ISBLANK(H12),"Int Rumo",H12) -> Int Rumo | I67: =IF(ISBLANK(E67),"",I58+(H70*SIN(H69*(2*PI())/6400))) ->  | J67: =IF(ISBLANK(E67),"",J58+(H70*COS(H69*(2*PI())/6400))) ->  | K67: =IF(ISBLANK(E67),"",K58) ->  | M67: =IF(ISBLANK(E67),"",ROUND(SQRT(POWER((I67-$G$3),2)+POWER((J67-$H$3),2)),-1)) ->  | P67: =IF(ISBLANK(E67),"",IF(T70=FALSE,R70,T70)) ->  | R67: =IF(ISBLANK(E67),"",IF(ISERROR(IF(ISBLANK(Q13),"",IF(Q13=0,VLOOKUP(M67,TTN!A48:B122,2,FALSE),IF(Q13=2,VLOOKUP(M67,TTN!E48:F218,2,FALSE),IF(Q13=2,VLOOKUP(M67,TTN!E48:F218,2,FALSE),IF(Q13=4,VLOOKUP(M67,TTN!I48:J266,2,FALSE),IF(Q13=6,VLOOKUP(M67,TTN!M48:N258,2,FALSE),IF(Q13=8,VLOOKUP(M67,TTN!Q48:R279,2,FALSE),IF(Q13=9,VLOOKUP(M67,TTN!U48:V218,2,FALSE)))))))))),"Cg Insuf",IF(ISBLANK(Q13),"",IF(Q13=0,VLOOKUP(M67,TTN!A48:B122,2,FALSE),IF(Q13=2,VLOOKUP(M67,TTN!E48:F218,2,FALSE),IF(Q13=2,VLOOKUP(M67,TTN!E48:F218,2,FALSE),IF(Q13=4,VLOOKUP(M67,TTN!I48:J266,2,FALSE),IF(Q13=6,VLOOKUP(M67,TTN!M48:N258,2,FALSE),IF(Q13=8,VLOOKUP(M67,TTN!Q48:R279,2,FALSE),IF(Q13=9,VLOOKUP(M67,TTN!U48:V218,2,FALSE))))))))))) ->  | T67: =IF(ISBLANK(E67),"",IF(ISERROR(IF(ISBLANK(Q13),"",IF(Q13=0,VLOOKUP(M67,TTN!A39:C113,3,FALSE),IF(Q13=2,VLOOKUP(M67,TTN!E39:G209,3,FALSE),IF(Q13=2,VLOOKUP(M67,TTN!E39:G209,3,FALSE),IF(Q13=4,VLOOKUP(M67,TTN!I39:K257,3,FALSE),IF(Q13=6,VLOOKUP(M67,TTN!M39:O249,3,FALSE),IF(Q13=8,VLOOKUP(M67,TTN!Q39:S270,3,FALSE),IF(Q13=9,VLOOKUP(M67,TTN!U39:W209,2,FALSE)))))))))),"Cg Insuf",IF(ISBLANK(Q13),"",IF(Q13=0,VLOOKUP(M67,TTN!A39:C113,3,FALSE),IF(Q13=2,VLOOKUP(M67,TTN!E39:H209,3,FALSE),IF(Q13=2,VLOOKUP(M67,TTN!E39:G209,3,FALSE),IF(Q13=4,VLOOKUP(M67,TTN!I39:K257,3,FALSE),IF(Q13=6,VLOOKUP(M67,TTN!M39:O249,3,FALSE),IF(Q13=8,VLOOKUP(M67,TTN!Q39:S270,3,FALSE),IF(Q13=9,VLOOKUP(M67,TTN!U39:W209,3,FALSE))))))))))) -> 
C69: Rumo Obj para nova Posiçao | H69: =IF(J71<>FALSE,J71,IF(J72<>FALSE,J72)) -> FALSE | J69: =IF(AND(C67+(ATAN(E67/G67)*6400/(2*PI()))>=0,(C67+(ATAN(E67/G67)*6400/(2*PI()))<=6400)),(C67+(ATAN(E67/G67)*6400/(2*PI()))),IF((C67+(ATAN(E67/G67)*6400/(2*PI())))>6400,(C67+(ATAN(E67/G67)*6400/(2*PI())))-6400,6400+(C67+(ATAN(E67/G67)*6400/(2*PI()))))) ->  | K69: =IF(AND(E67>0,G67>0),J69) -> FALSE | L69: =IF(AND(E67>0,G67<0),J69+3200) -> FALSE | M69: =IF(AND(E67<0,G67<0),J69+3200) -> FALSE | N69: =IF(AND(E67<0,G67>0),J69) -> FALSE
C70: Dist Obj Para nova Posição | H70: =IMABS(E67/(SIN(ATAN(E67/G67)))) ->  | R70: =IF(AND(J67-H3>=0,I67-G3>=0),((ATAN((I67-G3)/(J67-H3)))*6400/(2*PI())),IF(AND(J67-H3<=0,I67-G3>0),1600+((IMABS(ATAN((J67-H3)/(I67-G3)))*6400/(2*PI()))))) ->  | T70: =IF(AND(J67-H3<0,I67-G3<=0),3200+((ATAN((I67-G3)/(J67-H3)))*6400/(2*PI())),IF(AND(J67-H3>=0,I67-G3<0),4800+((IMABS(ATAN((J67-H3)/(I67-G3)))*6400/(2*PI()))))) -> 
J71: =IF(K69<>FALSE,K69,IF(L69<>FALSE,L69)) -> FALSE
J72: =IF(M69<>FALSE,M69,IF(N69<>FALSE,N69)) -> FALSE

Sheet TTN
A1: Carga 0 | E1: Carga 2 | I1: Carga 4 | M1: Carga 6 | Q1: Carga 8 | U1: Carga 9
A2: Distância | B2: Elevação | C2: Tempo de Voo | E2: Distância | F2: Elevação | G2: Tempo de Voo | I2: Distância | J2: Elevação | K2: Tempo de Voo | M2: Distância | N2: Elevação | O2: Tempo de Voo | Q2: Distância | R2: Elevação | S2: Tempo de Voo | U2: Distância | V2: Elevação | W2: Tempo de Voo
A3: 400 | B3: 1420 | C3: 21.2 | E3: 1000 | F3: 1407 | G3: 33.5 | I3: 1800 | J3: 1363 | K3: 40.8 | M3: 3000 | N3: 1278 | O3: 45.9 | Q3: 3800 | R3: 1258 | S3: 50.8 | U3: 4800 | V3: 1176 | W3: 52.3
A4: 410 | B4: =B3-((B3-B13)/10*1) -> 1415 | C4: 21.2 | E4: 1010 | F4: =F3-((F3-F13)/10*1) -> 1404.8 | G4: 33.5 | I4: 1810 | J4: =J3-((J3-J13)/10*1) -> 1361.5 | K4: 21.2 | M4: 3010 | N4: =N3-((N3-N13)/10*1) -> 1276.7 | O4: 45.9 | Q4: 3810 | R4: =R3-((R3-R13)/10*1) -> 1257 | S4: 50.8 | U4: 4810 | V4: =V3-((V3-V13)/10*1) -> 1174.8 | W4: 52.3
A5: 420 | B5: =B3-((B3-B13)/10*2) -> 1410 | C5: 21.2 | E5: 1020 | F5: =F3-((F3-F13)/10*2) -> 1402.6 | G5: 33.5 | I5: 1820 | J5: =J3-((J3-J13)/10*2) -> 1360 | K5: 21.2 | M5: 3020 | N5: =N3-((N3-N13)/10*2) -> 1275.4 | O5: 45.9 | Q5: 3820 | R5: =R3-((R3-R13)/10*2) -> 1256 | S5: 50.8 | U5: 4820 | V5: =V3-((V3-V13)/10*2) -> 1173.6 | W5: 52.3
A6: 430 | B6: =B3-((B3-B13)/10*3) -> 1405 | C6: 21.2 | E6: 1030 | F6: =F3-((F3-F13)/10*3) -> 1400.4 | G6: 33.5 | I6: 1830 | J6: =J3-((J3-J13)/10*3) -> 1358.5 | K6: 21.2 | M6: 3030 | N6: =N3-((N3-N13)/10*3) -> 1274.1 | O6: 45.9 | Q6: 3830 | R6: =R3-((R3-R13)/10*3) -> 1255 | S6: 50.8 | U6: 4830 | V6: =V3-((V3-V13)/10*3) -> 1172.4 | W6: 52.3
A7: 440 | B7: =B3-((B3-B13)/10*4) -> 1400 | C7: 21.2 | E7: 1040 | F7: =F3-((F3-F13)/10*4) -> 1398.2 | G7: 33.5 | I7: 1840 | J7: =J3-((J3-J13)/10*4) -> 1357 | K7: 21.2 | M7: 3040 | N7: =N3-((N3-N13)/10*4) -> 1272.8 | O7: 45.9 | Q7: 3840 | R7: =R3-((R3-R13)/10*4) -> 1254 | S7: 50.8 | U7: 4840 | V7: =V3-((V3-V13)/10*4) -> 1171.2 | W7: 52.3
A8: 450 | B8: =B3-((B3-B13)/10*5) -> 1395 | C8: 21.1 | E8: 1050 | F8: =F3-((F3-F13)/10*5) -> 1396 | G8: 33.5 | I8: 1850 | J8: =J3-((J3-J13)/10*5) -> 1355.5 | K8: 21.1 | M8: 3050 | N8: =N3-((N3-N13)/10*5) -> 1271.5 | O8: 45.9 | Q8: 3850 | R8: =R3-((R3-R13)/10*5) -> 1253 | S8: 50.8 | U8: 4850 | V8: =V3-((V3-V13)/10*5) -> 1170 | W8: 52.2
A9: 460 | B9: =B3-((B3-B13)/10*6) -> 1390 | C9: 21.1 | E9: 1060 | F9: =F3-((F3-F13)/10*6) -> 1393.8 | G9: 33.5 | I9: 1860 | J9: =J3-((J3-J13)/10*6) -> 1354 | K9: 21.1 | M9: 3060 | N9: =N3-((N3-N13)/10*6) -> 1270.2 | O9: 45.9 | Q9: 3860 | R9: =R3-((R3-R13)/10*6) -> 1252 | S9: 50.8 | U9: 4860 | V9: =V3-((V3-V13)/10*6) -> 1168.8 | W9: 52.2
A10: 470 | B10: =B3-((B3-B13)/10*7) -> 1385 | C10: 21.1 | E10: 1070 | F10: =F3-((F3-F13)/10*7) -> 1391.6 | G10: 33.5 | I10: 1870 | J10: =J3-((J3-J13)/10*7) -> 1352.5 | K10: 21.1 | M10: 3070 | N10: =N3-((N3-N13)/10*7) -> 1268.9 | O10: 45.9 | Q10: 3870 | R10: =R3-((R3-R13)/10*7) -> 1251 | S10: 50.8 | U10: 4870 | V10: =V3-((V3-V13)/10*7) -> 1167.6 | W10: 52.2
A11: 480 | B11: =B3-((B3-B13)/10*8) -> 1380 | C11: 21.1 | E11: 1080 | F11: =F3-((F3-F13)/10*8) -> 1389.4 | G11: 33.5 | I11: 1880 | J11: =J3-((J3-J13)/10*8) -> 1351 | K11: 21.1 | M11: 3080 | N11: =N3-((N3-N13)/10*8) -> 1267.6 | O11: 45.9 | Q11: 3880 | R11: =R3-((R3-R13)/10*8) -> 1250 | S11: 50.8 | U11: 4880 | V11: =V3-((V3-V13)/10*8) -> 1166.4 | W11: 52.2
A12: 490 | B12: =B3-((B3-B13)/10*9) -> 1375 | C12: 21.1 | E12: 1090 | F12: =F3-((F3-F13)/10*9) -> 1387.2 | G12: 33.5 | I12: 1890 | J12: =J3-((J3-J13)/10*9) -> 1349.5 | K12: 21.1 | M12: 3090 | N12: =N3-((N3-N13)/10*9) -> 1266.3 | O12: 45.9 | Q12: 3890 | R12: =R3-((R3-R13)/10*9) -> 1249 | S12: 50.8 | U12: 4890 | V12: =V3-((V3-V13)/10*9) -> 1165.2 | W12: 52.2
A13: 500 | B13: 1370 | C13: 21 | E13: 1100 | F13: 1385 | G13: 33.3 | I13: 1900 | J13: 1348 | K13: 40.6 | M13: 3100 | N13: 1265 | O13: 45.7 | Q13: 3900 | R13: 1248 | S13: 50.6 | U13: 4900 | V13: 1164 | W13: 52
A14: 510 | B14: =B13-((B13-B23)/10*1) -> 1365 | C14: 21 | E14: 1110 | F14: =F13-((F13-F23)/10*1) -> 1382.8 | G14: 33.3 | I14: 1910 | J14: =J13-((J13-J23)/10*1) -> 1346.5 | K14: 40.6 | M14: 3110 | N14: =N13-((N13-N23)/10*1) -> 1263.7 | O14: 45.7 | Q14: 3910 | R14: =R13-((R13-R23)/10*1) -> 1246.8 | S14: 50.6 | U14: 4910 | V14: =V13-((V13-V23)/10*1) -> 1162.8 | W14: 52
A15: 520 | B15: =B13-((B13-B23)/10*2) -> 1360 | C15: 21 | E15: 1120 | F15: =F13-((F13-F23)/10*2) -> 1380.6 | G15: 33.3 | I15: 1920 | J15: =J13-((J13-J23)/10*2) -> 1345 | K15: 40.6 | M15: 3120 | N15: =N13-((N13-N23)/10*2) -> 1262.4 | O15: 45.7 | Q15: 3920 | R15: =R13-((R13-R23)/10*2) -> 1245.6 | S15: 50.6 | U15: 4920 | V15: =V13-((V13-V23)/10*2) -> 1161.6 | W15: 52
A16: 530 | B16: =B13-((B13-B23)/10*3) -> 1355 | C16: 21 | E16: 1130 | F16: =F13-((F13-F23)/10*3) -> 1378.4 | G16: 33.3 | I16: 1930 | J16: =J13-((J13-J23)/10*3) -> 1343.5 | K16: 40.6 | M16: 3130 | N16: =N13-((N13-N23)/10*3) -> 1261.1 | O16: 45.7 | Q16: 3930 | R16: =R13-((R13-R23)/10*3) -> 1244.4 | S16: 50.6 | U16: 4930 | V16: =V13-((V13-V23)/10*3) -> 1160.4 | W16: 52
A17: 540 | B17: =B13-((B13-B23)/10*4) -> 1350 | C17: 21 | E17: 1140 | F17: =F13-((F13-F23)/10*4) -> 1376.2 | G17: 33.3 | I17: 1940 | J17: =J13-((J13-J23)/10*4) -> 1342 | K17: 40.6 | M17: 3140 | N17: =N13-((N13-N23)/10*4) -> 1259.8 | O17: 45.7 | Q17: 3940 | R17: =R13-((R13-R23)/10*4) -> 1243.2 | S17: 50.6 | U17: 4940 | V17: =V13-((V13-V23)/10*4) -> 1159.2 | W17: 52
A18: 550 | B18: =B13-((B13-B23)/10*5) -> 1345 | C18: 20.9 | E18: 1150 | F18: =F13-((F13-F23)/10*5) -> 1374 | G18: 33.3 | I18: 1950 | J18: =J13-((J13-J23)/10*5) -> 1340.5 | K18: 40.6 | M18: 3150 | N18: =N13-((N13-N23)/10*5) -> 1258.5 | O18: 45.7 | Q18: 3950 | R18: =R13-((R13-R23)/10*5) -> 1242 | S18: 50.6 | U18: 4950 | V18: =V13-((V13-V23)/10*5) -> 1158 | W18: 51.9
A19: 560 | B19: =B13-((B13-B23)/10*6) -> 1340 | C19: 20.9 | E19: 1160 | F19: =F13-((F13-F23)/10*6) -> 1371.8 | G19: 33.3 | I19: 1960 | J19: =J13-((J13-J23)/10*6) -> 1339 | K19: 40.6 | M19: 3160 | N19: =N13-((N13-N23)/10*6) -> 1257.2 | O19: 45.7 | Q19: 3960 | R19: =R13-((R13-R23)/10*6) -> 1240.8 | S19: 50.6 | U19: 4960 | V19: =V13-((V13-V23)/10*6) -> 1156.8 | W19: 51.9
A20: 570 | B20: =B13-((B13-B23)/10*7) -> 1335 | C20: 20.9 | E20: 1170 | F20: =F13-((F13-F23)/10*7) -> 1369.6 | G20: 33.3 | I20: 1970 | J20: =J13-((J13-J23)/10*7) -> 1337.5 | K20: 40.6 | M20: 3170 | N20: =N13-((N13-N23)/10*7) -> 1255.9 | O20: 45.7 | Q20: 3970 | R20: =R13-((R13-R23)/10*7) -> 1239.6 | S20: 50.6 | U20: 4970 | V20: =V13-((V13-V23)/10*7) -> 1155.6 | W20: 51.9
A21: 580 | B21: =B13-((B13-B23)/10*8) -> 1330 | C21: 20.9 | E21: 1180 | F21: =F13-((F13-F23)/10*8) -> 1367.4 | G21: 33.3 | I21: 1980 | J21: =J13-((J13-J23)/10*8) -> 1336 | K21: 40.6 | M21: 3180 | N21: =N13-((N13-N23)/10*8) -> 1254.6 | O21: 45.7 | Q21: 3980 | R21: =R13-((R13-R23)/10*8) -> 1238.4 | S21: 50.6 | U21: 4980 | V21: =V13-((V13-V23)/10*8) -> 1154.4 | W21: 51.9
A22: 590 | B22: =B13-((B13-B23)/10*9) -> 1325 | C22: 20.9 | E22: 1190 | F22: =F13-((F13-F23)/10*9) -> 1365.2 | G22: 33.3 | I22: 1990 | J22: =J13-((J13-J23)/10*9) -> 1334.5 | K22: 40.6 | M22: 3190 | N22: =N13-((N13-N23)/10*9) -> 1253.3 | O22: 45.7 | Q22: 3990 | R22: =R13-((R13-R23)/10*9) -> 1237.2 | S22: 50.6 | U22: 4990 | V22: =V13-((V13-V23)/10*9) -> 1153.2 | W22: 51.9
A23: 600 | B23: 1320 | C23: 20.8 | E23: 1200 | F23: 1363 | G23: 33.1 | I23: 2000 | J23: 1333 | K23: 40.4 | M23: 3200 | N23: 1252 | O23: 45.4 | Q23: 4000 | R23: 1236 | S23: 50.4 | U23: 5000 | V23: 1152 | W23: 51.7
A24: 610 | B24: =B23-((B23-B33)/10*1) -> 1315 | C24: 20.8 | E24: 1210 | F24: =F23-((F23-F33)/10*1) -> 1360.8 | G24: 33.1 | I24: 2010 | J24: =J23-((J23-J33)/10*1) -> 1331.5 | K24: 40.4 | M24: 3210 | N24: =N23-((N23-N33)/10*1) -> 1250.7 | O24: 45.4 | Q24: 4010 | R24: =R23-((R23-R33)/10*1) -> 1234.9 | S24: 50.4 | U24: 5010 | V24: =V23-((V23-V33)/10*1) -> 1150.8 | W24: 51.7
A25: 620 | B25: =B23-((B23-B33)/10*2) -> 1310 | C25: 20.8 | E25: 1220 | F25: =F23-((F23-F33)/10*2) -> 1358.6 | G25: 33.1 | I25: 2020 | J25: =J23-((J23-J33)/10*2) -> 1330 | K25: 40.4 | M25: 3220 | N25: =N23-((N23-N33)/10*2) -> 1249.4 | O25: 45.4 | Q25: 4020 | R25: =R23-((R23-R33)/10*2) -> 1233.8 | S25: 50.4 | U25: 5020 | V25: =V23-((V23-V33)/10*2) -> 1149.6 | W25: 51.7
A26: 630 | B26: =B23-((B23-B33)/10*3) -> 1305 | C26: 20.8 | E26: 1230 | F26: =F23-((F23-F33)/10*3) -> 1356.4 | G26: 33.1 | I26: 2030 | J26: =J23-((J23-J33)/10*3) -> 1328.5 | K26: 40.4 | M26: 3230 | N26: =N23-((N23-N33)/10*3) -> 1248.1 | O26: 45.4 | Q26: 4030 | R26: =R23-((R23-R33)/10*3) -> 1232.7 | S26: 50.4 | U26: 5030 | V26: =V23-((V23-V33)/10*3) -> 1148.4 | W26: 51.7
A27: 640 | B27: =B23-((B23-B33)/10*4) -> 1300 | C27: 20.8 | E27: 1240 | F27: =F23-((F23-F33)/10*4) -> 1354.2 | G27: 33.1 | I27: 2040 | J27: =J23-((J23-J33)/10*4) -> 1327 | K27: 40.4 | M27: 3240 | N27: =N23-((N23-N33)/10*4) -> 1246.8 | O27: 45.4 | Q27: 4040 | R27: =R23-((R23-R33)/10*4) -> 1231.6 | S27: 50.4 | U27: 5040 | V27: =V23-((V23-V33)/10*4) -> 1147.2 | W27: 51.7
A28: 650 | B28: 1295 | C28: 20.7 | E28: 1250 | F28: =F23-((F23-F33)/10*5) -> 1352 | G28: 33.1 | I28: 2050 | J28: =J23-((J23-J33)/10*5) -> 1325.5 | K28: 40.4 | M28: 3250 | N28: =N23-((N23-N33)/10*5) -> 1245.5 | O28: 45.4 | Q28: 4050 | R28: =R23-((R23-R33)/10*5) -> 1230.5 | S28: 50.4 | U28: 5050 | V28: =V23-((V23-V33)/10*5) -> 1146 | W28: 51.5
A29: 660 | B29: =B23-((B23-B33)/10*6) -> 1290 | C29: 20.7 | E29: 1260 | F29: =F23-((F23-F33)/10*6) -> 1349.8 | G29: 33.1 | I29: 2060 | J29: =J23-((J23-J33)/10*6) -> 1324 | K29: 40.4 | M29: 3260 | N29: =N23-((N23-N33)/10*6) -> 1244.2 | O29: 45.4 | Q29: 4060 | R29: =R23-((R23-R33)/10*6) -> 1229.4 | S29: 50.4 | U29: 5060 | V29: =V23-((V23-V33)/10*6) -> 1144.8 | W29: 51.5
A30: 670 | B30: =B23-((B23-B33)/10*7) -> 1285 | C30: 20.7 | E30: 1270 | F30: =F23-((F23-F33)/10*7) -> 1347.6 | G30: 33.1 | I30: 2070 | J30: =J23-((J23-J33)/10*7) -> 1322.5 | K30: 40.4 | M30: 3270 | N30: =N23-((N23-N33)/10*7) -> 1242.9 | O30: 45.4 | Q30: 4070 | R30: =R23-((R23-R33)/10*7) -> 1228.3 | S30: 50.4 | U30: 5070 | V30: =V23-((V23-V33)/10*7) -> 1143.6 | W30: 51.5
A31: 680 | B31: =B23-((B23-B33)/10*8) -> 1280 | C31: 20.7 | E31: 1280 | F31: =F23-((F23-F33)/10*8) -> 1345.4 | G31: 33.1 | I31: 2080 | J31: =J23-((J23-J33)/10*8) -> 1321 | K31: 40.4 | M31: 3280 | N31: =N23-((N23-N33)/10*8) -> 1241.6 | O31: 45.4 | Q31: 4080 | R31: =R23-((R23-R33)/10*8) -> 1227.2 | S31: 50.4 | U31: 5080 | V31: =V23-((V23-V33)/10*8) -> 1142.4 | W31: 51.5
A32: 690 | B32: =B23-((B23-B33)/10*9) -> 1275 | C32: 20.7 | E32: 1290 | F32: =F23-((F23-F33)/10*9) -> 1343.2 | G32: 33.1 | I32: 2090 | J32: =J23-((J23-J33)/10*9) -> 1319.5 | K32: 40.4 | M32: 3290 | N32: =N23-((N23-N33)/10*9) -> 1240.3 | O32: 45.4 | Q32: 4090 | R32: =R23-((R23-R33)/10*9) -> 1226.1 | S32: 50.4 | U32: 5090 | V32: =V23-((V23-V33)/10*9) -> 1141.2 | W32: 51.5
A33: 700 | B33: 1270 | C33: 20.6 | E33: 1300 | F33: 1341 | G33: 32.9 | I33: 2100 | J33: 1318 | K33: 40.2 | M33: 3300 | N33: 1239 | O33: 45.3 | Q33: 4100 | R33: 1225 | S33: 50.2 | U33: 5100 | V33: 1140 | W33: 51.3
A34: 710 | B34: =B33-((B33-B38)/5*1) -> 1264.6 | C34: 20.6 | E34: 1310 | F34: =F33-((F33-F43)/10*1) -> 1338.8 | G34: 32.9 | I34: 2110 | J34: =J33-((J33-J43)/10*1) -> 1316.4 | K34: 40.2 | M34: 3310 | N34: =N33-((N33-N43)/10*1) -> 1237.7 | O34: 45.3 | Q34: 4110 | R34: =R33-((R33-R43)/10*1) -> 1223.9 | S34: 50.2 | U34: 5110 | V34: =V33-((V33-V43)/10*1) -> 1138.8 | W34: 51.3
A35: 720 | B35: =B33-((B33-B38)/5*2) -> 1259.2 | C35: 20.6 | E35: 1320 | F35: =F33-((F33-F43)/10*2) -> 1336.6 | G35: 32.9 | I35: 2120 | J35: =J33-((J33-J43)/10*2) -> 1314.8 | K35: 40.2 | M35: 3320 | N35: =N33-((N33-N43)/10*2) -> 1236.4 | O35: 45.3 | Q35: 4120 | R35: =R33-((R33-R43)/10*2) -> 1222.8 | S35: 50.2 | U35: 5120 | V35: =V33-((V33-V43)/10*2) -> 1137.6 | W35: 51.3
A36: 730 | B36: =B33-((B33-B38)/5*3) -> 1253.8 | C36: 20.6 | E36: 1330 | F36: =F33-((F33-F43)/10*3) -> 1334.4 | G36: 32.9 | I36: 2130 | J36: =J33-((J33-J43)/10*3) -> 1313.2 | K36: 40.2 | M36: 3330 | N36: =N33-((N33-N43)/10*3) -> 1235.1 | O36: 45.3 | Q36: 4130 | R36: =R33-((R33-R43)/10*3) -> 1221.7 | S36: 50.2 | U36: 5130 | V36: =V33-((V33-V43)/10*3) -> 1136.4 | W36: 51.3
A37: 740 | B37: =B33-((B33-B38)/5*4) -> 1248.4 | C37: 20.6 | E37: 1340 | F37: =F33-((F33-F43)/10*4) -> 1332.2 | G37: 32.9 | I37: 2140 | J37: =J33-((J33-J43)/10*4) -> 1311.6 | K37: 40.2 | M37: 3340 | N37: =N33-((N33-N43)/10*4) -> 1233.8 | O37: 45.3 | Q37: 4140 | R37: =R33-((R33-R43)/10*4) -> 1220.6 | S37: 50.2 | U37: 5140 | V37: =V33-((V33-V43)/10*4) -> 1135.2 | W37: 51.3
A38: 750 | B38: 1243 | C38: 20.5 | E38: 1350 | F38: =F33-((F33-F43)/10*5) -> 1330 | G38: 32.9 | I38: 2150 | J38: =J33-((J33-J43)/10*5) -> 1310 | K38: 40.2 | M38: 3350 | N38: =N33-((N33-N43)/10*5) -> 1232.5 | O38: 45.3 | Q38: 4150 | R38: =R33-((R33-R43)/10*5) -> 1219.5 | S38: 50.2 | U38: 5150 | V38: =V33-((V33-V43)/10*5) -> 1134 | W38: 51.1
A39: 760 | B39: =B38-((B38-B43)/5*1) -> 1237.4 | C39: 20.5 | E39: 1360 | F39: =F33-((F33-F43)/10*6) -> 1327.8 | G39: 32.9 | I39: 2160 | J39: =J33-((J33-J43)/10*6) -> 1308.4 | K39: 40.2 | M39: 3360 | N39: =N33-((N33-N43)/10*6) -> 1231.2 | O39: 45.3 | Q39: 4160 | R39: =R33-((R33-R43)/10*6) -> 1218.4 | S39: 50.2 | U39: 5160 | V39: =V33-((V33-V43)/10*6) -> 1132.8 | W39: 51.1
A40: 770 | B40: =B38-((B38-B43)/5*2) -> 1231.8 | C40: 20.5 | E40: 1370 | F40: =F33-((F33-F43)/10*7) -> 1325.6 | G40: 32.9 | I40: 2170 | J40: =J33-((J33-J43)/10*7) -> 1306.8 | K40: 40.2 | M40: 3370 | N40: =N33-((N33-N43)/10*7) -> 1229.9 | O40: 45.3 | Q40: 4170 | R40: =R33-((R33-R43)/10*7) -> 1217.3 | S40: 50.2 | U40: 5170 | V40: =V33-((V33-V43)/10*7) -> 1131.6 | W40: 51.1
A41: 780 | B41: =B38-((B38-B43)/5*3) -> 1226.2 | C41: 20.5 | E41: 1380 | F41: =F33-((F33-F43)/10*8) -> 1323.4 | G41: 32.9 | I41: 2180 | J41: =J33-((J33-J43)/10*8) -> 1305.2 | K41: 40.2 | M41: 3380 | N41: =N33-((N33-N43)/10*8) -> 1228.6 | O41: 45.3 | Q41: 4180 | R41: =R33-((R33-R43)/10*8) -> 1216.2 | S41: 50.2 | U41: 5180 | V41: =V33-((V33-V43)/10*8) -> 1130.4 | W41: 51.1
A42: 790 | B42: =B38-((B38-B43)/5*4) -> 1220.6 | C42: 20.5 | E42: 1390 | F42: =F33-((F33-F43)/10*9) -> 1321.2 | G42: 32.9 | I42: 2190 | J42: =J33-((J33-J43)/10*9) -> 1303.6 | K42: 40.2 | M42: 3390 | N42: =N33-((N33-N43)/10*9) -> 1227.3 | O42: 45.3 | Q42: 4190 | R42: =R33-((R33-R43)/10*9) -> 1215.1 | S42: 50.2 | U42: 5190 | V42: =V33-((V33-V43)/10*9) -> 1129.2 | W42: 51.1
A43: 800 | B43: 1215 | C43: 20.3 | E43: 1400 | F43: 1319 | G43: 32.7 | I43: 2200 | J43: 1302 | K43: 40 | M43: 3400 | N43: 1226 | O43: 45.1 | Q43: 4200 | R43: 1214 | S43: 49.9 | U43: 5200 | V43: 1128 | W43: 50.9
A44: 810 | B44: =B43-((B43-B48)/5*1) -> 1208.6 | C44: 20.3 | E44: 1410 | F44: =F43-((F43-F53)/10*1) -> 1316.8 | G44: 32.7 | I44: 2210 | J44: =J43-((J43-J53)/10*1) -> 1300.4 | K44: 40 | M44: 3410 | N44: =N43-((N43-N53)/10*1) -> 1224.6 | O44: 45.1 | Q44: 4210 | R44: =R43-((R43-R53)/10*1) -> 1212.9 | S44: 49.9 | U44: 5210 | V44: =V43-((V43-V53)/10*1) -> 1126.8 | W44: 50.9
A45: 820 | B45: =B43-((B43-B48)/5*2) -> 1202.2 | C45: 20.3 | E45: 1420 | F45: =F43-((F43-F53)/10*2) -> 1314.6 | G45: 32.7 | I45: 2220 | J45: =J43-((J43-J53)/10*2) -> 1298.8 | K45: 40 | M45: 3420 | N45: =N43-((N43-N53)/10*2) -> 1223.2 | O45: 45.1 | Q45: 4220 | R45: =R43-((R43-R53)/10*2) -> 1211.8 | S45: 49.9 | U45: 5220 | V45: =V43-((V43-V53)/10*2) -> 1125.6 | W45: 50.9
A46: 830 | B46: =B43-((B43-B48)/5*3) -> 1195.8 | C46: 20.3 | E46: 1430 | F46: =F43-((F43-F53)/10*3) -> 1312.4 | G46: 32.7 | I46: 2230 | J46: =J43-((J43-J53)/10*3) -> 1297.2 | K46: 40 | M46: 3430 | N46: =N43-((N43-N53)/10*3) -> 1221.8 | O46: 45.1 | Q46: 4230 | R46: =R43-((R43-R53)/10*3) -> 1210.7 | S46: 49.9 | U46: 5230 | V46: =V43-((V43-V53)/10*3) -> 1124.4 | W46: 50.9
A47: 840 | B47: =B43-((B43-B48)/5*4) -> 1189.4 | C47: 20.3 | E47: 1440 | F47: =F43-((F43-F53)/10*4) -> 1310.2 | G47: 32.7 | I47: 2240 | J47: =J43-((J43-J53)/10*4) -> 1295.6 | K47: 40 | M47: 3440 | N47: =N43-((N43-N53)/10*4) -> 1220.4 | O47: 45.1 | Q47: 4240 | R47: =R43-((R43-R53)/10*4) -> 1209.6 | S47: 49.9 | U47: 5240 | V47: =V43-((V43-V53)/10*4) -> 1123.2 | W47: 50.9
A48: 850 | B48: 1183 | C48: 20 | E48: 1450 | F48: =F43-((F43-F53)/10*5) -> 1308 | G48: 32.7 | I48: 2250 | J48: =J43-((J43-J53)/10*5) -> 1294 | K48: 40 | M48: 3450 | N48: =N43-((N43-N53)/10*5) -> 1219 | O48: 45.1 | Q48: 4250 | R48: =R43-((R43-R53)/10*5) -> 1208.5 | S48: 49.9 | U48: 5250 | V48: =V43-((V43-V53)/10*5) -> 1122 | W48: 50.7
A49: 860 | B49: =B48-((B48-B53)/5*1) -> 1176.4 | C49: 20 | E49: 1460 | F49: =F43-((F43-F53)/10*6) -> 1305.8 | G49: 32.7 | I49: 2260 | J49: =J43-((J43-J53)/10*6) -> 1292.4 | K49: 40 | M49: 3460 | N49: =N43-((N43-N53)/10*6) -> 1217.6 | O49: 45.1 | Q49: 4260 | R49: =R43-((R43-R53)/10*6) -> 1207.4 | S49: 49.9 | U49: 5260 | V49: =V43-((V43-V53)/10*6) -> 1120.8 | W49: 50.7
A50: 870 | B50: =B48-((B48-B53)/5*2) -> 1169.8 | C50: 20 | E50: 1470 | F50: =F43-((F43-F53)/10*7) -> 1303.6 | G50: 32.7 | I50: 2270 | J50: =J43-((J43-J53)/10*7) -> 1290.8 | K50: 40 | M50: 3470 | N50: =N43-((N43-N53)/10*7) -> 1216.2 | O50: 45.1 | Q50: 4270 | R50: =R43-((R43-R53)/10*7) -> 1206.3 | S50: 49.9 | U50: 5270 | V50: =V43-((V43-V53)/10*7) -> 1119.6 | W50: 50.7
A51: 880 | B51: =B48-((B48-B53)/5*3) -> 1163.2 | C51: 20 | E51: 1480 | F51: =F43-((F43-F53)/10*8) -> 1301.4 | G51: 32.7 | I51: 2280 | J51: =J43-((J43-J53)/10*8) -> 1289.2 | K51: 40 | M51: 3480 | N51: =N43-((N43-N53)/10*8) -> 1214.8 | O51: 45.1 | Q51: 4280 | R51: =R43-((R43-R53)/10*8) -> 1205.2 | S51: 49.9 | U51: 5280 | V51: =V43-((V43-V53)/10*8) -> 1118.4 | W51: 50.7
A52: 890 | B52: =B48-((B48-B53)/5*4) -> 1156.6 | C52: 20 | E52: 1490 | F52: =F43-((F43-F53)/10*9) -> 1299.2 | G52: 32.7 | I52: 2290 | J52: =J43-((J43-J53)/10*9) -> 1287.6 | K52: 40 | M52: 3490 | N52: =N43-((N43-N53)/10*9) -> 1213.4 | O52: 45.1 | Q52: 4290 | R52: =R43-((R43-R53)/10*9) -> 1204.1 | S52: 49.9 | U52: 5290 | V52: =V43-((V43-V53)/10*9) -> 1117.2 | W52: 50.7
A53: 900 | B53: 1150 | C53: 19.8 | E53: 1500 | F53: 1297 | G53: 32.5 | I53: 2300 | J53: 1286 | K53: 39.8 | M53: 3500 | N53: 1212 | O53: 44.8 | Q53: 4300 | R53: 1203 | S53: 49.7 | U53: 5300 | V53: 1116 | W53: 50.5
A54: 910 | B54: =B53-((B53-B58)/5*1) -> 1141.6 | C54: 19.8 | E54: 1510 | F54: =F53-((F53-F63)/10*1) -> 1294.7 | G54: 32.5 | I54: 2310 | J54: =J53-((J53-J63)/10*1) -> 1284.4 | K54: 39.8 | M54: 3510 | N54: =N53-((N53-N63)/10*1) -> 1210.6 | O54: 44.8 | Q54: 4310 | R54: =R53-((R53-R63)/10*1) -> 1201.8 | S54: 49.7 | U54: 5310 | V54: =V53-((V53-V63)/10*1) -> 1114.7 | W54: 50.5
A55: 920 | B55: =B53-((B53-B58)/5*2) -> 1133.2 | C55: 19.8 | E55: 1520 | F55: =F53-((F53-F63)/10*2) -> 1292.4 | G55: 32.5 | I55: 2320 | J55: =J53-((J53-J63)/10*2) -> 1282.8 | K55: 39.8 | M55: 3520 | N55: =N53-((N53-N63)/10*2) -> 1209.2 | O55: 44.8 | Q55: 4320 | R55: =R53-((R53-R63)/10*2) -> 1200.6 | S55: 49.7 | U55: 5320 | V55: =V53-((V53-V63)/10*2) -> 1113.4 | W55: 50.5
A56: 930 | B56: =B53-((B53-B58)/5*3) -> 1124.8 | C56: 19.8 | E56: 1530 | F56: =F53-((F53-F63)/10*3) -> 1290.1 | G56: 32.5 | I56: 2330 | J56: =J53-((J53-J63)/10*3) -> 1281.2 | K56: 39.8 | M56: 3530 | N56: =N53-((N53-N63)/10*3) -> 1207.8 | O56: 44.8 | Q56: 4330 | R56: =R53-((R53-R63)/10*3) -> 1199.4 | S56: 49.7 | U56: 5330 | V56: =V53-((V53-V63)/10*3) -> 1112.1 | W56: 50.5
A57: 940 | B57: =B53-((B53-B58)/5*4) -> 1116.4 | C57: 19.8 | E57: 1540 | F57: =F53-((F53-F63)/10*4) -> 1287.8 | G57: 32.5 | I57: 2340 | J57: =J53-((J53-J63)/10*4) -> 1279.6 | K57: 39.8 | M57: 3540 | N57: =N53-((N53-N63)/10*4) -> 1206.4 | O57: 44.8 | Q57: 4340 | R57: =R53-((R53-R63)/10*4) -> 1198.2 | S57: 49.7 | U57: 5340 | V57: =V53-((V53-V63)/10*4) -> 1110.8 | W57: 50.5
A58: 950 | B58: 1108 | C58: 19.3 | E58: 1550 | F58: =F53-((F53-F63)/10*5) -> 1285.5 | G58: 32.5 | I58: 2350 | J58: =J53-((J53-J63)/10*5) -> 1278 | K58: 39.8 | M58: 3550 | N58: =N53-((N53-N63)/10*5) -> 1205 | O58: 44.8 | Q58: 4350 | R58: =R53-((R53-R63)/10*5) -> 1197 | S58: 49.7 | U58: 5350 | V58: =V53-((V53-V63)/10*5) -> 1109.5 | W58: 50.3
A59: 960 | B59: =B58-((B58-B63)/5*1) -> 1099.6 | C59: 19.3 | E59: 1560 | F59: =F53-((F53-F63)/10*6) -> 1283.2 | G59: 32.5 | I59: 2360 | J59: =J53-((J53-J63)/10*6) -> 1276.4 | K59: 39.8 | M59: 3560 | N59: =N53-((N53-N63)/10*6) -> 1203.6 | O59: 44.8 | Q59: 4360 | R59: =R53-((R53-R63)/10*6) -> 1195.8 | S59: 49.7 | U59: 5360 | V59: =V53-((V53-V63)/10*6) -> 1108.2 | W59: 50.3
A60: 970 | B60: =B58-((B58-B63)/5*2) -> 1091.2 | C60: 19.3 | E60: 1570 | F60: =F53-((F53-F63)/10*7) -> 1280.9 | G60: 32.5 | I60: 2370 | J60: =J53-((J53-J63)/10*7) -> 1274.8 | K60: 39.8 | M60: 3570 | N60: =N53-((N53-N63)/10*7) -> 1202.2 | O60: 44.8 | Q60: 4370 | R60: =R53-((R53-R63)/10*7) -> 1194.6 | S60: 49.7 | U60: 5370 | V60: =V53-((V53-V63)/10*7) -> 1106.9 | W60: 50.3
A61: 980 | B61: =B58-((B58-B63)/5*3) -> 1082.8 | C61: 19.3 | E61: 1580 | F61: =F53-((F53-F63)/10*8) -> 1278.6 | G61: 32.5 | I61: 2380 | J61: =J53-((J53-J63)/10*8) -> 1273.2 | K61: 39.8 | M61: 3580 | N61: =N53-((N53-N63)/10*8) -> 1200.8 | O61: 44.8 | Q61: 4380 | R61: =R53-((R53-R63)/10*8) -> 1193.4 | S61: 49.7 | U61: 5380 | V61: =V53-((V53-V63)/10*8) -> 1105.6 | W61: 50.3
A62: 990 | B62: =B58-((B58-B63)/5*4) -> 1074.4 | C62: 19.3 | E62: 1590 | F62: =F53-((F53-F63)/10*9) -> 1276.3 | G62: 32.5 | I62: 2390 | J62: =J53-((J53-J63)/10*9) -> 1271.6 | K62: 39.8 | M62: 3590 | N62: =N53-((N53-N63)/10*9) -> 1199.4 | O62: 44.8 | Q62: 4390 | R62: =R53-((R53-R63)/10*9) -> 1192.2 | S62: 49.7 | U62: 5390 | V62: =V53-((V53-V63)/10*9) -> 1104.3 | W62: 50.3
A63: 1000 | B63: 1066 | C63: 18.9 | E63: 1600 | F63: 1274 | G63: 32.3 | I63: 2400 | J63: 1270 | K63: 39.6 | M63: 3600 | N63: 1198 | O63: 44.6 | Q63: 4400 | R63: 1191 | S63: 49.5 | U63: 5400 | V63: 1103 | W63: 50.1
A64: 1010 | B64: =B63-((B63-B68)/5*1) -> 1052.2 | C64: 18.9 | E64: 1610 | F64: =F63-((F63-F73)/10*1) -> 1271.6 | G64: 32.3 | I64: 2410 | J64: =J63-((J63-J73)/10*1) -> 1268.3 | K64: 39.6 | M64: 3610 | N64: =N63-((N63-N73)/10*1) -> 1196.6 | O64: 44.6 | Q64: 4410 | R64: =R63-((R63-R73)/10*1) -> 1189.8 | S64: 49.5 | U64: 5410 | V64: =V63-((V63-V73)/10*1) -> 1101.7 | W64: 50.1
A65: 1020 | B65: =B63-((B63-B68)/5*2) -> 1038.4 | C65: 18.9 | E65: 1620 | F65: =F63-((F63-F73)/10*2) -> 1269.2 | G65: 32.3 | I65: 2420 | J65: =J63-((J63-J73)/10*2) -> 1266.6 | K65: 39.6 | M65: 3620 | N65: =N63-((N63-N73)/10*2) -> 1195.2 | O65: 44.6 | Q65: 4420 | R65: =R63-((R63-R73)/10*2) -> 1188.6 | S65: 49.5 | U65: 5420 | V65: =V63-((V63-V73)/10*2) -> 1100.4 | W65: 50.1
A66: 1030 | B66: =B63-((B63-B68)/5*3) -> 1024.6 | C66: 18.9 | E66: 1630 | F66: =F63-((F63-F73)/10*3) -> 1266.8 | G66: 32.3 | I66: 2430 | J66: =J63-((J63-J73)/10*3) -> 1264.9 | K66: 39.6 | M66: 3630 | N66: =N63-((N63-N73)/10*3) -> 1193.8 | O66: 44.6 | Q66: 4430 | R66: =R63-((R63-R73)/10*3) -> 1187.4 | S66: 49.5 | U66: 5430 | V66: =V63-((V63-V73)/10*3) -> 1099.1 | W66: 50.1
A67: 1040 | B67: =B63-((B63-B68)/5*4) -> 1010.8 | C67: 18.9 | E67: 1640 | F67: =F63-((F63-F73)/10*4) -> 1264.4 | G67: 32.3 | I67: 2440 | J67: =J63-((J63-J73)/10*4) -> 1263.2 | K67: 39.6 | M67: 3640 | N67: =N63-((N63-N73)/10*4) -> 1192.4 | O67: 44.6 | Q67: 4440 | R67: =R63-((R63-R73)/10*4) -> 1186.2 | S67: 49.5 | U67: 5440 | V67: =V63-((V63-V73)/10*4) -> 1097.8 | W67: 50.1
A68: 1050 | B68: 997 | C68: 18.1 | E68: 1650 | F68: =F63-((F63-F73)/10*5) -> 1262 | G68: 32.3 | I68: 2450 | J68: =J63-((J63-J73)/10*5) -> 1261.5 | K68: 39.6 | M68: 3650 | N68: =N63-((N63-N73)/10*5) -> 1191 | O68: 44.6 | Q68: 4450 | R68: =R63-((R63-R73)/10*5) -> 1185 | S68: 49.5 | U68: 5450 | V68: =V63-((V63-V73)/10*5) -> 1096.5 | W68: 49.9
A69: 1060 | B69: =B68-((B68-B73)/5*1) -> 983.2 | C69: 18.1 | E69: 1660 | F69: =F63-((F63-F73)/10*6) -> 1259.6 | G69: 32.3 | I69: 2460 | J69: =J63-((J63-J73)/10*6) -> 1259.8 | K69: 39.6 | M69: 3660 | N69: =N63-((N63-N73)/10*6) -> 1189.6 | O69: 44.6 | Q69: 4460 | R69: =R63-((R63-R73)/10*6) -> 1183.8 | S69: 49.5 | U69: 5460 | V69: =V63-((V63-V73)/10*6) -> 1095.2 | W69: 49.9
A70: 1070 | B70: =B68-((B68-B73)/5*2) -> 969.4 | C70: 18.1 | E70: 1670 | F70: =F63-((F63-F73)/10*7) -> 1257.2 | G70: 32.3 | I70: 2470 | J70: =J63-((J63-J73)/10*7) -> 1258.1 | K70: 39.6 | M70: 3670 | N70: =N63-((N63-N73)/10*7) -> 1188.2 | O70: 44.6 | Q70: 4470 | R70: =R63-((R63-R73)/10*7) -> 1182.6 | S70: 49.5 | U70: 5470 | V70: =V63-((V63-V73)/10*7) -> 1093.9 | W70: 49.9
A71: 1080 | B71: =B68-((B68-B73)/5*3) -> 955.6 | C71: 18.1 | E71: 1680 | F71: =F63-((F63-F73)/10*8) -> 1254.8 | G71: 32.3 | I71: 2480 | J71: =J63-((J63-J73)/10*8) -> 1256.4 | K71: 39.6 | M71: 3680 | N71: =N63-((N63-N73)/10*8) -> 1186.8 | O71: 44.6 | Q71: 4480 | R71: =R63-((R63-R73)/10*8) -> 1181.4 | S71: 49.5 | U71: 5480 | V71: =V63-((V63-V73)/10*8) -> 1092.6 | W71: 49.9
A72: 1090 | B72: =B68-((B68-B73)/5*4) -> 941.8 | C72: 18.1 | E72: 1690 | F72: =F63-((F63-F73)/10*9) -> 1252.4 | G72: 32.3 | I72: 2490 | J72: =J63-((J63-J73)/10*9) -> 1254.7 | K72: 39.6 | M72: 3690 | N72: =N63-((N63-N73)/10*9) -> 1185.4 | O72: 44.6 | Q72: 4490 | R72: =R63-((R63-R73)/10*9) -> 1180.2 | S72: 49.5 | U72: 5490 | V72: =V63-((V63-V73)/10*9) -> 1091.3 | W72: 49.9
A73: 1100 | B73: 928 | C73: 17.3 | E73: 1700 | F73: 1250 | G73: 32.1 | I73: 2500 | J73: 1253 | K73: 39.5 | M73: 3700 | N73: 1184 | O73: 44.4 | Q73: 4500 | R73: 1179 | S73: 49.2 | U73: 5500 | V73: 1090 | W73: 49.7
A74: 1110 | B74: =B73-((B73-B77)/4*1) -> 896 | C74: 17.3 | E74: 1710 | F74: =F73-((F73-F83)/10*1) -> 1247.5 | G74: 32.1 | I74: 2510 | J74: =J73-((J73-J83)/10*1) -> 1251.3 | K74: 39.5 | M74: 3710 | N74: =N73-((N73-N83)/10*1) -> 1182.6 | O74: 44.4 | Q74: 4510 | R74: =R73-((R73-R83)/10*1) -> 1177.8 | S74: 49.2 | U74: 5510 | V74: =V73-((V73-V83)/10*1) -> 1088.7 | W74: 49.7
A75: 1120 | B75: =B73-((B73-B77)/4*2) -> 864 | C75: 17.3 | E75: 1720 | F75: =F73-((F73-F83)/10*2) -> 1245 | G75: 32.1 | I75: 2520 | J75: =J73-((J73-J83)/10*2) -> 1249.6 | K75: 39.5 | M75: 3720 | N75: =N73-((N73-N83)/10*2) -> 1181.2 | O75: 44.4 | Q75: 4520 | R75: =R73-((R73-R83)/10*2) -> 1176.6 | S75: 49.2 | U75: 5520 | V75: =V73-((V73-V83)/10*2) -> 1087.4 | W75: 49.7
A76: 1130 | B76: =B73-((B73-B77)/4*3) -> 832 | C76: 17.3 | E76: 1730 | F76: =F73-((F73-F83)/10*3) -> 1242.5 | G76: 32.1 | I76: 2530 | J76: =J73-((J73-J83)/10*3) -> 1247.9 | K76: 39.5 | M76: 3730 | N76: =N73-((N73-N83)/10*3) -> 1179.8 | O76: 44.4 | Q76: 4530 | R76: =R73-((R73-R83)/10*3) -> 1175.4 | S76: 49.2 | U76: 5530 | V76: =V73-((V73-V83)/10*3) -> 1086.1 | W76: 49.7
A77: 1140 | B77: 800 | C77: 16.1 | E77: 1740 | F77: =F73-((F73-F83)/10*4) -> 1240 | G77: 32.1 | I77: 2540 | J77: =J73-((J73-J83)/10*4) -> 1246.2 | K77: 39.5 | M77: 3740 | N77: =N73-((N73-N83)/10*4) -> 1178.4 | O77: 44.4 | Q77: 4540 | R77: =R73-((R73-R83)/10*4) -> 1174.2 | S77: 49.2 | U77: 5540 | V77: =V73-((V73-V83)/10*4) -> 1084.8 | W77: 49.7
E78: 1750 | F78: =F73-((F73-F83)/10*5) -> 1237.5 | G78: 32.1 | I78: 2550 | J78: =J73-((J73-J83)/10*5) -> 1244.5 | K78: 39.5 | M78: 3750 | N78: =N73-((N73-N83)/10*5) -> 1177 | O78: 44.4 | Q78: 4550 | R78: =R73-((R73-R83)/10*5) -> 1173 | S78: 49.2 | U78: 5550 | V78: =V73-((V73-V83)/10*5) -> 1083.5 | W78: 49.5
E79: 1760 | F79: =F73-((F73-F83)/10*6) -> 1235 | G79: 32.1 | I79: 2560 | J79: =J73-((J73-J83)/10*6) -> 1242.8 | K79: 39.5 | M79: 3760 | N79: =N73-((N73-N83)/10*6) -> 1175.6 | O79: 44.4 | Q79: 4560 | R79: =R73-((R73-R83)/10*6) -> 1171.8 | S79: 49.2 | U79: 5560 | V79: =V73-((V73-V83)/10*6) -> 1082.2 | W79: 49.5
E80: 1770 | F80: =F73-((F73-F83)/10*7) -> 1232.5 | G80: 32.1 | I80: 2570 | J80: =J73-((J73-J83)/10*7) -> 1241.1 | K80: 39.5 | M80: 3770 | N80: =N73-((N73-N83)/10*7) -> 1174.2 | O80: 44.4 | Q80: 4570 | R80: =R73-((R73-R83)/10*7) -> 1170.6 | S80: 49.2 | U80: 5570 | V80: =V73-((V73-V83)/10*7) -> 1080.9 | W80: 49.5
E81: 1780 | F81: =F73-((F73-F83)/10*8) -> 1230 | G81: 32.1 | I81: 2580 | J81: =J73-((J73-J83)/10*8) -> 1239.4 | K81: 39.5 | M81: 3780 | N81: =N73-((N73-N83)/10*8) -> 1172.8 | O81: 44.4 | Q81: 4580 | R81: =R73-((R73-R83)/10*8) -> 1169.4 | S81: 49.2 | U81: 5580 | V81: =V73-((V73-V83)/10*8) -> 1079.6 | W81: 49.5
E82: 1790 | F82: =F73-((F73-F83)/10*9) -> 1227.5 | G82: 32.1 | I82: 2590 | J82: =J73-((J73-J83)/10*9) -> 1237.7 | K82: 39.5 | M82: 3790 | N82: =N73-((N73-N83)/10*9) -> 1171.4 | O82: 44.4 | Q82: 4590 | R82: =R73-((R73-R83)/10*9) -> 1168.2 | S82: 49.2 | U82: 5590 | V82: =V73-((V73-V83)/10*9) -> 1078.3 | W82: 49.5
E83: 1800 | F83: 1225 | G83: 31.8 | I83: 2600 | J83: 1236 | K83: 39.3 | M83: 3800 | N83: 1170 | O83: 44.2 | Q83: 4600 | R83: 1167 | S83: 48.9 | U83: 5600 | V83: 1077 | W83: 49.3
E84: 1810 | F84: =F83-((F83-F93)/10*1) -> 1222.4 | G84: 31.8 | I84: 2610 | J84: =J83-((J83-J93)/10*1) -> 1234.2 | K84: 39.3 | M84: 3810 | N84: =N83-((N83-N93)/10*1) -> 1168.5 | O84: 44.2 | Q84: 4610 | R84: =R83-((R83-R93)/10*1) -> 1165.8 | S84: 48.9 | U84: 5610 | V84: =V83-((V83-V93)/10*1) -> 1075.5 | W84: 49.3
E85: 1820 | F85: =F83-((F83-F93)/10*2) -> 1219.8 | G85: 31.8 | I85: 2620 | J85: =J83-((J83-J93)/10*2) -> 1232.4 | K85: 39.3 | M85: 3820 | N85: =N83-((N83-N93)/10*2) -> 1167 | O85: 44.2 | Q85: 4620 | R85: =R83-((R83-R93)/10*2) -> 1164.6 | S85: 48.9 | U85: 5620 | V85: =V83-((V83-V93)/10*2) -> 1074 | W85: 49.3
E86: 1830 | F86: =F83-((F83-F93)/10*3) -> 1217.2 | G86: 31.8 | I86: 2630 | J86: =J83-((J83-J93)/10*3) -> 1230.6 | K86: 39.3 | M86: 3830 | N86: =N83-((N83-N93)/10*3) -> 1165.5 | O86: 44.2 | Q86: 4630 | R86: =R83-((R83-R93)/10*3) -> 1163.4 | S86: 48.9 | U86: 5630 | V86: =V83-((V83-V93)/10*3) -> 1072.5 | W86: 49.3
E87: 1840 | F87: =F83-((F83-F93)/10*4) -> 1214.6 | G87: 31.8 | I87: 2640 | J87: =J83-((J83-J93)/10*4) -> 1228.8 | K87: 39.3 | M87: 3840 | N87: =N83-((N83-N93)/10*4) -> 1164 | O87: 44.2 | Q87: 4640 | R87: =R83-((R83-R93)/10*4) -> 1162.2 | S87: 48.9 | U87: 5640 | V87: =V83-((V83-V93)/10*4) -> 1071 | W87: 49.3
E88: 1850 | F88: =F83-((F83-F93)/10*5) -> 1212 | G88: 31.8 | I88: 2650 | J88: =J83-((J83-J93)/10*5) -> 1227 | K88: 39.3 | M88: 3850 | N88: =N83-((N83-N93)/10*5) -> 1162.5 | O88: 44.2 | Q88: 4650 | R88: =R83-((R83-R93)/10*5) -> 1161 | S88: 48.9 | U88: 5650 | V88: =V83-((V83-V93)/10*5) -> 1069.5 | W88: 49.1
E89: 1860 | F89: =F83-((F83-F93)/10*6) -> 1209.4 | G89: 31.8 | I89: 2660 | J89: =J83-((J83-J93)/10*6) -> 1225.2 | K89: 39.3 | M89: 3860 | N89: =N83-((N83-N93)/10*6) -> 1161 | O89: 44.2 | Q89: 4660 | R89: =R83-((R83-R93)/10*6) -> 1159.8 | S89: 48.9 | U89: 5660 | V89: =V83-((V83-V93)/10*6) -> 1068 | W89: 49.1
E90: 1870 | F90: =F83-((F83-F93)/10*7) -> 1206.8 | G90: 31.8 | I90: 2670 | J90: =J83-((J83-J93)/10*7) -> 1223.4 | K90: 39.3 | M90: 3870 | N90: =N83-((N83-N93)/10*7) -> 1159.5 | O90: 44.2 | Q90: 4670 | R90: =R83-((R83-R93)/10*7) -> 1158.6 | S90: 48.9 | U90: 5670 | V90: =V83-((V83-V93)/10*7) -> 1066.5 | W90: 49.1
E91: 1880 | F91: =F83-((F83-F93)/10*8) -> 1204.2 | G91: 31.8 | I91: 2680 | J91: =J83-((J83-J93)/10*8) -> 1221.6 | K91: 39.3 | M91: 3880 | N91: =N83-((N83-N93)/10*8) -> 1158 | O91: 44.2 | Q91: 4680 | R91: =R83-((R83-R93)/10*8) -> 1157.4 | S91: 48.9 | U91: 5680 | V91: =V83-((V83-V93)/10*8) -> 1065 | W91: 49.1
E92: 1890 | F92: =F83-((F83-F93)/10*9) -> 1201.6 | G92: 31.8 | I92: 2690 | J92: =J83-((J83-J93)/10*9) -> 1219.8 | K92: 39.3 | M92: 3890 | N92: =N83-((N83-N93)/10*9) -> 1156.5 | O92: 44.2 | Q92: 4690 | R92: =R83-((R83-R93)/10*9) -> 1156.2 | S92: 48.9 | U92: 5690 | V92: =V83-((V83-V93)/10*9) -> 1063.5 | W92: 49.1
E93: 1900 | F93: 1199 | G93: 31.4 | I93: 2700 | J93: 1218 | K93: 39.1 | M93: 3900 | N93: 1155 | O93: 43.9 | Q93: 4700 | R93: 1155 | S93: 48.7 | U93: 5700 | V93: 1062 | W93: 48.9
E94: 1910 | F94: =F93-((F93-F103)/10*1) -> 1196.2 | G94: 31.4 | I94: 2710 | J94: =J93-((J93-J103)/10*1) -> 1216.2 | K94: 39.1 | M94: 3910 | N94: =N93-((N93-N103)/10*1) -> 1153.5 | O94: 43.9 | Q94: 4710 | R94: =R93-((R93-R103)/10*1) -> 1153.7 | S94: 48.7 | U94: 5710 | V94: =V93-((V93-V103)/10*1) -> 1060.5 | W94: 48.9
E95: 1920 | F95: =F93-((F93-F103)/10*2) -> 1193.4 | G95: 31.4 | I95: 2720 | J95: =J93-((J93-J103)/10*2) -> 1214.4 | K95: 39.1 | M95: 3920 | N95: =N93-((N93-N103)/10*2) -> 1152 | O95: 43.9 | Q95: 4720 | R95: =R93-((R93-R103)/10*2) -> 1152.4 | S95: 48.7 | U95: 5720 | V95: =V93-((V93-V103)/10*2) -> 1059 | W95: 48.9
E96: 1930 | F96: =F93-((F93-F103)/10*3) -> 1190.6 | G96: 31.4 | I96: 2730 | J96: =J93-((J93-J103)/10*3) -> 1212.6 | K96: 39.1 | M96: 3930 | N96: =N93-((N93-N103)/10*3) -> 1150.5 | O96: 43.9 | Q96: 4730 | R96: =R93-((R93-R103)/10*3) -> 1151.1 | S96: 48.7 | U96: 5730 | V96: =V93-((V93-V103)/10*3) -> 1057.5 | W96: 48.9
E97: 1940 | F97: =F93-((F93-F103)/10*4) -> 1187.8 | G97: 31.4 | I97: 2740 | J97: =J93-((J93-J103)/10*4) -> 1210.8 | K97: 39.1 | M97: 3940 | N97: =N93-((N93-N103)/10*4) -> 1149 | O97: 43.9 | Q97: 4740 | R97: =R93-((R93-R103)/10*4) -> 1149.8 | S97: 48.7 | U97: 5740 | V97: =V93-((V93-V103)/10*4) -> 1056 | W97: 48.9
E98: 1950 | F98: =F93-((F93-F103)/10*5) -> 1185 | G98: 31.4 | I98: 2750 | J98: =J93-((J93-J103)/10*5) -> 1209 | K98: 39.1 | M98: 3950 | N98: =N93-((N93-N103)/10*5) -> 1147.5 | O98: 43.9 | Q98: 4750 | R98: =R93-((R93-R103)/10*5) -> 1148.5 | S98: 48.7 | U98: 5750 | V98: =V93-((V93-V103)/10*5) -> 1054.5 | W98: 48.7
E99: 1960 | F99: =F93-((F93-F103)/10*6) -> 1182.2 | G99: 31.4 | I99: 2760 | J99: =J93-((J93-J103)/10*6) -> 1207.2 | K99: 39.1 | M99: 3960 | N99: =N93-((N93-N103)/10*6) -> 1146 | O99: 43.9 | Q99: 4760 | R99: =R93-((R93-R103)/10*6) -> 1147.2 | S99: 48.7 | U99: 5760 | V99: =V93-((V93-V103)/10*6) -> 1053 | W99: 48.7
E100: 1970 | F100: =F93-((F93-F103)/10*7) -> 1179.4 | G100: 31.4 | I100: 2770 | J100: =J93-((J93-J103)/10*7) -> 1205.4 | K100: 39.1 | M100: 3970 | N100: =N93-((N93-N103)/10*7) -> 1144.5 | O100: 43.9 | Q100: 4770 | R100: =R93-((R93-R103)/10*7) -> 1145.9 | S100: 48.7 | U100: 5770 | V100: =V93-((V93-V103)/10*7) -> 1051.5 | W100: 48.7
E101: 1980 | F101: =F93-((F93-F103)/10*8) -> 1176.6 | G101: 31.4 | I101: 2780 | J101: =J93-((J93-J103)/10*8) -> 1203.6 | K101: 39.1 | M101: 3980 | N101: =N93-((N93-N103)/10*8) -> 1143 | O101: 43.9 | Q101: 4780 | R101: =R93-((R93-R103)/10*8) -> 1144.6 | S101: 48.7 | U101: 5780 | V101: =V93-((V93-V103)/10*8) -> 1050 | W101: 48.7
E102: 1990 | F102: =F93-((F93-F103)/10*9) -> 1173.8 | G102: 31.4 | I102: 2790 | J102: =J93-((J93-J103)/10*9) -> 1201.8 | K102: 39.1 | M102: 3990 | N102: =N93-((N93-N103)/10*9) -> 1141.5 | O102: 43.9 | Q102: 4790 | R102: =R93-((R93-R103)/10*9) -> 1143.3 | S102: 48.7 | U102: 5790 | V102: =V93-((V93-V103)/10*9) -> 1048.5 | W102: 48.7
E103: 2000 | F103: 1171 | G103: 31 | I103: 2800 | J103: 1200 | K103: 38.8 | M103: 4000 | N103: 1140 | O103: 43.6 | Q103: 4800 | R103: 1142 | S103: 48.4 | U103: 5800 | V103: 1047 | W103: 48.5
E104: 2010 | F104: =F103-((F103-F113)/10*1) -> 1168 | G104: 31 | I104: 2810 | J104: =J103-((J103-J113)/10*1) -> 1198.2 | K104: 38.8 | M104: 4010 | N104: =N103-((N103-N113)/10*1) -> 1138.4 | O104: 43.6 | Q104: 4810 | R104: =R103-((R103-R113)/10*1) -> 1140.7 | S104: 48.4 | U104: 5810 | V104: =V103-((V103-V113)/10*1) -> 1045 | W104: 48.5
E105: 2020 | F105: =F103-((F103-F113)/10*2) -> 1165 | G105: 31 | I105: 2820 | J105: =J103-((J103-J113)/10*2) -> 1196.4 | K105: 38.8 | M105: 4020 | N105: =N103-((N103-N113)/10*2) -> 1136.8 | O105: 43.6 | Q105: 4820 | R105: =R103-((R103-R113)/10*2) -> 1139.4 | S105: 48.4 | U105: 5820 | V105: =V103-((V103-V113)/10*2) -> 1043 | W105: 48.5
E106: 2030 | F106: =F103-((F103-F113)/10*3) -> 1162 | G106: 31 | I106: 2830 | J106: =J103-((J103-J113)/10*3) -> 1194.6 | K106: 38.8 | M106: 4030 | N106: =N103-((N103-N113)/10*3) -> 1135.2 | O106: 43.6 | Q106: 4830 | R106: =R103-((R103-R113)/10*3) -> 1138.1 | S106: 48.4 | U106: 5830 | V106: =V103-((V103-V113)/10*3) -> 1041 | W106: 48.5
E107: 2040 | F107: =F103-((F103-F113)/10*4) -> 1159 | G107: 31 | I107: 2840 | J107: =J103-((J103-J113)/10*4) -> 1192.8 | K107: 38.8 | M107: 4040 | N107: =N103-((N103-N113)/10*4) -> 1133.6 | O107: 43.6 | Q107: 4840 | R107: =R103-((R103-R113)/10*4) -> 1136.8 | S107: 48.4 | U107: 5840 | V107: =V103-((V103-V113)/10*4) -> 1039 | W107: 48.5
E108: 2050 | F108: =F103-((F103-F113)/10*5) -> 1156 | G108: 31 | I108: 2850 | J108: =J103-((J103-J113)/10*5) -> 1191 | K108: 38.8 | M108: 4050 | N108: =N103-((N103-N113)/10*5) -> 1132 | O108: 43.6 | Q108: 4850 | R108: =R103-((R103-R113)/10*5) -> 1135.5 | S108: 48.4 | U108: 5850 | V108: =V103-((V103-V113)/10*5) -> 1037 | W108: 48.3
E109: 2060 | F109: =F103-((F103-F113)/10*6) -> 1153 | G109: 31 | I109: 2860 | J109: =J103-((J103-J113)/10*6) -> 1189.2 | K109: 38.8 | M109: 4060 | N109: =N103-((N103-N113)/10*6) -> 1130.4 | O109: 43.6 | Q109: 4860 | R109: =R103-((R103-R113)/10*6) -> 1134.2 | S109: 48.4 | U109: 5860 | V109: =V103-((V103-V113)/10*6) -> 1035 | W109: 48.3
E110: 2070 | F110: =F103-((F103-F113)/10*7) -> 1150 | G110: 31 | I110: 2870 | J110: =J103-((J103-J113)/10*7) -> 1187.4 | K110: 38.8 | M110: 4070 | N110: =N103-((N103-N113)/10*7) -> 1128.8 | O110: 43.6 | Q110: 4870 | R110: =R103-((R103-R113)/10*7) -> 1132.9 | S110: 48.4 | U110: 5870 | V110: =V103-((V103-V113)/10*7) -> 1033 | W110: 48.3
E111: 2080 | F111: =F103-((F103-F113)/10*8) -> 1147 | G111: 31 | I111: 2880 | J111: =J103-((J103-J113)/10*8) -> 1185.6 | K111: 38.8 | M111: 4080 | N111: =N103-((N103-N113)/10*8) -> 1127.2 | O111: 43.6 | Q111: 4880 | R111: =R103-((R103-R113)/10*8) -> 1131.6 | S111: 48.4 | U111: 5880 | V111: =V103-((V103-V113)/10*8) -> 1031 | W111: 48.3
E112: 2090 | F112: =F103-((F103-F113)/10*9) -> 1144 | G112: 31 | I112: 2890 | J112: =J103-((J103-J113)/10*9) -> 1183.8 | K112: 38.8 | M112: 4090 | N112: =N103-((N103-N113)/10*9) -> 1125.6 | O112: 43.6 | Q112: 4890 | R112: =R103-((R103-R113)/10*9) -> 1130.3 | S112: 48.4 | U112: 5890 | V112: =V103-((V103-V113)/10*9) -> 1029 | W112: 48.3
E113: 2100 | F113: 1141 | G113: 30.6 | I113: 2900 | J113: 1182 | K113: 38.6 | M113: 4100 | N113: 1124 | O113: 43.3 | Q113: 4900 | R113: 1129 | S113: 48.1 | U113: 5900 | V113: 1027 | W113: 48.1
E114: 2110 | F114: =F113-((F113-F123)/10*1) -> 1137.8 | G114: 30.6 | I114: 2910 | J114: =J113-((J113-J123)/10*1) -> 1180.1 | K114: 38.6 | M114: 4110 | N114: =N113-((N113-N123)/10*1) -> 1122.4 | O114: 43.3 | Q114: 4910 | R114: =R113-((R113-R123)/10*1) -> 1127.7 | S114: 48.1 | U114: 5910 | V114: =V113-((V113-V123)/10*1) -> 1025 | W114: 48.1
E115: 2120 | F115: =F113-((F113-F123)/10*2) -> 1134.6 | G115: 30.6 | I115: 2920 | J115: =J113-((J113-J123)/10*2) -> 1178.2 | K115: 38.6 | M115: 4120 | N115: =N113-((N113-N123)/10*2) -> 1120.8 | O115: 43.3 | Q115: 4920 | R115: =R113-((R113-R123)/10*2) -> 1126.4 | S115: 48.1 | U115: 5920 | V115: =V113-((V113-V123)/10*2) -> 1023 | W115: 48.1
E116: 2130 | F116: =F113-((F113-F123)/10*3) -> 1131.4 | G116: 30.6 | I116: 2930 | J116: =J113-((J113-J123)/10*3) -> 1176.3 | K116: 38.6 | M116: 4130 | N116: =N113-((N113-N123)/10*3) -> 1119.2 | O116: 43.3 | Q116: 4930 | R116: =R113-((R113-R123)/10*3) -> 1125.1 | S116: 48.1 | U116: 5930 | V116: =V113-((V113-V123)/10*3) -> 1021 | W116: 48.1
E117: 2140 | F117: =F113-((F113-F123)/10*4) -> 1128.2 | G117: 30.6 | I117: 2940 | J117: =J113-((J113-J123)/10*4) -> 1174.4 | K117: 38.6 | M117: 4140 | N117: =N113-((N113-N123)/10*4) -> 1117.6 | O117: 43.3 | Q117: 4940 | R117: =R113-((R113-R123)/10*4) -> 1123.8 | S117: 48.1 | U117: 5940 | V117: =V113-((V113-V123)/10*4) -> 1019 | W117: 48.1
E118: 2150 | F118: =F113-((F113-F123)/10*5) -> 1125 | G118: 30.6 | I118: 2950 | J118: =J113-((J113-J123)/10*5) -> 1172.5 | K118: 38.6 | M118: 4150 | N118: =N113-((N113-N123)/10*5) -> 1116 | O118: 43.3 | Q118: 4950 | R118: =R113-((R113-R123)/10*5) -> 1122.5 | S118: 48.1 | U118: 5950 | V118: =V113-((V113-V123)/10*5) -> 1017 | W118: 47.9
E119: 2160 | F119: =F113-((F113-F123)/10*6) -> 1121.8 | G119: 30.6 | I119: 2960 | J119: =J113-((J113-J123)/10*6) -> 1170.6 | K119: 38.6 | M119: 4160 | N119: =N113-((N113-N123)/10*6) -> 1114.4 | O119: 43.3 | Q119: 4960 | R119: =R113-((R113-R123)/10*6) -> 1121.2 | S119: 48.1 | U119: 5960 | V119: =V113-((V113-V123)/10*6) -> 1015 | W119: 47.9
E120: 2170 | F120: =F113-((F113-F123)/10*7) -> 1118.6 | G120: 30.6 | I120: 2970 | J120: =J113-((J113-J123)/10*7) -> 1168.7 | K120: 38.6 | M120: 4170 | N120: =N113-((N113-N123)/10*7) -> 1112.8 | O120: 43.3 | Q120: 4970 | R120: =R113-((R113-R123)/10*7) -> 1119.9 | S120: 48.1 | U120: 5970 | V120: =V113-((V113-V123)/10*7) -> 1013 | W120: 47.9
E121: 2180 | F121: =F113-((F113-F123)/10*8) -> 1115.4 | G121: 30.6 | I121: 2980 | J121: =J113-((J113-J123)/10*8) -> 1166.8 | K121: 38.6 | M121: 4180 | N121: =N113-((N113-N123)/10*8) -> 1111.2 | O121: 43.3 | Q121: 4980 | R121: =R113-((R113-R123)/10*8) -> 1118.6 | S121: 48.1 | U121: 5980 | V121: =V113-((V113-V123)/10*8) -> 1011 | W121: 47.9
E122: 2190 | F122: =F113-((F113-F123)/10*9) -> 1112.2 | G122: 30.6 | I122: 2990 | J122: =J113-((J113-J123)/10*9) -> 1164.9 | K122: 38.6 | M122: 4190 | N122: =N113-((N113-N123)/10*9) -> 1109.6 | O122: 43.3 | Q122: 4990 | R122: =R113-((R113-R123)/10*9) -> 1117.3 | S122: 48.1 | U122: 5990 | V122: =V113-((V113-V123)/10*9) -> 1009 | W122: 47.9
E123: 2200 | F123: 1109 | G123: 30.1 | I123: 3000 | J123: 1163 | K123: 38.4 | M123: 4200 | N123: 1108 | O123: 43 | Q123: 5000 | R123: 1116 | S123: 47.8 | U123: 6000 | V123: 1007 | W123: 47.5
E124: 2210 | F124: =F123-((F123-F133)/10*1) -> 1105.6 | G124: 30.1 | I124: 3010 | J124: =J123-((J123-J133)/10*1) -> 1161.1 | K124: 38.4 | M124: 4210 | N124: =N123-((N123-N133)/10*1) -> 1106.3 | O124: 43 | Q124: 5010 | R124: =R123-((R123-R133)/10*1) -> 1114.6 | S124: 47.8 | U124: 6010 | V124: =V123-((V123-V133)/10*1) -> 1004.8 | W124: 47.5
E125: 2220 | F125: =F123-((F123-F133)/10*2) -> 1102.2 | G125: 30.1 | I125: 3020 | J125: =J123-((J123-J133)/10*2) -> 1159.2 | K125: 38.4 | M125: 4220 | N125: =N123-((N123-N133)/10*2) -> 1104.6 | O125: 43 | Q125: 5020 | R125: =R123-((R123-R133)/10*2) -> 1113.2 | S125: 47.8 | U125: 6020 | V125: =V123-((V123-V133)/10*2) -> 1002.6 | W125: 47.5
E126: 2230 | F126: =F123-((F123-F133)/10*3) -> 1098.8 | G126: 30.1 | I126: 3030 | J126: =J123-((J123-J133)/10*3) -> 1157.3 | K126: 38.4 | M126: 4230 | N126: =N123-((N123-N133)/10*3) -> 1102.9 | O126: 43 | Q126: 5030 | R126: =R123-((R123-R133)/10*3) -> 1111.8 | S126: 47.8 | U126: 6030 | V126: =V123-((V123-V133)/10*3) -> 1000.4 | W126: 47.5
E127: 2240 | F127: =F123-((F123-F133)/10*4) -> 1095.4 | G127: 30.1 | I127: 3040 | J127: =J123-((J123-J133)/10*4) -> 1155.4 | K127: 38.4 | M127: 4240 | N127: =N123-((N123-N133)/10*4) -> 1101.2 | O127: 43 | Q127: 5040 | R127: =R123-((R123-R133)/10*4) -> 1110.4 | S127: 47.8 | U127: 6040 | V127: =V123-((V123-V133)/10*4) -> 998.2 | W127: 47.5
E128: 2250 | F128: =F123-((F123-F133)/10*5) -> 1092 | G128: 30.1 | I128: 3050 | J128: =J123-((J123-J133)/10*5) -> 1153.5 | K128: 38.4 | M128: 4250 | N128: =N123-((N123-N133)/10*5) -> 1099.5 | O128: 43 | Q128: 5050 | R128: =R123-((R123-R133)/10*5) -> 1109 | S128: 47.8 | U128: 6050 | V128: =V123-((V123-V133)/10*5) -> 996 | W128: 47.3
E129: 2260 | F129: =F123-((F123-F133)/10*6) -> 1088.6 | G129: 30.1 | I129: 3060 | J129: =J123-((J123-J133)/10*6) -> 1151.6 | K129: 38.4 | M129: 4260 | N129: =N123-((N123-N133)/10*6) -> 1097.8 | O129: 43 | Q129: 5060 | R129: =R123-((R123-R133)/10*6) -> 1107.6 | S129: 47.8 | U129: 6060 | V129: =V123-((V123-V133)/10*6) -> 993.8 | W129: 47.3
E130: 2270 | F130: =F123-((F123-F133)/10*7) -> 1085.2 | G130: 30.1 | I130: 3070 | J130: =J123-((J123-J133)/10*7) -> 1149.7 | K130: 38.4 | M130: 4270 | N130: =N123-((N123-N133)/10*7) -> 1096.1 | O130: 43 | Q130: 5070 | R130: =R123-((R123-R133)/10*7) -> 1106.2 | S130: 47.8 | U130: 6070 | V130: =V123-((V123-V133)/10*7) -> 991.6 | W130: 47.3
E131: 2280 | F131: =F123-((F123-F133)/10*8) -> 1081.8 | G131: 30.1 | I131: 3080 | J131: =J123-((J123-J133)/10*8) -> 1147.8 | K131: 38.4 | M131: 4280 | N131: =N123-((N123-N133)/10*8) -> 1094.4 | O131: 43 | Q131: 5080 | R131: =R123-((R123-R133)/10*8) -> 1104.8 | S131: 47.8 | U131: 6080 | V131: =V123-((V123-V133)/10*8) -> 989.4 | W131: 47.3
E132: 2290 | F132: =F123-((F123-F133)/10*9) -> 1078.4 | G132: 30.1 | I132: 3090 | J132: =J123-((J123-J133)/10*9) -> 1145.9 | K132: 38.4 | M132: 4290 | N132: =N123-((N123-N133)/10*9) -> 1092.7 | O132: 43 | Q132: 5090 | R132: =R123-((R123-R133)/10*9) -> 1103.4 | S132: 47.8 | U132: 6090 | V132: =V123-((V123-V133)/10*9) -> 987.2 | W132: 47.3
E133: 2300 | F133: 1075 | G133: 29.5 | I133: 3100 | J133: 1144 | K133: 38.1 | M133: 4300 | N133: 1091 | O133: 42.6 | Q133: 5100 | R133: 1102 | S133: 47.5 | U133: 6100 | V133: 985 | W133: 47.1
E134: 2310 | F134: =F133-((F133-F143)/10*1) -> 1071.2 | G134: 29.5 | I134: 3110 | J134: =J133-((J133-J143)/10*1) -> 1142 | K134: 38.1 | M134: 4310 | N134: =N133-((N133-N143)/10*1) -> 1089.2 | O134: 42.6 | Q134: 5110 | R134: =R133-((R133-R143)/10*1) -> 1100.6 | S134: 47.5 | U134: 6110 | V134: =V133-((V133-V143)/10*1) -> 982.8 | W134: 47.1
E135: 2320 | F135: =F133-((F133-F143)/10*2) -> 1067.4 | G135: 29.5 | I135: 3120 | J135: =J133-((J133-J143)/10*2) -> 1140 | K135: 38.1 | M135: 4320 | N135: =N133-((N133-N143)/10*2) -> 1087.4 | O135: 42.6 | Q135: 5120 | R135: =R133-((R133-R143)/10*2) -> 1099.2 | S135: 47.5 | U135: 6120 | V135: =V133-((V133-V143)/10*2) -> 980.6 | W135: 47.1
E136: 2330 | F136: =F133-((F133-F143)/10*3) -> 1063.6 | G136: 29.5 | I136: 3130 | J136: =J133-((J133-J143)/10*3) -> 1138 | K136: 38.1 | M136: 4330 | N136: =N133-((N133-N143)/10*3) -> 1085.6 | O136: 42.6 | Q136: 5130 | R136: =R133-((R133-R143)/10*3) -> 1097.8 | S136: 47.5 | U136: 6130 | V136: =V133-((V133-V143)/10*3) -> 978.4 | W136: 47.1
E137: 2340 | F137: =F133-((F133-F143)/10*4) -> 1059.8 | G137: 29.5 | I137: 3140 | J137: =J133-((J133-J143)/10*4) -> 1136 | K137: 38.1 | M137: 4340 | N137: =N133-((N133-N143)/10*4) -> 1083.8 | O137: 42.6 | Q137: 5140 | R137: =R133-((R133-R143)/10*4) -> 1096.4 | S137: 47.5 | U137: 6140 | V137: =V133-((V133-V143)/10*4) -> 976.2 | W137: 47.1
E138: 2350 | F138: =F133-((F133-F143)/10*5) -> 1056 | G138: 29.5 | I138: 3150 | J138: =J133-((J133-J143)/10*5) -> 1134 | K138: 38.1 | M138: 4350 | N138: =N133-((N133-N143)/10*5) -> 1082 | O138: 42.6 | Q138: 5150 | R138: =R133-((R133-R143)/10*5) -> 1095 | S138: 47.5 | U138: 6150 | V138: =V133-((V133-V143)/10*5) -> 974 | W138: 46.9
E139: 2360 | F139: =F133-((F133-F143)/10*6) -> 1052.2 | G139: 29.5 | I139: 3160 | J139: =J133-((J133-J143)/10*6) -> 1132 | K139: 38.1 | M139: 4360 | N139: =N133-((N133-N143)/10*6) -> 1080.2 | O139: 42.6 | Q139: 5160 | R139: =R133-((R133-R143)/10*6) -> 1093.6 | S139: 47.5 | U139: 6160 | V139: =V133-((V133-V143)/10*6) -> 971.8 | W139: 46.9
E140: 2370 | F140: =F133-((F133-F143)/10*7) -> 1048.4 | G140: 29.5 | I140: 3170 | J140: =J133-((J133-J143)/10*7) -> 1130 | K140: 38.1 | M140: 4370 | N140: =N133-((N133-N143)/10*7) -> 1078.4 | O140: 42.6 | Q140: 5170 | R140: =R133-((R133-R143)/10*7) -> 1092.2 | S140: 47.5 | U140: 6170 | V140: =V133-((V133-V143)/10*7) -> 969.6 | W140: 46.9
E141: 2380 | F141: =F133-((F133-F143)/10*8) -> 1044.6 | G141: 29.5 | I141: 3180 | J141: =J133-((J133-J143)/10*8) -> 1128 | K141: 38.1 | M141: 4380 | N141: =N133-((N133-N143)/10*8) -> 1076.6 | O141: 42.6 | Q141: 5180 | R141: =R133-((R133-R143)/10*8) -> 1090.8 | S141: 47.5 | U141: 6180 | V141: =V133-((V133-V143)/10*8) -> 967.4 | W141: 46.9
E142: 2390 | F142: =F133-((F133-F143)/10*9) -> 1040.8 | G142: 29.5 | I142: 3190 | J142: =J133-((J133-J143)/10*9) -> 1126 | K142: 38.1 | M142: 4390 | N142: =N133-((N133-N143)/10*9) -> 1074.8 | O142: 42.6 | Q142: 5190 | R142: =R133-((R133-R143)/10*9) -> 1089.4 | S142: 47.5 | U142: 6190 | V142: =V133-((V133-V143)/10*9) -> 965.2 | W142: 46.9
E143: 2400 | F143: 1037 | G143: 28.8 | I143: 3200 | J143: 1124 | K143: 37.8 | M143: 4400 | N143: 1073 | O143: 42.2 | Q143: 5200 | R143: 1088 | S143: 47.2 | U143: 6200 | V143: 963 | W143: 46.7
E144: 2410 | F144: =F143-((F143-F153)/10*1) -> 1032.5 | G144: 28.8 | I144: 3210 | J144: =J143-((J143-J153)/10*1) -> 1121.9 | K144: 37.8 | M144: 4410 | N144: =N143-((N143-N153)/10*1) -> 1071 | O144: 42.2 | Q144: 5210 | R144: =R143-((R143-R153)/10*1) -> 1086.5 | S144: 47.2 | U144: 6210 | V144: =V143-((V143-V153)/10*1) -> 959.6 | W144: 46.7
E145: 2420 | F145: =F143-((F143-F153)/10*2) -> 1028 | G145: 28.8 | I145: 3220 | J145: =J143-((J143-J153)/10*2) -> 1119.8 | K145: 37.8 | M145: 4420 | N145: =N143-((N143-N153)/10*2) -> 1069 | O145: 42.2 | Q145: 5220 | R145: =R143-((R143-R153)/10*2) -> 1085 | S145: 47.2 | U145: 6220 | V145: =V143-((V143-V153)/10*2) -> 956.2 | W145: 46.7
E146: 2430 | F146: =F143-((F143-F153)/10*3) -> 1023.5 | G146: 28.8 | I146: 3230 | J146: =J143-((J143-J153)/10*3) -> 1117.7 | K146: 37.8 | M146: 4430 | N146: =N143-((N143-N153)/10*3) -> 1067 | O146: 42.2 | Q146: 5230 | R146: =R143-((R143-R153)/10*3) -> 1083.5 | S146: 47.2 | U146: 6230 | V146: =V143-((V143-V153)/10*3) -> 952.8 | W146: 46.7
E147: 2440 | F147: =F143-((F143-F153)/10*4) -> 1019 | G147: 28.8 | I147: 3240 | J147: =J143-((J143-J153)/10*4) -> 1115.6 | K147: 37.8 | M147: 4440 | N147: =N143-((N143-N153)/10*4) -> 1065 | O147: 42.2 | Q147: 5240 | R147: =R143-((R143-R153)/10*4) -> 1082 | S147: 47.2 | U147: 6240 | V147: =V143-((V143-V153)/10*4) -> 949.4 | W147: 46.7
E148: 2450 | F148: =F143-((F143-F153)/10*5) -> 1014.5 | G148: 28.8 | I148: 3250 | J148: =J143-((J143-J153)/10*5) -> 1113.5 | K148: 37.8 | M148: 4450 | N148: =N143-((N143-N153)/10*5) -> 1063 | O148: 42.2 | Q148: 5250 | R148: =R143-((R143-R153)/10*5) -> 1080.5 | S148: 47.2 | U148: 6250 | V148: =V143-((V143-V153)/10*5) -> 946 | W148: 46.3
E149: 2460 | F149: =F143-((F143-F153)/10*6) -> 1010 | G149: 28.8 | I149: 3260 | J149: =J143-((J143-J153)/10*6) -> 1111.4 | K149: 37.8 | M149: 4460 | N149: =N143-((N143-N153)/10*6) -> 1061 | O149: 42.2 | Q149: 5260 | R149: =R143-((R143-R153)/10*6) -> 1079 | S149: 47.2 | U149: 6260 | V149: =V143-((V143-V153)/10*6) -> 942.6 | W149: 46.3
E150: 2470 | F150: =F143-((F143-F153)/10*7) -> 1005.5 | G150: 28.8 | I150: 3270 | J150: =J143-((J143-J153)/10*7) -> 1109.3 | K150: 37.8 | M150: 4470 | N150: =N143-((N143-N153)/10*7) -> 1059 | O150: 42.2 | Q150: 5270 | R150: =R143-((R143-R153)/10*7) -> 1077.5 | S150: 47.2 | U150: 6270 | V150: =V143-((V143-V153)/10*7) -> 939.2 | W150: 46.3
E151: 2480 | F151: =F143-((F143-F153)/10*8) -> 1001 | G151: 28.8 | I151: 3280 | J151: =J143-((J143-J153)/10*8) -> 1107.2 | K151: 37.8 | M151: 4480 | N151: =N143-((N143-N153)/10*8) -> 1057 | O151: 42.2 | Q151: 5280 | R151: =R143-((R143-R153)/10*8) -> 1076 | S151: 47.2 | U151: 6280 | V151: =V143-((V143-V153)/10*8) -> 935.8 | W151: 46.3
E152: 2490 | F152: =F143-((F143-F153)/10*9) -> 996.5 | G152: 28.8 | I152: 3290 | J152: =J143-((J143-J153)/10*9) -> 1105.1 | K152: 37.8 | M152: 4490 | N152: =N143-((N143-N153)/10*9) -> 1055 | O152: 42.2 | Q152: 5290 | R152: =R143-((R143-R153)/10*9) -> 1074.5 | S152: 47.2 | U152: 6290 | V152: =V143-((V143-V153)/10*9) -> 932.4 | W152: 46.3
E153: 2500 | F153: 992 | G153: 28 | I153: 3300 | J153: 1103 | K153: 37.4 | M153: 4500 | N153: 1053 | O153: 41.8 | Q153: 5300 | R153: 1073 | S153: 46.8 | U153: 6300 | V153: 929 | W153: 45.9
E154: 2510 | F154: =F153-((F153-F163)/10*1) -> 985.6 | G154: 28 | I154: 3310 | J154: =J153-((J153-J163)/10*1) -> 1100.7 | K154: 37.4 | M154: 4510 | N154: =N153-((N153-N163)/10*1) -> 1050.8 | O154: 41.8 | Q154: 5310 | R154: =R153-((R153-R163)/10*1) -> 1071.4 | S154: 46.8 | U154: 6310 | V154: =V153-((V153-V163)/10*1) -> 925 | W154: 45.9
E155: 2520 | F155: =F153-((F153-F163)/10*2) -> 979.2 | G155: 28 | I155: 3320 | J155: =J153-((J153-J163)/10*2) -> 1098.4 | K155: 37.4 | M155: 4520 | N155: =N153-((N153-N163)/10*2) -> 1048.6 | O155: 41.8 | Q155: 5320 | R155: =R153-((R153-R163)/10*2) -> 1069.8 | S155: 46.8 | U155: 6320 | V155: =V153-((V153-V163)/10*2) -> 921 | W155: 45.9
E156: 2530 | F156: =F153-((F153-F163)/10*3) -> 972.8 | G156: 28 | I156: 3330 | J156: =J153-((J153-J163)/10*3) -> 1096.1 | K156: 37.4 | M156: 4530 | N156: =N153-((N153-N163)/10*3) -> 1046.4 | O156: 41.8 | Q156: 5330 | R156: =R153-((R153-R163)/10*3) -> 1068.2 | S156: 46.8 | U156: 6330 | V156: =V153-((V153-V163)/10*3) -> 917 | W156: 45.9
E157: 2540 | F157: =F153-((F153-F163)/10*4) -> 966.4 | G157: 28 | I157: 3340 | J157: =J153-((J153-J163)/10*4) -> 1093.8 | K157: 37.4 | M157: 4540 | N157: =N153-((N153-N163)/10*4) -> 1044.2 | O157: 41.8 | Q157: 5340 | R157: =R153-((R153-R163)/10*4) -> 1066.6 | S157: 46.8 | U157: 6340 | V157: =V153-((V153-V163)/10*4) -> 913 | W157: 45.9
E158: 2550 | F158: =F153-((F153-F163)/10*5) -> 960 | G158: 28 | I158: 3350 | J158: =J153-((J153-J163)/10*5) -> 1091.5 | K158: 37.4 | M158: 4550 | N158: =N153-((N153-N163)/10*5) -> 1042 | O158: 41.8 | Q158: 5350 | R158: =R153-((R153-R163)/10*5) -> 1065 | S158: 46.8 | U158: 6350 | V158: =V153-((V153-V163)/10*5) -> 909 | W158: 45.4
E159: 2560 | F159: =F153-((F153-F163)/10*6) -> 953.6 | G159: 28 | I159: 3360 | J159: =J153-((J153-J163)/10*6) -> 1089.2 | K159: 37.4 | M159: 4560 | N159: =N153-((N153-N163)/10*6) -> 1039.8 | O159: 41.8 | Q159: 5360 | R159: =R153-((R153-R163)/10*6) -> 1063.4 | S159: 46.8 | U159: 6360 | V159: =V153-((V153-V163)/10*6) -> 905 | W159: 45.4
E160: 2570 | F160: =F153-((F153-F163)/10*7) -> 947.2 | G160: 28 | I160: 3370 | J160: =J153-((J153-J163)/10*7) -> 1086.9 | K160: 37.4 | M160: 4570 | N160: =N153-((N153-N163)/10*7) -> 1037.6 | O160: 41.8 | Q160: 5370 | R160: =R153-((R153-R163)/10*7) -> 1061.8 | S160: 46.8 | U160: 6370 | V160: =V153-((V153-V163)/10*7) -> 901 | W160: 45.4
E161: 2580 | F161: =F153-((F153-F163)/10*8) -> 940.8 | G161: 28 | I161: 3380 | J161: =J153-((J153-J163)/10*8) -> 1084.6 | K161: 37.4 | M161: 4580 | N161: =N153-((N153-N163)/10*8) -> 1035.4 | O161: 41.8 | Q161: 5380 | R161: =R153-((R153-R163)/10*8) -> 1060.2 | S161: 46.8 | U161: 6380 | V161: =V153-((V153-V163)/10*8) -> 897 | W161: 45.4
E162: 2590 | F162: =F153-((F153-F163)/10*9) -> 934.4 | G162: 28 | I162: 3390 | J162: =J153-((J153-J163)/10*9) -> 1082.3 | K162: 37.4 | M162: 4590 | N162: =N153-((N153-N163)/10*9) -> 1033.2 | O162: 41.8 | Q162: 5390 | R162: =R153-((R153-R163)/10*9) -> 1058.6 | S162: 46.8 | U162: 6390 | V162: =V153-((V153-V163)/10*9) -> 893 | W162: 45.4
E163: 2600 | F163: 928 | G163: 26.9 | I163: 3400 | J163: 1080 | K163: 37 | M163: 4600 | N163: 1031 | O163: 41.3 | Q163: 5400 | R163: 1057 | S163: 46.4 | U163: 6400 | V163: 889 | W163: 44.9
E164: 2610 | F164: =F163-((F163-F173)/10*1) -> 915.2 | G164: 26.9 | I164: 3410 | J164: =J163-((J163-J173)/10*1) -> 1077.4 | K164: 37 | M164: 4610 | N164: =N163-((N163-N173)/10*1) -> 1028.5 | O164: 41.3 | Q164: 5410 | R164: =R163-((R163-R173)/10*1) -> 1055.2 | S164: 46.4 | U164: 6410 | V164: =V163-((V163-V168)/5*1) -> 880 | W164: 44.9
E165: 2620 | F165: =F163-((F163-F173)/10*2) -> 902.4 | G165: 26.9 | I165: 3420 | J165: =J163-((J163-J173)/10*2) -> 1074.8 | K165: 37 | M165: 4620 | N165: =N163-((N163-N173)/10*2) -> 1026 | O165: 41.3 | Q165: 5420 | R165: =R163-((R163-R173)/10*2) -> 1053.4 | S165: 46.4 | U165: 6420 | V165: =V163-((V163-V168)/5*2) -> 871 | W165: 44.9
E166: 2630 | F166: =F163-((F163-F173)/10*3) -> 889.6 | G166: 26.9 | I166: 3430 | J166: =J163-((J163-J173)/10*3) -> 1072.2 | K166: 37 | M166: 4630 | N166: =N163-((N163-N173)/10*3) -> 1023.5 | O166: 41.3 | Q166: 5430 | R166: =R163-((R163-R173)/10*3) -> 1051.6 | S166: 46.4 | U166: 6430 | V166: =V163-((V163-V168)/5*3) -> 862 | W166: 44.9
E167: 2640 | F167: =F163-((F163-F173)/10*4) -> 876.8 | G167: 26.9 | I167: 3440 | J167: =J163-((J163-J173)/10*4) -> 1069.6 | K167: 37 | M167: 4640 | N167: =N163-((N163-N173)/10*4) -> 1021 | O167: 41.3 | Q167: 5440 | R167: =R163-((R163-R173)/10*4) -> 1049.8 | S167: 46.4 | U167: 6440 | V167: =V163-((V163-V168)/5*4) -> 853 | W167: 44.9
E168: 2650 | F168: =F163-((F163-F173)/10*5) -> 864 | G168: 26.9 | I168: 3450 | J168: =J163-((J163-J173)/10*5) -> 1067 | K168: 37 | M168: 4650 | N168: =N163-((N163-N173)/10*5) -> 1018.5 | O168: 41.3 | Q168: 5450 | R168: =R163-((R163-R173)/10*5) -> 1048 | S168: 46.4 | U168: 6450 | V168: 844 | W168: 43.7
E169: 2660 | F169: =F163-((F163-F173)/10*6) -> 851.2 | G169: 26.9 | I169: 3460 | J169: =J163-((J163-J173)/10*6) -> 1064.4 | K169: 37 | M169: 4660 | N169: =N163-((N163-N173)/10*6) -> 1016 | O169: 41.3 | Q169: 5460 | R169: =R163-((R163-R173)/10*6) -> 1046.2 | S169: 46.4 | U169: 6460 | V169: =V163-((V163-V173)/10*6) -> 835.6 | W169: 43.7
E170: 2670 | F170: =F163-((F163-F173)/10*7) -> 838.4 | G170: 26.9 | I170: 3470 | J170: =J163-((J163-J173)/10*7) -> 1061.8 | K170: 37 | M170: 4670 | N170: =N163-((N163-N173)/10*7) -> 1013.5 | O170: 41.3 | Q170: 5470 | R170: =R163-((R163-R173)/10*7) -> 1044.4 | S170: 46.4 | U170: 6470 | V170: =V163-((V163-V173)/10*7) -> 826.7 | W170: 43.7
E171: 2680 | F171: =F163-((F163-F173)/10*8) -> 825.6 | G171: 26.9 | I171: 3480 | J171: =J163-((J163-J173)/10*8) -> 1059.2 | K171: 37 | M171: 4680 | N171: =N163-((N163-N173)/10*8) -> 1011 | O171: 41.3 | Q171: 5480 | R171: =R163-((R163-R173)/10*8) -> 1042.6 | S171: 46.4 | U171: 6480 | V171: =V163-((V163-V173)/10*8) -> 817.8 | W171: 43.7
E172: 2690 | F172: =F163-((F163-F173)/10*9) -> 812.8 | G172: 26.9 | I172: 3490 | J172: =J163-((J163-J173)/10*9) -> 1056.6 | K172: 37 | M172: 4690 | N172: =N163-((N163-N173)/10*9) -> 1008.5 | O172: 41.3 | Q172: 5490 | R172: =R163-((R163-R173)/10*9) -> 1040.8 | S172: 46.4 | U172: 6490 | V172: =V163-((V163-V173)/10*9) -> 808.9 | W172: 43.7
E173: 2700 | F173: 800 | G173: 24.2 | I173: 3500 | J173: 1054 | K173: 36.5 | M173: 4700 | N173: 1006 | O173: 40.7 | Q173: 5500 | R173: 1039 | S173: 45.9 | U173: 6500 | V173: 800 | W173: 42.5
I174: 3510 | J174: =J173-((J173-J183)/10*1) -> 1051 | K174: 36.5 | M174: 4710 | N174: =N173-((N173-N183)/10*1) -> 1003 | O174: 40.7 | Q174: 5510 | R174: =R173-((R173-R183)/10*1) -> 1036.9 | S174: 45.9
I175: 3520 | J175: =J173-((J173-J183)/10*2) -> 1048 | K175: 36.5 | M175: 4720 | N175: =N173-((N173-N183)/10*2) -> 1000 | O175: 40.7 | Q175: 5520 | R175: =R173-((R173-R183)/10*2) -> 1034.8 | S175: 45.9
I176: 3530 | J176: =J173-((J173-J183)/10*3) -> 1045 | K176: 36.5 | M176: 4730 | N176: =N173-((N173-N183)/10*3) -> 997 | O176: 40.7 | Q176: 5530 | R176: =R173-((R173-R183)/10*3) -> 1032.7 | S176: 45.9
I177: 3540 | J177: =J173-((J173-J183)/10*4) -> 1042 | K177: 36.5 | M177: 4740 | N177: =N173-((N173-N183)/10*4) -> 994 | O177: 40.7 | Q177: 5540 | R177: =R173-((R173-R183)/10*4) -> 1030.6 | S177: 45.9
I178: 3550 | J178: =J173-((J173-J183)/10*5) -> 1039 | K178: 36.5 | M178: 4750 | N178: =N173-((N173-N183)/10*5) -> 991 | O178: 40.7 | Q178: 5550 | R178: =R173-((R173-R183)/10*5) -> 1028.5 | S178: 45.9
I179: 3560 | J179: =J173-((J173-J183)/10*6) -> 1036 | K179: 36.5 | M179: 4760 | N179: =N173-((N173-N183)/10*6) -> 988 | O179: 40.7 | Q179: 5560 | R179: =R173-((R173-R183)/10*6) -> 1026.4 | S179: 45.9
I180: 3570 | J180: =J173-((J173-J183)/10*7) -> 1033 | K180: 36.5 | M180: 4770 | N180: =N173-((N173-N183)/10*7) -> 985 | O180: 40.7 | Q180: 5570 | R180: =R173-((R173-R183)/10*7) -> 1024.3 | S180: 45.9
I181: 3580 | J181: =J173-((J173-J183)/10*8) -> 1030 | K181: 36.5 | M181: 4780 | N181: =N173-((N173-N183)/10*8) -> 982 | O181: 40.7 | Q181: 5580 | R181: =R173-((R173-R183)/10*8) -> 1022.2 | S181: 45.9
I182: 3590 | J182: =J173-((J173-J183)/10*9) -> 1027 | K182: 36.5 | M182: 4790 | N182: =N173-((N173-N183)/10*9) -> 979 | O182: 40.7 | Q182: 5590 | R182: =R173-((R173-R183)/10*9) -> 1020.1 | S182: 45.9
I183: 3600 | J183: 1024 | K183: 35.9 | M183: 4800 | N183: 976 | O183: 38.9 | Q183: 5600 | R183: 1018 | S183: 45.3
I184: 3610 | J184: =J183-((J183-J193)/10*1) -> 1020.5 | K184: 35.9 | M184: 4810 | N184: =N183-((N183-N193)/10*1) -> 972.3 | O184: 38.9 | Q184: 5610 | R184: =R183-((R183-R193)/10*1) -> 1015.5 | S184: 45.3
I185: 3620 | J185: =J183-((J183-J193)/10*2) -> 1017 | K185: 35.9 | M185: 4820 | N185: =N183-((N183-N193)/10*2) -> 968.6 | O185: 38.9 | Q185: 5620 | R185: =R183-((R183-R193)/10*2) -> 1013 | S185: 45.3
I186: 3630 | J186: =J183-((J183-J193)/10*3) -> 1013.5 | K186: 35.9 | M186: 4830 | N186: =N183-((N183-N193)/10*3) -> 964.9 | O186: 38.9 | Q186: 5630 | R186: =R183-((R183-R193)/10*3) -> 1010.5 | S186: 45.3
I187: 3640 | J187: =J183-((J183-J193)/10*4) -> 1010 | K187: 35.9 | M187: 4840 | N187: =N183-((N183-N193)/10*4) -> 961.2 | O187: 38.9 | Q187: 5640 | R187: =R183-((R183-R193)/10*4) -> 1008 | S187: 45.3
I188: 3650 | J188: =J183-((J183-J193)/10*5) -> 1006.5 | K188: 35.9 | M188: 4850 | N188: =N183-((N183-N193)/10*5) -> 957.5 | O188: 38.9 | Q188: 5650 | R188: =R183-((R183-R193)/10*5) -> 1005.5 | S188: 45.3
I189: 3660 | J189: =J183-((J183-J193)/10*6) -> 1003 | K189: 35.9 | M189: 4860 | N189: =N183-((N183-N193)/10*6) -> 953.8 | O189: 38.9 | Q189: 5660 | R189: =R183-((R183-R193)/10*6) -> 1003 | S189: 45.3
I190: 3670 | J190: =J183-((J183-J193)/10*7) -> 999.5 | K190: 35.9 | M190: 4870 | N190: =N183-((N183-N193)/10*7) -> 950.1 | O190: 38.9 | Q190: 5670 | R190: =R183-((R183-R193)/10*7) -> 1000.5 | S190: 45.3
I191: 3680 | J191: =J183-((J183-J193)/10*8) -> 996 | K191: 35.9 | M191: 4880 | N191: =N183-((N183-N193)/10*8) -> 946.4 | O191: 38.9 | Q191: 5680 | R191: =R183-((R183-R193)/10*8) -> 998 | S191: 45.3
I192: 3690 | J192: =J183-((J183-J193)/10*9) -> 992.5 | K192: 35.9 | M192: 4890 | N192: =N183-((N183-N193)/10*9) -> 942.7 | O192: 38.9 | Q192: 5690 | R192: =R183-((R183-R193)/10*9) -> 995.5 | S192: 45.3
I193: 3700 | J193: 989 | K193: 35.2 | M193: 4900 | N193: 939 | O193: 38.9 | Q193: 5700 | R193: 993 | S193: 44.6
I194: 3710 | J194: =J193-((J193-J203)/10*1) -> 984.8 | K194: 35.2 | M194: 4910 | N194: =N193-((N193-N203)/10*1) -> 934.2 | O194: 38.9 | Q194: 5710 | R194: =R193-((R193-R203)/10*1) -> 990 | S194: 44.6
I195: 3720 | J195: =J193-((J193-J203)/10*2) -> 980.6 | K195: 35.2 | M195: 4920 | N195: =N193-((N193-N203)/10*2) -> 929.4 | O195: 38.9 | Q195: 5720 | R195: =R193-((R193-R203)/10*2) -> 987 | S195: 44.6
I196: 3730 | J196: =J193-((J193-J203)/10*3) -> 976.4 | K196: 35.2 | M196: 4930 | N196: =N193-((N193-N203)/10*3) -> 924.6 | O196: 38.9 | Q196: 5730 | R196: =R193-((R193-R203)/10*3) -> 984 | S196: 44.6
I197: 3740 | J197: =J193-((J193-J203)/10*4) -> 972.2 | K197: 35.2 | M197: 4940 | N197: =N193-((N193-N203)/10*4) -> 919.8 | O197: 38.9 | Q197: 5740 | R197: =R193-((R193-R203)/10*4) -> 981 | S197: 44.6
I198: 3750 | J198: =J193-((J193-J203)/10*5) -> 968 | K198: 35.2 | M198: 4950 | N198: =N193-((N193-N203)/10*5) -> 915 | O198: 38.9 | Q198: 5750 | R198: =R193-((R193-R203)/10*5) -> 978 | S198: 44.6
I199: 3760 | J199: =J193-((J193-J203)/10*6) -> 963.8 | K199: 35.2 | M199: 4960 | N199: =N193-((N193-N203)/10*6) -> 910.2 | O199: 38.9 | Q199: 5760 | R199: =R193-((R193-R203)/10*6) -> 975 | S199: 44.6
I200: 3770 | J200: =J193-((J193-J203)/10*7) -> 959.6 | K200: 35.2 | M200: 4970 | N200: =N193-((N193-N203)/10*7) -> 905.4 | O200: 38.9 | Q200: 5770 | R200: =R193-((R193-R203)/10*7) -> 972 | S200: 44.6
... 34 more rows

Sheet A - FU STATUS REPORT
B6: A REPORT (FU STATUS REPORT)
B7: LINE | C7: DATE TIME GROUP (DTG) OF MESSAGE: | H7: 152207MAR24
D8: RECIEVED | F8: SENT | G8: -->
C9: FILLING INSTRUCTIONS | G9: REPORT
B10: 1 | C10: LOCATION (ENCODED GRID)
C11: A | D11: FIRING POSITION | E11: C | F11: LANDING POINT (MR) | G11: A | H11: ROsndERNAMBUCO | I11: C
C12: B | D12: CENTRE OF ARC | E12: D | F12: D-POINT (MR) | G12: B | I12: D
B13: 2 | C13: READY STATUS
C14: A | D14: NOT READY | E14: E | F14: SAFE | G14: A | I14: E
C15: B | D15: READY FOR AF | E15: F | F15: NOT SAFE | G15: B | I15: F
C16: C | D16: READY FOR FFE | E16: G | F16: SBP EXECUTED | G16: C | I16: G
C17: D | D17: READY TO MOVE | E17: H | F17: REQUEST REGISTRATION | G17: D | I17: H
B18: 3 | C18: NUMBER OF GUNS AVAILABLE
C19: A | D19: 81mm | E19: C | F19: 155mm | G19: A | I19: C
C20: B | D20: 120mm | E20: D | F20: 105mm | G20: B | I20: D | J20: 6
B21: 4 | C21: AMMUNITION STATE
C22: A | D22: HE+PD | E22: D | F22: SMOKE HC | G22: A | H22: 0 | I22: D | J22: 6
C23: B | D23: HE+PROX | E23: E | F23: ILLUM | G23: B | H23: 10 | I23: E | J23: 6
C24: C | D24: SMOKE WP/RP | E24: F | F24: HE PRACTICE | G24: C | H24: 6 | I24: F | J24: 6
B25: 5 | C25: NEW LOCATION (ENCODED GRID)
C26: A | D26: FIRING POSITION | E26: C | F26: LANDING POINT (MR) | G26: A | I26: C
C27: B | D27: CENTRE OF ARC | E27: D | F27: D-POINT (MR) | G27: B | I27: D
B28: 6 | C28: READY STATUS NEW LOCATION
C29: A | D29: READY FOR AF | E29: C | F29: SBP EXECUTED | G29: A | I29: C
C30: B | D30: READY FOR FFE | E30: D | F30: REQUEST REGISTRATION | G30: B | I30: D
B31: 7 | C31: MISCELLANEOUS
C32: (SEVERAL OTHER SUBJECTS WITHOUT PREVIOUS SPACE)

Sheet B - FO REPORT
B8: B REPORT (FO REPORT) (REPORTED TO C2 MODULE (FDC) / JOINT FIRES CELL)
B9: LINE | C9: DATE TIME GROUP (DTG) OF MESSAGE:
D10: RECIEVED | H10: SENT | K10: -->
C11: FILLING INSTRUCTIONS | G11: REPORT
B12: 1 | C12: OBSERVATION POST (ESTABLISHED) | G12: GRID: | K12: ALT:
G14: FROM MP: | K14: BEARING: | N14: +/- :
B15: 2 | C15: DEPART MY LOCATION | G15: DTG:
B16: 3 | C16: CANCELATION OF TARGET NUMBERS

Sheet SITREP
B2: (TO Bn)
B3: SITUATION REPORT (SITREP)
B4: LINE | C4: DATE TIME GROUP (DTG) OF MESSAGE:
F5: RECIEVED | V5: SENT | AI5: -->
C6: FILLING INSTRUCTIONS | AG6: REPORT
B7: 1 | C7: ORGANIZATION STATUS
C8: a. PERSONNEL
C9: (1) ORGANIC STRENGTH INCLUDING ATTACHMENTS / DETACHMENTS | AG9: ( 1 )
C11: (2) LOSSES SINCE LAST SITREP | AG11: ( 2 )
C13: ( a ) | M13: ( b ) | W13: ( c ) | AG13: ( a ) | AQ13: ( b ) | BA13: ( c )
C14: KIA | M14: WIA | W14: OTHER
B15: 2 | C15: MAIN ACTIVITIES SUBUNITS
C16: a. SUBUNIT: ACTIVITY
C17: DEFINE SUBUNIT - (STAGING AREA, ATTACK, DEFENSE, Recce, MOVING TO…, TRAINNING, etc…)PROGRESS (AS PLANNED, DELAYED, DISTURBED) | AG17: a.
C21: b. SUBUNIT: ACTIVITY
C22: DEFINE SUBUNIT - (STAGING AREA, ATTACK, DEFENSE, Recce, MOVING TO…, TRAINNING, etc…)PROGRESS (AS PLANNED, DELAYED, DISTURBED) | AG22: b.
C26: c. SUBUNIT ACTIVITY
C27: EVALUATION CURRENT SITUATION | AG27: c.
B31: 3 | C31: PLANS / ORDERS
C32: a. ISSUED
C33: ISSUED OPLAN's, OPORDER's, FRAGO's SINCE LAST SITREP | AG33: a.
C37: b. CURRENT
C38: CURRENT PLANNING | AG38: b.
B42: 4 | C42: ASSESSMENT Bty Cdr
C43: a. CURRENT
C44: CURRENT 24 Hrs SITUATION | AG44: a.
C48: b. UPCOMING
C49: UPCOMING 24 Hrs SITUATION | AG49: b.
B53: 5 | C53: MISCELLANEOUS
C54: FREE TEXT
B59: 6 | C59: ATTACHMENTS TO THIS SITREP
C60: FREE TEXT

Sheet "10-liner" UXO_IED REPORT
B6: "10-LINER" UXO / IED SPOT REPORT
B7: LINE | C7: DATE TIME GROUP (DTG) OF MESSAGE:
D8: RECIEVED | E8: X | F8: SENT | G8: -->
C9: FILLING INSTRUCTIONS | G9: REPORT
B10: 1 | C10: DATE TIME GROUP (DTG)
C11: WHEN ITEM WAS DISCOVERED
B12: 2 | C12: REPORTING ACTIVITY
C13: A | D13: CALLSIGN | G13: A
C14: B | D14: UNIT GRID REFERENCE | G14: B
C15: C | D15: ACTIVITY | G15: C
B16: 3 | C16: TYPE OF ORDENANCE (UXO / IED)
C17: PROVIDE DESCRIPTION AND QUANTITIES
B18: 4 | C18: LOCATION OF UXO / IED
C19: A | D19: GRID REFERENCE AND DESCRIPTION | E19: B | F19: SIDE OF ROAD | G19: A | I19: B
B21: 5 | C21: LOCATION OF RENDEZ-VOUS (RV) WITH REQUESTED ASSETS
C22: GRID REFERENCE
B23: 6 | C23: CONTACT METHOD
C24: RADIO FREQ, CALLSIGN, POC, COS, TEL Nr.
B25: 7 | C25: TACTICAL SITUATION
C26: SHORT DESCRIPTION OF CURRENT THREAT AND ENVIRONMENT
B28: 8 | C28: COLLATERAL DAMAGE POTENTIAL
C29: EQUIPMENT, FACILITIES OR OTHER ASSETS THAT ARE THREATENED
B31: 9 | C31: PROTECTIVE MEASURES
C32: DESCRIBE MEASURES TAKEN TO PROTECT PERSONNEL / EQUIPMENT
B34: 10 | C34: RECOMMENDED PRIORITY
C35: PRIORITY FOR EOD RESPONSE ACCORDING TO NATIONAL RULES
B37: RECOMMENDED PRIORITY OPTIONS
B38: IMMEDIATE | D38: Stops the unit manoeuver and mission capability or threatens critical assets vital to mission.
B39: URGENT | D39: Slows the unit manoeuvre and capability or threatens important to mission.
B40: MINOR | D40: Reduces the unit manoeuver and capability or threatens non critical assets of value.
B41: NO-THREAT | D41: Has little or no effect on the mission or assets.
B42: Mines / UXO’s reported by civilians are to be reported up the chain of command to determine the priority.

Sheet MEDEVAC 9-LINER
B5: MEDEVAC "9 - LINER" REQUEST
B6: LINE | C6: DATE TIME GROUP (DTG) OF MESSAGE: | H6: 291226FEV24
D7: RECIEVED | F7: SENT | G7: -->
C8: FILLING INSTRUCTIONS | G8: REPORT
B9: 1 | C9: LOCATION
C10: GRID OF PICKUP ZONE | G10: qaqwewsfqddwaf
B11: 2 | C11: CALLSIGN & FREQUENCY
C12: A | D12: CALLSIGN | E12: B | F12: RADIO FREQUENCY | G12: A | H12: NTR | I12: B | J12: NTR
B13: 3 | C13: NUMBER OF PATIENTS / PRECEDENCE
C14: A | D14: URGENT - TO BE AT MTF (R2 OR R3) WITHIN 1Hrs OR 2Hrs OF FIRST NOTIFICATION (P1) | G14: A | H14: NTR
C15: B | D15: PRIORITY - TO BE AT MTF (R2 OR R3) WITHIN 4Hrs OF NOTIFICATION (P2) | G15: B | H15: NTR
C16: C | D16: ROUTINE - TO BE AT MTF (R2 OR R3) WITHIN 24Hrs OF NOTIFICATION (P3) | G16: C | H16: NTR
B17: 4 | C17: SPECIAL EQUIPMENT REQUIRED
C18: A | D18: NONE | E18: C | F18: EXTRACTION | G18: A | H18: None | I18: C | J18: NTR
C19: B | D19: HOIST (WINCH) | E19: D | F19: VENTILATOR | G19: B | H19: NTR | I19: D | J19: NTR
B20: 5 | C20: NUMBER TO BE CARRIED
C21: L | D21: LITTER (STRECHER | G21: L | H21: NTR
C22: A | D22: AMBOLATOREY (WALKING) | G22: A | H22: NTR
C23: E | D23: ESCORT (e.g. FOR CHILD PATIENT) | G23: E | H23: NTR
B24: 6 | C24: SECURITY AT HLS
C25: N | D25: NO ENEMY | E25: E | F25: ENEMY IN THE AREA | G25: N | H25: N | I25: E | J25: NTR
C26: P | D26: POSSIBLE ENEMY | E26: X | F26: HOT PICKUP ZONE - ARMED ESCORT REQUIRED | G26: P | H26: NTR | I26: X | J26: NTR
B27: 7 | C27: HLS MARKING METHOD
C28: A | D28: PANELS | E28: D | F28: NONE | G28: A | H28: NTR | I28: D | J28: D
C29: B | D29: PYRO | E29: E | F29: OTHER (EXPLAIN) | G29: B | H29: NTR | I29: E | J29: NTR
C30: C | D30: SMOKE | G30: C | H30: NTR
B31: 8 | C31: NUMBER OF PATIENTS BY NATIONALITY / STATUS
C32: A | D32: COALITION FORCES | E32: D | F32: NON-COALITION CIVILIAN | G32: A | H32: NTR | I32: D | J32: NTR
C33: B | D33: COALITION CIVILIAN | E33: E | F33: OPPOSING FORCES / PW / DETAINEE | G33: B | H33: NTR | I33: E | J33: NTR
C34: C | D34: NON-COALITION SECURITY FORCES | E34: F | F34: CHILD | G34: C | H34: NTR | I34: F | J34: NTR
B35: 9 | C35: HLS TERRAIN OBSTACLES
C36: SPECIFY TERRAIN AND OBSTACLES | G36: NTR
B38: DO NOT DELAY LAUNCH OF MEDEVAC - SUPPLY FURTHER INFORMATION (MIST) ONCE AVAILABLE
B39: M | C39: A | D39: MECHANISM OF INJURY | E39: B | F39: TIME (IF KNOWN) | G39: A | H39: NTR | I39: B | J39: NTR
B40: I | C40: INJURY OR ILLNESS SUSTAINED | G40: NTR
B41: S | C41: SYMPTOMS AND OTHER SIGNS
C42: A | D42: AIRWAY | E42: D | F42: CONSCIOUS / UNCONSCIOUS | G42: A | H42: NTR | I42: D | J42: CONSCIOUS
C43: B | D43: BREATHING RATE | E43: E | F43: OTHER SIGNS | G43: B | H43: NTR | I43: E | J43: NTR
C44: C | D44: PULSE RATE | G44: C | H44: NTR
B45: T | C45: TREATMENT GIVEN (e.g. TOURNIQUET AND TIME APPLIED, MORPHINE) | G45: NTR
B47: NOTES: | D47: Specify if critical medical supplies are needed to be brought in with MEDEVAC, “9-liner” is not used for requests to move KIA at the scene) | G47: NTR

Sheet INCIDENT REPORT
B8: INCIDENT REPORT
B9: LINE | C9: DATE TIME GROUP (DTG) OF MESSAGE: | H9: 291606FEV24
D10: RECIEVED | F10: SENT | G10: -->
C11: FILLING INSTRUCTIONS | G11: REPORT
B12: 1 | C12: UNIT | G12: 123
B13: 2 | C13: DTG START (ddhhmmFMMMYY)
B14: 3 | C14: DTG END (ddhhmmFMMMYY)
B15: 4 | C15: A | D15: INCIDENT LOCATION | G15: A | H15: 123
C16: B | D16: INCIDENT GRID (CODED) | G16: B
B17: 5 | C17: PARTIES INVOLVED | G17: 123
B19: 6 | C19: SHORT DESCRIPTION OF THE INCIDENT | G19: 123
B22: 7 | C22: ACTION TAKEN BY UNIT | G22: 123
B25: 8 | C25: ADDITIONAL INFORMATION | G25: 123

Sheet CFF
A1: CFF - 1st Transmission | B1: Observer Identification
D2: Forward Observer: " | I2: THIS IS | M2: FIRE MISSION | P2: OVER."
B3: A | C3: Mission Type | D3: 1 | E3: Adjust Fire | F3: 2 | G3: Fire for Effect | J3: 3 | K3: Immediate Suppression | O3: 4 | P3: Immediate Smoke
B4: B | C4: Size of element requested to FFE | D4: 1 | E4: Number of guns
D5: 2 | E5: Size of the FA unit to FFE | M5: (platoon, battery, battalion)
A6: CFF - 2nd Transmission | B6: C | C6: Target location | D6: 1 | E6: GRID | F6: MGRS | H6: Zone | K6: Square | N6: E | Q6: N | S6: Alt
H7: Direction
F8: UTM | H8: Zone | K8: E | N8: N | Q8: Alt
H9: Direction
D10: 2 | E10: SHIFT | F10: From | J10: Direction | M10: Add/Drop | P10: Left/Rigth | R10: Up/D.
D11: 3 | E11: POLAR | F11: Direction | J11: Distance | M11: Elev.
D12: 4 | E12: T. ID. | F12: Target Nr. | K12: 5 | L12: TLE | P12: (Cat. I - VI)
A13: CFF - 3rd transmission | B13: D | C13: target description | D13: 1 | E13: Tgt type | J13: (1) | K13: 2 | L13: Tgt Subtype | Q13: (1)
D14: 3 | E14: Degree Pr. | J14: (2) | K14: 4 | L14: Target strength
D15: 5 | E15: Target activity | K15: 6
D16: 7 | E16: Circular: | H16: m Radius
D17: 8 | E17: Linear: | F17: Length | J17: Attitude
D18: 9 | E18: Rectangular: | H18: Length | K18: Width | N18: Attitude
B19: E | C19: Method of engagement | D19: Type of Adj. | G19: 1 | H19: Area fire
G20: 2 | H20: Precision fire
D21: Trajectory / Tgt attack angle | G21: 3 | H21: Low angle
G22: 4 | H22: High angle
D23: Ammunition | G23: 5 | H23: HE | N23: 6 | O23: Smoke HE
G24: 7 | H24: Illuminating | N24: 8 | O24: Smoke Phosphorus
G25: 9 | H25: DPICM | N25: 10 | Q25: (Other)
D26: Fuze | G26: 11 | H26: Quick | N26: 12 | O26: Delay | Q26: (Normal or Deep)
G27: 13 | H27: Proximity | K27: (High or Low) | N27: 14 | O27: Time
G28: 15 | K28: (Other) | N28: 16 | Q28: (Other)
D29: Volume of fire | G29: 17 | H29: Nr. of rounds per gun
D30: Distribution | G30: 18 | H30: Converge | N30: 19 | O30: Open sheaf
G31: 20 | H31: Close sheaf | N31: 21 | O31: Special sheaf
D32: Remarks | G32: 22 | H32: Danger close | K32: 23 | L32: Mark | O32: 24 | P32: Cannot observe
D33: Effect required | G33: 25 | H33: Neutralization | N33: 26 | P33: Destruction
G34: 27 | H34: Suppression | N34: 28 | R34: (Other)
B35: F | C35: Method of fire | D35: 1 | E35: One gun adjust | M35: 2 | N35: Two guns adjust
D36: 3 | E36: Platoon | H36: left or right | M36: 4 | N36: Battery | Q36: (left or right)
B37: G | C37: Method of Control | D37: 1 | E37: When Ready | K37: 2 | L37: At My Command | Q37: 3 | R37: Restricted When Ready
D38: 4 | E38: TOT | H38: z | K38: 5 | L38: TTT | P38: (min / sec) | Q38: 6 | R38: TTF | T38: z
D39: 7 | E39: Duration of fire | J39: min. | K39: 8 | L39: Firing interval | P39: sec | Q39: 9 | R39: Cannot observe
D40: 10 | E40: Continous Illumintion | K40: 11 | L40: Coordinated Illumination | Q40: 12 | R40: Continous Fire | U40: rds. per min.
A41: Following message | B41: H | C41: Message to Observer | D41: 1 | E41: Call sign | K41: 2 | L41: Target N. | Q41: 3 | R41: Firing Unit
D42: 4 | E42: Nr. of guns | K42: 5 | L42: Nr. of rds. per gun
E43: Inform FO about any of the following change to Call for Fire (see "E" part):
E44: Type of adjustment | K44: Type of trajectory | Q44: Ammunition | T44: Fuze
E45: Volume of fire | K45: Distribution | Q45: Method of fire | T45: Method of Control
D46: 6 | E46: TOF | H46: sec | K46: 7 | L46: Max Ord | P46: msl | Q46: 8 | R46: PEr | T46: m
D47: 9 | E47: Angle T | H47: ºº | K47: 10 | L47: GTL | P47: ºº | Q47: 11 | R47: (Other)
D48: 12 | E48: Unit left | K48: 13 | L48: Unit right | Q48: 14 | R48: (Other)
B49: J | C49: Fire Mission Commands | D49: From FO to FDC | G49: 1 | H49: Do Not Load | Q49: 2 | R49: Request Splash
G50: 3 | H50: Fire | Q50: 4 | R50: Check Firing
G51: 5 | H51: Cease Loading | Q51: 6 | R51: Repeat
G52: 7 | H52: Cancel | M52: (DNL, CF, CL) | Q52: 8 | R52: Stop
G53: 9 | H53: End of Mission | Q53: 10
D54: From FDC to FO | G54: 1 | H54: Cannot comply (reason) | Q54: 2 | R54: Laid
G55: 3 | H55: Ready to fire | Q55: 4 | R55: Shot
G56: 5 | H56: Splash | Q56: 6 | R56: Neglect
G57: 7 | H57: Rounds complete | Q57: 8 | R57: Target recorded
B58: K | C58: Adjustment | D58: 1 | E58: Left/Rigth | K58: Add/Drop | P58: Up/Down | S58: HOB
D59: 2 | E59: Left/Rigth | K59: Add/Drop | P59: Up/Down | S59: HOB
D60: 3 | E60: Left/Rigth | K60: Add/Drop | P60: Up/Down | S60: HOB
D61: 4 | E61: Left/Rigth | K61: Add/Drop | P61: Up/Down | S61: HOB
D62: 5 | E62: Left/Rigth | K62: Add/Drop | P62: Up/Down | S62: HOB
D63: 6 | E63: Direction | K63: Distance | P63: Vert. angle | S63: HOB
D64: 7 | E64: Direction | K64: Distance | P64: Vert. angle | S64: HOB
D65: 8 | E65: Direction | K65: Distance | P65: Vert. angle | S65: HOB
D66: 9 | E66: Direction | K66: distance | P66: Vert. angle | S66: HOB
D67: 10 | E67: Zone | H67: Square | K67: E | N67: N | Q67: Alt | S67: HOB
D68: 11 | E68: Zone | H68: Square | K68: E | N68: N | Q68: Alt | S68: HOB
D69: 12 | E69: Zone | H69: Square | K69: E | N69: N | Q69: Alt | S69: HOB
D70: 13 | E70: Zone | H70: Square | K70: E | N70: N | Q70: Alt | S70: HOB
D71: 14 | E71: Lost | K71: 15 | M71: Doubtful | P71: 16 | Q71: Unobserved
B72: I | C72: End of Mission BDA | D72: 1 | E72: Destroyed | N72: 2 | P72: Damaged | R72: %
D73: 3 | E73: Full operational | N73: 4 | P73: Dama es descri tion
D74: 5 | E74: Effect achieved | J74: (Y / N) | N74: 6 | P74: Record the tar
D75: 7 | E75: Re-attack Reccomendation | K75: (Y / N) | N75: 8 | P75: Collateral Damages

Sheet RCBT - frente
C3: REGISTO DO COMANDANTE DE BATERIA DE TIRO
C4: VERIFICAÇÃO DE PONTARIAS | I4: Posição | L4: Retaguarda | O4: Ano Carta | R4: 1998 | T4: Ano Atual | W4: 2021 | Y4: Variação Anual (min) | AC4: -7.3 | AE4: Dmc Carta (mils) | AH4: 104.6 | AI4: Dmc Atual | AK4: =IF(AC4="","",((((1*((W4-R4)*AC4))/60)*6400)/360)+AH4) -> 54.85185185 | AL4: Azimute | AM4: =IF(AND(L4="",F9=""),"",IF(AND(L4="",F9<>""),"",IF(AND(L4<>"",F9=""),"",IF(AND(L4="Frente",(F9+AK4)<3200),F9+AK4+3200,IF(AND(L4="Frente",(F9+AK4)>3200),F9+AK4-3200,IF(AND(L4="Retaguarda"),(F9+AK4))))))) -> 1254.851852
C5: Posição | F5: Borel | I5: Coordenadas | M5: 476 251 70 | Q5: Data | S5: =TODAY() -> 2024-03-15 | V5: Unidade | Y5: RA4 | AB5: Grupo | AD5: GAC 10,5 Reb | AG5: Bateria | AI5: 1ª Btrbf | AJ5: bfD | AK5: 3ª Sec | AL5: Obus | AM5: M119
C6: PONTARIAS | I6: 1º SEC | M6: 2ª SEC | Q6: 3ª SEC | U6: 4ª SEC | Y6: 5ª SEC | AC6: 6ª SEC | AG6: UTILIZAÇÃO DE 2 GB | AO6: BATERIA
C7: Ponto Afastado | I7: 3240 | M7: 3014 | Q7: 2919 | U7: 3680 | Y7: 3329 | AC7: 2070 | AG7: GB1 | AH7: GB não intervisiveis | AJ7: Dist | AK7: 130 | AL7: Dc | AM7: 5040
C8: RDO/GD | F8: 3600 | Q8: 2921 | Y8: 3331 | AG8: Secções | AH8: 1ªSec | AI8: GB 1 | AJ8: 2ªSec | AK8: GB 1 | AL8: 3ªSec | AM8: GB 1
C9: RV | F9: 1200 | AH9: 4ªSec | AI9: GB 1 | AJ9: 5ªSec | AK9: GB 1 | AL9: 6ªSec | AM9: GB 1
C10: AV | F10: =IF(F8="","",IF(AND(F9=""),"",IF(AND(F8>3200),F8-F9,IF(AND(F8<3200),(F8-F9)+6400)))) -> 2400 | AG10: RELATÓRIO DO COMANDANTE DE BATERIA DE TIRO
C11: RELATÓRIOS DOS COMANDANTES DE SECÇÃO | AG11: RV | AH11: =IF(F9="","",F9) -> 1200 | AJ11: Coordenadas | AL11: =M5 -> 476 251 70
C12: Ref s/Ref n.º1 | I12: Colimador | M12: Colimador | Q12: Colimador | U12: Colimador | Y12: Colimador | AC12: Colimador | AG12: ELEVAÇÃO MÍNIMA
C13: Correção de Ref | I13: 5853 | M13: 5739 | Q13: 5724 | U13: 5680 | Y13: 5613 | AC13: 5567 | AG13: Carga | AH13: P e T | AJ13: VT | AL13: GESM
C14: Ref s/Ref n.º2 | I14: BCP | M14: BCP | Q14: BCP | U14: BCP | Y14: BCP | AC14: BCP | AG14: =IF(K28="","",K28) -> 4 | AH14: =IF(AND(I35="",M35="",Q35="",U35="",Y35="",AC35=""),"",(MAXA(I35,M35,Q35,U35,Y35,AC35))) -> 97 | AJ14: =IF(AND(K35="",O35="",S35="",W35="",AA35="",AE35=""),"",(MINA(K35,O35,S35,W35,AA35,AE35))) -> 605 | AL14: =IF(AND(I38="",M38="",Q38="",U38="",Y38="",AC38=""),"",IF(AND(AH14=I35),I38,IF(AND(AH14=M35),M38,IF(AND(AH14=Q35),Q38,IF(AND(AH14=U35),U38,IF(AND(AH14=Y35),Y38,IF(AND(AH14=AC35),AC38))))))) -> 7
C15: Correção de Ref | I15: 5831 | M15: 6303 | Q15: 106 | U15: 184 | Y15: 256 | AC15: 349 | AG15: =IF(K39="","",K39) -> 5 | AH15: =IF(AND(I45="",M45="",Q45="",U45="",Y45="",AC45=""),"",(MAXA(I45,M45,Q45,U45,Y45,AC45))) -> 91 | AJ15: =IF(AND(K45="",O45="",S45="",W45="",AA45="",AE45=""),"",(MINA(K45,O45,S45,W45,AA45,AE45))) -> 599 | AL15: =IF(AND(I48="",M48="",Q48="",U48="",Y48="",AC48=""),"",IF(AND(AH15=I45),I48,IF(AND(AH15=M45),M48,IF(AND(AH15=Q45),Q48,IF(AND(AH15=U45),U48,IF(AND(AH15=Y45),Y48,IF(AND(AH15=AC45),AC48))))))) -> 7
C16: Limite Esquerdo | AG16: =IF(K49="","",K49) -> 6 | AH16: =IF(AND(I55="",M55="",Q55="",U55="",Y55="",AC55=""),"",(MAXA(I55,M55,Q55,U55,Y55,AC55))) -> 85 | AJ16: =IF(AND(K55="",O55="",S55="",W55="",AA55="",AE55=""),"",(MINA(K55,O55,S55,W55,AA55,AE55))) -> 593 | AL16: =IF(AND(I58="",M58="",Q58="",U58="",Y58="",AC58=""),"",IF(AND(AH16=I55),I58,IF(AND(AH16=M55),M58,IF(AND(AH16=Q55),Q35,IF(AND(AH16=U55),U58,IF(AND(AH16=Y55),Y58,IF(AND(AH16=AC55),AC58))))))) -> 7
C17: Limite Direito | AG17: PLANO DE IMPLANTAÇÃO DA BATERIA
C18: Elevação Máxima | I18: 1244 | M18: 1190 | Q18: 1210 | U18: 1198 | Y18: 1200 | AC18: 1225 | AG18: CB | AH18: Coincidente c/ bfD | AJ18: Dist | AL18: Dc (mils)
C19: Distância à crista | I19: 230 | M19: 210 | Q19: 210 | U19: 220 | Y19: 210 | AC19: 220 | AG19: bf | AH19: E(-)/D(+) | AJ19: F(+)/A(-) | AL19: Dc (mils) | AM19: Dist
C20: Ang Si à crista | I20: 50 | M20: 30 | Q20: 40 | U20: 30 | Y20: 40 | AC20: 50 | AG20: 1 | AH20: =IF(AL20="","",IF(AND(AM20=""),"",IF(AND([2]PIB!B8=1),0,IF(AND([2]PIB!B8=2),[2]PIB!J25,IF(AND([2]PIB!B8=3),[2]PIB!J25,IF(AND([2]PIB!B8=4),[2]PIB!J25,IF(AND([2]PIB!B8=5),[2]PIB!J25,IF(AND([2]PIB!B8=6),[2]PIB!J25,IF(AND([2]PIB!B8="CB"),[2]PIB!J25))))))))) -> 135 | AJ20: =IF(AL20="","",IF(AND(AM20=""),"",IF(AND([2]PIB!B8=1),0,IF(AND([2]PIB!B8=2),[2]PIB!J27,IF(AND([2]PIB!B8=3),[2]PIB!J27,IF(AND([2]PIB!B8=4),[2]PIB!J27,IF(AND([2]PIB!B8=5),[2]PIB!J27,IF(AND([2]PIB!B8=6),[2]PIB!J27,IF(AND([2]PIB!B8="CB"),[2]PIB!J27))))))))) -> 90 | AL20: =IF(I7="","",IF(AND(I7<>"",I8<>"",I9<>"",I10<>""),AR20,(IF(AND(I7<>"",I8<>"",I9<>"",I10=""),AQ20,(IF(AND(I7<>"",I8<>"",I9="",I10=""),AP20,(IF(AND(I7<>"",I8="",I9="",I10=""),AO20)))))))) -> 40 | AM20: 120 | AO20: =IF(AND(I7>3200),I7-3200,IF(AND(I7=3200),6400,IF(AND(I7<1),0,IF(AND(I7<3200),I7-3200+6400)))) -> 40 | AP20: =IF(AND(I8>3200),I8-3200,IF(AND(I8=3200),6400,IF(AND(I8<1),0,IF(AND(I8<3200),I8-3200+6400)))) -> 0 | AQ20: =IF(AND(I9>3200),I9-3200,IF(AND(I9=3200),6400,IF(AND(I9<1),0,IF(AND(I9<3200),I9-3200+6400)))) -> 0 | AR20: =IF(AND(I10>3200),I10-3200,IF(AND(I10=3200),6400,IF(AND(I10<1),0,IF(AND(I10<3200),I10-3200+6400)))) -> 0
C21: Temperatura Cargas (°C) | I21: 12 | M21: 12 | Q21: 12 | U21: 12 | Y21: 12 | AC21: 12 | AG21: 2 | AH21: =IF(AL21="","",IF(AND(AM21=""),"",IF(AND([2]PIB!B8=2),0,IF(AND([2]PIB!B8=1),[2]PIB!V25,IF(AND([2]PIB!B8=3),[2]PIB!V25,IF(AND([2]PIB!B8=4),[2]PIB!V25,IF(AND([2]PIB!B8=5),[2]PIB!V25,IF(AND([2]PIB!B8=6),[2]PIB!V25,IF(AND([2]PIB!B8="CB"),[2]PIB!V25))))))))) -> 110 | AJ21: =IF(AL21="","",IF(AND(AM21=""),"",IF(AND([2]PIB!B8=2),0,IF(AND([2]PIB!B8=1),[2]PIB!V27,IF(AND([2]PIB!B8=3),[2]PIB!V27,IF(AND([2]PIB!B8=4),[2]PIB!V27,IF(AND([2]PIB!B8=5),[2]PIB!V27,IF(AND([2]PIB!B8=6),[2]PIB!V27,IF(AND([2]PIB!B8="CB"),[2]PIB!V27))))))))) -> 70 | AL21: =IF(M7="","",IF(AND(M7<>"",M8<>"",M9<>"",M10<>""),AR22,(IF(AND(M7<>"",M8<>"",M9<>"",M10=""),AQ22,(IF(AND(M7<>"",M8<>"",M9="",M10=""),AP22,(IF(AND(M7<>"",M8="",M9="",M10=""),AO22)))))))) -> 6214 | AM21: 100
C22: Projéteis Existentes | F22: Tipo | I22: HE/P | J22: HE/T | M22: HE/P | N22: HE/T | Q22: HE/P | R22: HE/T | U22: HE/P | V22: HE/T | Y22: HE/P | Z22: HE/T | AC22: HE/P | AD22: HE/T | AG22: 3 | AH22: =IF(AL22="","",IF(AND(AM22=""),"",IF(AND([2]PIB!B8=3),0,IF(AND([2]PIB!B8=1),[2]PIB!J36,IF(AND([2]PIB!B8=2),[2]PIB!J36,IF(AND([2]PIB!B8=4),[2]PIB!J36,IF(AND([2]PIB!B8=5),[2]PIB!J36,IF(AND([2]PIB!B8=6),[2]PIB!J36,IF(AND([2]PIB!B8="CB"),[2]PIB!J36))))))))) -> 0 | AJ22: =IF(AL22="","",IF(AND(AM22=""),"",IF(AND([2]PIB!B8=3),0,IF(AND([2]PIB!B8=1),[2]PIB!J38,IF(AND([2]PIB!B8=2),[2]PIB!J38,IF(AND([2]PIB!B8=4),[2]PIB!J38,IF(AND([2]PIB!B8=5),[2]PIB!J38,IF(AND([2]PIB!B8=6),[2]PIB!J38,IF(AND([2]PIB!B8="CB"),[2]PIB!J38))))))))) -> 0 | AL22: =IF(Q7="","",IF(AND(Q7<>"",Q8<>"",Q9<>"",Q10<>""),AR23,(IF(AND(Q7<>"",Q8<>"",Q9<>"",Q10=""),AQ23,(IF(AND(Q7<>"",Q8<>"",Q9="",Q10=""),AP23,(IF(AND(Q7<>"",Q8="",Q9="",Q10=""),AO23)))))))) -> 6121 | AM22: 120 | AO22: =IF(AND(M7>3200),M7-3200,IF(AND(M7=3200),6400,IF(AND(M7<1),0,IF(AND(M7<3200),M7-3200+6400)))) -> 6214 | AP22: =IF(AND(M8>3200),M8-3200,IF(AND(M8=3200),6400,IF(AND(M8<1),0,IF(AND(M8<3200),M8-3200+6400)))) -> 0 | AQ22: =IF(AND(M9>3200),M9-3200,IF(AND(M9=3200),6400,IF(AND(M9<1),0,IF(AND(M9<3200),M9-3200+6400)))) -> 0 | AR22: =IF(AND(M10>3200),M10-3200,IF(AND(M10=3200),6400,IF(AND(M10<1),0,IF(AND(M10<3200),M10-3200+6400)))) -> 0
F23: Lote | I23: XY | J23: XY | M23: XY | N23: XY | Q23: XY | R23: XY | U23: XY | V23: XY | Y23: XY | Z23: XY | AC23: XY | AD23: XY | AG23: 4 | AH23: =IF(AL23="","",IF(AND(AM23=""),"",IF(AND([2]PIB!B8=4),0,IF(AND([2]PIB!B8=1),[2]PIB!J36,IF(AND([2]PIB!B8=2),[2]PIB!J36,IF(AND([2]PIB!B8=3),[2]PIB!J36,IF(AND([2]PIB!B8=5),[2]PIB!J36,IF(AND([2]PIB!B8=6),[2]PIB!J36,IF(AND([2]PIB!B8="CB"),[2]PIB!V36))))))))) -> 170 | AJ23: =IF(AL23="","",IF(AND(AM23=""),"",IF(AND([2]PIB!B8=4),0,IF(AND([2]PIB!B8=1),[2]PIB!J38,IF(AND([2]PIB!B8=2),[2]PIB!J38,IF(AND([2]PIB!B8=3),[2]PIB!J38,IF(AND([2]PIB!B8=5),[2]PIB!J38,IF(AND([2]PIB!B8=6),[2]PIB!J38,IF(AND([2]PIB!B8="CB"),[2]PIB!V38))))))))) -> 50 | AL23: =IF(U7="","",IF(AND(U7<>"",U8<>"",U9<>"",U10<>""),AR24,(IF(AND(U7<>"",U8<>"",U9<>"",U10=""),AQ24,(IF(AND(U7<>"",U8<>"",U9="",U10=""),AP24,(IF(AND(U7<>"",U8="",U9="",U10=""),AO24)))))))) -> 480 | AM23: 90 | AO23: =IF(AND(Q7>3200),Q7-3200,IF(AND(Q7=3200),6400,IF(AND(Q7<1),0,IF(AND(Q7<3200),Q7-3200+6400)))) -> 6119 | AP23: =IF(AND(Q8>3200),Q8-3200,IF(AND(Q8=3200),6400,IF(AND(Q8<1),0,IF(AND(Q8<3200),Q8-3200+6400)))) -> 6121 | AQ23: =IF(AND(Q9>3200),Q9-3200,IF(AND(Q9=3200),6400,IF(AND(Q9<1),0,IF(AND(Q9<3200),Q9-3200+6400)))) -> 0 | AR23: =IF(AND(Q10>3200),Q10-3200,IF(AND(Q10=3200),6400,IF(AND(Q10<1),0,IF(AND(Q10<3200),Q10-3200+6400)))) -> 0
F24: Quantidade | I24: 20 | J24: 20 | M24: 20 | N24: 20 | Q24: 50 | R24: 50 | U24: 20 | V24: 20 | Y24: 20 | Z24: 20 | AC24: 20 | AD24: 20 | AG24: 5 | AH24: =IF(AL24="","",IF(AND(AM24=""),"",IF(AND([2]PIB!B8=5),0,IF(AND([2]PIB!B8=1),[2]PIB!V36,IF(AND([2]PIB!B8=2),[2]PIB!V36,IF(AND([2]PIB!B8=3),[2]PIB!V36,IF(AND([2]PIB!B8=4),[2]PIB!V36,IF(AND([2]PIB!B8=6),[2]PIB!V36,IF(AND([2]PIB!B8="CB"),[2]PIB!J47))))))))) -> 145 | AJ24: =IF(AL24="","",IF(AND(AM24=""),"",IF(AND([2]PIB!B8=5),0,IF(AND([2]PIB!B8=1),[2]PIB!V38,IF(AND([2]PIB!B8=2),[2]PIB!V38,IF(AND([2]PIB!B8=3),[2]PIB!V38,IF(AND([2]PIB!B8=4),[2]PIB!V38,IF(AND([2]PIB!B8=6),[2]PIB!V38,IF(AND([2]PIB!B8="CB"),[2]PIB!J49))))))))) -> 80 | AL24: =IF(Y7="","",IF(AND(Y7<>"",Y8<>"",Y9<>"",Y10<>""),AR28,(IF(AND(Y7<>"",Y8<>"",Y9<>"",Y10=""),AQ28,(IF(AND(Y7<>"",Y8<>"",Y9="",Y10=""),AP28,(IF(AND(Y7<>"",Y8="",Y9="",Y10=""),AO28)))))))) -> 131 | AM24: 110 | AO24: =IF(AND(U7>3200),U7-3200,IF(AND(U7=3200),6400,IF(AND(U7<1),0,IF(AND(U7<3200),U7-3200+6400)))) -> 480 | AP24: =IF(AND(U8>3200),U8-3200,IF(AND(U8=3200),6400,IF(AND(U8<1),0,IF(AND(U8<3200),U8-3200+6400)))) -> 0 | AQ24: =IF(AND(U9>3200),U9-3200,IF(AND(U9=3200),6400,IF(AND(U9<1),0,IF(AND(U9<3200),U9-3200+6400)))) -> 0 | AR24: =IF(AND(U10>3200),U10-3200,IF(AND(U10=3200),6400,IF(AND(U10<1),0,IF(AND(U10<3200),U10-3200+6400)))) -> 0
C25: Cargas Existentes | F25: Tipo | AG25: 6 | AH25: =IF(AL25="","",IF(AND(AM25=""),"",IF(AND([2]PIB!B8=6),0,IF(AND([2]PIB!B8=1),[2]PIB!J47,IF(AND([2]PIB!B8=2),[2]PIB!J47,IF(AND([2]PIB!B8=3),[2]PIB!J47,IF(AND([2]PIB!B8=4),[2]PIB!J47,IF(AND([2]PIB!B8=5),[2]PIB!J47,IF(AND([2]PIB!B8="CB"),[2]PIB!V47))))))))) -> 100 | AJ25: =IF(AL25="","",IF(AND(AM25=""),"",IF(AND([2]PIB!B8=6),0,IF(AND([2]PIB!B8=1),[2]PIB!J49,IF(AND([2]PIB!B8=2),[2]PIB!J49,IF(AND([2]PIB!B8=3),[2]PIB!J49,IF(AND([2]PIB!B8=4),[2]PIB!J49,IF(AND([2]PIB!B8=5),[2]PIB!J49,IF(AND([2]PIB!B8="CB"),[2]PIB!V49))))))))) -> -15 | AL25: =IF(AC7="","",IF(AND(AC7<>"",AC8<>"",AC9<>"",AC10<>""),AR29,(IF(AND(AC7<>"",AC8<>"",AC9<>"",AC10=""),AQ29,(IF(AND(AC7<>"",AC8<>"",AC9="",AC10=""),AP29,(IF(AND(AC7<>"",AC8="",AC9="",AC10=""),AO29)))))))) -> 5270 | AM25: 30
F26: Lote | AG26: Projéteis Existentes | AK26: Cargas Existentes
F27: Quantidade | AG27: Tipo | AH27: Lote | AI27: Quant | AJ27: Peso () | AK27: Tipo | AL27: Lote | AM27: Quant
C28: ELEVAÇÃO MÍNIMA | I28: Carga | K28: 4 | M28: Carga | O28: 4 | Q28: Carga | S28: 4 | U28: Carga | W28: 4 | Y28: Carga | AA28: 4 | AC28: Carga | AE28: 4 | AG28: =IF(AND(I22="",M22="",Q22="",U22="",Y22="",AC22=""),"",IF(AND(I22<>""),I22,IF(AND(M22<>""),M22,IF(AND(Q22<>""),Q22,IF(AND(U22<>""),U22,IF(AND(Y22<>""),Y22,IF(AND(AC22<>""),AC22))))))) -> HE/P | AH28: =IF(AND(I23="",M23="",Q23="",U23="",Y23="",AC23=""),"",IF(AND(I23<>""),I23,IF(AND(M23<>""),M23,IF(AND(Q23<>""),Q23,IF(AND(U23<>""),U23,IF(AND(Y23<>""),Y23,IF(AND(AC23<>""),AC23))))))) -> XY | AI28: =IF(AND(I24="",M24="",Q24="",U24="",Y24="",AC24=""),"",I24+M24+Q24+U24+Y24+AC24) -> 150 | AK28: =IF(AND(AM5="M119"),"--",IF(AND(I25="",M25="",Q25="",U25="",Y25="",AC25=""),"",IF(AND(I25<>""),I25,IF(AND(M25<>""),M25,IF(AND(Q25<>""),Q25,IF(AND(U25<>""),U25,IF(AND(Y25<>""),Y25,IF(AND(AC25<>""),AC25)))))))) -> -- | AL28: =IF(AND(AM5="M119"),"--",IF(AND(I26="",M26="",Q26="",U26="",Y26="",AC26=""),"",IF(AND(I26<>""),I26,IF(AND(M26<>""),M26,IF(AND(Q26<>""),Q26,IF(AND(U26<>""),U26,IF(AND(Y26<>""),Y26,IF(AND(AC26<>""),AC26)))))))) -> -- | AM28: =IF(AND(AM5="M119"),"--",IF(AND(I27="",M27="",Q27="",U27="",Y27="",AC27=""),"",I27+M27+Q27+U27+Y27+AC27)) -> -- | AO28: =IF(AND(Y7>3200),Y7-3200,IF(AND(Y7=3200),6400,IF(AND(Y7<1),0,IF(AND(Y7<3200),Y7-3200+6400)))) -> 129 | AP28: =IF(AND(Y8>3200),Y8-3200,IF(AND(Y8=3200),6400,IF(AND(Y8<1),0,IF(AND(Y8<3200),Y8-3200+6400)))) -> 131 | AQ28: =IF(AND(Y9>3200),Y9-3200,IF(AND(Y9=3200),6400,IF(AND(Y9<1),0,IF(AND(Y9<3200),Y9-3200+6400)))) -> 0 | AR28: =IF(AND(Y10>3200),Y10-3200,IF(AND(Y10=3200),6400,IF(AND(Y10<1),0,IF(AND(Y10<3200),Y10-3200+6400)))) -> 0
C29: Condições Paralaxe | F29: Arborizado, Húmido ou Pantanoso | I29: P e T | K29: VT | M29: P e T | O29: VT | Q29: P e T | S29: VT | U29: P e T | W29: VT | Y29: P e T | AA29: VT | AC29: P e T | AE29: VT | AG29: =IF(AND(J22="",N22="",R22="",V22="",Z22="",AD22=""),"",IF(AND(J22<>""),J22,IF(AND(N22<>""),N22,IF(AND(R22<>""),R22,IF(AND(V22<>""),V22,IF(AND(Z22<>""),Z22,IF(AND(AD22<>""),AD22))))))) -> HE/T | AH29: =IF(AND(J23="",N23="",R23="",V23="",Z23="",AD23=""),"",IF(AND(J23<>""),J23,IF(AND(N23<>""),N23,IF(AND(R23<>""),R23,IF(AND(V23<>""),V23,IF(AND(Z23<>""),Z23,IF(AND(AD23<>""),AD23))))))) -> XY | AI29: =IF(AND(J24="",N24="",R24="",V24="",Z24="",AD24=""),"",J24+N24+R24+V24+Z24+AD24) -> 150 | AK29: =IF(AND(AM5="M119"),"--",IF(AND(K25="",O25="",S25="",W25="",AA25="",AE25=""),"",IF(AND(K25<>""),K25,IF(AND(O25<>""),O25,IF(AND(S25<>""),S25,IF(AND(W25<>""),W25,IF(AND(AA25<>""),AA25,IF(AND(AE25<>""),AE25)))))))) -> -- | AL29: =IF(AND(AM5="M119"),"--",IF(AND(K26="",O26="",S26="",W26="",AA26="",AE26=""),"",IF(AND(K26<>""),K26,IF(AND(O26<>""),O26,IF(AND(S26<>""),S26,IF(AND(W26<>""),W26,IF(AND(AA26<>""),AA26,IF(AND(AE26<>""),AE26)))))))) -> -- | AM29: =IF(AND(AM5="M119"),"--",IF(AND(K27="",O27="",S27="",W27="",AA27="",AE27=""),"",K27+O27+S27+W27+AA27+AE27)) -> -- | AO29: =IF(AND(AC7>3200),AC7-3200,IF(AND(AC7=3200),6400,IF(AND(AC7<1),0,IF(AND(AC7<3200),AC7-3200+6400)))) -> 5270 | AP29: =IF(AND(AC8>3200),AC8-3200,IF(AND(AC8=3200),6400,IF(AND(AC8<1),0,IF(AND(AC8<3200),AC8-3200+6400)))) -> 0 | AQ29: =IF(AND(AC9>3200),AC9-3200,IF(AND(AC9=3200),6400,IF(AND(AC9<1),0,IF(AND(AC9<3200),AC9-3200+6400)))) -> 0 | AR29: =IF(AND(AC10>3200),AC10-3200,IF(AND(AC10=3200),6400,IF(AND(AC10<1),0,IF(AND(AC10<3200),AC10-3200+6400)))) -> 0
C30: ∡ A ( Ang Si à crista) | I30: =IF(AND(AM5=""),"",IF(I20="","",I20)) -> 50 | K30: =IF(I20="","",IF(AND(I19=""),"",IF(AND(F29=""),"",IF(K28="","",IF(I20="","",I20))))) -> 50 | M30: =IF(AND(AM5=""),"",IF(M20="","",M20)) -> 30 | O30: =IF(O28="","",IF(AND(M19=""),"",IF(AND(M20=""),"",IF(F29="","",IF(M20="","",M20))))) -> 30 | Q30: =IF(AND(AM5=""),"",IF(Q20="","",Q20)) -> 40 | S30: =IF(S28="","",IF(AND(Q19=""),"",IF(AND(Q20=""),"",IF(F29="","",IF(Q20="","",Q20))))) -> 40 | U30: =IF(U20="","",U20) -> 30 | W30: =IF(W28="","",IF(AND(U19=""),"",IF(AND(U20=""),"",IF(F29="","",IF(U20="","",U20))))) -> 30 | Y30: =IF(Y20="","",Y20) -> 40 | AA30: =IF(AA28="","",IF(AND(Y19=""),"",IF(AND(Y20=""),"",IF(F29="","",IF(Y20="","",Y20))))) -> 40 | AC30: =IF(AC20="","",AC20) -> 50 | AE30: =IF(AE28="","",IF(AND(AC19=""),"",IF(AND(AC20=""),"",IF(F29="","",IF(AC20="","",AC20))))) -> 50
C31: ∡ B (Paralaxe de Segurança) | I31: =IF(AND(AM5=""),"",IF(I19="","",_xlfn.CEILING.MATH((5*1.0186)/(I19*0.001)))) -> 23 | K31: =IF(I19="","",IF(AND(I20=""),"",IF(F29="","",_xlfn.CEILING.MATH(IF(AND(F29="Normal"),(70*1.0186)/(I19*0.001),IF(AND(F29="Situação de Guerra"),(70*1.0186)/(I19*0.001),IF(AND(F29="Água ou Neve"),(170*1.0186)/(I19*0.001),IF(AND(F29="Arborizado, Húmido ou Pantanoso"),(120*1.0186)/(I19*0.001))))))))) -> 532 | M31: =IF(AND(AM5=""),"",IF(M19="","",_xlfn.CEILING.MATH((5*1.0186)/(M19*0.001)))) -> 25 | O31: =IF(M19="","",IF(AND(M20=""),"",IF(F29="","",_xlfn.CEILING.MATH(IF(AND(F29="Normal"),(70*1.0186)/(M19*0.001),IF(AND(F29="Situação de Guerra"),(70*1.0186)/(M19*0.001),IF(AND(F29="Água ou Neve"),(170*1.0186)/(M19*0.001),IF(AND(F29="Arborizado, Húmido ou Pantanoso"),(120*1.0186)/(M19*0.001))))))))) -> 583 | Q31: =IF(Q19="","",_xlfn.CEILING.MATH((5*1.0186)/(Q19*0.001))) -> 25 | S31: =IF(Q19="","",IF(AND(Q20=""),"",IF(F29="","",_xlfn.CEILING.MATH(IF(AND(F29="Normal"),(70*1.0186)/(Q19*0.001),IF(AND(F29="Situação de Guerra"),(70*1.0186)/(Q19*0.001),IF(AND(F29="Água ou Neve"),(170*1.0186)/(Q19*0.001),IF(AND(F29="Arborizado, Húmido ou Pantanoso"),(120*1.0186)/(Q19*0.001))))))))) -> 583 | U31: =IF(U19="","",_xlfn.CEILING.MATH((5*1.0186)/(U19*0.001))) -> 24 | W31: =IF(U19="","",IF(AND(U20=""),"",IF(F29="","",_xlfn.CEILING.MATH(IF(AND(F29="Normal"),(70*1.0186)/(U19*0.001),IF(AND(F29="Situação de Guerra"),(70*1.0186)/(U19*0.001),IF(AND(F29="Água ou Neve"),(170*1.0186)/(U19*0.001),IF(AND(F29="Arborizado, Húmido ou Pantanoso"),(120*1.0186)/(U19*0.001))))))))) -> 556 | Y31: =IF(Y19="","",_xlfn.CEILING.MATH((5*1.0186)/(Y19*0.001))) -> 25 | AA31: =IF(Y19="","",IF(AND(Y20=""),"",IF(F29="","",_xlfn.CEILING.MATH(IF(AND(F29="Normal"),(70*1.0186)/(Y19*0.001),IF(AND(F29="Situação de Guerra"),(70*1.0186)/(Y19*0.001),IF(AND(F29="Água ou Neve"),(170*1.0186)/(Y19*0.001),IF(AND(F29="Arborizado, Húmido ou Pantanoso"),(120*1.0186)/(Y19*0.001))))))))) -> 583 | AC31: =IF(AC19="","",_xlfn.CEILING.MATH((5*1.0186)/(AC19*0.001))) -> 24 | AE31: =IF(AC19="","",IF(AND(AC20=""),"",IF(F29="","",_xlfn.CEILING.MATH(IF(AND(F29="Normal"),(70*1.0186)/(AC19*0.001),IF(AND(F29="Situação de Guerra"),(70*1.0186)/(AC19*0.001),IF(AND(F29="Água ou Neve"),(170*1.0186)/(AC19*0.001),IF(AND(F29="Arborizado, Húmido ou Pantanoso"),(120*1.0186)/(AC19*0.001))))))))) -> 556
C32: ∡ C (CCAS) | I32: =IF(I20="","",IF(AND(I19=""),"",IF(AND(K28=""),"",IF(AND(AM5=""),"",(IF(AND(AM5="M109"),_xlfn.CEILING.MATH(I68),IF(AND(AM5="M114"),_xlfn.CEILING.MATH(I69),(IF(AND(AM5="M119"),_xlfn.CEILING.MATH((I30+I31)*IF(AND(K28=1),VLOOKUP(I19,'[2]CG 1 Tab 8'!A5:L345,12),IF(AND(K28=2),VLOOKUP(I19,'[2]CG 2 Tab 8'!A5:L405,12),IF(AND(K28=3),VLOOKUP(I19,'[2]CG 3 Tab 8'!A4:L474,12),IF(AND(K28=4),VLOOKUP(I19,'[2]CG 4 Tab 8'!A4:L624,12),IF(AND(K28=5),VLOOKUP(I19,'[2]CG 5 Tab 8'!A4:L794,12),IF(AND(K28=6),VLOOKUP(I19,'[2]CG 6 Tab 8'!A4:L944,12),IF(AND(K28=7),VLOOKUP(I19,'[2]CG 7 Tab 8'!A4:L1144,12)))))))))))))))))) -> 1 | K32: =IF(I20="","",IF(AND(I19=""),"",IF(AND(F29=""),"",IF(K28="","",IF(AND(AM5="M109"),_xlfn.CEILING.MATH(K68),IF(AND(AM5="M114"),_xlfn.CEILING.MATH(K69),(IF(AND(AM5="M119"),_xlfn.CEILING.MATH((K30+K31)*IF(AND(K28=1),VLOOKUP(I19,'[2]CG 3 Tab 8'!A4:L474,12,FALSE),IF(AND(K28=2),VLOOKUP(I19,'[2]CG 2 Tab 8'!A5:L405,12,FALSE),IF(AND(K28=3),VLOOKUP(I19,'[2]CG 3 Tab 8'!A4:L474,12,FALSE),IF(AND(K28=4),VLOOKUP(I19,'[2]CG 4 Tab 8'!A4:L624,12,FALSE),IF(AND(K28=5),VLOOKUP(I19,'[2]CG 5 Tab 8'!A4:L794,12,FALSE),IF(AND(K28=6),VLOOKUP(I19,'[2]CG 6 Tab 8'!A4:L944,12,FALSE),IF(AND(K28=7),VLOOKUP(I19,'[2]CG 7 Tab 8'!A4:L1144,12,FALSE))))))))))))))))) -> 1 | M32: =IF(M20="","",IF(AND(M19=""),"",IF(AND(O28=""),"",IF(AND(AM5=""),"",(IF(AND(AM5="M109"),_xlfn.CEILING.MATH(M68),IF(AND(AM5="M114"),_xlfn.CEILING.MATH(M69),(IF(AND(AM5="M119"),_xlfn.CEILING.MATH((M30+M31)*IF(AND(O28=1),VLOOKUP(M19,'[2]CG 1 Tab 8'!A5:L345,12),IF(AND(O28=2),VLOOKUP(M19,'[2]CG 2 Tab 8'!A5:L405,12),IF(AND(O28=3),VLOOKUP(M19,'[2]CG 3 Tab 8'!A4:L474,12),IF(AND(O28=4),VLOOKUP(M19,'[2]CG 4 Tab 8'!A4:L624,12),IF(AND(O28=5),VLOOKUP(M19,'[2]CG 5 Tab 8'!A4:L794,12),IF(AND(O28=6),VLOOKUP(M19,'[2]CG 6 Tab 8'!A4:L944,12),IF(AND(O28=7),VLOOKUP(M19,'[2]CG 7 Tab 8'!A4:L1144,12)))))))))))))))))) -> 1 | O32: =IF(M20="","",IF(AND(M19=""),"",IF(AND(F29=""),"",IF(AND(O28=""),"",(IF(AND(AM5="M109"),_xlfn.CEILING.MATH(O68),IF(AND(AM5="M114"),_xlfn.CEILING.MATH(O69),(IF(AND(AM5="M119"),_xlfn.CEILING.MATH((O30+O31)*IF(AND(O28=1),VLOOKUP(M19,'[2]CG 1 Tab 8'!A5:L345,12,FALSE),IF(AND(O28=2),VLOOKUP(M19,'[2]CG 2 Tab 8'!A5:L405,12,FALSE),IF(AND(O28=3),VLOOKUP(M19,'[2]CG 3 Tab 8'!A4:L474,12,FALSE),IF(AND(O28=4),VLOOKUP(M19,'[2]CG 4 Tab 8'!A4:L624,12,FALSE),IF(AND(O28=5),VLOOKUP(M19,'[2]CG 5 Tab 8'!A4:L794,12,FALSE),IF(AND(O28=6),VLOOKUP(M19,'[2]CG 6 Tab 8'!A4:L944,12,FALSE),IF(AND(O28=7),VLOOKUP(M19,'[2]CG 7 Tab 8'!A4:L1144,12,FALSE)))))))))))))))))) -> 1 | Q32: =IF(Q19="","",IF(AND(Q20=""),"",IF(AND(S28=""),"",(IF(AND(AM5="M109"),_xlfn.CEILING.MATH(Q68),IF(AND(AM5="M114"),_xlfn.CEILING.MATH(Q69),(IF(AND(AM5="M119"),_xlfn.CEILING.MATH((Q30+Q31)*IF(AND(S28=1),VLOOKUP(Q19,'[2]CG 1 Tab 8'!A5:L345,12,FALSE),IF(AND(S28=2),VLOOKUP(Q19,'[2]CG 2 Tab 8'!A5:L405,12,FALSE),IF(AND(S28=3),VLOOKUP(Q19,'[2]CG 3 Tab 8'!A4:L474,12,FALSE),IF(AND(S28=4),VLOOKUP(Q19,'[2]CG 4 Tab 8'!A4:L624,12,FALSE),IF(AND(S28=5),VLOOKUP(Q19,'[2]CG 5 Tab 8'!A4:L794,12,FALSE),IF(AND(S28=6),VLOOKUP(Q19,'[2]CG 6 Tab 8'!A4:L944,12,FALSE),IF(AND(S28=7),VLOOKUP(Q19,'[2]CG 7 Tab 8'!A4:L1144,12,FALSE))))))))))))))))) -> 1 | S32: =IF(Q19="","",IF(AND(Q20=""),"",IF(F29="","",IF(AND(S28=""),"",(IF(AND(AM5="M109"),_xlfn.CEILING.MATH(S68),IF(AND(AM5="M114"),_xlfn.CEILING.MATH(S69),(IF(AND(AM5="M119"),_xlfn.CEILING.MATH((S30+S31)*IF(AND(S28=1),VLOOKUP(Q19,'[2]CG 1 Tab 8'!A5:L345,12,FALSE),IF(AND(S28=2),VLOOKUP(Q19,'[2]CG 2 Tab 8'!A5:L405,12,FALSE),IF(AND(S28=3),VLOOKUP(Q19,'[2]CG 3 Tab 8'!A4:L474,12,FALSE),IF(AND(S28=4),VLOOKUP(Q19,'[2]CG 4 Tab 8'!A4:L624,12,FALSE),IF(AND(S28=5),VLOOKUP(Q19,'[2]CG 5 Tab 8'!A4:L794,12,FALSE),IF(AND(S28=6),VLOOKUP(Q19,'[2]CG 6 Tab 8'!A4:L944,12,FALSE),IF(AND(S28=7),VLOOKUP(Q19,'[2]CG 7 Tab 8'!A4:L1144,12,FALSE)))))))))))))))))) -> 1 | U32: =IF(U19="","",IF(AND(U20=""),"",IF(AND(W28=""),"",(IF(AND(AM5="M109"),_xlfn.CEILING.MATH(U68),IF(AND(AM5="M114"),_xlfn.CEILING.MATH(U69),(IF(AND(AM5="M119"),_xlfn.CEILING.MATH((U30+U31)*IF(AND(W28=1),VLOOKUP(U19,'[2]CG 1 Tab 8'!A5:L345,12,FALSE),IF(AND(W28=2),VLOOKUP(U19,'[2]CG 2 Tab 8'!A5:L405,12,FALSE),IF(AND(W28=3),VLOOKUP(U19,'[2]CG 3 Tab 8'!A4:L474,12,FALSE),IF(AND(W28=4),VLOOKUP(U19,'[2]CG 4 Tab 8'!A4:L624,12,FALSE),IF(AND(W28=5),VLOOKUP(U19,'[2]CG 5 Tab 8'!A4:L794,12,FALSE),IF(AND(W28=6),VLOOKUP(U19,'[2]CG 6 Tab 8'!A4:L944,12,FALSE),IF(AND(W28=7),VLOOKUP(U19,'[2]CG 7 Tab 8'!A4:L1144,12,FALSE))))))))))))))))) -> 1 | W32: =IF(U19="","",IF(AND(U20=""),"",IF(F29="","",IF(AND(W28=""),"",(IF(AND(AM5="M109"),_xlfn.CEILING.MATH(W68),IF(AND(AM5="M114"),_xlfn.CEILING.MATH(W69),(IF(AND(AM5="M119"),_xlfn.CEILING.MATH((W30+W31)*IF(AND(W28=1),VLOOKUP(U19,'[2]CG 1 Tab 8'!A5:L345,12,FALSE),IF(AND(W28=2),VLOOKUP(U19,'[2]CG 2 Tab 8'!A5:L405,12,FALSE),IF(AND(W28=3),VLOOKUP(U19,'[2]CG 3 Tab 8'!A4:L474,12,FALSE),IF(AND(W28=4),VLOOKUP(U19,'[2]CG 4 Tab 8'!A4:L624,12,FALSE),IF(AND(W28=5),VLOOKUP(U19,'[2]CG 5 Tab 8'!A4:L794,12,FALSE),IF(AND(W28=6),VLOOKUP(U19,'[2]CG 6 Tab 8'!A4:L944,12,FALSE),IF(AND(W28=7),VLOOKUP(U19,'[2]CG 7 Tab 8'!A4:L1144,12,FALSE)))))))))))))))))) -> 1 | Y32: =IF(Y19="","",IF(AND(Y20=""),"",IF(AND(AA28=""),"",(IF(AND(AM5="M109"),_xlfn.CEILING.MATH(Y68),IF(AND(AM5="M114"),_xlfn.CEILING.MATH(Y69),(IF(AND(AM5="M119"),_xlfn.CEILING.MATH((Y30+Y31)*IF(AND(AA28=1),VLOOKUP(Y19,'[2]CG 1 Tab 8'!A5:L345,12,FALSE),IF(AND(AA28=2),VLOOKUP(Y19,'[2]CG 2 Tab 8'!A5:L405,12,FALSE),IF(AND(AA28=3),VLOOKUP(Y19,'[2]CG 3 Tab 8'!A4:L474,12,FALSE),IF(AND(AA28=4),VLOOKUP(Y19,'[2]CG 4 Tab 8'!A4:L624,12,FALSE),IF(AND(AA28=5),VLOOKUP(Y19,'[2]CG 5 Tab 8'!A4:L794,12,FALSE),IF(AND(AA28=6),VLOOKUP(Y19,'[2]CG 6 Tab 8'!A4:L944,12,FALSE),IF(AND(AA28=7),VLOOKUP(Y19,'[2]CG 7 Tab 8'!A4:L1144,12,FALSE))))))))))))))))) -> 1 | AA32: =IF(Y19="","",IF(AND(Y20=""),"",IF(F29="","",IF(AND(AA28=""),"",(IF(AND(AM5="M109"),_xlfn.CEILING.MATH(AA68),IF(AND(AM5="M114"),_xlfn.CEILING.MATH(AA69),(IF(AND(AM5="M119"),_xlfn.CEILING.MATH((AA30+AA31)*IF(AND(AA28=1),VLOOKUP(Y19,'[2]CG 1 Tab 8'!A5:L345,12,FALSE),IF(AND(AA28=2),VLOOKUP(Y19,'[2]CG 2 Tab 8'!A5:L405,12,FALSE),IF(AND(AA28=3),VLOOKUP(Y19,'[2]CG 3 Tab 8'!A4:L474,12,FALSE),IF(AND(AA28=4),VLOOKUP(Y19,'[2]CG 4 Tab 8'!A4:L624,12,FALSE),IF(AND(AA28=5),VLOOKUP(Y19,'[2]CG 5 Tab 8'!A4:L794,12,FALSE),IF(AND(AA28=6),VLOOKUP(Y19,'[2]CG 6 Tab 8'!A4:L944,12,FALSE),IF(AND(AA28=7),VLOOKUP(Y19,'[2]CG 7 Tab 8'!A4:L1144,12,FALSE)))))))))))))))))) -> 1 | AC32: =IF(AC19="","",IF(AND(AC20=""),"",IF(AND(AE28=""),"",(IF(AND(AM5="M109"),_xlfn.CEILING.MATH(AC68),IF(AND(AM5="M114"),_xlfn.CEILING.MATH(AC69),(IF(AND(AM5="M119"),_xlfn.CEILING.MATH((AC30+AC31)*IF(AND(AE28=1),VLOOKUP(AC19,'[2]CG 1 Tab 8'!A5:L345,12,FALSE),IF(AND(AE28=2),VLOOKUP(AC19,'[2]CG 2 Tab 8'!A5:L405,12,FALSE),IF(AND(AE28=3),VLOOKUP(AC19,'[2]CG 3 Tab 8'!A4:L474,12,FALSE),IF(AND(AE28=4),VLOOKUP(AC19,'[2]CG 4 Tab 8'!A4:L624,12,FALSE),IF(AND(AE28=5),VLOOKUP(AC19,'[2]CG 5 Tab 8'!A4:L794,12,FALSE),IF(AND(AE28=6),VLOOKUP(AC19,'[2]CG 6 Tab 8'!A4:L944,12,FALSE),IF(AND(AE28=7),VLOOKUP(AC19,'[2]CG 7 Tab 8'!A4:L1144,12,FALSE))))))))))))))))) -> 1 | AE32: =IF(AC19="","",IF(AND(AC20=""),"",IF(F29="","",IF(AND(AE28=""),"",(IF(AND(AM5="M109"),_xlfn.CEILING.MATH(AE68),IF(AND(AM5="M114"),_xlfn.CEILING.MATH(AE69),(IF(AND(AM5="M119"),_xlfn.CEILING.MATH((AE30+AE31)*IF(AND(AE28=1),VLOOKUP(AC19,'[2]CG 1 Tab 8'!A5:L345,12,FALSE),IF(AND(AE28=2),VLOOKUP(AC19,'[2]CG 2 Tab 8'!A5:L405,12,FALSE),IF(AND(AE28=3),VLOOKUP(AC19,'[2]CG 3 Tab 8'!A4:L474,12,FALSE),IF(AND(AE28=4),VLOOKUP(AC19,'[2]CG 4 Tab 8'!A4:L624,12,FALSE),IF(AND(AE28=5),VLOOKUP(AC19,'[2]CG 5 Tab 8'!A4:L794,12,FALSE),IF(AND(AE28=6),VLOOKUP(AC19,'[2]CG 6 Tab 8'!A4:L944,12,FALSE),IF(AND(AE28=7),VLOOKUP(AC19,'[2]CG 7 Tab 8'!A4:L1144,12,FALSE)))))))))))))))))) -> 1
C33: ∡ 2 ( Alça para a crista) | I33: =IF(I20="","",IF(AND(I19=""),"",IF(AND(AM5=""),"",IF(AND(K28=""),"",(IF(AND(AM5="M109"),_xlfn.CEILING.MATH(I70),IF(AND(AM5="M114"),_xlfn.CEILING.MATH(I71),(IF(AND(AM5="M119"),_xlfn.CEILING.MATH(IF(AND(K28=1),VLOOKUP(I19,'[2]CG 1 Tab 6'!A4:B344,2,FALSE),IF(AND(K28=2),VLOOKUP(I19,'[2]CG 2 Tab 6'!A4:B404,2,FALSE),IF(AND(K28=3),VLOOKUP(I19,'[2]CG 3 Tab 6'!A3:B473,2,FALSE),IF(AND(K28=4),VLOOKUP(I19,'[2]CG 4 Tab 6'!A3:B623,2,FALSE),IF(AND(K28=5),VLOOKUP(I19,'[2]CG 5 Tab 6'!A3:B793,2,FALSE),IF(AND(K28=6),VLOOKUP(I19,'[2]CG 6 Tab 6'!A3:B943,2,FALSE),IF(AND(K28=7),VLOOKUP(I19,'[2]CG 7 Tab 6'!A3:B1143,2,FALSE)))))))))))))))))) -> 16 | K33: =IF(I20="","",IF(AND(I19=""),"",IF(AND(F29=""),"",IF(AND(AM5="M109"),_xlfn.CEILING.MATH(K70),IF(AND(AM5="M114"),_xlfn.CEILING.MATH(K71),IF(AND(AM5="M119"),_xlfn.CEILING.MATH(IF(AND(K28=1),VLOOKUP(I19,'[2]CG 1 Tab 6'!A4:B344,2,FALSE),IF(AND(K28=2),VLOOKUP(I19,'[2]CG 2 Tab 6'!A4:B404,2,FALSE),IF(AND(K28=3),VLOOKUP(I19,'[2]CG 3 Tab 6'!A3:B473,2,FALSE),IF(AND(K28=4),VLOOKUP(I19,'[2]CG 4 Tab 6'!A3:B623,2,FALSE),IF(AND(K28=5),VLOOKUP(I19,'[2]CG 5 Tab 6'!A3:B793,2,FALSE),IF(AND(K28=6),VLOOKUP(I19,'[2]CG 6 Tab 6'!A3:B943,2,FALSE),IF(AND(K28=7),VLOOKUP(I19,'[2]CG 7 Tab 6'!A3:B1143,2,FALSE))))))))))))))) -> 16 | M33: =IF(M19="","",IF(AND(M20=""),"",IF(AND(AM5=""),"",IF(O28="","",(IF(AND(AM5="M109"),_xlfn.CEILING.MATH(M70),IF(AND(AM5="M114"),_xlfn.CEILING.MATH(M71),(IF(AND(AM5="M119"),_xlfn.CEILING.MATH(IF(AND(O28=1),VLOOKUP(M19,'[2]CG 1 Tab 6'!A4:B344,2),IF(AND(O28=2),VLOOKUP(M19,'[2]CG 2 Tab 6'!A4:B404,2),IF(AND(O28=3),VLOOKUP(M19,'[2]CG 3 Tab 6'!A3:B473,2),IF(AND(O28=4),VLOOKUP(M19,'[2]CG 4 Tab 6'!A3:B623,2),IF(AND(O28=5),VLOOKUP(M19,'[2]CG 5 Tab 6'!A3:B793,2),IF(AND(O28=6),VLOOKUP(M19,'[2]CG 6 Tab 6'!A3:B943,2),IF(AND(O28=7),VLOOKUP(M19,'[2]CG 7 Tab 6'!A3:B1143,2)))))))))))))))))) -> 15 | O33: =IF(M19="","",IF(AND(M20=""),"",IF(AND(F29=""),"",IF(AND(O28=""),"",(IF(AND(AM5="M109"),_xlfn.CEILING.MATH(M70),IF(AND(AM5="M114"),_xlfn.CEILING.MATH(M71),IF(AND(AM5="M119"),_xlfn.CEILING.MATH(IF(AND(O28=1),VLOOKUP(M19,'[2]CG 1 Tab 6'!A4:B344,2,FALSE),IF(AND(O28=2),VLOOKUP(M19,'[2]CG 2 Tab 6'!A4:B404,2,FALSE),IF(AND(O28=3),VLOOKUP(M19,'[2]CG 3 Tab 6'!A3:B473,2,FALSE),IF(AND(O28=4),VLOOKUP(M19,'[2]CG 4 Tab 6'!A3:B623,2,FALSE),IF(AND(O28=5),VLOOKUP(M19,'[2]CG 5 Tab 6'!A3:B793,2,FALSE),IF(AND(O28=6),VLOOKUP(M19,'[2]CG 6 Tab 6'!A3:B943,2,FALSE),IF(AND(O28=7),VLOOKUP(M19,'[2]CG 7 Tab 6'!A3:B1143,2,FALSE))))))))))))))))) -> 15 | Q33: =IF(Q19="","",IF(AND(Q20=""),"",IF(AND(S28=""),"",(IF(AND(AM5="M109"),_xlfn.CEILING.MATH(Q70),IF(AND(AM5="M114"),_xlfn.CEILING.MATH(Q71),IF(AND(AM5="M119"),_xlfn.CEILING.MATH(IF(AND(S28=1),VLOOKUP(Q19,'[2]CG 1 Tab 6'!A4:B344,2,FALSE),IF(AND(S28=2),VLOOKUP(Q19,'[2]CG 2 Tab 6'!A4:B404,2,FALSE),IF(AND(S28=3),VLOOKUP(Q19,'[2]CG 3 Tab 6'!A3:B473,2,FALSE),IF(AND(S28=4),VLOOKUP(Q19,'[2]CG 4 Tab 6'!A3:B623,2,FALSE),IF(AND(S28=5),VLOOKUP(Q19,'[2]CG 5 Tab 6'!A3:B793,2,FALSE),IF(AND(S28=6),VLOOKUP(Q19,'[2]CG 6 Tab 6'!A3:B943,2,FALSE),IF(AND(S28=7),VLOOKUP(Q19,'[2]CG 7 Tab 6'!A3:B1143,2,FALSE)))))))))))))))) -> 15 | S33: =IF(Q19="","",IF(AND(Q20=""),"",IF(F29="","",IF(S28="","",IF(AND(S28=""),"",(IF(AND(AM5="M109"),_xlfn.CEILING.MATH(S70),IF(AND(AM5="M114"),_xlfn.CEILING.MATH(S71),IF(AND(AM5="M119"),_xlfn.CEILING.MATH(IF(AND(S28=1),VLOOKUP(Q19,'[2]CG 1 Tab 6'!A4:B344,2,FALSE),IF(AND(S28=2),VLOOKUP(Q19,'[2]CG 2 Tab 6'!A4:B404,2,FALSE),IF(AND(S28=3),VLOOKUP(Q19,'[2]CG 3 Tab 6'!A3:B473,2,FALSE),IF(AND(S28=4),VLOOKUP(Q19,'[2]CG 4 Tab 6'!A3:B623,2,FALSE),IF(AND(S28=5),VLOOKUP(Q19,'[2]CG 5 Tab 6'!A3:B793,2,FALSE),IF(AND(S28=6),VLOOKUP(Q19,'[2]CG 6 Tab 6'!A3:B943,2,FALSE),IF(AND(S28=7),VLOOKUP(Q19,'[2]CG 7 Tab 6'!A3:B1143,2,FALSE)))))))))))))))))) -> 15 | U33: =IF(U19="","",IF(AND(U20=""),"",IF(AND(W28=""),"",(IF(AND(AM5="M109"),_xlfn.CEILING.MATH(U70),IF(AND(AM5="M114"),_xlfn.CEILING.MATH(U71),IF(AND(AM5="M119"),_xlfn.CEILING.MATH(IF(AND(W28=1),VLOOKUP(U19,'[2]CG 1 Tab 6'!A4:B344,2,FALSE),IF(AND(W28=2),VLOOKUP(U19,'[2]CG 2 Tab 6'!A4:B404,2,FALSE),IF(AND(W28=3),VLOOKUP(U19,'[2]CG 3 Tab 6'!A3:B473,2,FALSE),IF(AND(W28=4),VLOOKUP(U19,'[2]CG 4 Tab 6'!A3:B623,2,FALSE),IF(AND(W28=5),VLOOKUP(U19,'[2]CG 5 Tab 6'!A3:B793,2,FALSE),IF(AND(W28=6),VLOOKUP(U19,'[2]CG 6 Tab 6'!A3:B943,2,FALSE),IF(AND(W28=7),VLOOKUP(U19,'[2]CG 7 Tab 6'!A3:B1143,2,FALSE)))))))))))))))) -> 16 | W33: =IF(U19="","",IF(AND(U20=""),"",IF(F29="","",IF(AND(W28=""),"",(IF(AND(AM5="M109"),_xlfn.CEILING.MATH(W70),IF(AND(AM5="M114"),_xlfn.CEILING.MATH(W71),IF(AND(AM5="M119"),_xlfn.CEILING.MATH(IF(AND(W28=1),VLOOKUP(U19,'[2]CG 1 Tab 6'!A4:B344,2,FALSE),IF(AND(W28=2),VLOOKUP(U19,'[2]CG 2 Tab 6'!A4:B404,2,FALSE),IF(AND(W28=3),VLOOKUP(U19,'[2]CG 3 Tab 6'!A3:B473,2,FALSE),IF(AND(W28=4),VLOOKUP(U19,'[2]CG 4 Tab 6'!A3:B623,2,FALSE),IF(AND(W28=5),VLOOKUP(U19,'[2]CG 5 Tab 6'!A3:B793,2,FALSE),IF(AND(W28=6),VLOOKUP(U19,'[2]CG 6 Tab 6'!A3:B943,2,FALSE),IF(AND(W28=7),VLOOKUP(U19,'[2]CG 7 Tab 6'!A3:B1143,2,FALSE))))))))))))))))) -> 16 | Y33: =IF(Y19="","",IF(AND(Y20=""),"",IF(AND(AA28=""),"",(IF(AND(AM5="M109"),_xlfn.CEILING.MATH(Y70),IF(AND(AM5="M114"),_xlfn.CEILING.MATH(Y71),IF(AND(AM5="M119"),_xlfn.CEILING.MATH(IF(AND(AA28=1),VLOOKUP(Y19,'[2]CG 1 Tab 6'!A4:B344,2,FALSE),IF(AND(AA28=2),VLOOKUP(Y19,'[2]CG 2 Tab 6'!A4:B404,2,FALSE),IF(AND(AA28=3),VLOOKUP(Y19,'[2]CG 3 Tab 6'!A3:B473,2,FALSE),IF(AND(AA28=4),VLOOKUP(Y19,'[2]CG 4 Tab 6'!A3:B623,2,FALSE),IF(AND(AA28=5),VLOOKUP(Y19,'[2]CG 5 Tab 6'!A3:B793,2,FALSE),IF(AND(AA28=6),VLOOKUP(Y19,'[2]CG 6 Tab 6'!A3:B943,2,FALSE),IF(AND(AA28=7),VLOOKUP(Y19,'[2]CG 7 Tab 6'!A3:B1143,2,FALSE)))))))))))))))) -> 15 | AA33: =IF(Y19="","",IF(AND(Y20=""),"",IF(F29="","",IF(AND(AA28=""),"",(IF(AND(AM5="M109"),_xlfn.CEILING.MATH(AA70),IF(AND(AM5="M114"),_xlfn.CEILING.MATH(AA71),IF(AND(AM5="M119"),_xlfn.CEILING.MATH(IF(AND(AA28=1),VLOOKUP(Y19,'[2]CG 1 Tab 6'!A4:B344,2,FALSE),IF(AND(AA28=2),VLOOKUP(Y19,'[2]CG 2 Tab 6'!A4:B404,2,FALSE),IF(AND(AA28=3),VLOOKUP(Y19,'[2]CG 3 Tab 6'!A3:B473,2,FALSE),IF(AND(AA28=4),VLOOKUP(Y19,'[2]CG 4 Tab 6'!A3:B623,2,FALSE),IF(AND(AA28=5),VLOOKUP(Y19,'[2]CG 5 Tab 6'!A3:B793,2,FALSE),IF(AND(AA28=6),VLOOKUP(Y19,'[2]CG 6 Tab 6'!A3:B943,2,FALSE),IF(AND(AA28=7),VLOOKUP(Y19,'[2]CG 7 Tab 6'!A3:B1143,2,FALSE))))))))))))))))) -> 15 | AC33: =IF(AC19="","",IF(AND(AC20=""),"",IF(AND(AE28=""),"",(IF(AND(AM5="M109"),_xlfn.CEILING.MATH(AC70),IF(AND(AM5="M114"),_xlfn.CEILING.MATH(AC71),IF(AND(AM5="M119"),_xlfn.CEILING.MATH(IF(AND(AE28=1),VLOOKUP(AC19,'[2]CG 1 Tab 6'!A4:B344,2,FALSE),IF(AND(AE28=2),VLOOKUP(AC19,'[2]CG 2 Tab 6'!A4:B404,2,FALSE),IF(AND(AE28=3),VLOOKUP(AC19,'[2]CG 3 Tab 6'!A3:B473,2,FALSE),IF(AND(AE28=4),VLOOKUP(AC19,'[2]CG 4 Tab 6'!A3:B623,2,FALSE),IF(AND(AE28=5),VLOOKUP(AC19,'[2]CG 5 Tab 6'!A3:B793,2,FALSE),IF(AND(AE28=6),VLOOKUP(AC19,'[2]CG 6 Tab 6'!A3:B943,2,FALSE),IF(AND(AE28=7),VLOOKUP(AC19,'[2]CG 7 Tab 6'!A3:B1143,2,FALSE)))))))))))))))) -> 16 | AE33: =IF(AC19="","",IF(AND(AC20=""),"",IF(F29="","",IF(AND(AE28=""),"",(IF(AND(AM5="M109"),_xlfn.CEILING.MATH(AE70),IF(AND(AM5="M114"),_xlfn.CEILING.MATH(AE71),IF(AND(AM5="M119"),_xlfn.CEILING.MATH(IF(AND(AE28=1),VLOOKUP(AC19,'[2]CG 1 Tab 6'!A4:B344,2,FALSE),IF(AND(AE28=2),VLOOKUP(AC19,'[2]CG 2 Tab 6'!A4:B404,2,FALSE),IF(AND(AE28=3),VLOOKUP(AC19,'[2]CG 3 Tab 6'!A3:B473,2,FALSE),IF(AND(AE28=4),VLOOKUP(AC19,'[2]CG 4 Tab 6'!A3:B623,2,FALSE),IF(AND(AE28=5),VLOOKUP(AC19,'[2]CG 5 Tab 6'!A3:B793,2,FALSE),IF(AND(AE28=6),VLOOKUP(AC19,'[2]CG 6 Tab 6'!A3:B943,2,FALSE),IF(AND(AE28=7),VLOOKUP(AC19,'[2]CG 7 Tab 6'!A3:B1143,2,FALSE))))))))))))))))) -> 16
C34: ∡ 3 ( Duas F <> alça) | I34: =IF(I20="","",IF(AND(I19=""),"",IF(AND(AM5=""),"",IF(AND(K28=""),"",(IF(AND(AM5="M109"),_xlfn.CEILING.MATH(I72),IF(AND(AM5="M114"),_xlfn.CEILING.MATH(I73),(IF(AND(AM5="M119"),2*(IF(AND(K28=1),VLOOKUP(I19,'[2]CG 1 Tab 6'!A4:F344,6,FALSE),IF(AND(K28=2),VLOOKUP(I19,'[2]CG 2 Tab 6'!A4:F404,6,FALSE),IF(AND(K28=3),VLOOKUP(I19,'[2]CG 3 Tab 6'!A3:F473,6,FALSE),IF(AND(K28=4),VLOOKUP(I19,'[2]CG 4 Tab 6'!A3:F623,6,FALSE),IF(AND(K28=5),VLOOKUP(I19,'[2]CG 5 Tab 6'!A3:F793,6,FALSE),IF(AND(K28=6),VLOOKUP(I19,'[2]CG 6 Tab 6'!A3:F943,6,FALSE),IF(AND(K28=7),VLOOKUP(I19,'[2]CG 7 Tab 6'!A3:F1143,6,FALSE)))))))))))))))))) -> 6 | K34: =IF(I20="","",IF(AND(I19=""),"",IF(AND(F29=""),"",IF(K28="","",IF(AND(AM5="M109"),_xlfn.CEILING.MATH(K72),IF(AND(AM5="M114"),_xlfn.CEILING.MATH(K73),IF(AND(AM5="M119"),2*(IF(AND(K28=1),VLOOKUP(I19,'[2]CG 1 Tab 6'!A4:F344,6,FALSE),IF(AND(K28=2),VLOOKUP(I19,'[2]CG 2 Tab 6'!A4:F404,6,FALSE),IF(AND(K28=3),VLOOKUP(I19,'[2]CG 3 Tab 6'!A3:F473,6,FALSE),IF(AND(K28=4),VLOOKUP(I19,'[2]CG 4 Tab 6'!A3:F623,6,FALSE),IF(AND(K28=5),VLOOKUP(I19,'[2]CG 5 Tab 6'!A3:F793,6,FALSE),IF(AND(K28=6),VLOOKUP(I19,'[2]CG 6 Tab 6'!A3:F943,6,FALSE),IF(AND(K28=7),VLOOKUP(I19,'[2]CG 7 Tab 6'!A3:F1143,6,FALSE)))))))))))))))) -> 6 | M34: =IF(M19="","",IF(AND(M20=""),"",IF(AND(AM5=""),"",(IF(AND(AM5="M109"),_xlfn.CEILING.MATH(M72),IF(AND(AM5="M114"),_xlfn.CEILING.MATH(M73),IF(O28="","",IF(AND(AM5="M119"),2*(IF(AND(O28=1),VLOOKUP(M19,'[2]CG 1 Tab 6'!A4:F344,6),IF(AND(O28=2),VLOOKUP(M19,'[2]CG 2 Tab 6'!A4:F404,6),IF(AND(O28=3),VLOOKUP(M19,'[2]CG 3 Tab 6'!A3:F473,6),IF(AND(O28=4),VLOOKUP(M19,'[2]CG 4 Tab 6'!A3:F623,6),IF(AND(O28=5),VLOOKUP(M19,'[2]CG 5 Tab 6'!A3:F793,6),IF(AND(O28=6),VLOOKUP(M19,'[2]CG 6 Tab 6'!A3:F943,6),IF(AND(O28=7),VLOOKUP(M19,'[2]CG 7 Tab 6'!A3:F1143,6))))))))))))))))) -> 6 | O34: =IF(M19="","",IF(AND(M20=""),"",IF(AND(O28=""),"",IF(AND(F29=""),"",(IF(AND(AM5="M109"),_xlfn.CEILING.MATH(O72),IF(AND(AM5="M114"),_xlfn.CEILING.MATH(O73),IF(AND(AM5="M119"),2*(IF(AND(O28=1),VLOOKUP(M19,'[2]CG 1 Tab 6'!A4:F344,6,FALSE),IF(AND(O28=2),VLOOKUP(M19,'[2]CG 2 Tab 6'!A4:F404,6,FALSE),IF(AND(O28=3),VLOOKUP(M19,'[2]CG 3 Tab 6'!A3:F473,6,FALSE),IF(AND(O28=4),VLOOKUP(M19,'[2]CG 4 Tab 6'!A3:F623,6,FALSE),IF(AND(O28=5),VLOOKUP(M19,'[2]CG 5 Tab 6'!A3:F793,6,FALSE),IF(AND(O28=6),VLOOKUP(M19,'[2]CG 6 Tab 6'!A3:F943,6,FALSE),IF(AND(O28=7),VLOOKUP(M19,'[2]CG 7 Tab 6'!A3:F1143,6,FALSE))))))))))))))))) -> 6 | Q34: =IF(Q19="","",IF(AND(Q20=""),"",IF(AND(S28=""),"",(IF(AND(AM5="M109"),_xlfn.CEILING.MATH(Q72),IF(AND(AM5="M114"),_xlfn.CEILING.MATH(Q73),(IF(AND(AM5="M119"),2*(IF(AND(S28=1),VLOOKUP(Q19,'[2]CG 1 Tab 6'!A4:F344,6,FALSE),IF(AND(S28=2),VLOOKUP(Q19,'[2]CG 2 Tab 6'!A4:F404,6,FALSE),IF(AND(S28=3),VLOOKUP(Q19,'[2]CG 3 Tab 6'!A3:F473,6,FALSE),IF(AND(S28=4),VLOOKUP(Q19,'[2]CG 4 Tab 6'!A3:F623,6,FALSE),IF(AND(S28=5),VLOOKUP(Q19,'[2]CG 5 Tab 6'!A3:F793,6,FALSE),IF(AND(S28=6),VLOOKUP(Q19,'[2]CG 6 Tab 6'!A3:F943,6,FALSE),IF(AND(S28=7),VLOOKUP(Q19,'[2]CG 7 Tab 6'!A3:F1143,6,FALSE))))))))))))))))) -> 6 | S34: =IF(Q19="","",IF(AND(Q20=""),"",IF(AND(S28=""),"",IF(AND(F29=""),"",(IF(AND(AM5="M109"),_xlfn.CEILING.MATH(S72),IF(AND(AM5="M114"),_xlfn.CEILING.MATH(S73),(IF(AND(AM5="M119"),2*(IF(AND(S28=1),VLOOKUP(Q19,'[2]CG 1 Tab 6'!A4:F344,6,FALSE),IF(AND(S28=2),VLOOKUP(Q19,'[2]CG 2 Tab 6'!A4:F404,6,FALSE),IF(AND(S28=3),VLOOKUP(Q19,'[2]CG 3 Tab 6'!A3:F473,6,FALSE),IF(AND(S28=4),VLOOKUP(Q19,'[2]CG 4 Tab 6'!A3:F623,6,FALSE),IF(AND(S28=5),VLOOKUP(Q19,'[2]CG 5 Tab 6'!A3:F793,6,FALSE),IF(AND(S28=6),VLOOKUP(Q19,'[2]CG 6 Tab 6'!A3:F943,6,FALSE),IF(AND(S28=7),VLOOKUP(Q19,'[2]CG 7 Tab 6'!A3:F1143,6,FALSE)))))))))))))))))) -> 6 | U34: =IF(U19="","",IF(AND(U20=""),"",IF(AND(W28=""),"",(IF(AND(AM5="M109"),_xlfn.CEILING.MATH(U72),IF(AND(AM5="M114"),_xlfn.CEILING.MATH(U73),(IF(AND(AM5="M119"),2*(IF(AND(W28=1),VLOOKUP(U19,'[2]CG 1 Tab 6'!A4:F344,6,FALSE),IF(AND(W28=2),VLOOKUP(U19,'[2]CG 2 Tab 6'!A4:F404,6,FALSE),IF(AND(W28=3),VLOOKUP(U19,'[2]CG 3 Tab 6'!A3:F473,6,FALSE),IF(AND(W28=4),VLOOKUP(U19,'[2]CG 4 Tab 6'!A3:F623,6,FALSE),IF(AND(W28=5),VLOOKUP(U19,'[2]CG 5 Tab 6'!A3:F793,6,FALSE),IF(AND(W28=6),VLOOKUP(U19,'[2]CG 6 Tab 6'!A3:F943,6,FALSE),IF(AND(W28=7),VLOOKUP(U19,'[2]CG 7 Tab 6'!A3:F1143,6,FALSE))))))))))))))))) -> 6 | W34: =IF(U19="","",IF(AND(U20=""),"",IF(AND(W28=""),"",IF(AND(F29=""),"",(IF(AND(AM5="M109"),_xlfn.CEILING.MATH(W72),IF(AND(AM5="M114"),_xlfn.CEILING.MATH(W73),(IF(AND(AM5="M119"),2*(IF(AND(W28=1),VLOOKUP(U19,'[2]CG 1 Tab 6'!A4:F344,6,FALSE),IF(AND(W28=2),VLOOKUP(U19,'[2]CG 2 Tab 6'!A4:F404,6,FALSE),IF(AND(W28=3),VLOOKUP(U19,'[2]CG 3 Tab 6'!A3:F473,6,FALSE),IF(AND(W28=4),VLOOKUP(U19,'[2]CG 4 Tab 6'!A3:F623,6,FALSE),IF(AND(W28=5),VLOOKUP(U19,'[2]CG 5 Tab 6'!A3:F793,6,FALSE),IF(AND(W28=6),VLOOKUP(U19,'[2]CG 6 Tab 6'!A3:F943,6,FALSE),IF(AND(W28=7),VLOOKUP(U19,'[2]CG 7 Tab 6'!A3:F1143,6,FALSE)))))))))))))))))) -> 6 | Y34: =IF(Y19="","",IF(AND(Y20=""),"",IF(AND(AA28=""),"",(IF(AND(AM5="M109"),_xlfn.CEILING.MATH(Y72),IF(AND(AM5="M114"),_xlfn.CEILING.MATH(Y73),(IF(AND(AM5="M119"),2*(IF(AND(AA28=1),VLOOKUP(Y19,'[2]CG 1 Tab 6'!A4:F344,6,FALSE),IF(AND(AA28=2),VLOOKUP(Y19,'[2]CG 2 Tab 6'!A4:F404,6,FALSE),IF(AND(AA28=3),VLOOKUP(Y19,'[2]CG 3 Tab 6'!A3:F473,6,FALSE),IF(AND(AA28=4),VLOOKUP(Y19,'[2]CG 4 Tab 6'!A3:F623,6,FALSE),IF(AND(AA28=5),VLOOKUP(Y19,'[2]CG 5 Tab 6'!A3:F793,6,FALSE),IF(AND(AA28=6),VLOOKUP(Y19,'[2]CG 6 Tab 6'!A3:F943,6,FALSE),IF(AND(AA28=7),VLOOKUP(Y19,'[2]CG 7 Tab 6'!A3:F1143,6,FALSE))))))))))))))))) -> 6 | AA34: =IF(Y19="","",IF(AND(Y20=""),"",IF(AND(AA28=""),"",IF(AND(F29=""),"",(IF(AND(AM5="M109"),_xlfn.CEILING.MATH(AA72),IF(AND(AM5="M114"),_xlfn.CEILING.MATH(AA73),(IF(AND(AM5="M119"),2*(IF(AND(AA28=1),VLOOKUP(Y19,'[2]CG 1 Tab 6'!A4:F344,6,FALSE),IF(AND(AA28=2),VLOOKUP(Y19,'[2]CG 2 Tab 6'!A4:F404,6,FALSE),IF(AND(AA28=3),VLOOKUP(Y19,'[2]CG 3 Tab 6'!A3:F473,6,FALSE),IF(AND(AA28=4),VLOOKUP(Y19,'[2]CG 4 Tab 6'!A3:F623,6,FALSE),IF(AND(AA28=5),VLOOKUP(Y19,'[2]CG 5 Tab 6'!A3:F793,6,FALSE),IF(AND(AA28=6),VLOOKUP(Y19,'[2]CG 6 Tab 6'!A3:F943,6,FALSE),IF(AND(AA28=7),VLOOKUP(Y19,'[2]CG 7 Tab 6'!A3:F1143,6,FALSE)))))))))))))))))) -> 6 | AC34: =IF(AC19="","",IF(AND(AC20=""),"",IF(AND(AE28=""),"",(IF(AND(AM5="M109"),_xlfn.CEILING.MATH(AC72),IF(AND(AM5="M114"),_xlfn.CEILING.MATH(AC73),(IF(AND(AM5="M119"),2*(IF(AND(AE28=1),VLOOKUP(AC19,'[2]CG 1 Tab 6'!A4:F344,6,FALSE),IF(AND(AE28=2),VLOOKUP(AC19,'[2]CG 2 Tab 6'!A4:F404,6,FALSE),IF(AND(AE28=3),VLOOKUP(AC19,'[2]CG 3 Tab 6'!A3:F473,6,FALSE),IF(AND(AE28=4),VLOOKUP(AC19,'[2]CG 4 Tab 6'!A3:F623,6,FALSE),IF(AND(AE28=5),VLOOKUP(AC19,'[2]CG 5 Tab 6'!A3:F793,6,FALSE),IF(AND(AE28=6),VLOOKUP(AC19,'[2]CG 6 Tab 6'!A3:F943,6,FALSE),IF(AND(AE28=7),VLOOKUP(AC19,'[2]CG 7 Tab 6'!A3:F1143,6,FALSE))))))))))))))))) -> 6 | AE34: =IF(AC19="","",IF(AND(AC20=""),"",IF(AND(AE28=""),"",IF(AND(F29=""),"",(IF(AND(AM5="M109"),_xlfn.CEILING.MATH(AE72),IF(AND(AM5="M114"),_xlfn.CEILING.MATH(AE73),(IF(AND(AM5="M119"),2*(IF(AND(AE28=1),VLOOKUP(AC19,'[2]CG 1 Tab 6'!A4:F344,6,FALSE),IF(AND(AE28=2),VLOOKUP(AC19,'[2]CG 2 Tab 6'!A4:F404,6,FALSE),IF(AND(AE28=3),VLOOKUP(AC19,'[2]CG 3 Tab 6'!A3:F473,6,FALSE),IF(AND(AE28=4),VLOOKUP(AC19,'[2]CG 4 Tab 6'!A3:F623,6,FALSE),IF(AND(AE28=5),VLOOKUP(AC19,'[2]CG 5 Tab 6'!A3:F793,6,FALSE),IF(AND(AE28=6),VLOOKUP(AC19,'[2]CG 6 Tab 6'!A3:F943,6,FALSE),IF(AND(AE28=7),VLOOKUP(AC19,'[2]CG 7 Tab 6'!A3:F1143,6,FALSE)))))))))))))))))) -> 6
C35: Elev Min | I35: =IF(AND(AM5=""),"",IF(I20="","",IF(AND(I19=""),"",IF(AND(AM5="M109",K28=1,K28=2,K28=3,K28=4,K28=5,K28=6),"",IF(AND(AM5="M114",K28=1,K28=2,K28=3,K28=4,K28=5,K28=6),"",IF(AND(AM5="M119",K28<>1,K28<>2,K28<>3,K28<>4,K28<>5,K28<>6),"",(IF(K28="","",I30+I31+I32+I33+I34)))))))) -> 96 | K35: =IF(I20="","",IF(AND(I19=""),"",IF(AND(F29=""),"",IF(AND(AM5=""),"",(IF(AND(F29<>"",K28=""),"",IF(AND(F29="Situação de Paz",K28<>""),"--",IF(AND(F29<>"Situação de Paz",F29<>""),K30+K31+K32+K33+K34,IF(AND(AM5="M109",K28=1,K28=2,K28=3,K28=4,K28=5,K28=6),"",IF(AND(AM5="M114",K28=1,K28=2,K28=3,K28=4,K28=5,K28=6),"",IF(AND(AM5="M119",K28<>1,K28<>2,K28<>3,K28<>4,K28<>5,K28<>6),""))))))))))) -> 605 | M35: =IF(AND(AM5=""),"",IF(M19="","",IF(AND(M20=""),"",IF(AND(AM5="M109",O28=1,O28=2,O28=3,O28=4,O28=5,O28=6),"",IF(AND(AM5="M114",O28=1,O28=2,O28=3,O28=4,O28=5,O28=6),"",IF(AND(AM5="M119",O28<>1,O28<>2,O28<>3,O28<>4,O28<>5,O28<>6),"",IF(O28="","",M30+M31+M32+M33+M34))))))) -> 77 | O35: =IF(M20="","",IF(AND(M19=""),"",IF(AND(F29=""),"",IF(AND(AM5=""),"",(IF(AND(F29<>"",O28=""),"",IF(AND(F29="Situação de Paz",O28<>""),"--",IF(AND(F29<>"Situação de Paz",F29<>""),O30+O31+O32+O33+O34,IF(AND(AM5="M109",O28=1,O28=2,O28=3,O28=4,O28=5,O28=6),"",IF(AND(AM5="M114",O28=1,O28=2,O28=3,O28=4,O28=5,O28=6),"",IF(AND(AM5="M119",O28<>1,O28<>2,O28<>3,O28<>4,O28<>5,O28<>6),""))))))))))) -> 635 | Q35: =IF(Q19="","",IF(AND(Q20=""),"",IF(AND(AM5=""),"",IF(AND(AM5="M109",S28=1,S28=2,S28=3,S28=4,S28=5,S28=6),"",IF(AND(AM5="M114",S28=1,S28=2,S28=3,S28=4,S28=5,S28=6),"",IF(AND(AM5="M119",S28<>1,S28<>2,S28<>3,S28<>4,S28<>5,S28<>6),"",IF(S28="","",Q30+Q31+Q32+Q33+Q34))))))) -> 87 | S35: =IF(Q19="","",IF(F29="","",IF(AND(Q20=""),"",IF(AND(AM5=""),"",(IF(AND(F29<>"",S28=""),"",IF(AND(F29="Situação de Paz",S28<>""),"--",IF(AND(F29<>"Situação de Paz",F29<>""),S30+S31+S32+S33+S34,IF(AND(AM5="M109",S28=1,S28=2,S28=3,S28=4,S28=5,S28=6),"",IF(AND(AM5="M114",S28=1,S28=2,S28=3,S28=4,S28=5,S28=6),"",IF(AND(AM5="M119",S28<>1,S28<>2,S28<>3,S28<>4,S28<>5,S28<>6),""))))))))))) -> 645 | U35: =IF(U19="","",IF(AND(U20=""),"",IF(AND(AM5=""),"",IF(AND(AM5="M109",W28=1,W28=2,W28=3,W28=4,W28=5,W28=6),"",IF(AND(AM5="M114",W28=1,W28=2,W28=3,W28=4,W28=5,W28=6),"",IF(AND(AM5="M119",W28<>1,W28<>2,W28<>3,W28<>4,W28<>5,W28<>6),"",IF(W28="","",U30+U31+U32+U33+U34))))))) -> 77 | W35: =IF(U19="","",IF(F29="","",IF(AND(U20=""),"",IF(AND(AM5=""),"",(IF(AND(F29<>"",W28=""),"",IF(AND(F29="Situação de Paz",W28<>""),"--",IF(AND(F29<>"Situação de Paz",F29<>""),W30+W31+W32+W33+W34,IF(AND(AM5="M109",W28=1,W28=2,W28=3,W28=4,W28=5,W28=6),"",IF(AND(AM5="M114",W28=1,W28=2,W28=3,W28=4,W28=5,W28=6),"",IF(AND(AM5="M119",W28<>1,W28<>2,W28<>3,W28<>4,W28<>5,W28<>6),""))))))))))) -> 609 | Y35: =IF(Y19="","",IF(AND(Y20=""),"",IF(AND(AM5=""),"",IF(AND(AM5="M109",AA28=1,AA28=2,AA28=3,AA28=4,AA28=5,AA28=6),"",IF(AND(AM5="M114",AA28=1,AA28=2,AA28=3,AA28=4,AA28=5,AA28=6),"",IF(AND(AM5="M119",AA28<>1,AA28<>2,AA28<>3,AA28<>4,AA28<>5,AA28<>6),"",IF(AA28="","",Y30+Y31+Y32+Y33+Y34))))))) -> 87 | AA35: =IF(Y19="","",IF(F29="","",IF(AND(Y20=""),"",IF(AND(AM5=""),"",(IF(AND(F29<>"",AA28=""),"",IF(AND(F29="Situação de Paz",AA28<>""),"--",IF(AND(F29<>"Situação de Paz",F29<>""),AA30+AA31+AA32+AA33+AA34,IF(AND(AM5="M109",AA28=1,AA28=2,AA28=3,AA28=4,AA28=5,AA28=6),"",IF(AND(AM5="M114",AA28=1,AA28=2,AA28=3,AA28=4,AA28=5,AA28=6),"",IF(AND(AM5="M119",AA28<>1,AA28<>2,AA28<>3,AA28<>4,AA28<>5,AA28<>6),""))))))))))) -> 645 | AC35: =IF(AC19="","",IF(AND(AC20=""),"",IF(AND(AM5=""),"",IF(AND(AM5="M109",AE28=1,AE28=2,AE28=3,AE28=4,AE28=5,AE28=6),"",IF(AND(AM5="M114",AE28=1,AE28=2,AE28=3,AE28=4,AE28=5,AE28=6),"",IF(AND(AM5="M119",AE28<>1,AE28<>2,AE28<>3,AE28<>4,AE28<>5,AE28<>6),"",IF(AE28="","",AC30+AC31+AC32+AC33+AC34))))))) -> 97 | AE35: =IF(AC19="","",IF(F29="","",IF(AND(AC20=""),"",IF(AND(AM5=""),"",(IF(AND(F29<>"",AE28=""),"",IF(AND(F29="Situação de Paz",AE28<>""),"--",IF(AND(F29<>"Situação de Paz",F29<>""),AE30+AE31+AE32+AE33+AE34,IF(AND(AM5="M109",AE28=1,AE28=2,AE28=3,AE28=4,AE28=5,AE28=6),"",IF(AND(AM5="M114",AE28=1,AE28=2,AE28=3,AE28=4,AE28=5,AE28=6),"",IF(AND(AM5="M119",AE28<>1,AE28<>2,AE28<>3,AE28<>4,AE28<>5,AE28<>6),""""))))))))))) -> 629 | AG35: =IF(AND(K22="",O22="",S22="",W22="",AA22="",AE22=""),"",IF(AND(K22<>""),K22,IF(AND(O22<>""),O22,IF(AND(S22<>""),S22,IF(AND(W22<>""),W22,IF(AND(AA22<>""),AA22,IF(AND(AE22<>""),AE22))))))) ->  | AH35: =IF(AND(K23="",O23="",S23="",W23="",AA23="",AE23=""),"",IF(AND(K23<>""),K23,IF(AND(O23<>""),O23,IF(AND(S23<>""),S23,IF(AND(W23<>""),W23,IF(AND(AA23<>""),AA23,IF(AND(AE23<>""),AE23))))))) ->  | AI35: =IF(AND(K24="",O24="",S24="",W24="",AA24="",AE24=""),"",K24+O24+S24+W24+AA24+AE24) ->  | AK35: =IF(AND(AM5="M119"),"--","") -> -- | AL35: =IF(AND(AM5="M119"),"--","") -> -- | AM35: =IF(AND(AM5="M119"),"--","") -> --
C36: Dur Trajeto <> alça | I36: =IF(I20="","",IF(AND(I19=""),"",IF(AND(I35=""),"",(IF(AND(AM5="M109"),I74,IF(AND(AM5="M114"),I75,(IF(AND(AM5="M119"),_xlfn.CEILING.MATH(IF(AND(K28=1),VLOOKUP(I19,'[2]CG 1 Tab 6'!A4:G344,7,FALSE),IF(AND(K28=2),VLOOKUP(I19,'[2]CG 2 Tab 6'!A4:G404,7,FALSE),IF(AND(K28=3),VLOOKUP(I19,'[2]CG 3 Tab 6'!A3:G473,7,FALSE),IF(AND(K28=4),VLOOKUP(I19,'[2]CG 4 Tab 6'!A3:G623,7,FALSE),IF(AND(K28=5),VLOOKUP(I19,'[2]CG 5 Tab 6'!A3:G793,7,FALSE),IF(AND(K28=6),VLOOKUP(I19,'[2]CG 6 Tab 6'!A3:G943,7,FALSE),IF(AND(K28=7),VLOOKUP(I19,'[2]CG 7 Tab 6'!A3:G1143,7,FALSE))))))))))))))))) -> 1 | K36: =IF(I20="","",IF(AND(I19=""),"",IF(AND(F29=""),"",IF(AND(K35=""),"",IF(AND(K28=""),"",IF(AND(AM5="M109"),(K74),IF(AND(AM5="M114"),_xlfn.CEILING.MATH(K75),IF(AND(AM5="M119"),_xlfn.CEILING.MATH(IF(AND(K28=1),VLOOKUP(I19,'[2]CG 1 Tab 6'!A4:G344,7,FALSE),IF(AND(K28=2),VLOOKUP(I19,'[2]CG 2 Tab 6'!A4:G404,7,FALSE),IF(AND(K28=3),VLOOKUP(I19,'[2]CG 3 Tab 6'!A3:G473,7,FALSE),IF(AND(K28=4),VLOOKUP(I19,'[2]CG 4 Tab 6'!A3:G623,7,FALSE),IF(AND(K28=5),VLOOKUP(I19,'[2]CG 5 Tab 6'!A3:G793,7,FALSE),IF(AND(K28=6),VLOOKUP(I19,'[2]CG 6 Tab 6'!A3:G943,7,FALSE),IF(AND(K28=7),VLOOKUP(I19,'[2]CG 7 Tab 6'!A3:G1143,7,FALSE))))))))))))))))) -> 1 | M36: =IF(M20="","",IF(AND(M19=""),"",IF(AND(M35=""),"",IF(AND(O28=""),"",(IF(AND(AM5="M109"),M74,IF(AND(AM5="M114"),M75,(IF(AND(AM5="M119"),_xlfn.CEILING.MATH(IF(AND(O28=1),VLOOKUP(M19,'[2]CG 1 Tab 6'!A4:G344,7),IF(AND(O28=2),VLOOKUP(M19,'[2]CG 2 Tab 6'!A4:G404,7),IF(AND(O28=3),VLOOKUP(M19,'[2]CG 3 Tab 6'!A3:G473,7),IF(AND(O28=4),VLOOKUP(M19,'[2]CG 4 Tab 6'!A3:G623,7),IF(AND(O28=5),VLOOKUP(M19,'[2]CG 5 Tab 6'!A3:G793,7),IF(AND(O28=6),VLOOKUP(M19,'[2]CG 6 Tab 6'!A3:G943,7),IF(AND(O28=7),VLOOKUP(M19,'[2]CG 7 Tab 6'!A3:G1143,7)))))))))))))))))) -> 1 | O36: =IF(M20="","",IF(AND(M19=""),"",IF(AND(F29=""),"",IF(AND(O35=""),"",IF(AND(O28=""),"",(IF(AND(AM5="M109"),O74,IF(AND(AM5="M114"),O75,IF(AND(AM5="M119"),_xlfn.CEILING.MATH(IF(AND(O28=1),VLOOKUP(M19,'[2]CG 1 Tab 6'!A4:G344,7,FALSE),IF(AND(O28=2),VLOOKUP(M19,'[2]CG 2 Tab 6'!A4:G404,7,FALSE),IF(AND(O28=3),VLOOKUP(M19,'[2]CG 3 Tab 6'!A3:G473,7,FALSE),IF(AND(O28=4),VLOOKUP(M19,'[2]CG 4 Tab 6'!A3:G623,7,FALSE),IF(AND(O28=5),VLOOKUP(M19,'[2]CG 5 Tab 6'!A3:G793,7,FALSE),IF(AND(O28=6),VLOOKUP(M19,'[2]CG 6 Tab 6'!A3:G943,7,FALSE),IF(AND(O28=7),VLOOKUP(M19,'[2]CG 7 Tab 6'!A3:G1143,7,FALSE)))))))))))))))))) -> 1 | Q36: =IF(Q20="","",IF(AND(Q19=""),"",IF(AND(Q35=""),"",(IF(AND(AM5="M109"),(Q74),IF(AND(AM5="M114"),_xlfn.CEILING.MATH(Q75),IF(AND(S28=""),"",IF(AND(AM5="M119"),_xlfn.CEILING.MATH(IF(AND(S28=1),VLOOKUP(Q19,'[2]CG 1 Tab 6'!A4:G344,7,FALSE),IF(AND(S28=2),VLOOKUP(Q19,'[2]CG 2 Tab 6'!A4:G404,7,FALSE),IF(AND(S28=3),VLOOKUP(Q19,'[2]CG 3 Tab 6'!A3:G473,7,FALSE),IF(AND(S28=4),VLOOKUP(Q19,'[2]CG 4 Tab 6'!A3:G623,7,FALSE),IF(AND(S28=5),VLOOKUP(Q19,'[2]CG 5 Tab 6'!A3:G793,7,FALSE),IF(AND(S28=6),VLOOKUP(Q19,'[2]CG 6 Tab 6'!A3:G943,7,FALSE),IF(AND(S28=7),VLOOKUP(Q19,'[2]CG 7 Tab 6'!A3:G1143,7,FALSE))))))))))))))))) -> 1 | S36: =IF(Q20="","",IF(AND(Q19=""),"",IF(AND(F29=""),"",IF(AND(S35=""),"",IF(AND(S28=""),"",(IF(AND(AM5="M109"),(S74),IF(AND(AM5="M114"),_xlfn.CEILING.MATH(S75),IF(AND(AM5="M119"),_xlfn.CEILING.MATH(IF(AND(S28=1),VLOOKUP(Q19,'[2]CG 1 Tab 6'!A4:G344,7,FALSE),IF(AND(S28=2),VLOOKUP(Q19,'[2]CG 2 Tab 6'!A4:G404,7,FALSE),IF(AND(S28=3),VLOOKUP(Q19,'[2]CG 3 Tab 6'!A3:G473,7,FALSE),IF(AND(S28=4),VLOOKUP(Q19,'[2]CG 4 Tab 6'!A3:G623,7,FALSE),IF(AND(S28=5),VLOOKUP(Q19,'[2]CG 5 Tab 6'!A3:G793,7,FALSE),IF(AND(S28=6),VLOOKUP(Q19,'[2]CG 6 Tab 6'!A3:G943,7,FALSE),IF(AND(S28=7),VLOOKUP(Q19,'[2]CG 7 Tab 6'!A3:G1143,7,FALSE)))))))))))))))))) -> 1 | U36: =IF(U20="","",IF(AND(U19=""),"",IF(AND(U35=""),"",(IF(AND(AM5="M109"),(U74),IF(AND(AM5="M114"),(U75),IF(AND(W28=""),"",IF(AND(AM5="M119"),(IF(AND(W28=1),VLOOKUP(U19,'[2]CG 1 Tab 6'!A4:G344,7,FALSE),IF(AND(W28=2),VLOOKUP(U19,'[2]CG 2 Tab 6'!A4:G404,7,FALSE),IF(AND(W28=3),VLOOKUP(U19,'[2]CG 3 Tab 6'!A3:G473,7,FALSE),IF(AND(W28=4),VLOOKUP(U19,'[2]CG 4 Tab 6'!A3:G623,7,FALSE),IF(AND(W28=5),VLOOKUP(U19,'[2]CG 5 Tab 6'!A3:G793,7,FALSE),IF(AND(W28=6),VLOOKUP(U19,'[2]CG 6 Tab 6'!A3:G943,7,FALSE),IF(AND(W28=7),VLOOKUP(U19,'[2]CG 7 Tab 6'!A3:G1143,7,FALSE))))))))))))))))) -> 0.78 | W36: =IF(U20="","",IF(AND(U19=""),"",IF(AND(F29=""),"",IF(AND(W35=""),"",IF(AND(W28=""),"",(IF(AND(AM5="M109"),(W74),IF(AND(AM5="M114"),(W75),IF(AND(AM5="M119"),(IF(AND(W28=1),VLOOKUP(U19,'[2]CG 1 Tab 6'!A4:G344,7,FALSE),IF(AND(W28=2),VLOOKUP(U19,'[2]CG 2 Tab 6'!A4:G404,7,FALSE),IF(AND(W28=3),VLOOKUP(U19,'[2]CG 3 Tab 6'!A3:G473,7,FALSE),IF(AND(W28=4),VLOOKUP(U19,'[2]CG 4 Tab 6'!A3:G623,7,FALSE),IF(AND(W28=5),VLOOKUP(U19,'[2]CG 5 Tab 6'!A3:G793,7,FALSE),IF(AND(W28=6),VLOOKUP(U19,'[2]CG 6 Tab 6'!A3:G943,7,FALSE),IF(AND(W28=7),VLOOKUP(U19,'[2]CG 7 Tab 6'!A3:G1143,7,FALSE)))))))))))))))))) -> 0.78 | Y36: =IF(Y20="","",IF(AND(Y19=""),"",IF(AND(Y35=""),"",(IF(AND(AM5="M109"),(Y74),IF(AND(AM5="M114"),(Y75),IF(AND(AA28=""),"",IF(AND(AM5="M119"),(IF(AND(AA28=1),VLOOKUP(Y19,'[2]CG 1 Tab 6'!A4:G344,7,FALSE),IF(AND(AA28=2),VLOOKUP(Y19,'[2]CG 2 Tab 6'!A4:G404,7,FALSE),IF(AND(AA28=3),VLOOKUP(Y19,'[2]CG 3 Tab 6'!A3:G473,7,FALSE),IF(AND(AA28=4),VLOOKUP(Y19,'[2]CG 4 Tab 6'!A3:G623,7,FALSE),IF(AND(AA28=5),VLOOKUP(Y19,'[2]CG 5 Tab 6'!A3:G793,7,FALSE),IF(AND(AA28=6),VLOOKUP(Y19,'[2]CG 6 Tab 6'!A3:G943,7,FALSE),IF(AND(AA28=7),VLOOKUP(Y19,'[2]CG 7 Tab 6'!A3:G1143,7,FALSE))))))))))))))))) -> 0.74 | AA36: =IF(Y20="","",IF(AND(Y19=""),"",IF(AND(F29=""),"",IF(AND(AA35=""),"",IF(AND(AA28=""),"",(IF(AND(AM5="M109"),(AA74),IF(AND(AM5="M114"),(AA75),IF(AND(AM5="M119"),(IF(AND(AA28=1),VLOOKUP(Y19,'[2]CG 1 Tab 6'!A4:G344,7,FALSE),IF(AND(AA28=2),VLOOKUP(Y19,'[2]CG 2 Tab 6'!A4:G404,7,FALSE),IF(AND(AA28=3),VLOOKUP(Y19,'[2]CG 3 Tab 6'!A3:G473,7,FALSE),IF(AND(AA28=4),VLOOKUP(Y19,'[2]CG 4 Tab 6'!A3:G623,7,FALSE),IF(AND(AA28=5),VLOOKUP(Y19,'[2]CG 5 Tab 6'!A3:G793,7,FALSE),IF(AND(AA28=6),VLOOKUP(Y19,'[2]CG 6 Tab 6'!A3:G943,7,FALSE),IF(AND(AA28=7),VLOOKUP(Y19,'[2]CG 7 Tab 6'!A3:G1143,7,FALSE)))))))))))))))))) -> 0.74 | AC36: =IF(AC20="","",IF(AND(AC19=""),"",IF(AND(AC35=""),"",(IF(AND(AM5="M109"),(AC74),IF(AND(AM5="M114"),(AC75),IF(AND(AE28=""),"",IF(AND(AM5="M119"),(IF(AND(AE28=1),VLOOKUP(AC19,'[2]CG 1 Tab 6'!A4:G344,7,FALSE),IF(AND(AE28=2),VLOOKUP(AC19,'[2]CG 2 Tab 6'!A4:G404,7,FALSE),IF(AND(AE28=3),VLOOKUP(AC19,'[2]CG 3 Tab 6'!A3:G473,7,FALSE),IF(AND(AE28=4),VLOOKUP(AC19,'[2]CG 4 Tab 6'!A3:G623,7,FALSE),IF(AND(AE28=5),VLOOKUP(AC19,'[2]CG 5 Tab 6'!A3:G793,7,FALSE),IF(AND(AE28=6),VLOOKUP(AC19,'[2]CG 6 Tab 6'!A3:G943,7,FALSE),IF(AND(AE28=7),VLOOKUP(AC19,'[2]CG 7 Tab 6'!A3:G1143,7,FALSE))))))))))))))))) -> 0.78 | AE36: =IF(AC20="","",IF(AND(AC19=""),"",IF(AND(F29=""),"",IF(AND(AE35=""),"",IF(AND(AE28=""),"",(IF(AND(AM5="M109"),(AE74),IF(AND(AM5="M114"),(AE75),IF(AND(AM5="M119"),(IF(AND(AE28=1),VLOOKUP(AC19,'[2]CG 1 Tab 6'!A4:G344,7,FALSE),IF(AND(AE28=2),VLOOKUP(AC19,'[2]CG 2 Tab 6'!A4:G404,7,FALSE),IF(AND(AE28=3),VLOOKUP(AC19,'[2]CG 3 Tab 6'!A3:G473,7,FALSE),IF(AND(AE28=4),VLOOKUP(AC19,'[2]CG 4 Tab 6'!A3:G623,7,FALSE),IF(AND(AE28=5),VLOOKUP(AC19,'[2]CG 5 Tab 6'!A3:G793,7,FALSE),IF(AND(AE28=6),VLOOKUP(AC19,'[2]CG 6 Tab 6'!A3:G943,7,FALSE),IF(AND(AE28=7),VLOOKUP(AC19,'[2]CG 7 Tab 6'!A3:G1143,7,FALSE)))))))))))))))))) -> 0.78
C37: Dur Trajeto + 5,5 seg | I37: =IF(I20="","",IF(AND(I19=""),"",IF(AND(I36=""),"",IF(K28="","",I36+5.5)))) -> 6.5 | K37: =IF(I20="","",IF(AND(I19=""),"",IF(AND(K36=""),"",IF(K28="","",K36+5.5)))) -> 6.5 | M37: =IF(M20="","",IF(AND(M19=""),"",IF(AND(M36=""),"",IF(O28="","",M36+5.5)))) -> 6.5 | O37: =IF(M20="","",IF(AND(M19=""),"",IF(AND(O36=""),"",IF(O28="","",O36+5.5)))) -> 6.5 | Q37: =IF(Q20="","",IF(AND(Q19=""),"",IF(AND(Q36=""),"",IF(S28="","",Q36+5.5)))) -> 6.5 | S37: =IF(Q20="","",IF(AND(Q19=""),"",IF(AND(S36=""),"",IF(S28="","",S36+5.5)))) -> 6.5 | U37: =IF(U20="","",IF(AND(U19=""),"",IF(AND(U36=""),"",IF(W28="","",U36+5.5)))) -> 6.28 | W37: =IF(U20="","",IF(AND(U19=""),"",IF(AND(W36=""),"",IF(W28="","",W36+5.5)))) -> 6.28 | Y37: =IF(Y20="","",IF(AND(Y19=""),"",IF(AND(Y36=""),"",IF(AA28="","",Y36+5.5)))) -> 6.24 | AA37: =IF(Y20="","",IF(AND(Y19=""),"",IF(AND(AA36=""),"",IF(AA28="","",AA36+5.5)))) -> 6.24 | AC37: =IF(AC20="","",IF(AND(AC19=""),"",IF(AND(AC36=""),"",IF(AE28="","",AC36+5.5)))) -> 6.28 | AE37: =IF(AC20="","",IF(AND(AC19=""),"",IF(AND(AE36=""),"",IF(AE28="","",AE36+5.5)))) -> 6.28
C38: GESM | I38: =IF(I20="","",IF(AND(I19=""),"",IF(AND(I36=""),"",IF(K28="","",_xlfn.CEILING.MATH(I37))))) -> 7 | K38: =IF(I20="","",IF(AND(I19=""),"",IF(AND(K36=""),"",IF(AND(AM5=""),"",IF(AND(F29="Situação de Paz"),"--",IF(K28="","",_xlfn.CEILING.MATH(K37))))))) -> 7 | M38: =IF(M20="","",IF(AND(M19=""),"",IF(AND(M36=""),"",IF(AND(AM5=""),"",IF(O28="","",_xlfn.CEILING.MATH(M37)))))) -> 7 | O38: =IF(M20="","",IF(AND(M19=""),"",IF(AND(O36=""),"",IF(AND(AM5=""),"",IF(AND(F29="Situação de Paz"),"--",IF(O28="","",_xlfn.CEILING.MATH(O37))))))) -> 7 | Q38: =IF(Q20="","",IF(AND(Q19=""),"",IF(AND(Q36=""),"",IF(AND(AM5=""),"",IF(S28="","",_xlfn.CEILING.MATH(Q37)))))) -> 7 | S38: =IF(Q20="","",IF(AND(Q19=""),"",IF(AND(S36=""),"",IF(AND(AM5=""),"",IF(AND(F29="Situação de Paz"),"--",IF(S28="","",_xlfn.CEILING.MATH(S37))))))) -> 7 | U38: =IF(U20="","",IF(AND(U19=""),"",IF(AND(U36=""),"",IF(AND(AM5=""),"",IF(W28="","",_xlfn.CEILING.MATH(U37)))))) -> 7 | W38: =IF(U20="","",IF(AND(U19=""),"",IF(AND(W36=""),"",IF(AND(AM5=""),"",IF(AND(F29="Situação de Paz"),"--",IF(W28="","",_xlfn.CEILING.MATH(W37))))))) -> 7 | Y38: =IF(Y20="","",IF(AND(Y19=""),"",IF(AND(Y36=""),"",IF(AND(AM5=""),"",IF(AA28="","",_xlfn.CEILING.MATH(Y37)))))) -> 7 | AA38: =IF(Y20="","",IF(AND(Y19=""),"",IF(AND(AA36=""),"",IF(AND(AM5=""),"",IF(AND(F29="Situação de Paz"),"--",IF(AA28="","",_xlfn.CEILING.MATH(AA37))))))) -> 7 | AC38: =IF(AC20="","",IF(AND(AC19=""),"",IF(AND(AC36=""),"",IF(AND(AM5=""),"",IF(AE28="","",_xlfn.CEILING.MATH(AC37)))))) -> 7 | AE38: =IF(AC20="","",IF(AND(AC19=""),"",IF(AND(AE36=""),"",IF(AND(AM5=""),"",IF(AND(F29="Situação de Paz"),"--",IF(AE28="","",_xlfn.CEILING.MATH(AE37))))))) -> 7 | AG38: =IF(AND(L22="",P22="",T22="",X22="",AB22="",AF22=""),"",IF(AND(L22<>""),L22,IF(AND(P22<>""),P22,IF(AND(T22<>""),T22,IF(AND(X22<>""),X22,IF(AND(AB22<>""),AB22,IF(AND(AF22<>""),AF22))))))) ->  | AH38: =IF(AND(L23="",P23="",T23="",X23="",AB23="",AF23=""),"",IF(AND(L23<>""),L23,IF(AND(P23<>""),P23,IF(AND(T23<>""),T23,IF(AND(X23<>""),X23,IF(AND(AB23<>""),AB23,IF(AND(AF23<>""),AF23))))))) ->  | AI38: =IF(AND(L24="",P24="",T24="",X24="",AB24="",AF24=""),"",L24+P24+T24+X24+AB24+AF24) ->  | AK38: =IF(AND(AM5="M119"),"--","") -> -- | AL38: =IF(AND(AM5="M119"),"--","") -> -- | AM38: =IF(AND(AM5="M119"),"--","") -> --
I39: Carga | K39: 5 | M39: Carga | O39: 5 | Q39: Carga | S39: 5 | U39: Carga | W39: 5 | Y39: Carga | AA39: 5 | AC39: Carga | AE39: 5 | AG39: LIMITES LATERAIS SEM CONTEIRAR
C40: ∡ A ( Ang Si à crista) | I40: =IF(AND(AM5=""),"",IF(I20="","",I20)) -> 50 | K40: =IF(AND(I19=""),"",IF(AND(F29=""),"",IF(K39="","",IF(I20="","",I20)))) -> 50 | M40: =IF(AND(AM5=""),"",IF(M20="","",M20)) -> 30 | O40: =IF(O39="","",IF(AND(M19=""),"",IF(F29="","",IF(M20="","",M20)))) -> 30 | Q40: =IF(Q20="","",Q20) -> 40 | S40: =IF(S39="","",IF(AND(Q19=""),"",IF(F29="","",IF(Q20="","",Q20)))) -> 40 | U40: =IF(U20="","",U20) -> 30 | W40: =IF(W39="","",IF(AND(U19=""),"",IF(F29="","",IF(U20="","",U20)))) -> 30 | Y40: =IF(Y20="","",Y20) -> 40 | AA40: =IF(AA39="","",IF(AND(Y19=""),"",IF(F29="","",IF(Y20="","",Y20)))) -> 40 | AC40: =IF(AC20="","",AC20) -> 50 | AE40: =IF(AE39="","",IF(AND(AC19=""),"",IF(F29="","",IF(AC20="","",AC20)))) -> 50
I41: =IF(AND(AM5=""),"",IF(I19="","",_xlfn.CEILING.MATH((5*1.0186)/(I19*0.001)))) -> 23 | K41: =IF(I19="","",IF(AND(I20=""),"",IF(F29="","",_xlfn.CEILING.MATH(IF(AND(F29="Normal"),(70*1.0186)/(I19*0.001),IF(AND(F29="Situação de Guerra"),(70*1.0186)/(I19*0.001),IF(AND(F29="Água ou Neve"),(170*1.0186)/(I19*0.001),IF(AND(F29="Arborizado, Húmido ou Pantanoso"),(120*1.0186)/(I19*0.001))))))))) -> 532 | M41: =IF(AND(AM5=""),"",IF(M19="","",_xlfn.CEILING.MATH((5*1.0186)/(M19*0.001)))) -> 25 | O41: =IF(M19="","",IF(AND(M20=""),"",IF(F29="","",_xlfn.CEILING.MATH(IF(AND(F29="Normal"),(70*1.0186)/(M19*0.001),IF(AND(F29="Situação de Guerra"),(70*1.0186)/(M19*0.001),IF(AND(F29="Água ou Neve"),(170*1.0186)/(M19*0.001),IF(AND(F29="Arborizado, Húmido ou Pantanoso"),(120*1.0186)/(M19*0.001))))))))) -> 583 | Q41: =IF(Q19="","",_xlfn.CEILING.MATH((5*1.0186)/(Q19*0.001))) -> 25 | S41: =IF(Q19="","",IF(AND(Q20=""),"",IF(F29="","",_xlfn.CEILING.MATH(IF(AND(F29="Normal"),(70*1.0186)/(Q19*0.001),IF(AND(F29="Situação de Guerra"),(70*1.0186)/(Q19*0.001),IF(AND(F29="Água ou Neve"),(170*1.0186)/(Q19*0.001),IF(AND(F29="Arborizado, Húmido ou Pantanoso"),(120*1.0186)/(Q19*0.001))))))))) -> 583 | U41: =IF(U19="","",_xlfn.CEILING.MATH((5*1.0186)/(U19*0.001))) -> 24 | W41: =IF(U19="","",IF(AND(U20=""),"",IF(F29="","",_xlfn.CEILING.MATH(IF(AND(F29="Normal"),(70*1.0186)/(U19*0.001),IF(AND(F29="Situação de Guerra"),(70*1.0186)/(U19*0.001),IF(AND(F29="Água ou Neve"),(170*1.0186)/(U19*0.001),IF(AND(F29="Arborizado, Húmido ou Pantanoso"),(120*1.0186)/(U19*0.001))))))))) -> 556 | Y41: =IF(Y19="","",_xlfn.CEILING.MATH((5*1.0186)/(Y19*0.001))) -> 25 | AA41: =IF(Y19="","",IF(AND(Y20=""),"",IF(F29="","",_xlfn.CEILING.MATH(IF(AND(F29="Normal"),(70*1.0186)/(Y19*0.001),IF(AND(F29="Situação de Guerra"),(70*1.0186)/(Y19*0.001),IF(AND(F29="Água ou Neve"),(170*1.0186)/(Y19*0.001),IF(AND(F29="Arborizado, Húmido ou Pantanoso"),(120*1.0186)/(Y19*0.001))))))))) -> 583 | AC41: =IF(AC19="","",_xlfn.CEILING.MATH((5*1.0186)/(AC19*0.001))) -> 24 | AE41: =IF(AC19="","",IF(AND(AC20=""),"",IF(F29="","",_xlfn.CEILING.MATH(IF(AND(F29="Normal"),(70*1.0186)/(AC19*0.001),IF(AND(F29="Situação de Guerra"),(70*1.0186)/(AC19*0.001),IF(AND(F29="Água ou Neve"),(170*1.0186)/(AC19*0.001),IF(AND(F29="Arborizado, Húmido ou Pantanoso"),(120*1.0186)/(AC19*0.001))))))))) -> 556
C42: ∡ C (CCAS) | I42: =IF(I20="","",IF(AND(I19=""),"",IF(AND(K39=""),"",IF(AND(AM5=""),"",(IF(AND(AM5="M109"),_xlfn.CEILING.MATH(I77),IF(AND(AM5="M114"),_xlfn.CEILING.MATH(I78),(IF(AND(AM5="M119"),_xlfn.CEILING.MATH((I40+I41)*IF(AND(K39=1),VLOOKUP(I19,'[2]CG 1 Tab 8'!A5:L345,12),IF(AND(K39=2),VLOOKUP(I19,'[2]CG 2 Tab 8'!A5:L405,12),IF(AND(K39=3),VLOOKUP(I19,'[2]CG 3 Tab 8'!A4:L474,12),IF(AND(K39=4),VLOOKUP(I19,'[2]CG 4 Tab 8'!A4:L624,12),IF(AND(K39=5),VLOOKUP(I19,'[2]CG 5 Tab 8'!A4:L794,12),IF(AND(K39=6),VLOOKUP(I19,'[2]CG 6 Tab 8'!A4:L944,12),IF(AND(K39=7),VLOOKUP(I19,'[2]CG 7 Tab 8'!A4:L1144,12)))))))))))))))))) -> 1 | K42: =IF(I20="","",IF(AND(I19=""),"",IF(AND(F29=""),"",IF(K39="","",IF(AND(AM5="M109"),_xlfn.CEILING.MATH(K77),IF(AND(AM5="M114"),_xlfn.CEILING.MATH(K78),(IF(AND(AM5="M119"),_xlfn.CEILING.MATH((K40+K41)*IF(AND(K39=1),VLOOKUP(I19,'[2]CG 3 Tab 8'!A4:L474,12,FALSE),IF(AND(K39=2),VLOOKUP(I19,'[2]CG 2 Tab 8'!A5:L405,12,FALSE),IF(AND(K39=3),VLOOKUP(I19,'[2]CG 3 Tab 8'!A4:L474,12,FALSE),IF(AND(K39=4),VLOOKUP(I19,'[2]CG 4 Tab 8'!A4:L624,12,FALSE),IF(AND(K39=5),VLOOKUP(I19,'[2]CG 5 Tab 8'!A4:L794,12,FALSE),IF(AND(K39=6),VLOOKUP(I19,'[2]CG 6 Tab 8'!A4:L944,12,FALSE),IF(AND(K39=7),VLOOKUP(I19,'[2]CG 7 Tab 8'!A4:L1144,12,FALSE))))))))))))))))) -> 1 | M42: =IF(M19="","",IF(AND(M20=""),"",IF(AND(O39=""),"",IF(AND(AM5=""),"",(IF(AND(AM5="M109"),_xlfn.CEILING.MATH(M77),IF(AND(AM5="M114"),_xlfn.CEILING.MATH(M78),(IF(AND(AM5="M119"),_xlfn.CEILING.MATH((M40+M41)*IF(AND(O39=1),VLOOKUP(M19,'[2]CG 1 Tab 8'!A17:L357,12),IF(AND(O39=2),VLOOKUP(M19,'[2]CG 2 Tab 8'!A17:L417,12),IF(AND(O39=3),VLOOKUP(M19,'[2]CG 3 Tab 8'!A16:L486,12),IF(AND(O39=4),VLOOKUP(M19,'[2]CG 4 Tab 8'!A16:L636,12),IF(AND(O39=5),VLOOKUP(M19,'[2]CG 5 Tab 8'!A16:L806,12),IF(AND(O39=6),VLOOKUP(M19,'[2]CG 6 Tab 8'!A16:L956,12),IF(AND(O39=7),VLOOKUP(M19,'[2]CG 7 Tab 8'!A16:L1156,12)))))))))))))))))) -> 1 | O42: =IF(M19="","",IF(AND(M20=""),"",IF(AND(F29=""),"",IF(AND(O39=""),"",(IF(AND(AM5="M109"),_xlfn.CEILING.MATH(O77),IF(AND(AM5="M114"),_xlfn.CEILING.MATH(O78),(IF(AND(AM5="M119"),_xlfn.CEILING.MATH((O40+O41)*IF(AND(O39=1),VLOOKUP(M19,'[2]CG 1 Tab 8'!A17:L357,12,FALSE),IF(AND(O39=2),VLOOKUP(M19,'[2]CG 2 Tab 8'!A17:L417,12,FALSE),IF(AND(O39=3),VLOOKUP(M19,'[2]CG 3 Tab 8'!A16:L486,12,FALSE),IF(AND(O39=4),VLOOKUP(M19,'[2]CG 4 Tab 8'!A16:L636,12,FALSE),IF(AND(O39=5),VLOOKUP(M19,'[2]CG 5 Tab 8'!A16:L806,12,FALSE),IF(AND(O39=6),VLOOKUP(M19,'[2]CG 6 Tab 8'!A16:L956,12,FALSE),IF(AND(O39=7),VLOOKUP(M19,'[2]CG 7 Tab 8'!A16:L1156,12,FALSE)))))))))))))))))) -> 1 | Q42: =IF(Q19="","",IF(AND(Q20=""),"",IF(AND(S39=""),"",(IF(AND(AM5="M109"),_xlfn.CEILING.MATH(Q77),IF(AND(AM5="M114"),_xlfn.CEILING.MATH(Q78),(IF(AND(AM5="M119"),_xlfn.CEILING.MATH((Q41+Q40)*IF(AND(S39=1),VLOOKUP(Q19,'[2]CG 1 Tab 8'!A17:L357,12,FALSE),IF(AND(S39=2),VLOOKUP(Q19,'[2]CG 2 Tab 8'!A17:L417,12,FALSE),IF(AND(S39=3),VLOOKUP(Q19,'[2]CG 3 Tab 8'!A16:L486,12,FALSE),IF(AND(S39=4),VLOOKUP(Q19,'[2]CG 4 Tab 8'!A16:L636,12,FALSE),IF(AND(S39=5),VLOOKUP(Q19,'[2]CG 5 Tab 8'!A16:L806,12,FALSE),IF(AND(S39=6),VLOOKUP(Q19,'[2]CG 6 Tab 8'!A16:L956,12,FALSE),IF(AND(S39=7),VLOOKUP(Q19,'[2]CG 7 Tab 8'!A16:L1156,12,FALSE))))))))))))))))) -> 1 | S42: =IF(Q19="","",IF(AND(Q20=""),"",IF(F29="","",IF(AND(S39=""),"",(IF(AND(AM5="M109"),_xlfn.CEILING.MATH(S77),IF(AND(AM5="M114"),_xlfn.CEILING.MATH(S78),(IF(AND(AM5="M119"),_xlfn.CEILING.MATH((S41+S40)*IF(AND(S39=1),VLOOKUP(Q19,'[2]CG 1 Tab 8'!A17:L357,12,FALSE),IF(AND(S39=2),VLOOKUP(Q19,'[2]CG 2 Tab 8'!A17:L417,12,FALSE),IF(AND(S39=3),VLOOKUP(Q19,'[2]CG 3 Tab 8'!A16:L486,12,FALSE),IF(AND(S39=4),VLOOKUP(Q19,'[2]CG 4 Tab 8'!A16:L636,12,FALSE),IF(AND(S39=5),VLOOKUP(Q19,'[2]CG 5 Tab 8'!A16:L806,12,FALSE),IF(AND(S39=6),VLOOKUP(Q19,'[2]CG 6 Tab 8'!A16:L956,12,FALSE),IF(AND(S39=7),VLOOKUP(Q19,'[2]CG 7 Tab 8'!A16:L1156,12,FALSE)))))))))))))))))) -> 1 | U42: =IF(Q19="","",IF(AND(Q20=""),"",IF(AND(W39=""),"",(IF(AND(AM5="M109"),_xlfn.CEILING.MATH(Q77),IF(AND(AM5="M114"),_xlfn.CEILING.MATH(Q78),(IF(AND(AM5="M119"),_xlfn.CEILING.MATH((U41+U40)*IF(AND(W39=1),VLOOKUP(Q19,'[2]CG 1 Tab 8'!A17:L357,12,FALSE),IF(AND(W39=2),VLOOKUP(Q19,'[2]CG 2 Tab 8'!A17:L417,12,FALSE),IF(AND(W39=3),VLOOKUP(Q19,'[2]CG 3 Tab 8'!A16:L486,12,FALSE),IF(AND(W39=4),VLOOKUP(Q19,'[2]CG 4 Tab 8'!A16:L636,12,FALSE),IF(AND(W39=5),VLOOKUP(Q19,'[2]CG 5 Tab 8'!A16:L806,12,FALSE),IF(AND(W39=6),VLOOKUP(Q19,'[2]CG 6 Tab 8'!A16:L956,12,FALSE),IF(AND(W39=7),VLOOKUP(Q19,'[2]CG 7 Tab 8'!A16:L1156,12,FALSE))))))))))))))))) -> 1 | W42: =IF(U19="","",IF(AND(U20=""),"",IF(F29="","",IF(AND(W39=""),"",(IF(AND(AM5="M109"),_xlfn.CEILING.MATH(W77),IF(AND(AM5="M114"),_xlfn.CEILING.MATH(W78),(IF(AND(AM5="M119"),_xlfn.CEILING.MATH((W41+W40)*IF(AND(W39=1),VLOOKUP(U19,'[2]CG 1 Tab 8'!A17:L357,12,FALSE),IF(AND(W39=2),VLOOKUP(U19,'[2]CG 2 Tab 8'!A17:L417,12,FALSE),IF(AND(W39=3),VLOOKUP(U19,'[2]CG 3 Tab 8'!A16:L486,12,FALSE),IF(AND(W39=4),VLOOKUP(U19,'[2]CG 4 Tab 8'!A16:L636,12,FALSE),IF(AND(W39=5),VLOOKUP(U19,'[2]CG 5 Tab 8'!A16:L806,12,FALSE),IF(AND(W39=6),VLOOKUP(U19,'[2]CG 6 Tab 8'!A16:L956,12,FALSE),IF(AND(W39=7),VLOOKUP(U19,'[2]CG 7 Tab 8'!A16:L1156,12,FALSE)))))))))))))))))) -> 1 | Y42: =IF(Q19="","",IF(AND(Q20=""),"",IF(AND(AA39=""),"",(IF(AND(AM5="M109"),_xlfn.CEILING.MATH(Q77),IF(AND(AM5="M114"),_xlfn.CEILING.MATH(Q78),(IF(AND(AM5="M119"),_xlfn.CEILING.MATH((Y41+Y40)*IF(AND(AA39=1),VLOOKUP(Q19,'[2]CG 1 Tab 8'!A17:L357,12,FALSE),IF(AND(AA39=2),VLOOKUP(Q19,'[2]CG 2 Tab 8'!A17:L417,12,FALSE),IF(AND(AA39=3),VLOOKUP(Q19,'[2]CG 3 Tab 8'!A16:L486,12,FALSE),IF(AND(AA39=4),VLOOKUP(Q19,'[2]CG 4 Tab 8'!A16:L636,12,FALSE),IF(AND(AA39=5),VLOOKUP(Q19,'[2]CG 5 Tab 8'!A16:L806,12,FALSE),IF(AND(AA39=6),VLOOKUP(Q19,'[2]CG 6 Tab 8'!A16:L956,12,FALSE),IF(AND(AA39=7),VLOOKUP(Q19,'[2]CG 7 Tab 8'!A16:L1156,12,FALSE))))))))))))))))) -> 1 | AA42: =IF(Y19="","",IF(AND(Y20=""),"",IF(F29="","",IF(AND(AA39=""),"",(IF(AND(AM5="M109"),_xlfn.CEILING.MATH(AA77),IF(AND(AM5="M114"),_xlfn.CEILING.MATH(AA78),(IF(AND(AM5="M119"),_xlfn.CEILING.MATH((AA41+AA40)*IF(AND(AA39=1),VLOOKUP(Y19,'[2]CG 1 Tab 8'!A17:L357,12,FALSE),IF(AND(AA39=2),VLOOKUP(Y19,'[2]CG 2 Tab 8'!A17:L417,12,FALSE),IF(AND(AA39=3),VLOOKUP(Y19,'[2]CG 3 Tab 8'!A16:L486,12,FALSE),IF(AND(AA39=4),VLOOKUP(Y19,'[2]CG 4 Tab 8'!A16:L636,12,FALSE),IF(AND(AA39=5),VLOOKUP(Y19,'[2]CG 5 Tab 8'!A16:L806,12,FALSE),IF(AND(AA39=6),VLOOKUP(Y19,'[2]CG 6 Tab 8'!A16:L956,12,FALSE),IF(AND(AA39=7),VLOOKUP(Y19,'[2]CG 7 Tab 8'!A16:L1156,12,FALSE)))))))))))))))))) -> 1 | AC42: =IF(AC19="","",IF(AND(AC20=""),"",IF(AND(AE39=""),"",(IF(AND(AM5="M109"),_xlfn.CEILING.MATH(AC77),IF(AND(AM5="M114"),_xlfn.CEILING.MATH(AC78),(IF(AND(AM5="M119"),_xlfn.CEILING.MATH((AC41+AC40)*IF(AND(AE39=1),VLOOKUP(AC19,'[2]CG 1 Tab 8'!A17:L357,12,FALSE),IF(AND(AE39=2),VLOOKUP(AC19,'[2]CG 2 Tab 8'!A17:L417,12,FALSE),IF(AND(AE39=3),VLOOKUP(AC19,'[2]CG 3 Tab 8'!A16:L486,12,FALSE),IF(AND(AE39=4),VLOOKUP(AC19,'[2]CG 4 Tab 8'!A16:L636,12,FALSE),IF(AND(AE39=5),VLOOKUP(AC19,'[2]CG 5 Tab 8'!A16:L806,12,FALSE),IF(AND(AE39=6),VLOOKUP(AC19,'[2]CG 6 Tab 8'!A16:L956,12,FALSE),IF(AND(AE39=7),VLOOKUP(AC19,'[2]CG 7 Tab 8'!A16:L1156,12,FALSE))))))))))))))))) -> 1 | AE42: =IF(AC19="","",IF(AND(AC20=""),"",IF(F29="","",IF(AND(AE39=""),"",(IF(AND(AM5="M109"),_xlfn.CEILING.MATH(AE77),IF(AND(AM5="M114"),_xlfn.CEILING.MATH(AE77),(IF(AND(AM5="M119"),_xlfn.CEILING.MATH((AE41+AE40)*IF(AND(AE39=1),VLOOKUP(AC19,'[2]CG 1 Tab 8'!A17:L357,12,FALSE),IF(AND(AE39=2),VLOOKUP(AC19,'[2]CG 2 Tab 8'!A17:L417,12,FALSE),IF(AND(AE39=3),VLOOKUP(AC19,'[2]CG 3 Tab 8'!A16:L486,12,FALSE),IF(AND(AE39=4),VLOOKUP(AC19,'[2]CG 4 Tab 8'!A16:L636,12,FALSE),IF(AND(AE39=5),VLOOKUP(AC19,'[2]CG 5 Tab 8'!A16:L806,12,FALSE),IF(AND(AE39=6),VLOOKUP(AC19,'[2]CG 6 Tab 8'!A16:L956,12,FALSE),IF(AND(AE39=7),VLOOKUP(AC19,'[2]CG 7 Tab 8'!A16:L1156,12,FALSE)))))))))))))))))) -> 1
C43: ∡ 2 ( Alça para a crista) | I43: =IF(I19="","",IF(AND(I20=""),"",IF(AND(AM5=""),"",IF(AND(K39=""),"",(IF(AND(AM5="M109"),_xlfn.CEILING.MATH(I79),IF(AND(AM5="M114"),_xlfn.CEILING.MATH(I80),(IF(AND(AM5="M119"),_xlfn.CEILING.MATH(IF(AND(K39=1),VLOOKUP(I19,'[2]CG 1 Tab 6'!A16:B356,2,FALSE),IF(AND(K39=2),VLOOKUP(I19,'[2]CG 2 Tab 6'!A16:B416,2,FALSE),IF(AND(K39=3),VLOOKUP(I19,'[2]CG 3 Tab 6'!A15:B485,2,FALSE),IF(AND(K39=4),VLOOKUP(I19,'[2]CG 4 Tab 6'!A15:B635,2,FALSE),IF(AND(K39=5),VLOOKUP(I19,'[2]CG 5 Tab 6'!A15:B805,2,FALSE),IF(AND(K39=6),VLOOKUP(I19,'[2]CG 6 Tab 6'!A15:B955,2,FALSE),IF(AND(K39=7),VLOOKUP(I19,'[2]CG 7 Tab 6'!A15:B1155,2,FALSE)))))))))))))))))) -> 12 | K43: =IF(I19="","",IF(AND(I20=""),"",IF(AND(F29=""),"",IF(AND(K39=""),"",IF(AND(AM5="M109"),_xlfn.CEILING.MATH(K79),IF(AND(AM5="M114"),_xlfn.CEILING.MATH(K80),IF(AND(AM5="M119"),_xlfn.CEILING.MATH(IF(AND(K39=1),VLOOKUP(I19,'[2]CG 1 Tab 6'!A4:B344,2,FALSE),IF(AND(K39=2),VLOOKUP(I19,'[2]CG 2 Tab 6'!A16:B416,2,FALSE),IF(AND(K39=3),VLOOKUP(I19,'[2]CG 3 Tab 6'!A15:B485,2,FALSE),IF(AND(K39=4),VLOOKUP(I19,'[2]CG 4 Tab 6'!A15:B635,2,FALSE),IF(AND(K39=5),VLOOKUP(I19,'[2]CG 5 Tab 6'!A15:B805,2,FALSE),IF(AND(K39=6),VLOOKUP(I19,'[2]CG 6 Tab 6'!A15:B955,2,FALSE),IF(AND(K39=7),VLOOKUP(I19,'[2]CG 7 Tab 6'!A15:B1155,2,FALSE)))))))))))))))) -> 12 | M43: =IF(M19="","",IF(AND(M20=""),"",IF(AND(AM5=""),"",IF(O39="","",(IF(AND(AM5="M109"),_xlfn.CEILING.MATH(M79),IF(AND(AM5="M114"),_xlfn.CEILING.MATH(M80),(IF(AND(AM5="M119"),_xlfn.CEILING.MATH(IF(AND(O39=1),VLOOKUP(M19,'[2]CG 1 Tab 6'!A16:B356,2),IF(AND(O39=2),VLOOKUP(M19,'[2]CG 2 Tab 6'!A16:B416,2),IF(AND(O39=3),VLOOKUP(M19,'[2]CG 3 Tab 6'!A15:B485,2),IF(AND(O39=4),VLOOKUP(M19,'[2]CG 4 Tab 6'!A15:B635,2),IF(AND(O39=5),VLOOKUP(M19,'[2]CG 5 Tab 6'!A15:B805,2),IF(AND(O39=6),VLOOKUP(M19,'[2]CG 6 Tab 6'!A15:B955,2),IF(AND(O39=7),VLOOKUP(M19,'[2]CG 7 Tab 6'!A15:B1155,2)))))))))))))))))) -> 11 | O43: =IF(M19="","",IF(AND(M20=""),"",IF(AND(F29=""),"",IF(AND(O39=""),"",(IF(AND(AM5="M109"),_xlfn.CEILING.MATH(O79),IF(AND(AM5="M114"),_xlfn.CEILING.MATH(O80),IF(AND(AM5="M119"),_xlfn.CEILING.MATH(IF(AND(O39=1),VLOOKUP(M19,'[2]CG 1 Tab 6'!A16:B356,2,FALSE),IF(AND(O39=2),VLOOKUP(M19,'[2]CG 2 Tab 6'!A16:B416,2,FALSE),IF(AND(O39=3),VLOOKUP(M19,'[2]CG 3 Tab 6'!A15:B485,2,FALSE),IF(AND(O39=4),VLOOKUP(M19,'[2]CG 4 Tab 6'!A15:B635,2,FALSE),IF(AND(O39=5),VLOOKUP(M19,'[2]CG 5 Tab 6'!A15:B805,2,FALSE),IF(AND(O39=6),VLOOKUP(M19,'[2]CG 6 Tab 6'!A15:B955,2,FALSE),IF(AND(O39=7),VLOOKUP(M19,'[2]CG 7 Tab 6'!A15:B1155,2,FALSE))))))))))))))))) -> 11 | Q43: =IF(Q19="","",IF(AND(Q20=""),"",IF(AND(S39=""),"",(IF(AND(AM5="M109"),_xlfn.CEILING.MATH(Q79),IF(AND(AM5="M114"),_xlfn.CEILING.MATH(Q80),IF(AND(AM5="M119"),_xlfn.CEILING.MATH(IF(AND(S39=1),VLOOKUP(Q19,'[2]CG 1 Tab 6'!A16:B356,2,FALSE),IF(AND(S39=2),VLOOKUP(Q19,'[2]CG 2 Tab 6'!A16:B416,2,FALSE),IF(AND(S39=3),VLOOKUP(Q19,'[2]CG 3 Tab 6'!A15:B485,2,FALSE),IF(AND(S39=4),VLOOKUP(Q19,'[2]CG 4 Tab 6'!A15:B635,2,FALSE),IF(AND(S39=5),VLOOKUP(Q19,'[2]CG 5 Tab 6'!A15:B805,2,FALSE),IF(AND(S39=6),VLOOKUP(Q19,'[2]CG 6 Tab 6'!A15:B955,2,FALSE),IF(AND(S39=7),VLOOKUP(Q19,'[2]CG 7 Tab 6'!A15:B1155,2,FALSE)))))))))))))))) -> 11 | S43: =IF(Q19="","",IF(AND(Q20=""),"",IF(F29="","",IF(AND(S39=""),"",(IF(AND(AM5="M109"),_xlfn.CEILING.MATH(S79),IF(AND(AM5="M114"),_xlfn.CEILING.MATH(S80),IF(AND(AM5="M119"),_xlfn.CEILING.MATH(IF(AND(S39=1),VLOOKUP(Q19,'[2]CG 1 Tab 6'!A16:B356,2,FALSE),IF(AND(S39=2),VLOOKUP(Q19,'[2]CG 2 Tab 6'!A16:B416,2,FALSE),IF(AND(S39=3),VLOOKUP(Q19,'[2]CG 3 Tab 6'!A15:B485,2,FALSE),IF(AND(S39=4),VLOOKUP(Q19,'[2]CG 4 Tab 6'!A15:B635,2,FALSE),IF(AND(S39=5),VLOOKUP(Q19,'[2]CG 5 Tab 6'!A15:B805,2,FALSE),IF(AND(S39=6),VLOOKUP(Q19,'[2]CG 6 Tab 6'!A15:B955,2,FALSE),IF(AND(S39=7),VLOOKUP(Q19,'[2]CG 7 Tab 6'!A15:B1155,2,FALSE))))))))))))))))) -> 11 | U43: =IF(U19="","",IF(AND(U20=""),"",IF(AND(W39=""),"",(IF(AND(AM5="M109"),_xlfn.CEILING.MATH(U79),IF(AND(AM5="M114"),_xlfn.CEILING.MATH(U80),IF(AND(AM5="M119"),_xlfn.CEILING.MATH(IF(AND(W39=1),VLOOKUP(U19,'[2]CG 1 Tab 6'!A16:B356,2,FALSE),IF(AND(W39=2),VLOOKUP(U19,'[2]CG 2 Tab 6'!A16:B416,2,FALSE),IF(AND(W39=3),VLOOKUP(U19,'[2]CG 3 Tab 6'!A15:B485,2,FALSE),IF(AND(W39=4),VLOOKUP(U19,'[2]CG 4 Tab 6'!A15:B635,2,FALSE),IF(AND(W39=5),VLOOKUP(U19,'[2]CG 5 Tab 6'!A15:B805,2,FALSE),IF(AND(W39=6),VLOOKUP(U19,'[2]CG 6 Tab 6'!A15:B955,2,FALSE),IF(AND(W39=7),VLOOKUP(U19,'[2]CG 7 Tab 6'!A15:B1155,2,FALSE)))))))))))))))) -> 12 | W43: =IF(U19="","",IF(AND(U20=""),"",IF(F29="","",IF(AND(W39=""),"",(IF(AND(AM5="M109"),_xlfn.CEILING.MATH(W79),IF(AND(AM5="M114"),_xlfn.CEILING.MATH(W80),IF(AND(AM5="M119"),_xlfn.CEILING.MATH(IF(AND(W39=1),VLOOKUP(U19,'[2]CG 1 Tab 6'!A16:B356,2,FALSE),IF(AND(W39=2),VLOOKUP(U19,'[2]CG 2 Tab 6'!A16:B416,2,FALSE),IF(AND(W39=3),VLOOKUP(U19,'[2]CG 3 Tab 6'!A15:B485,2,FALSE),IF(AND(W39=4),VLOOKUP(U19,'[2]CG 4 Tab 6'!A15:B635,2,FALSE),IF(AND(W39=5),VLOOKUP(U19,'[2]CG 5 Tab 6'!A15:B805,2,FALSE),IF(AND(W39=6),VLOOKUP(U19,'[2]CG 6 Tab 6'!A15:B955,2,FALSE),IF(AND(W39=7),VLOOKUP(U19,'[2]CG 7 Tab 6'!A15:B1155,2,FALSE))))))))))))))))) -> 12 | Y43: =IF(Y19="","",IF(AND(Y20=""),"",IF(AND(AA39=""),"",(IF(AND(AM5="M109"),_xlfn.CEILING.MATH(Y79),IF(AND(AM5="M114"),_xlfn.CEILING.MATH(Y80),IF(AND(AM5="M119"),_xlfn.CEILING.MATH(IF(AND(AA39=1),VLOOKUP(Y19,'[2]CG 1 Tab 6'!A16:B356,2,FALSE),IF(AND(AA39=2),VLOOKUP(Y19,'[2]CG 2 Tab 6'!A16:B416,2,FALSE),IF(AND(AA39=3),VLOOKUP(Y19,'[2]CG 3 Tab 6'!A15:B485,2,FALSE),IF(AND(AA39=4),VLOOKUP(Y19,'[2]CG 4 Tab 6'!A15:B635,2,FALSE),IF(AND(AA39=5),VLOOKUP(Y19,'[2]CG 5 Tab 6'!A15:B805,2,FALSE),IF(AND(AA39=6),VLOOKUP(Y19,'[2]CG 6 Tab 6'!A15:B955,2,FALSE),IF(AND(AA39=7),VLOOKUP(Y19,'[2]CG 7 Tab 6'!A15:B1155,2,FALSE)))))))))))))))) -> 11 | AA43: =IF(Y19="","",IF(AND(Y20=""),"",IF(F29="","",IF(AND(AA39=""),"",(IF(AND(AM5="M109"),_xlfn.CEILING.MATH(AA79),IF(AND(AM5="M114"),_xlfn.CEILING.MATH(AA80),IF(AND(AM5="M119"),_xlfn.CEILING.MATH(IF(AND(AA39=1),VLOOKUP(Y19,'[2]CG 1 Tab 6'!A16:B356,2,FALSE),IF(AND(AA39=2),VLOOKUP(Y19,'[2]CG 2 Tab 6'!A16:B416,2,FALSE),IF(AND(AA39=3),VLOOKUP(Y19,'[2]CG 3 Tab 6'!A15:B485,2,FALSE),IF(AND(AA39=4),VLOOKUP(Y19,'[2]CG 4 Tab 6'!A15:B635,2,FALSE),IF(AND(AA39=5),VLOOKUP(Y19,'[2]CG 5 Tab 6'!A15:B805,2,FALSE),IF(AND(AA39=6),VLOOKUP(Y19,'[2]CG 6 Tab 6'!A15:B955,2,FALSE),IF(AND(AA39=7),VLOOKUP(Y19,'[2]CG 7 Tab 6'!A15:B1155,2,FALSE))))))))))))))))) -> 11 | AC43: =IF(AC19="","",IF(AND(AC20=""),"",IF(AND(AE39=""),"",(IF(AND(AM5="M109"),_xlfn.CEILING.MATH(AC79),IF(AND(AM5="M114"),_xlfn.CEILING.MATH(AC80),IF(AND(AM5="M119"),_xlfn.CEILING.MATH(IF(AND(AE39=1),VLOOKUP(AC19,'[2]CG 1 Tab 6'!A16:B356,2,FALSE),IF(AND(AE39=2),VLOOKUP(AC19,'[2]CG 2 Tab 6'!A16:B416,2,FALSE),IF(AND(AE39=3),VLOOKUP(AC19,'[2]CG 3 Tab 6'!A15:B485,2,FALSE),IF(AND(AE39=4),VLOOKUP(AC19,'[2]CG 4 Tab 6'!A15:B635,2,FALSE),IF(AND(AE39=5),VLOOKUP(AC19,'[2]CG 5 Tab 6'!A15:B805,2,FALSE),IF(AND(AE39=6),VLOOKUP(AC19,'[2]CG 6 Tab 6'!A15:B955,2,FALSE),IF(AND(AE39=7),VLOOKUP(AC19,'[2]CG 7 Tab 6'!A15:B1155,2,FALSE)))))))))))))))) -> 12 | AE43: =IF(AC19="","",IF(AND(AC20=""),"",IF(F29="","",IF(AND(AE39=""),"",(IF(AND(AM5="M109"),_xlfn.CEILING.MATH(AE79),IF(AND(AM5="M114"),_xlfn.CEILING.MATH(AE80),IF(AND(AM5="M119"),_xlfn.CEILING.MATH(IF(AND(AE39=1),VLOOKUP(AC19,'[2]CG 1 Tab 6'!A16:B356,2,FALSE),IF(AND(AE39=2),VLOOKUP(AC19,'[2]CG 2 Tab 6'!A16:B416,2,FALSE),IF(AND(AE39=3),VLOOKUP(AC19,'[2]CG 3 Tab 6'!A15:B485,2,FALSE),IF(AND(AE39=4),VLOOKUP(AC19,'[2]CG 4 Tab 6'!A15:B635,2,FALSE),IF(AND(AE39=5),VLOOKUP(AC19,'[2]CG 5 Tab 6'!A15:B805,2,FALSE),IF(AND(AE39=6),VLOOKUP(AC19,'[2]CG 6 Tab 6'!A15:B955,2,FALSE),IF(AND(AE39=7),VLOOKUP(AC19,'[2]CG 7 Tab 6'!A15:B1155,2,FALSE))))))))))))))))) -> 12
C44: ∡ 3 ( Duas F <> alça) | I44: =IF(I19="","",IF(AND(I20=""),"",IF(AND(AM5=""),"",IF(AND(K39=""),"",(IF(AND(AM5="M109"),_xlfn.CEILING.MATH(I81),IF(AND(AM5="M114"),_xlfn.CEILING.MATH(I82),(IF(AND(AM5="M119"),2*(IF(AND(K39=1),VLOOKUP(I19,'[2]CG 1 Tab 6'!A15:F355,6,FALSE),IF(AND(K39=2),VLOOKUP(I19,'[2]CG 2 Tab 6'!A15:F415,6,FALSE),IF(AND(K39=3),VLOOKUP(I19,'[2]CG 3 Tab 6'!A14:F484,6,FALSE),IF(AND(K39=4),VLOOKUP(I19,'[2]CG 4 Tab 6'!A14:F634,6,FALSE),IF(AND(K39=5),VLOOKUP(I19,'[2]CG 5 Tab 6'!A14:F804,6,FALSE),IF(AND(K39=6),VLOOKUP(I19,'[2]CG 6 Tab 6'!A14:F954,6,FALSE),IF(AND(K39=7),VLOOKUP(I19,'[2]CG 7 Tab 6'!A14:F1154,6,FALSE)))))))))))))))))) -> 4 | K44: =IF(I19="","",IF(AND(I20=""),"",IF(AND(F29=""),"",IF(K39="","",IF(AND(AM5="M109"),_xlfn.CEILING.MATH(K81),IF(AND(AM5="M114"),_xlfn.CEILING.MATH(K82),IF(AND(AM5="M119"),2*(IF(AND(K39=1),VLOOKUP(I19,'[2]CG 1 Tab 6'!A15:F355,6,FALSE),IF(AND(K39=2),VLOOKUP(I19,'[2]CG 2 Tab 6'!A15:F415,6,FALSE),IF(AND(K39=3),VLOOKUP(I19,'[2]CG 3 Tab 6'!A14:F484,6,FALSE),IF(AND(K39=4),VLOOKUP(I19,'[2]CG 4 Tab 6'!A14:F634,6,FALSE),IF(AND(K39=5),VLOOKUP(I19,'[2]CG 5 Tab 6'!A14:F804,6,FALSE),IF(AND(K39=6),VLOOKUP(I19,'[2]CG 6 Tab 6'!A14:F954,6,FALSE),IF(AND(K39=7),VLOOKUP(I19,'[2]CG 7 Tab 6'!A14:F1154,6,FALSE)))))))))))))))) -> 4 | M44: =IF(M20="","",IF(AND(M19=""),"",IF(AND(AM5=""),"",(IF(AND(AM5="M109"),_xlfn.CEILING.MATH(M81),IF(AND(AM5="M114"),_xlfn.CEILING.MATH(M82),IF(O39="","",IF(AND(AM5="M119"),2*(IF(AND(O39=1),VLOOKUP(M19,'[2]CG 1 Tab 6'!A15:F355,6),IF(AND(O39=2),VLOOKUP(M19,'[2]CG 2 Tab 6'!A15:F415,6),IF(AND(O39=3),VLOOKUP(M19,'[2]CG 3 Tab 6'!A14:F484,6),IF(AND(O39=4),VLOOKUP(M19,'[2]CG 4 Tab 6'!A14:F634,6),IF(AND(O39=5),VLOOKUP(M19,'[2]CG 5 Tab 6'!A14:F804,6),IF(AND(O39=6),VLOOKUP(M19,'[2]CG 6 Tab 6'!A14:F954,6),IF(AND(O39=7),VLOOKUP(M19,'[2]CG 7 Tab 6'!A14:F1154,6))))))))))))))))) -> 4 | O44: =IF(M20="","",IF(AND(M19=""),"",IF(AND(O39=""),"",IF(AND(F29=""),"",(IF(AND(AM5="M109"),_xlfn.CEILING.MATH(O81),IF(AND(AM5="M114"),_xlfn.CEILING.MATH(O82),IF(AND(AM5="M119"),2*(IF(AND(O39=1),VLOOKUP(M19,'[2]CG 1 Tab 6'!A15:F355,6,FALSE),IF(AND(O39=2),VLOOKUP(M19,'[2]CG 2 Tab 6'!A15:F415,6,FALSE),IF(AND(O39=3),VLOOKUP(M19,'[2]CG 3 Tab 6'!A14:F484,6,FALSE),IF(AND(O39=4),VLOOKUP(M19,'[2]CG 4 Tab 6'!A14:F634,6,FALSE),IF(AND(O39=5),VLOOKUP(M19,'[2]CG 5 Tab 6'!A14:F804,6,FALSE),IF(AND(O39=6),VLOOKUP(M19,'[2]CG 6 Tab 6'!A14:F954,6,FALSE),IF(AND(O39=7),VLOOKUP(M19,'[2]CG 7 Tab 6'!A14:F1154,6,FALSE))))))))))))))))) -> 4 | Q44: =IF(Q19="","",IF(AND(Q20=""),"",IF(AND(S39=""),"",(IF(AND(AM5="M109"),_xlfn.CEILING.MATH(Q81),IF(AND(AM5="M114"),_xlfn.CEILING.MATH(Q82),(IF(AND(AM5="M119"),2*(IF(AND(S39=1),VLOOKUP(Q19,'[2]CG 1 Tab 6'!A15:F355,6,FALSE),IF(AND(S39=2),VLOOKUP(Q19,'[2]CG 2 Tab 6'!A15:F415,6,FALSE),IF(AND(S39=3),VLOOKUP(Q19,'[2]CG 3 Tab 6'!A14:F484,6,FALSE),IF(AND(S39=4),VLOOKUP(Q19,'[2]CG 4 Tab 6'!A14:F634,6,FALSE),IF(AND(S39=5),VLOOKUP(Q19,'[2]CG 5 Tab 6'!A14:F804,6,FALSE),IF(AND(S39=6),VLOOKUP(Q19,'[2]CG 6 Tab 6'!A14:F954,6,FALSE),IF(AND(S39=7),VLOOKUP(Q19,'[2]CG 7 Tab 6'!A14:F1154,6,FALSE))))))))))))))))) -> 4 | S44: =IF(Q19="","",IF(AND(Q20=""),"",IF(AND(S39=""),"",IF(AND(F29=""),"",(IF(AND(AM5="M109"),_xlfn.CEILING.MATH(S81),IF(AND(AM5="M114"),_xlfn.CEILING.MATH(S82),(IF(AND(AM5="M119"),2*(IF(AND(S39=1),VLOOKUP(Q19,'[2]CG 1 Tab 6'!A15:F355,6,FALSE),IF(AND(S39=2),VLOOKUP(Q19,'[2]CG 2 Tab 6'!A15:F415,6,FALSE),IF(AND(S39=3),VLOOKUP(Q19,'[2]CG 3 Tab 6'!A14:F484,6,FALSE),IF(AND(S39=4),VLOOKUP(Q19,'[2]CG 4 Tab 6'!A14:F634,6,FALSE),IF(AND(S39=5),VLOOKUP(Q19,'[2]CG 5 Tab 6'!A14:F804,6,FALSE),IF(AND(S39=6),VLOOKUP(Q19,'[2]CG 6 Tab 6'!A14:F954,6,FALSE),IF(AND(S39=7),VLOOKUP(Q19,'[2]CG 7 Tab 6'!A14:F1154,6,FALSE)))))))))))))))))) -> 4 | U44: =IF(U19="","",IF(AND(U20=""),"",IF(AND(W39=""),"",(IF(AND(AM5="M109"),_xlfn.CEILING.MATH(U81),IF(AND(AM5="M114"),_xlfn.CEILING.MATH(U82),(IF(AND(AM5="M119"),2*(IF(AND(W39=1),VLOOKUP(U19,'[2]CG 1 Tab 6'!A15:F355,6,FALSE),IF(AND(W39=2),VLOOKUP(U19,'[2]CG 2 Tab 6'!A15:F415,6,FALSE),IF(AND(W39=3),VLOOKUP(U19,'[2]CG 3 Tab 6'!A14:F484,6,FALSE),IF(AND(W39=4),VLOOKUP(U19,'[2]CG 4 Tab 6'!A14:F634,6,FALSE),IF(AND(W39=5),VLOOKUP(U19,'[2]CG 5 Tab 6'!A14:F804,6,FALSE),IF(AND(W39=6),VLOOKUP(U19,'[2]CG 6 Tab 6'!A14:F954,6,FALSE),IF(AND(W39=7),VLOOKUP(U19,'[2]CG 7 Tab 6'!A14:F1154,6,FALSE))))))))))))))))) -> 4 | W44: =IF(U19="","",IF(AND(U20=""),"",IF(AND(W39=""),"",IF(AND(F29=""),"",(IF(AND(AM5="M109"),_xlfn.CEILING.MATH(W81),IF(AND(AM5="M114"),_xlfn.CEILING.MATH(W82),(IF(AND(AM5="M119"),2*(IF(AND(W39=1),VLOOKUP(U19,'[2]CG 1 Tab 6'!A15:F355,6,FALSE),IF(AND(W39=2),VLOOKUP(U19,'[2]CG 2 Tab 6'!A15:F415,6,FALSE),IF(AND(W39=3),VLOOKUP(U19,'[2]CG 3 Tab 6'!A14:F484,6,FALSE),IF(AND(W39=4),VLOOKUP(U19,'[2]CG 4 Tab 6'!A14:F634,6,FALSE),IF(AND(W39=5),VLOOKUP(U19,'[2]CG 5 Tab 6'!A14:F804,6,FALSE),IF(AND(W39=6),VLOOKUP(U19,'[2]CG 6 Tab 6'!A14:F954,6,FALSE),IF(AND(W39=7),VLOOKUP(U19,'[2]CG 7 Tab 6'!A14:F1154,6,FALSE)))))))))))))))))) -> 4 | Y44: =IF(Y19="","",IF(AND(Y20=""),"",IF(AND(AA39=""),"",(IF(AND(AM5="M109"),_xlfn.CEILING.MATH(Y81),IF(AND(AM5="M114"),_xlfn.CEILING.MATH(Y82),(IF(AND(AM5="M119"),2*(IF(AND(AA39=1),VLOOKUP(Y19,'[2]CG 1 Tab 6'!A15:F355,6,FALSE),IF(AND(AA39=2),VLOOKUP(Y19,'[2]CG 2 Tab 6'!A15:F415,6,FALSE),IF(AND(AA39=3),VLOOKUP(Y19,'[2]CG 3 Tab 6'!A14:F484,6,FALSE),IF(AND(AA39=4),VLOOKUP(Y19,'[2]CG 4 Tab 6'!A14:F634,6,FALSE),IF(AND(AA39=5),VLOOKUP(Y19,'[2]CG 5 Tab 6'!A14:F804,6,FALSE),IF(AND(AA39=6),VLOOKUP(Y19,'[2]CG 6 Tab 6'!A14:F954,6,FALSE),IF(AND(AA39=7),VLOOKUP(Y19,'[2]CG 7 Tab 6'!A14:F1154,6,FALSE))))))))))))))))) -> 4 | AA44: =IF(Y20="","",IF(AND(Y19=""),"",IF(AND(AA39=""),"",IF(AND(F29=""),"",(IF(AND(AM5="M109"),_xlfn.CEILING.MATH(AA81),IF(AND(AM5="M114"),_xlfn.CEILING.MATH(AA82),(IF(AND(AM5="M119"),2*(IF(AND(AA39=1),VLOOKUP(Y19,'[2]CG 1 Tab 6'!A15:F355,6,FALSE),IF(AND(AA39=2),VLOOKUP(Y19,'[2]CG 2 Tab 6'!A15:F415,6,FALSE),IF(AND(AA39=3),VLOOKUP(Y19,'[2]CG 3 Tab 6'!A14:F484,6,FALSE),IF(AND(AA39=4),VLOOKUP(Y19,'[2]CG 4 Tab 6'!A14:F634,6,FALSE),IF(AND(AA39=5),VLOOKUP(Y19,'[2]CG 5 Tab 6'!A14:F804,6,FALSE),IF(AND(AA39=6),VLOOKUP(Y19,'[2]CG 6 Tab 6'!A14:F954,6,FALSE),IF(AND(AA39=7),VLOOKUP(Y19,'[2]CG 7 Tab 6'!A14:F1154,6,FALSE)))))))))))))))))) -> 4 | AC44: =IF(AC20="","",IF(AND(AC19=""),"",IF(AND(AE39=""),"",(IF(AND(AM5="M109"),_xlfn.CEILING.MATH(AC81),IF(AND(AM5="M114"),_xlfn.CEILING.MATH(AC82),(IF(AND(AM5="M119"),2*(IF(AND(AE39=1),VLOOKUP(AC19,'[2]CG 1 Tab 6'!A15:F355,6,FALSE),IF(AND(AE39=2),VLOOKUP(AC19,'[2]CG 2 Tab 6'!A15:F415,6,FALSE),IF(AND(AE39=3),VLOOKUP(AC19,'[2]CG 3 Tab 6'!A14:F484,6,FALSE),IF(AND(AE39=4),VLOOKUP(AC19,'[2]CG 4 Tab 6'!A14:F634,6,FALSE),IF(AND(AE39=5),VLOOKUP(AC19,'[2]CG 5 Tab 6'!A14:F804,6,FALSE),IF(AND(AE39=6),VLOOKUP(AC19,'[2]CG 6 Tab 6'!A14:F954,6,FALSE),IF(AND(AE39=7),VLOOKUP(AC19,'[2]CG 7 Tab 6'!A14:F1154,6,FALSE))))))))))))))))) -> 4 | AE44: =IF(AC20="","",IF(AND(AC19=""),"",IF(AND(F29=""),"",IF(AND(AE39=""),"",(IF(AND(AM5="M109"),_xlfn.CEILING.MATH(AE81),IF(AND(AM5="M114"),_xlfn.CEILING.MATH(AE82),(IF(AND(AM5="M119"),2*(IF(AND(AE39=1),VLOOKUP(AC19,'[2]CG 1 Tab 6'!A15:F355,6,FALSE),IF(AND(AE39=2),VLOOKUP(AC19,'[2]CG 2 Tab 6'!A15:F415,6,FALSE),IF(AND(AE39=3),VLOOKUP(AC19,'[2]CG 3 Tab 6'!A14:F484,6,FALSE),IF(AND(AE39=4),VLOOKUP(AC19,'[2]CG 4 Tab 6'!A14:F634,6,FALSE),IF(AND(AE39=5),VLOOKUP(AC19,'[2]CG 5 Tab 6'!A14:F804,6,FALSE),IF(AND(AE39=6),VLOOKUP(AC19,'[2]CG 6 Tab 6'!A14:F954,6,FALSE),IF(AND(AE39=7),VLOOKUP(AC19,'[2]CG 7 Tab 6'!A14:F1154,6,FALSE)))))))))))))))))) -> 4
C45: Elev Min | I45: =IF(AND(AM5=""),"",IF(I19="","",IF(AND(I20=""),"",IF(AND(AM5=""),"",IF(AND(AM5="M109",K39=1,K39=2,K39=3,K39=4,K39=5,K39=6),"",IF(AND(AM5="M114",K39=1,K39=2,K39=3,K39=4,K39=5,K39=6),"",IF(AND(AM5="M119",K39<>1,K39<>2,K39<>3,K39<>4,K39<>5,K39<>6),"",(IF(K39="","",I40+I41+I42+I43+I44))))))))) -> 90 | K45: =IF(I20="","",IF(AND(I19=""),"",IF(AND(F29=""),"",IF(AND(AM5=""),"",IF(AND(F29<>"",K39=""),"",IF(AND(F29="Situação de Paz",K39<>""),"--",IF(AND(F29<>"Situação de Paz",F29<>""),K40+K41+K42+K43+K44,IF(AND(AM5="M109",K39=1,K39=2,K39=3,K39=4,K39=5,K39=6),"",IF(AND(AM5="M114",K39=1,K39=2,K39=3,K39=4,K39=5,K39=6),"",IF(AND(AM5="M119",K39<>1,K39<>2,K39<>3,K39<>4,K39<>5,K39<>6),"")))))))))) -> 599 | M45: =IF(AND(AM5=""),"",IF(M20="","",IF(AND(M19=""),"",IF(AND(AM5=""),"",IF(AND(AM5="M109",O39=1,O39=2,O39=3,O39=4,O39=5,O39=6),"",IF(AND(AM5="M114",O39=1,O39=2,O39=3,O39=4,O39=5,O39=6),"",IF(AND(AM5="M119",O39<>1,O39<>2,O39<>3,O39<>4,O39<>5,O39<>6),"",IF(O39="","",M40+M41+M42+M43+M44)))))))) -> 71 | O45: =IF(M19="","",IF(AND(M20=""),"",IF(AND(F29=""),"",IF(AND(AM5=""),"",(IF(AND(F29<>"",O39=""),"",IF(AND(F29="Situação de Paz",O39<>""),"--",IF(AND(F29<>"Situação de Paz",F29<>""),O40+O41+O42+O43+O44,IF(AND(AM5="M109",O39=1,O39=2,O39=3,O39=4,O39=5,O39=6),"",IF(AND(AM5="M114",O39=1,O39=2,O39=3,O39=4,O39=5,O39=6),"",IF(AND(AM5="M119",O39<>1,O39<>2,O39<>3,O39<>4,O39<>5,O39<>6),""))))))))))) -> 629 | Q45: =IF(Q20="","",IF(AND(Q19=""),"",IF(AND(AM5=""),"",IF(AND(AM5="M109",S39=1,S39=2,S39=3,S39=4,S39=5,S39=6),"",IF(AND(AM5="M114",S39=1,S39=2,S39=3,S39=4,S39=5,S39=6),"",IF(AND(AM5="M119",S39<>1,S39<>2,S39<>3,S39<>4,S39<>5,S39<>6),"",IF(S39="","",Q40+Q41+Q42+Q43+Q44))))))) -> 81 | S45: =IF(Q20="","",IF(F29="","",IF(AND(Q19=""),"",IF(AND(AM5=""),"",(IF(AND(F29<>"",S39=""),"",IF(AND(F29="Situação de Paz",S39<>""),"--",IF(AND(F29<>"Situação de Paz",F29<>""),S40+S41+S42+S43+S44,IF(AND(AM5="M109",S39=1,S39=2,S39=3,S39=4,S39=5,S39=6),"",IF(AND(AM5="M114",S39=1,S39=2,S39=3,S39=4,S39=5,S39=6),"",IF(AND(AM5="M119",S39<>1,S39<>2,S39<>3,S39<>4,S39<>5,S39<>6),""))))))))))) -> 639 | U45: =IF(U20="","",IF(AND(U19=""),"",IF(AND(AM5=""),"",IF(AND(AM5="M109",W39=1,W39=2,W39=3,W39=4,W39=5,W39=6),"",IF(AND(AM5="M114",W39=1,W39=2,W39=3,W39=4,W39=5,W39=6),"",IF(AND(AM5="M119",W39<>1,W39<>2,W39<>3,W39<>4,W39<>5,W39<>6),"",IF(W39="","",U40+U41+U42+U43+U44))))))) -> 71 | W45: =IF(U20="","",IF(F29="","",IF(AND(U19=""),"",IF(AND(AM5=""),"",(IF(AND(F29<>"",W39=""),"",IF(AND(F29="Situação de Paz",W39<>""),"--",IF(AND(F29<>"Situação de Paz",F29<>""),W40+W41+W42+W43+W44,IF(AND(AM5="M109",W39=1,W39=2,W39=3,W39=4,W39=5,W39=6),"",IF(AND(AM5="M114",W39=1,W39=2,W39=3,W39=4,W39=5,W39=6),"",IF(AND(AM5="M119",W39<>1,W39<>2,W39<>3,W39<>4,W39<>5,W39<>6),""))))))))))) -> 603 | Y45: =IF(Y20="","",IF(AND(Y19=""),"",IF(AND(AM5=""),"",IF(AND(AM5="M109",AA39=1,AA39=2,AA39=3,AA39=4,AA39=5,AA39=6),"",IF(AND(AM5="M114",AA39=1,AA39=2,AA39=3,AA39=4,AA39=5,AA39=6),"",IF(AND(AM5="M119",AA39<>1,AA39<>2,AA39<>3,AA39<>4,AA39<>5,AA39<>6),"",IF(AA39="","",Y40+Y41+Y42+Y43+Y44))))))) -> 81 | AA45: =IF(Y20="","",IF(F29="","",IF(AND(Y19=""),"",IF(AND(AM5=""),"",(IF(AND(F29<>"",AA39=""),"",IF(AND(F29="Situação de Paz",AA39<>""),"--",IF(AND(F29<>"Situação de Paz",F29<>""),AA40+AA41+AA42+AA43+AA44,IF(AND(AM5="M109",AA39=1,AA39=2,AA39=3,AA39=4,AA39=5,AA39=6),"",IF(AND(AM5="M114",AA39=1,AA39=2,AA39=3,AA39=4,AA39=5,AA39=6),"",IF(AND(AM5="M119",AA39<>1,AA39<>2,AA39<>3,AA39<>4,AA39<>5,AA39<>6),""))))))))))) -> 639 | AC45: =IF(AC20="","",IF(AND(AC19=""),"",IF(AND(AM5=""),"",IF(AND(AM5="M109",AE39=1,AE39=2,AE39=3,AE39=4,AE39=5,AE39=6),"",IF(AND(AM5="M114",AE39=1,AE39=2,AE39=3,AE39=4,AE39=5,AE39=6),"",IF(AND(AM5="M119",AE39<>1,AE39<>2,AE39<>3,AE39<>4,AE39<>5,AE39<>6),"",IF(AE39="","",AC40+AC41+AC42+AC43+AC44))))))) -> 91 | AE45: =IF(AC20="","",IF(F29="","",IF(AND(AC19=""),"",IF(AND(AM5=""),"",(IF(AND(F29<>"",AE39=""),"",IF(AND(F29="Situação de Paz",AE39<>""),"--",IF(AND(F29<>"Situação de Paz",F29<>""),AE40+AE41+AE42+AE43+AE44,IF(AND(AM5="M109",AE39=1,AE39=2,AE39=3,AE39=4,AE39=5,AE39=6),"",IF(AND(AM5="M114",AE39=1,AE39=2,AE39=3,AE39=4,AE39=5,AE39=6),"",IF(AND(AM5="M119",AE39<>1,AE39<>2,AE39<>3,AE39<>4,AE39<>5,AE39<>6),""))))))))))) -> 623 | AG45: Esquerdo | AK45: =IF(AND(AM5="M119"),"",IF(AND(AM5="M109"),"",(IF(AND(I16<>"",M16="",Q16="",U16="",Y16="",AC16=""),I16,(IF(AND(I16="",M16<>"",Q16="",U16="",Y16="",AC16=""),M16,(IF(AND(I16="",M16="",Q16<>"",U16="",Y16="",AC16=""),Q16,(IF(AND(I16="",M16="",Q16="",U16<>"",Y16="",AC16=""),U16,(IF(AND(I16="",M16="",Q16="",U16="",Y16<>"",AC16=""),Y16,(IF(AND(I16="",M16="",Q16="",U16="",Y16="",AC16<>""),AC16,(IF(AND(I16="",M16="",Q16="",U16="",Y16="",AC16=""),"",LARGE(LimiteEsquerdo,1))))))))))))))))) -> 
C46: Dur Trajeto <> alça | I46: =IF(I19="","",IF(AND(I20=""),"",IF(AND(I45=""),"",(IF(AND(AM5="M109"),I83,IF(AND(AM5="M114"),I84,(IF(AND(AM5="M119"),_xlfn.CEILING.MATH(IF(AND(K39=1),VLOOKUP(I19,'[2]CG 1 Tab 6'!A15:G355,7,FALSE),IF(AND(K39=2),VLOOKUP(I19,'[2]CG 2 Tab 6'!A15:G415,7,FALSE),IF(AND(K39=3),VLOOKUP(I19,'[2]CG 3 Tab 6'!A14:G484,7,FALSE),IF(AND(K39=4),VLOOKUP(I19,'[2]CG 4 Tab 6'!A14:G634,7,FALSE),IF(AND(K39=5),VLOOKUP(I19,'[2]CG 5 Tab 6'!A14:G804,7,FALSE),IF(AND(K39=6),VLOOKUP(I19,'[2]CG 6 Tab 6'!A14:G954,7,FALSE),IF(AND(K39=7),VLOOKUP(I19,'[2]CG 7 Tab 6'!A14:G1154,7,FALSE))))))))))))))))) -> 1 | K46: =IF(I19="","",IF(AND(I20=""),"",IF(AND(F29=""),"",IF(AND(K45=""),"",IF(AND(K39=""),"",IF(AND(AM5="M109"),_xlfn.CEILING.MATH(K83),IF(AND(AM5="M114"),_xlfn.CEILING.MATH(K84),IF(AND(AM5="M119"),_xlfn.CEILING.MATH(IF(AND(K39=1),VLOOKUP(I19,'[2]CG 1 Tab 6'!A15:G355,7,FALSE),IF(AND(K39=2),VLOOKUP(I19,'[2]CG 2 Tab 6'!A15:G415,7,FALSE),IF(AND(K39=3),VLOOKUP(I19,'[2]CG 3 Tab 6'!A14:G484,7,FALSE),IF(AND(K39=4),VLOOKUP(I19,'[2]CG 4 Tab 6'!A14:G634,7,FALSE),IF(AND(K39=5),VLOOKUP(I19,'[2]CG 5 Tab 6'!A14:G804,7,FALSE),IF(AND(K39=6),VLOOKUP(I19,'[2]CG 6 Tab 6'!A14:G954,7,FALSE),IF(AND(K39=7),VLOOKUP(I19,'[2]CG 7 Tab 6'!A14:G1154,7,FALSE))))))))))))))))) -> 1 | M46: =IF(M19="","",IF(AND(M20=""),"",IF(AND(M45=""),"",IF(AND(O39=""),"",(IF(AND(AM5="M109"),M83,IF(AND(AM5="M114"),M84,(IF(AND(AM5="M119"),_xlfn.CEILING.MATH(IF(AND(O39=1),VLOOKUP(M19,'[2]CG 1 Tab 6'!A15:G355,7),IF(AND(O39=2),VLOOKUP(M19,'[2]CG 2 Tab 6'!A15:G415,7),IF(AND(O39=3),VLOOKUP(M19,'[2]CG 3 Tab 6'!A14:G484,7),IF(AND(O39=4),VLOOKUP(M19,'[2]CG 4 Tab 6'!A14:G634,7),IF(AND(O39=5),VLOOKUP(M19,'[2]CG 5 Tab 6'!A14:G804,7),IF(AND(O39=6),VLOOKUP(M19,'[2]CG 6 Tab 6'!A14:G954,7),IF(AND(O39=7),VLOOKUP(M19,'[2]CG 7 Tab 6'!A14:G1154,7)))))))))))))))))) -> 1 | O46: =IF(M19="","",IF(AND(M20=""),"",IF(AND(F29=""),"",IF(AND(O45=""),"",IF(AND(O39=""),"",(IF(AND(AM5="M109"),O83,IF(AND(AM5="M114"),O84,IF(AND(AM5="M119"),_xlfn.CEILING.MATH(IF(AND(O39=1),VLOOKUP(M19,'[2]CG 1 Tab 6'!A15:G355,7,FALSE),IF(AND(O39=2),VLOOKUP(M19,'[2]CG 2 Tab 6'!A15:G415,7,FALSE),IF(AND(O39=3),VLOOKUP(M19,'[2]CG 3 Tab 6'!A14:G484,7,FALSE),IF(AND(O39=4),VLOOKUP(M19,'[2]CG 4 Tab 6'!A14:G634,7,FALSE),IF(AND(O39=5),VLOOKUP(M19,'[2]CG 5 Tab 6'!A14:G804,7,FALSE),IF(AND(O39=6),VLOOKUP(M19,'[2]CG 6 Tab 6'!A14:G954,7,FALSE),IF(AND(O39=7),VLOOKUP(M19,'[2]CG 7 Tab 6'!A14:G1154,7,FALSE)))))))))))))))))) -> 1 | Q46: =IF(Q19="","",IF(AND(Q20=""),"",IF(AND(Q45=""),"",(IF(AND(AM5="M109"),_xlfn.CEILING.MATH(Q83),IF(AND(AM5="M114"),_xlfn.CEILING.MATH(Q84),IF(AND(S39=""),"",IF(AND(AM5="M119"),_xlfn.CEILING.MATH(IF(AND(S39=1),VLOOKUP(Q19,'[2]CG 1 Tab 6'!A15:G355,7,FALSE),IF(AND(S39=2),VLOOKUP(Q19,'[2]CG 2 Tab 6'!A15:G415,7,FALSE),IF(AND(S39=3),VLOOKUP(Q19,'[2]CG 3 Tab 6'!A14:G484,7,FALSE),IF(AND(S39=4),VLOOKUP(Q19,'[2]CG 4 Tab 6'!A14:G634,7,FALSE),IF(AND(S39=5),VLOOKUP(Q19,'[2]CG 5 Tab 6'!A14:G804,7,FALSE),IF(AND(S39=6),VLOOKUP(Q19,'[2]CG 6 Tab 6'!A14:G954,7,FALSE),IF(AND(S39=7),VLOOKUP(Q19,'[2]CG 7 Tab 6'!A14:G1154,7,FALSE))))))))))))))))) -> 1 | S46: =IF(Q19="","",IF(AND(Q20=""),"",IF(AND(F29=""),"",IF(AND(S45=""),"",IF(AND(S39=""),"",(IF(AND(AM5="M109"),_xlfn.CEILING.MATH(S83),IF(AND(AM5="M114"),_xlfn.CEILING.MATH(S84),IF(AND(AM5="M119"),_xlfn.CEILING.MATH(IF(AND(S39=1),VLOOKUP(Q19,'[2]CG 1 Tab 6'!A15:G355,7,FALSE),IF(AND(S39=2),VLOOKUP(Q19,'[2]CG 2 Tab 6'!A15:G415,7,FALSE),IF(AND(S39=3),VLOOKUP(Q19,'[2]CG 3 Tab 6'!A14:G484,7,FALSE),IF(AND(S39=4),VLOOKUP(Q19,'[2]CG 4 Tab 6'!A14:G634,7,FALSE),IF(AND(S39=5),VLOOKUP(Q19,'[2]CG 5 Tab 6'!A14:G804,7,FALSE),IF(AND(S39=6),VLOOKUP(Q19,'[2]CG 6 Tab 6'!A14:G954,7,FALSE),IF(AND(S39=7),VLOOKUP(Q19,'[2]CG 7 Tab 6'!A14:G1154,7,FALSE)))))))))))))))))) -> 1 | U46: =IF(U19="","",IF(AND(U20=""),"",IF(AND(U45=""),"",(IF(AND(AM5="M109"),_xlfn.CEILING.MATH(U83),IF(AND(AM5="M114"),_xlfn.CEILING.MATH(U84),IF(AND(W39=""),"",IF(AND(AM5="M119"),_xlfn.CEILING.MATH(IF(AND(W39=1),VLOOKUP(U19,'[2]CG 1 Tab 6'!A15:G355,7,FALSE),IF(AND(W39=2),VLOOKUP(U19,'[2]CG 2 Tab 6'!A15:G415,7,FALSE),IF(AND(W39=3),VLOOKUP(U19,'[2]CG 3 Tab 6'!A14:G484,7,FALSE),IF(AND(W39=4),VLOOKUP(U19,'[2]CG 4 Tab 6'!A14:G634,7,FALSE),IF(AND(W39=5),VLOOKUP(U19,'[2]CG 5 Tab 6'!A14:G804,7,FALSE),IF(AND(W39=6),VLOOKUP(U19,'[2]CG 6 Tab 6'!A14:G954,7,FALSE),IF(AND(W39=7),VLOOKUP(U19,'[2]CG 7 Tab 6'!A14:G1154,7,FALSE))))))))))))))))) -> 1 | W46: =IF(U19="","",IF(AND(U20=""),"",IF(AND(F29=""),"",IF(AND(W45=""),"",IF(AND(W39=""),"",(IF(AND(AM5="M109"),_xlfn.CEILING.MATH(W83),IF(AND(AM5="M114"),_xlfn.CEILING.MATH(W84),IF(AND(AM5="M119"),_xlfn.CEILING.MATH(IF(AND(W39=1),VLOOKUP(U19,'[2]CG 1 Tab 6'!A15:G355,7,FALSE),IF(AND(W39=2),VLOOKUP(U19,'[2]CG 2 Tab 6'!A15:G415,7,FALSE),IF(AND(W39=3),VLOOKUP(U19,'[2]CG 3 Tab 6'!A14:G484,7,FALSE),IF(AND(W39=4),VLOOKUP(U19,'[2]CG 4 Tab 6'!A14:G634,7,FALSE),IF(AND(W39=5),VLOOKUP(U19,'[2]CG 5 Tab 6'!A14:G804,7,FALSE),IF(AND(W39=6),VLOOKUP(U19,'[2]CG 6 Tab 6'!A14:G954,7,FALSE),IF(AND(W39=7),VLOOKUP(U19,'[2]CG 7 Tab 6'!A14:G1154,7,FALSE)))))))))))))))))) -> 1 | Y46: =IF(Y19="","",IF(AND(Y20=""),"",IF(AND(Y45=""),"",(IF(AND(AM5="M109"),_xlfn.CEILING.MATH(Y83),IF(AND(AM5="M114"),_xlfn.CEILING.MATH(Y84),IF(AND(AA39=""),"",IF(AND(AM5="M119"),_xlfn.CEILING.MATH(IF(AND(AA39=1),VLOOKUP(Y19,'[2]CG 1 Tab 6'!A15:G355,7,FALSE),IF(AND(AA39=2),VLOOKUP(Y19,'[2]CG 2 Tab 6'!A15:G415,7,FALSE),IF(AND(AA39=3),VLOOKUP(Y19,'[2]CG 3 Tab 6'!A14:G484,7,FALSE),IF(AND(AA39=4),VLOOKUP(Y19,'[2]CG 4 Tab 6'!A14:G634,7,FALSE),IF(AND(AA39=5),VLOOKUP(Y19,'[2]CG 5 Tab 6'!A14:G804,7,FALSE),IF(AND(AA39=6),VLOOKUP(Y19,'[2]CG 6 Tab 6'!A14:G954,7,FALSE),IF(AND(AA39=7),VLOOKUP(Y19,'[2]CG 7 Tab 6'!A14:G1154,7,FALSE))))))))))))))))) -> 1 | AA46: =IF(Y19="","",IF(AND(Y20=""),"",IF(AND(F29=""),"",IF(AND(AA45=""),"",IF(AND(AA39=""),"",(IF(AND(AM5="M109"),_xlfn.CEILING.MATH(AA83),IF(AND(AM5="M114"),_xlfn.CEILING.MATH(AA84),IF(AND(AM5="M119"),_xlfn.CEILING.MATH(IF(AND(AA39=1),VLOOKUP(Y19,'[2]CG 1 Tab 6'!A15:G355,7,FALSE),IF(AND(AA39=2),VLOOKUP(Y19,'[2]CG 2 Tab 6'!A15:G415,7,FALSE),IF(AND(AA39=3),VLOOKUP(Y19,'[2]CG 3 Tab 6'!A14:G484,7,FALSE),IF(AND(AA39=4),VLOOKUP(Y19,'[2]CG 4 Tab 6'!A14:G634,7,FALSE),IF(AND(AA39=5),VLOOKUP(Y19,'[2]CG 5 Tab 6'!A14:G804,7,FALSE),IF(AND(AA39=6),VLOOKUP(Y19,'[2]CG 6 Tab 6'!A14:G954,7,FALSE),IF(AND(AA39=7),VLOOKUP(Y19,'[2]CG 7 Tab 6'!A14:G1154,7,FALSE)))))))))))))))))) -> 1 | AC46: =IF(AC19="","",IF(AND(AC20=""),"",IF(AND(AC45=""),"",(IF(AND(AM5="M109"),_xlfn.CEILING.MATH(AC83),IF(AND(AM5="M114"),_xlfn.CEILING.MATH(AC84),IF(AND(AE39=""),"",IF(AND(AM5="M119"),_xlfn.CEILING.MATH(IF(AND(AE39=1),VLOOKUP(AC19,'[2]CG 1 Tab 6'!A15:G355,7,FALSE),IF(AND(AE39=2),VLOOKUP(AC19,'[2]CG 2 Tab 6'!A15:G415,7,FALSE),IF(AND(AE39=3),VLOOKUP(AC19,'[2]CG 3 Tab 6'!A14:G484,7,FALSE),IF(AND(AE39=4),VLOOKUP(AC19,'[2]CG 4 Tab 6'!A14:G634,7,FALSE),IF(AND(AE39=5),VLOOKUP(AC19,'[2]CG 5 Tab 6'!A14:G804,7,FALSE),IF(AND(AE39=6),VLOOKUP(AC19,'[2]CG 6 Tab 6'!A14:G954,7,FALSE),IF(AND(AE39=7),VLOOKUP(AC19,'[2]CG 7 Tab 6'!A14:G1154,7,FALSE))))))))))))))))) -> 1 | AE46: =IF(AC19="","",IF(AND(AC20=""),"",IF(AND(AE45=""),"",IF(AND(F29=""),"",(IF(AND(AM5="M109"),_xlfn.CEILING.MATH(AE83),IF(AND(AM5="M114"),_xlfn.CEILING.MATH(AE84),IF(AND(AE39=""),"",IF(AND(AM5="M119"),_xlfn.CEILING.MATH(IF(AND(AE39=1),VLOOKUP(AC19,'[2]CG 1 Tab 6'!A15:G355,7,FALSE),IF(AND(AE39=2),VLOOKUP(AC19,'[2]CG 2 Tab 6'!A15:G415,7,FALSE),IF(AND(AE39=3),VLOOKUP(AC19,'[2]CG 3 Tab 6'!A14:G484,7,FALSE),IF(AND(AE39=4),VLOOKUP(AC19,'[2]CG 4 Tab 6'!A14:G634,7,FALSE),IF(AND(AE39=5),VLOOKUP(AC19,'[2]CG 5 Tab 6'!A14:G804,7,FALSE),IF(AND(AE39=6),VLOOKUP(AC19,'[2]CG 6 Tab 6'!A14:G954,7,FALSE),IF(AND(AE39=7),VLOOKUP(AC19,'[2]CG 7 Tab 6'!A14:G1154,7,FALSE)))))))))))))))))) -> 1
C47: Dur Trajeto + 5,5 seg | I47: =IF(I19="","",IF(AND(I20=""),"",IF(AND(I46=""),"",IF(K39="","",I46+5.5)))) -> 6.5 | K47: =IF(I19="","",IF(AND(I20=""),"",IF(AND(K46=""),"",IF(K39="","",K46+5.5)))) -> 6.5 | M47: =IF(M19="","",IF(AND(M20=""),"",IF(AND(M46=""),"",IF(O39="","",M46+5.5)))) -> 6.5 | O47: =IF(M19="","",IF(AND(M20=""),"",IF(AND(O46=""),"",IF(O39="","",O46+5.5)))) -> 6.5 | Q47: =IF(Q19="","",IF(AND(Q20=""),"",IF(AND(Q46=""),"",IF(S39="","",Q46+5.5)))) -> 6.5 | S47: =IF(Q19="","",IF(AND(Q20=""),"",IF(AND(S46=""),"",IF(S39="","",S46+5.5)))) -> 6.5 | U47: =IF(U19="","",IF(AND(U20=""),"",IF(AND(U46=""),"",IF(W39="","",U46+5.5)))) -> 6.5 | W47: =IF(U19="","",IF(AND(U20=""),"",IF(AND(W46=""),"",IF(W39="","",W46+5.5)))) -> 6.5 | Y47: =IF(Y19="","",IF(AND(Y20=""),"",IF(AND(Y46=""),"",IF(AA39="","",Y46+5.5)))) -> 6.5 | AA47: =IF(Y19="","",IF(AND(Y20=""),"",IF(AND(AA46=""),"",IF(AA39="","",AA46+5.5)))) -> 6.5 | AC47: =IF(AC19="","",IF(AND(AC20=""),"",IF(AND(AC46=""),"",IF(AE39="","",AC46+5.5)))) -> 6.5 | AE47: =IF(AC19="","",IF(AND(AC20=""),"",IF(AND(AE46=""),"",IF(AE39="","",AE46+5.5)))) -> 6.5
C48: GESM | I48: =IF(I19="","",IF(AND(I20=""),"",IF(AND(I46=""),"",IF(AND(AM5=""),"",IF(K39="","",ROUND(I47,0)))))) -> 7 | K48: =IF(I19="","",IF(AND(I20=""),"",IF(AND(K46=""),"",IF(AND(AM5=""),"",IF(AND(F29="Situação de Paz"),"--",IF(K39="","",_xlfn.CEILING.MATH(K47))))))) -> 7 | M48: =IF(M19="","",IF(AND(M20=""),"",IF(AND(M46=""),"",IF(AND(AM5=""),"",IF(O39="","",ROUND(M47,0)))))) -> 7 | O48: =IF(M19="","",IF(AND(M20=""),"",IF(AND(O46=""),"",IF(AND(AM5=""),"",(IF(AND(F29="Situação de Paz"),"--",IF(O39="","",_xlfn.CEILING.MATH(O47)))))))) -> 7 | Q48: =IF(Q19="","",IF(AND(Q20=""),"",IF(AND(Q46=""),"",IF(AND(AM5=""),"",IF(S39="","",ROUND(Q47,0)))))) -> 7 | S48: =IF(Q19="","",IF(AND(Q20=""),"",IF(AND(S46=""),"",IF(AND(AM5=""),"",(IF(AND(F29="Situação de Paz"),"--",IF(S39="","",_xlfn.CEILING.MATH(S47)))))))) -> 7 | U48: =IF(U19="","",IF(AND(U20=""),"",IF(AND(U46=""),"",IF(AND(AM5=""),"",IF(W39="","",ROUND(U47,0)))))) -> 7 | W48: =IF(U19="","",IF(AND(U20=""),"",IF(AND(W46=""),"",IF(AND(AM5=""),"",(IF(AND(F29="Situação de Paz"),"--",IF(W39="","",_xlfn.CEILING.MATH(W47)))))))) -> 7 | Y48: =IF(Y19="","",IF(AND(Y20=""),"",IF(AND(Y46=""),"",IF(AND(AM5=""),"",IF(AA39="","",ROUND(Y47,0)))))) -> 7 | AA48: =IF(Y19="","",IF(AND(Y20=""),"",IF(AND(AM5=""),"",IF(AND(AA46=""),"",(IF(AND(F29="Situação de Paz"),"--",IF(AA39="","",_xlfn.CEILING.MATH(AA47)))))))) -> 7 | AC48: =IF(AC19="","",IF(AND(AC20=""),"",IF(AND(AC46=""),"",IF(AND(AM5=""),"",IF(AE39="","",ROUND(AC47,0)))))) -> 7 | AE48: =IF(AC19="","",IF(AND(AC20=""),"",IF(AND(AE46=""),"",IF(AND(AM5=""),"",(IF(AND(F29="Situação de Paz"),"--",IF(AE39="","",_xlfn.CEILING.MATH(AE47)))))))) -> 7 | AG48: Direito | AK48: =IF(AND(AM5="M119"),"",IF(AND(AM5="M109"),"",(IF(AND(I17<>"",M17="",Q17="",U17="",Y17="",AC17=""),I17,(IF(AND(I17="",M17<>"",Q17="",U17="",Y17="",AC17=""),M17,(IF(AND(I17="",M17="",Q17<>"",U17="",Y17="",AC17=""),Q17,(IF(AND(I17="",M17="",Q17="",U17<>"",Y17="",AC17=""),U17,(IF(AND(I17="",M17="",Q17="",U17="",Y17<>"",AC17=""),Y17,(IF(AND(I17="",M17="",Q17="",U17="",Y17="",AC17<>""),AC17,(IF(AND(I17="",M17="",Q17="",U17="",Y17="",AC17=""),"",SMALL(I17:AF17,1))))))))))))))))) -> 
I49: Carga | K49: 6 | M49: Carga | O49: 6 | Q49: Carga | S49: 6 | U49: Carga | W49: 6 | Y49: Carga | AA49: 6 | AC49: Carga | AE49: 6 | AG49: Elevação Máxima (TV) | AK49: =IF(AND(AM5="M119"),"",IF(AND(AM5="M109"),"",(IF(AND(I18<>"",M18="",Q18="",U18="",Y18="",AC18=""),I18,(IF(AND(I18="",M18<>"",Q18="",U18="",Y18="",AC18=""),M18,(IF(AND(I18="",M18="",Q18<>"",U18="",Y18="",AC18=""),Q18,(IF(AND(I18="",M18="",Q18="",U18<>"",Y18="",I18="",AC18=""),U18,(IF(AND(I18="",M18="",Q18="",U18="",Y18<>"",AC18=""),Y18,(IF(AND(I18="",M18="",Q18="",U18="",Y18="",AC18<>""),AC18,(IF(AND(I18="",M18="",Q18="",U18="",Y18="",AC18=""),"",LARGE(I18:AF18,1))))))))))))))))) -> 
C50: ∡ A ( Ang Si à crista) | I50: =IF(AND(AM5=""),"",IF(I20="","",I20)) -> 50 | K50: =IF(AND(I19=""),"",IF(AND(F29=""),"",IF(K49="","",IF(I20="","",I20)))) -> 50 | M50: =IF(AND(AM5=""),"",IF(M20="","",M20)) -> 30 | O50: =IF(O49="","",IF(AND(M19=""),"",IF(F29="","",IF(M20="","",M20)))) -> 30 | Q50: =IF(AND(AM5=""),"",IF(Q20="","",Q20)) -> 40 | S50: =IF(S49="","",IF(AND(Q19=""),"",IF(F29="","",IF(Q20="","",Q20)))) -> 40 | U50: =IF(U20="","",U20) -> 30 | W50: =IF(W49="","",IF(AND(U19=""),"",IF(F29="","",IF(U20="","",U20)))) -> 30 | Y50: =IF(Y20="","",Y20) -> 40 | AA50: =IF(AA49="","",IF(AND(Y19=""),"",IF(F29="","",IF(Y20="","",Y20)))) -> 40 | AC50: =IF(AC20="","",AC20) -> 50 | AE50: =IF(AE49="","",IF(AND(AC19=""),"",IF(F29="","",IF(AC20="","",AC20)))) -> 50
I51: =IF(AND(AM5=""),"",IF(AND(I19=""),"",_xlfn.CEILING.MATH((5*1.0186)/(I19*0.001)))) -> 23 | K51: =IF(I19="","",IF(AND(I20=""),"",IF(F29="","",_xlfn.CEILING.MATH(IF(AND(F29="Normal"),(70*1.0186)/(I19*0.001),IF(AND(F29="Situação de Guerra"),(70*1.0186)/(I19*0.001),IF(AND(F29="Água ou Neve"),(170*1.0186)/(I19*0.001),IF(AND(F29="Arborizado, Húmido ou Pantanoso"),(120*1.0186)/(I19*0.001))))))))) -> 532 | M51: =IF(AND(AM5=""),"",IF(M19="","",_xlfn.CEILING.MATH((5*1.0186)/(M19*0.001)))) -> 25 | O51: =IF(M19="","",IF(AND(M20=""),"",IF(F29="","",_xlfn.CEILING.MATH(IF(AND(F29="Normal"),(70*1.0186)/(M19*0.001),IF(AND(F29="Situação de Guerra"),(70*1.0186)/(M19*0.001),IF(AND(F29="Água ou Neve"),(170*1.0186)/(M19*0.001),IF(AND(F29="Arborizado, Húmido ou Pantanoso"),(120*1.0186)/(M19*0.001))))))))) -> 583 | Q51: =IF(Q19="","",_xlfn.CEILING.MATH((5*1.0186)/(Q19*0.001))) -> 25 | S51: =IF(Q19="","",IF(AND(Q20=""),"",IF(F29="","",_xlfn.CEILING.MATH(IF(AND(F29="Normal"),(70*1.0186)/(Q19*0.001),IF(AND(F29="Situação de Guerra"),(70*1.0186)/(Q19*0.001),IF(AND(F29="Água ou Neve"),(170*1.0186)/(Q19*0.001),IF(AND(F29="Arborizado, Húmido ou Pantanoso"),(120*1.0186)/(Q19*0.001))))))))) -> 583 | U51: =IF(U19="","",_xlfn.CEILING.MATH((5*1.0186)/(U19*0.001))) -> 24 | W51: =IF(U19="","",IF(AND(U20=""),"",IF(F29="","",_xlfn.CEILING.MATH(IF(AND(F29="Normal"),(70*1.0186)/(U19*0.001),IF(AND(F29="Situação de Guerra"),(70*1.0186)/(U19*0.001),IF(AND(F29="Água ou Neve"),(170*1.0186)/(U19*0.001),IF(AND(F29="Arborizado, Húmido ou Pantanoso"),(120*1.0186)/(U19*0.001))))))))) -> 556 | Y51: =IF(Y19="","",_xlfn.CEILING.MATH((5*1.0186)/(Y19*0.001))) -> 25 | AA51: =IF(Y19="","",IF(AND(Y20=""),"",IF(F29="","",_xlfn.CEILING.MATH(IF(AND(F29="Normal"),(70*1.0186)/(Y19*0.001),IF(AND(F29="Situação de Guerra"),(70*1.0186)/(Y19*0.001),IF(AND(F29="Água ou Neve"),(170*1.0186)/(Y19*0.001),IF(AND(F29="Arborizado, Húmido ou Pantanoso"),(120*1.0186)/(Y19*0.001))))))))) -> 583 | AC51: =IF(AC19="","",_xlfn.CEILING.MATH((5*1.0186)/(AC19*0.001))) -> 24 | AE51: =IF(AC19="","",IF(AND(AC20=""),"",IF(F29="","",_xlfn.CEILING.MATH(IF(AND(F29="Normal"),(70*1.0186)/(AC19*0.001),IF(AND(F29="Situação de Guerra"),(70*1.0186)/(AC19*0.001),IF(AND(F29="Água ou Neve"),(170*1.0186)/(AC19*0.001),IF(AND(F29="Arborizado, Húmido ou Pantanoso"),(120*1.0186)/(AC19*0.001))))))))) -> 556
C52: ∡ C (CCAS) | I52: =IF(I20="","",IF(AND(I19=""),"",IF(AND(K49=""),"",IF(AND(AM5=""),"",(IF(AND(AM5="M109"),_xlfn.CEILING.MATH(I86),IF(AND(AM5="M114"),_xlfn.CEILING.MATH(I87),(IF(AND(AM5="M119"),_xlfn.CEILING.MATH((I50+I51)*IF(AND(K49=1),VLOOKUP(I19,'[2]CG 1 Tab 8'!A5:L345,12),IF(AND(K49=2),VLOOKUP(I19,'[2]CG 2 Tab 8'!A5:L405,12),IF(AND(K49=3),VLOOKUP(I19,'[2]CG 3 Tab 8'!A4:L474,12),IF(AND(K49=4),VLOOKUP(I19,'[2]CG 4 Tab 8'!A4:L624,12),IF(AND(K49=5),VLOOKUP(I19,'[2]CG 5 Tab 8'!A4:L794,12),IF(AND(K49=6),VLOOKUP(I19,'[2]CG 6 Tab 8'!A4:L944,12),IF(AND(K49=7),VLOOKUP(I19,'[2]CG 7 Tab 8'!A4:L1144,12)))))))))))))))))) -> 0 | K52: =IF(I20="","",IF(AND(I19=""),"",IF(AND(F29=""),"",IF(K49="","",IF(AND(AM5="M109"),_xlfn.CEILING.MATH(K86),IF(AND(AM5="M114"),_xlfn.CEILING.MATH(K87),(IF(AND(AM5="M119"),_xlfn.CEILING.MATH((K50+K51)*IF(AND(K49=1),VLOOKUP(I19,'[2]CG 1 Tab 8'!A27:L367,12,FALSE),IF(AND(K49=2),VLOOKUP(I19,'[2]CG 2 Tab 8'!A27:L427,12,FALSE),IF(AND(K49=3),VLOOKUP(I19,'[2]CG 3 Tab 8'!A26:L496,12,FALSE),IF(AND(K49=4),VLOOKUP(I19,'[2]CG 4 Tab 8'!A26:L646,12,FALSE),IF(AND(K49=5),VLOOKUP(I19,'[2]CG 5 Tab 8'!A26:L816,12,FALSE),IF(AND(K49=6),VLOOKUP(I19,'[2]CG 6 Tab 8'!A26:L966,12,FALSE),IF(AND(K49=7),VLOOKUP(I19,'[2]CG 7 Tab 8'!A26:L1166,12,FALSE))))))))))))))))) -> 0 | M52: =IF(M20="","",IF(AND(M19=""),"",IF(AND(O49=""),"",IF(AND(AM5=""),"",(IF(AND(AM5="M109"),_xlfn.CEILING.MATH(M86),IF(AND(AM5="M114"),_xlfn.CEILING.MATH(M87),(IF(AND(AM5="M119"),_xlfn.CEILING.MATH((M50+M51)*IF(AND(O49=1),VLOOKUP(M19,'[2]CG 1 Tab 8'!A27:L367,12),IF(AND(O49=2),VLOOKUP(M19,'[2]CG 2 Tab 8'!A27:L427,12),IF(AND(O49=3),VLOOKUP(M19,'[2]CG 3 Tab 8'!A26:L496,12),IF(AND(O49=4),VLOOKUP(M19,'[2]CG 4 Tab 8'!A26:L646,12),IF(AND(O49=5),VLOOKUP(M19,'[2]CG 5 Tab 8'!A26:L816,12),IF(AND(O49=6),VLOOKUP(M19,'[2]CG 6 Tab 8'!A4:L944,12),IF(AND(O49=7),VLOOKUP(M19,'[2]CG 7 Tab 8'!A26:L1166,12)))))))))))))))))) -> 0 | O52: =IF(M20="","",IF(AND(M19=""),"",IF(AND(F29=""),"",IF(AND(O49=""),"",(IF(AND(AM5="M109"),_xlfn.CEILING.MATH(O86),IF(AND(AM5="M114"),_xlfn.CEILING.MATH(O87),(IF(AND(AM5="M119"),_xlfn.CEILING.MATH((O50+O51)*IF(AND(O49=1),VLOOKUP(M19,'[2]CG 1 Tab 8'!A27:L367,12,FALSE),IF(AND(O49=2),VLOOKUP(M19,'[2]CG 2 Tab 8'!A27:L427,12,FALSE),IF(AND(O49=3),VLOOKUP(M19,'[2]CG 3 Tab 8'!A26:L496,12,FALSE),IF(AND(O49=4),VLOOKUP(M19,'[2]CG 4 Tab 8'!A26:L646,12,FALSE),IF(AND(O49=5),VLOOKUP(M19,'[2]CG 5 Tab 8'!A26:L816,12,FALSE),IF(AND(O49=6),VLOOKUP(M19,'[2]CG 6 Tab 8'!A4:L944,12,FALSE),IF(AND(O49=7),VLOOKUP(M19,'[2]CG 7 Tab 8'!A26:L1166,12,FALSE)))))))))))))))))) -> 0 | Q52: =IF(Q19="","",IF(AND(Q20=""),"",IF(AND(S49=""),"",(IF(AND(AM5="M109"),_xlfn.CEILING.MATH(Q86),IF(AND(AM5="M114"),_xlfn.CEILING.MATH(Q87),(IF(AND(AM5="M119"),_xlfn.CEILING.MATH((Q50+Q51)*IF(AND(S49=1),VLOOKUP(Q19,'[2]CG 1 Tab 8'!A27:L367,12,FALSE),IF(AND(S49=2),VLOOKUP(Q19,'[2]CG 2 Tab 8'!A27:L427,12,FALSE),IF(AND(S49=3),VLOOKUP(Q19,'[2]CG 3 Tab 8'!A26:L496,12,FALSE),IF(AND(S49=4),VLOOKUP(Q19,'[2]CG 4 Tab 8'!A26:L646,12,FALSE),IF(AND(S49=5),VLOOKUP(Q19,'[2]CG 5 Tab 8'!A26:L816,12,FALSE),IF(AND(S49=6),VLOOKUP(Q19,'[2]CG 6 Tab 8'!A4:L944,12,FALSE),IF(AND(S49=7),VLOOKUP(Q19,'[2]CG 7 Tab 8'!A26:L1166,12,FALSE))))))))))))))))) -> 0 | S52: =IF(Q19="","",IF(AND(Q20=""),"",IF(F29="","",IF(AND(S49=""),"",(IF(AND(AM5="M109"),_xlfn.CEILING.MATH(S86),IF(AND(AM5="M114"),_xlfn.CEILING.MATH(S87),(IF(AND(AM5="M119"),_xlfn.CEILING.MATH((S50+S51)*IF(AND(S49=1),VLOOKUP(Q19,'[2]CG 1 Tab 8'!A27:L367,12,FALSE),IF(AND(S49=2),VLOOKUP(Q19,'[2]CG 2 Tab 8'!A27:L427,12,FALSE),IF(AND(S49=3),VLOOKUP(Q19,'[2]CG 3 Tab 8'!A26:L496,12,FALSE),IF(AND(S49=4),VLOOKUP(Q19,'[2]CG 4 Tab 8'!A26:L646,12,FALSE),IF(AND(S49=5),VLOOKUP(Q19,'[2]CG 5 Tab 8'!A26:L816,12,FALSE),IF(AND(S49=6),VLOOKUP(Q19,'[2]CG 6 Tab 8'!A4:L944,12,FALSE),IF(AND(S49=7),VLOOKUP(Q19,'[2]CG 7 Tab 8'!A26:L1166,12,FALSE)))))))))))))))))) -> 0 | U52: =IF(U19="","",IF(AND(U20=""),"",IF(AND(W49=""),"",(IF(AND(AM5="M109"),_xlfn.CEILING.MATH(U86),IF(AND(AM5="M114"),_xlfn.CEILING.MATH(U87),(IF(AND(AM5="M119"),_xlfn.CEILING.MATH((U50+U51)*IF(AND(W49=1),VLOOKUP(U19,'[2]CG 1 Tab 8'!A27:L367,12,FALSE),IF(AND(W49=2),VLOOKUP(U19,'[2]CG 2 Tab 8'!A27:L427,12,FALSE),IF(AND(W49=3),VLOOKUP(U19,'[2]CG 3 Tab 8'!A26:L496,12,FALSE),IF(AND(W49=4),VLOOKUP(U19,'[2]CG 4 Tab 8'!A26:L646,12,FALSE),IF(AND(W49=5),VLOOKUP(U19,'[2]CG 5 Tab 8'!A26:L816,12,FALSE),IF(AND(W49=6),VLOOKUP(U19,'[2]CG 6 Tab 8'!A26:L966,12,FALSE),IF(AND(W49=7),VLOOKUP(U19,'[2]CG 7 Tab 8'!A26:L1166,12,FALSE))))))))))))))))) -> 0 | W52: =IF(U19="","",IF(AND(U20=""),"",IF(F29="","",IF(AND(W49=""),"",(IF(AND(AM5="M109"),_xlfn.CEILING.MATH(W86),IF(AND(AM5="M114"),_xlfn.CEILING.MATH(W87),(IF(AND(AM5="M119"),_xlfn.CEILING.MATH((W50+W51)*IF(AND(W49=1),VLOOKUP(U19,'[2]CG 1 Tab 8'!A27:L367,12,FALSE),IF(AND(W49=2),VLOOKUP(U19,'[2]CG 2 Tab 8'!A27:L427,12,FALSE),IF(AND(W49=3),VLOOKUP(U19,'[2]CG 3 Tab 8'!A26:L496,12,FALSE),IF(AND(W49=4),VLOOKUP(U19,'[2]CG 4 Tab 8'!A26:L646,12,FALSE),IF(AND(W49=5),VLOOKUP(U19,'[2]CG 5 Tab 8'!A26:L816,12,FALSE),IF(AND(W49=6),VLOOKUP(U19,'[2]CG 6 Tab 8'!A26:L966,12,FALSE),IF(AND(W49=7),VLOOKUP(U19,'[2]CG 7 Tab 8'!A26:L1166,12,FALSE)))))))))))))))))) -> 0 | Y52: =IF(Y19="","",IF(AND(Y20=""),"",IF(AND(AA49=""),"",(IF(AND(AM5="M109"),_xlfn.CEILING.MATH(Y86),IF(AND(AM5="M114"),_xlfn.CEILING.MATH(Y87),(IF(AND(AM5="M119"),_xlfn.CEILING.MATH((Y50+Y51)*IF(AND(AA49=1),VLOOKUP(Y19,'[2]CG 1 Tab 8'!A27:L367,12,FALSE),IF(AND(AA49=2),VLOOKUP(Y19,'[2]CG 2 Tab 8'!A27:L427,12,FALSE),IF(AND(AA49=3),VLOOKUP(Y19,'[2]CG 3 Tab 8'!A26:L496,12,FALSE),IF(AND(AA49=4),VLOOKUP(Y19,'[2]CG 4 Tab 8'!A26:L646,12,FALSE),IF(AND(AA49=5),VLOOKUP(Y19,'[2]CG 5 Tab 8'!A26:L816,12,FALSE),IF(AND(AA49=6),VLOOKUP(Y19,'[2]CG 6 Tab 8'!A4:L944,12,FALSE),IF(AND(AA49=7),VLOOKUP(Y19,'[2]CG 7 Tab 8'!A26:L1166,12,FALSE))))))))))))))))) -> 0 | AA52: =IF(Y19="","",IF(AND(Y20=""),"",IF(F29="","",IF(AND(AA49=""),"",(IF(AND(AM5="M109"),_xlfn.CEILING.MATH(AA86),IF(AND(AM5="M114"),_xlfn.CEILING.MATH(AA87),(IF(AND(AM5="M119"),_xlfn.CEILING.MATH((AA50+AA51)*IF(AND(AA49=1),VLOOKUP(Y19,'[2]CG 1 Tab 8'!A27:L367,12,FALSE),IF(AND(AA49=2),VLOOKUP(Y19,'[2]CG 2 Tab 8'!A27:L427,12,FALSE),IF(AND(AA49=3),VLOOKUP(Y19,'[2]CG 3 Tab 8'!A26:L496,12,FALSE),IF(AND(AA49=4),VLOOKUP(Y19,'[2]CG 4 Tab 8'!A26:L646,12,FALSE),IF(AND(AA49=5),VLOOKUP(Y19,'[2]CG 5 Tab 8'!A26:L816,12,FALSE),IF(AND(AA49=6),VLOOKUP(Y19,'[2]CG 6 Tab 8'!A4:L944,12,FALSE),IF(AND(AA49=7),VLOOKUP(Y19,'[2]CG 7 Tab 8'!A26:L1166,12,FALSE)))))))))))))))))) -> 0 | AC52: =IF(AC19="","",IF(AND(AC20=""),"",IF(AND(AE49=""),"",(IF(AND(AM5="M109"),_xlfn.CEILING.MATH(AC86),IF(AND(AM5="M114"),_xlfn.CEILING.MATH(AC87),(IF(AND(AM5="M119"),_xlfn.CEILING.MATH((AC50+AC51)*IF(AND(AE49=1),VLOOKUP(AC19,'[2]CG 1 Tab 8'!A27:L367,12,FALSE),IF(AND(AE49=2),VLOOKUP(AC19,'[2]CG 2 Tab 8'!A27:L427,12,FALSE),IF(AND(AE49=3),VLOOKUP(AC19,'[2]CG 3 Tab 8'!A26:L496,12,FALSE),IF(AND(AE49=4),VLOOKUP(AC19,'[2]CG 4 Tab 8'!A26:L646,12,FALSE),IF(AND(AE49=5),VLOOKUP(AC19,'[2]CG 5 Tab 8'!A26:L816,12,FALSE),IF(AND(AE49=6),VLOOKUP(AC19,'[2]CG 6 Tab 8'!A26:L966,12,FALSE),IF(AND(AE49=7),VLOOKUP(AC19,'[2]CG 7 Tab 8'!A26:L1166,12,FALSE))))))))))))))))) -> 0 | AE52: =IF(AC19="","",IF(AND(AC20=""),"",IF(AND(AE49=""),"",(IF(AND(AM5="M109"),_xlfn.CEILING.MATH(AE86),IF(AND(AM5="M114"),_xlfn.CEILING.MATH(AE87),(IF(AND(AM5="M119"),_xlfn.CEILING.MATH((AE50+AE51)*IF(AND(AE49=1),VLOOKUP(AC19,'[2]CG 1 Tab 8'!A27:L367,12,FALSE),IF(AND(AE49=2),VLOOKUP(AC19,'[2]CG 2 Tab 8'!A27:L427,12,FALSE),IF(AND(AE49=3),VLOOKUP(AC19,'[2]CG 3 Tab 8'!A26:L496,12,FALSE),IF(AND(AE49=4),VLOOKUP(AC19,'[2]CG 4 Tab 8'!A26:L646,12,FALSE),IF(AND(AE49=5),VLOOKUP(AC19,'[2]CG 5 Tab 8'!A26:L816,12,FALSE),IF(AND(AE49=6),VLOOKUP(AC19,'[2]CG 6 Tab 8'!A26:L966,12,FALSE),IF(AND(AE49=7),VLOOKUP(AC19,'[2]CG 7 Tab 8'!A26:L1166,12,FALSE))))))))))))))))) -> 0
C53: ∡ 2 ( Alça para a crista) | I53: =IF(I20="","",IF(AND(I19=""),"",IF(AND(AM5=""),"",IF(AND(K49=""),"",(IF(AND(AM5="M109"),_xlfn.CEILING.MATH(I88),IF(AND(AM5="M114"),_xlfn.CEILING.MATH(I89),(IF(AND(AM5="M119"),_xlfn.CEILING.MATH(IF(AND(K49=1),VLOOKUP(I19,'[2]CG 1 Tab 6'!A26:B366,2,FALSE),IF(AND(K49=2),VLOOKUP(I19,'[2]CG 2 Tab 6'!A26:B426,2,FALSE),IF(AND(K49=3),VLOOKUP(I19,'[2]CG 3 Tab 6'!A25:B495,2,FALSE),IF(AND(K49=4),VLOOKUP(I19,'[2]CG 4 Tab 6'!A25:B645,2,FALSE),IF(AND(K49=5),VLOOKUP(I19,'[2]CG 5 Tab 6'!A25:B815,2,FALSE),IF(AND(K49=6),VLOOKUP(I19,'[2]CG 6 Tab 6'!A3:B943,2,FALSE),IF(AND(K49=7),VLOOKUP(I19,'[2]CG 7 Tab 6'!A25:B1165,2,FALSE)))))))))))))))))) -> 9 | K53: =IF(I20="","",IF(AND(I19=""),"",IF(AND(F29=""),"",IF(AND(AM5="M109"),_xlfn.CEILING.MATH(K88),IF(AND(AM5="M114"),_xlfn.CEILING.MATH(K89),IF(AND(AM5="M119"),_xlfn.CEILING.MATH(IF(AND(K49=1),VLOOKUP(I19,'[2]CG 1 Tab 6'!A26:B366,2,FALSE),IF(AND(K49=2),VLOOKUP(I19,'[2]CG 2 Tab 6'!A26:B426,2,FALSE),IF(AND(K49=3),VLOOKUP(I19,'[2]CG 3 Tab 6'!A25:B495,2,FALSE),IF(AND(K49=4),VLOOKUP(I19,'[2]CG 4 Tab 6'!A25:B645,2,FALSE),IF(AND(K49=5),VLOOKUP(I19,'[2]CG 5 Tab 6'!A25:B815,2,FALSE),IF(AND(K49=6),VLOOKUP(I19,'[2]CG 6 Tab 6'!A25:B965,2,FALSE),IF(AND(K49=7),VLOOKUP(I19,'[2]CG 7 Tab 6'!A25:B1165,2,FALSE))))))))))))))) -> 9 | M53: =IF(M19="","",IF(AND(M20=""),"",IF(AND(AM5=""),"",IF(O49="","",(IF(AND(AM5="M109"),_xlfn.CEILING.MATH(M88),IF(AND(AM5="M114"),_xlfn.CEILING.MATH(M89),(IF(AND(AM5="M119"),_xlfn.CEILING.MATH(IF(AND(O49=1),VLOOKUP(M19,'[2]CG 1 Tab 6'!A26:B366,2),IF(AND(O49=2),VLOOKUP(M19,'[2]CG 2 Tab 6'!A26:B426,2),IF(AND(O49=3),VLOOKUP(M19,'[2]CG 3 Tab 6'!A25:B495,2),IF(AND(O49=4),VLOOKUP(M19,'[2]CG 4 Tab 6'!A25:B645,2),IF(AND(O49=5),VLOOKUP(M19,'[2]CG 5 Tab 6'!A25:B815,2),IF(AND(O49=6),VLOOKUP(M19,'[2]CG 6 Tab 6'!A3:B943,2),IF(AND(O49=7),VLOOKUP(M19,'[2]CG 7 Tab 6'!A25:B1165,2)))))))))))))))))) -> 8 | O53: =IF(M19="","",IF(AND(M20=""),"",IF(AND(F29=""),"",IF(AND(O49=""),"",(IF(AND(AM5="M109"),_xlfn.CEILING.MATH(M88),IF(AND(AM5="M114"),_xlfn.CEILING.MATH(M89),IF(AND(AM5="M119"),_xlfn.CEILING.MATH(IF(AND(O49=1),VLOOKUP(M19,'[2]CG 1 Tab 6'!A26:B366,2,FALSE),IF(AND(O49=2),VLOOKUP(M19,'[2]CG 2 Tab 6'!A26:B426,2,FALSE),IF(AND(O49=3),VLOOKUP(M19,'[2]CG 3 Tab 6'!A25:B495,2,FALSE),IF(AND(O49=4),VLOOKUP(M19,'[2]CG 4 Tab 6'!A25:B645,2,FALSE),IF(AND(O49=5),VLOOKUP(M19,'[2]CG 5 Tab 6'!A25:B815,2,FALSE),IF(AND(O49=6),VLOOKUP(M19,'[2]CG 6 Tab 6'!A3:B943,2,FALSE),IF(AND(O49=7),VLOOKUP(M19,'[2]CG 7 Tab 6'!A25:B1165,2,FALSE))))))))))))))))) -> 8 | Q53: =IF(Q19="","",IF(AND(Q20=""),"",IF(AND(S49=""),"",(IF(AND(AM5="M109"),_xlfn.CEILING.MATH(Q88),IF(AND(AM5="M114"),_xlfn.CEILING.MATH(Q89),IF(AND(AM5="M119"),_xlfn.CEILING.MATH(IF(AND(S49=1),VLOOKUP(Q19,'[2]CG 1 Tab 6'!A26:B366,2,FALSE),IF(AND(S49=2),VLOOKUP(Q19,'[2]CG 2 Tab 6'!A26:B426,2,FALSE),IF(AND(S49=3),VLOOKUP(Q19,'[2]CG 3 Tab 6'!A25:B495,2,FALSE),IF(AND(S49=4),VLOOKUP(Q19,'[2]CG 4 Tab 6'!A25:B645,2,FALSE),IF(AND(S49=5),VLOOKUP(Q19,'[2]CG 5 Tab 6'!A25:B815,2,FALSE),IF(AND(S49=6),VLOOKUP(Q19,'[2]CG 6 Tab 6'!A3:B943,2,FALSE),IF(AND(S49=7),VLOOKUP(Q19,'[2]CG 7 Tab 6'!A25:B1165,2,FALSE)))))))))))))))) -> 8 | S53: =IF(Q19="","",IF(AND(Q20=""),"",IF(F29="","",IF(AND(S49=""),"",(IF(AND(AM5="M109"),_xlfn.CEILING.MATH(S88),IF(AND(AM5="M114"),_xlfn.CEILING.MATH(S89),IF(AND(AM5="M119"),_xlfn.CEILING.MATH(IF(AND(S49=1),VLOOKUP(Q19,'[2]CG 1 Tab 6'!A26:B366,2,FALSE),IF(AND(S49=2),VLOOKUP(Q19,'[2]CG 2 Tab 6'!A26:B426,2,FALSE),IF(AND(S49=3),VLOOKUP(Q19,'[2]CG 3 Tab 6'!A25:B495,2,FALSE),IF(AND(S49=4),VLOOKUP(Q19,'[2]CG 4 Tab 6'!A25:B645,2,FALSE),IF(AND(S49=5),VLOOKUP(Q19,'[2]CG 5 Tab 6'!A25:B815,2,FALSE),IF(AND(S49=6),VLOOKUP(Q19,'[2]CG 6 Tab 6'!A3:B943,2,FALSE),IF(AND(S49=7),VLOOKUP(Q19,'[2]CG 7 Tab 6'!A25:B1165,2,FALSE))))))))))))))))) -> 8 | U53: =IF(U19="","",IF(AND(U20=""),"",IF(AND(W49=""),"",(IF(AND(AM5="M109"),_xlfn.CEILING.MATH(U88),IF(AND(AM5="M114"),_xlfn.CEILING.MATH(U89),IF(AND(AM5="M119"),_xlfn.CEILING.MATH(IF(AND(W49=1),VLOOKUP(U19,'[2]CG 1 Tab 6'!A26:B366,2,FALSE),IF(AND(W49=2),VLOOKUP(U19,'[2]CG 2 Tab 6'!A26:B426,2,FALSE),IF(AND(W49=3),VLOOKUP(U19,'[2]CG 3 Tab 6'!A25:B495,2,FALSE),IF(AND(W49=4),VLOOKUP(U19,'[2]CG 4 Tab 6'!A25:B645,2,FALSE),IF(AND(W49=5),VLOOKUP(U19,'[2]CG 5 Tab 6'!A25:B815,2,FALSE),IF(AND(W49=6),VLOOKUP(U19,'[2]CG 6 Tab 6'!A25:B965,2,FALSE),IF(AND(W49=7),VLOOKUP(U19,'[2]CG 7 Tab 6'!A25:B1165,2,FALSE)))))))))))))))) -> 9 | W53: =IF(U19="","",IF(AND(U20=""),"",IF(F29="","",IF(AND(W49=""),"",(IF(AND(AM5="M109"),_xlfn.CEILING.MATH(W88),IF(AND(AM5="M114"),_xlfn.CEILING.MATH(W89),IF(AND(AM5="M119"),_xlfn.CEILING.MATH(IF(AND(W49=1),VLOOKUP(U19,'[2]CG 1 Tab 6'!A26:B366,2,FALSE),IF(AND(W49=2),VLOOKUP(U19,'[2]CG 2 Tab 6'!A26:B426,2,FALSE),IF(AND(W49=3),VLOOKUP(U19,'[2]CG 3 Tab 6'!A25:B495,2,FALSE),IF(AND(W49=4),VLOOKUP(U19,'[2]CG 4 Tab 6'!A25:B645,2,FALSE),IF(AND(W49=5),VLOOKUP(U19,'[2]CG 5 Tab 6'!A25:B815,2,FALSE),IF(AND(W49=6),VLOOKUP(U19,'[2]CG 6 Tab 6'!A25:B965,2,FALSE),IF(AND(W49=7),VLOOKUP(U19,'[2]CG 7 Tab 6'!A25:B1165,2,FALSE))))))))))))))))) -> 9 | Y53: =IF(Y19="","",IF(AND(Y20=""),"",IF(AND(AA49=""),"",(IF(AND(AM5="M109"),_xlfn.CEILING.MATH(Y88),IF(AND(AM5="M114"),_xlfn.CEILING.MATH(Y89),IF(AND(AM5="M119"),_xlfn.CEILING.MATH(IF(AND(AA49=1),VLOOKUP(Y19,'[2]CG 1 Tab 6'!A26:B366,2,FALSE),IF(AND(AA49=2),VLOOKUP(Y19,'[2]CG 2 Tab 6'!A26:B426,2,FALSE),IF(AND(AA49=3),VLOOKUP(Y19,'[2]CG 3 Tab 6'!A25:B495,2,FALSE),IF(AND(AA49=4),VLOOKUP(Y19,'[2]CG 4 Tab 6'!A25:B645,2,FALSE),IF(AND(AA49=5),VLOOKUP(Y19,'[2]CG 5 Tab 6'!A25:B815,2,FALSE),IF(AND(AA49=6),VLOOKUP(Y19,'[2]CG 6 Tab 6'!A3:B943,2,FALSE),IF(AND(AA49=7),VLOOKUP(Y19,'[2]CG 7 Tab 6'!A25:B1165,2,FALSE)))))))))))))))) -> 8 | AA53: =IF(Y19="","",IF(AND(Y20=""),"",IF(F29="","",IF(AND(AA49=""),"",(IF(AND(AM5="M109"),_xlfn.CEILING.MATH(AA88),IF(AND(AM5="M114"),_xlfn.CEILING.MATH(AA89),IF(AND(AM5="M119"),_xlfn.CEILING.MATH(IF(AND(AA49=1),VLOOKUP(Y19,'[2]CG 1 Tab 6'!A26:B366,2,FALSE),IF(AND(AA49=2),VLOOKUP(Y19,'[2]CG 2 Tab 6'!A26:B426,2,FALSE),IF(AND(AA49=3),VLOOKUP(Y19,'[2]CG 3 Tab 6'!A25:B495,2,FALSE),IF(AND(AA49=4),VLOOKUP(Y19,'[2]CG 4 Tab 6'!A25:B645,2,FALSE),IF(AND(AA49=5),VLOOKUP(Y19,'[2]CG 5 Tab 6'!A25:B815,2,FALSE),IF(AND(AA49=6),VLOOKUP(Y19,'[2]CG 6 Tab 6'!A3:B943,2,FALSE),IF(AND(AA49=7),VLOOKUP(Y19,'[2]CG 7 Tab 6'!A25:B1165,2,FALSE))))))))))))))))) -> 8 | AC53: =IF(AC19="","",IF(AND(AC20=""),"",IF(AND(AE49=""),"",(IF(AND(AM5="M109"),_xlfn.CEILING.MATH(AC88),IF(AND(AM5="M114"),_xlfn.CEILING.MATH(AC89),IF(AND(AM5="M119"),_xlfn.CEILING.MATH(IF(AND(AE49=1),VLOOKUP(AC19,'[2]CG 1 Tab 6'!A26:B366,2,FALSE),IF(AND(AE49=2),VLOOKUP(AC19,'[2]CG 2 Tab 6'!A26:B426,2,FALSE),IF(AND(AE49=3),VLOOKUP(AC19,'[2]CG 3 Tab 6'!A25:B495,2,FALSE),IF(AND(AE49=4),VLOOKUP(AC19,'[2]CG 4 Tab 6'!A25:B645,2,FALSE),IF(AND(AE49=5),VLOOKUP(AC19,'[2]CG 5 Tab 6'!A25:B815,2,FALSE),IF(AND(AE49=6),VLOOKUP(AC19,'[2]CG 6 Tab 6'!A25:B965,2,FALSE),IF(AND(AE49=7),VLOOKUP(AC19,'[2]CG 7 Tab 6'!A25:B1165,2,FALSE)))))))))))))))) -> 9 | AE53: =IF(AC19="","",IF(AND(AC20=""),"",IF(AND(AE49=""),"",(IF(AND(AM5="M109"),_xlfn.CEILING.MATH(AE88),IF(AND(AM5="M114"),_xlfn.CEILING.MATH(AE89),IF(AND(AM5="M119"),_xlfn.CEILING.MATH(IF(AND(AE49=1),VLOOKUP(AC19,'[2]CG 1 Tab 6'!A26:B366,2,FALSE),IF(AND(AE49=2),VLOOKUP(AC19,'[2]CG 2 Tab 6'!A26:B426,2,FALSE),IF(AND(AE49=3),VLOOKUP(AC19,'[2]CG 3 Tab 6'!A25:B495,2,FALSE),IF(AND(AE49=4),VLOOKUP(AC19,'[2]CG 4 Tab 6'!A25:B645,2,FALSE),IF(AND(AE49=5),VLOOKUP(AC19,'[2]CG 5 Tab 6'!A25:B815,2,FALSE),IF(AND(AE49=6),VLOOKUP(AC19,'[2]CG 6 Tab 6'!A25:B965,2,FALSE),IF(AND(AE49=7),VLOOKUP(AC19,'[2]CG 7 Tab 6'!A25:B1165,2,FALSE)))))))))))))))) -> 9 | AO53: Esq | AP53: =IF(AND(I16="",M16="",Q16="",U16="",Y16="",AC16=""),"",MAXA(LimiteEsquerdo)) ->  | AR53: =IF(AND(I18="",M18="",Q18="",U18="",Y18="",AC18=""),"",MINA(I18,M18,Q18,U18,Y18,AC18)) -> 1190
C54: ∡ 3 ( Duas F <> alça) | I54: =IF(I20="","",IF(AND(I19=""),"",IF(AND(AM5=""),"",IF(AND(K49=""),"",(IF(AND(AM5="M109"),_xlfn.CEILING.MATH(I90),IF(AND(AM5="M114"),_xlfn.CEILING.MATH(I91),(IF(AND(AM5="M119"),2*(IF(AND(K49=1),VLOOKUP(I19,'[2]CG 1 Tab 6'!A26:F366,6,FALSE),IF(AND(K49=2),VLOOKUP(I19,'[2]CG 2 Tab 6'!A26:F426,6,FALSE),IF(AND(K49=3),VLOOKUP(I19,'[2]CG 3 Tab 6'!A25:F495,6,FALSE),IF(AND(K49=4),VLOOKUP(I19,'[2]CG 4 Tab 6'!A25:F645,6,FALSE),IF(AND(K49=5),VLOOKUP(I19,'[2]CG 5 Tab 6'!A25:F815,6,FALSE),IF(AND(K49=6),VLOOKUP(I19,'[2]CG 6 Tab 6'!A25:F965,6,FALSE),IF(AND(K49=7),VLOOKUP(I19,'[2]CG 7 Tab 6'!A25:F1165,6,FALSE)))))))))))))))))) -> 2 | K54: =IF(I20="","",IF(AND(I19=""),"",IF(AND(F29=""),"",IF(K49="","",IF(AND(AM5="M109"),_xlfn.CEILING.MATH(K90),IF(AND(AM5="M114"),_xlfn.CEILING.MATH(K91),IF(AND(AM5="M119"),2*(IF(AND(K49=1),VLOOKUP(I19,'[2]CG 1 Tab 6'!A26:F366,6,FALSE),IF(AND(K49=2),VLOOKUP(I19,'[2]CG 2 Tab 6'!A26:F426,6,FALSE),IF(AND(K49=3),VLOOKUP(I19,'[2]CG 3 Tab 6'!A25:F495,6,FALSE),IF(AND(K49=4),VLOOKUP(I19,'[2]CG 4 Tab 6'!A25:F645,6,FALSE),IF(AND(K49=5),VLOOKUP(I19,'[2]CG 5 Tab 6'!A25:F815,6,FALSE),IF(AND(K49=6),VLOOKUP(I19,'[2]CG 6 Tab 6'!A25:F965,6,FALSE),IF(AND(K49=7),VLOOKUP(I19,'[2]CG 7 Tab 6'!A25:F1165,6,FALSE)))))))))))))))) -> 2 | M54: =IF(M19="","",IF(AND(M20=""),"",IF(AND(AM5=""),"",(IF(AND(AM5="M109"),_xlfn.CEILING.MATH(M90),IF(AND(AM5="M114"),_xlfn.CEILING.MATH(M91),IF(O49="","",IF(AND(AM5="M119"),2*(IF(AND(O49=1),VLOOKUP(M19,'[2]CG 1 Tab 6'!A26:F366,6),IF(AND(O49=2),VLOOKUP(M19,'[2]CG 2 Tab 6'!A26:F426,6),IF(AND(O49=3),VLOOKUP(M19,'[2]CG 3 Tab 6'!A25:F495,6),IF(AND(O49=4),VLOOKUP(M19,'[2]CG 4 Tab 6'!A25:F645,6),IF(AND(O49=5),VLOOKUP(M19,'[2]CG 5 Tab 6'!A25:F815,6),IF(AND(O49=6),VLOOKUP(M19,'[2]CG 6 Tab 6'!A3:F943,6),IF(AND(O49=7),VLOOKUP(M19,'[2]CG 7 Tab 6'!A25:F1165,6))))))))))))))))) -> 2 | O54: =IF(M19="","",IF(AND(M20=""),"",IF(AND(O49=""),"",IF(AND(F29=""),"",(IF(AND(AM5="M109"),_xlfn.CEILING.MATH(O90),IF(AND(AM5="M114"),_xlfn.CEILING.MATH(O91),IF(AND(AM5="M119"),2*(IF(AND(O49=1),VLOOKUP(M19,'[2]CG 1 Tab 6'!A26:F366,6,FALSE),IF(AND(O49=2),VLOOKUP(M19,'[2]CG 2 Tab 6'!A26:F426,6,FALSE),IF(AND(O49=3),VLOOKUP(M19,'[2]CG 3 Tab 6'!A25:F495,6,FALSE),IF(AND(O49=4),VLOOKUP(M19,'[2]CG 4 Tab 6'!A25:F645,6,FALSE),IF(AND(O49=5),VLOOKUP(M19,'[2]CG 5 Tab 6'!A25:F815,6,FALSE),IF(AND(O49=6),VLOOKUP(M19,'[2]CG 6 Tab 6'!A3:F943,6,FALSE),IF(AND(O49=7),VLOOKUP(M19,'[2]CG 7 Tab 6'!A25:F1165,6,FALSE))))))))))))))))) -> 2 | Q54: =IF(Q19="","",IF(AND(Q20=""),"",IF(AND(S49=""),"",(IF(AND(AM5="M109"),_xlfn.CEILING.MATH(Q90),IF(AND(AM5="M114"),_xlfn.CEILING.MATH(Q91),(IF(AND(AM5="M119"),2*(IF(AND(S49=1),VLOOKUP(Q19,'[2]CG 1 Tab 6'!A26:F366,6,FALSE),IF(AND(S49=2),VLOOKUP(Q19,'[2]CG 2 Tab 6'!A26:F426,6,FALSE),IF(AND(S49=3),VLOOKUP(Q19,'[2]CG 3 Tab 6'!A25:F495,6,FALSE),IF(AND(S49=4),VLOOKUP(Q19,'[2]CG 4 Tab 6'!A25:F645,6,FALSE),IF(AND(S49=5),VLOOKUP(Q19,'[2]CG 5 Tab 6'!A25:F815,6,FALSE),IF(AND(S49=6),VLOOKUP(Q19,'[2]CG 6 Tab 6'!A3:F943,6,FALSE),IF(AND(S49=7),VLOOKUP(Q19,'[2]CG 7 Tab 6'!A25:F1165,6,FALSE))))))))))))))))) -> 2 | S54: =IF(Q19="","",IF(AND(Q20=""),"",IF(AND(S49=""),"",IF(AND(F29=""),"",(IF(AND(AM5="M109"),_xlfn.CEILING.MATH(S90),IF(AND(AM5="M114"),_xlfn.CEILING.MATH(S91),(IF(AND(AM5="M119"),2*(IF(AND(S49=1),VLOOKUP(Q19,'[2]CG 1 Tab 6'!A26:F366,6,FALSE),IF(AND(S49=2),VLOOKUP(Q19,'[2]CG 2 Tab 6'!A26:F426,6,FALSE),IF(AND(S49=3),VLOOKUP(Q19,'[2]CG 3 Tab 6'!A25:F495,6,FALSE),IF(AND(S49=4),VLOOKUP(Q19,'[2]CG 4 Tab 6'!A25:F645,6,FALSE),IF(AND(S49=5),VLOOKUP(Q19,'[2]CG 5 Tab 6'!A25:F815,6,FALSE),IF(AND(S49=6),VLOOKUP(Q19,'[2]CG 6 Tab 6'!A3:F943,6,FALSE),IF(AND(S49=7),VLOOKUP(Q19,'[2]CG 7 Tab 6'!A25:F1165,6,FALSE)))))))))))))))))) -> 2 | U54: =IF(U19="","",IF(AND(U20=""),"",IF(AND(W49=""),"",(IF(AND(AM5="M109"),_xlfn.CEILING.MATH(U90),IF(AND(AM5="M114"),_xlfn.CEILING.MATH(U91),(IF(AND(AM5="M119"),2*(IF(AND(W49=1),VLOOKUP(U19,'[2]CG 1 Tab 6'!A26:F366,6,FALSE),IF(AND(W49=2),VLOOKUP(U19,'[2]CG 2 Tab 6'!A26:F426,6,FALSE),IF(AND(W49=3),VLOOKUP(U19,'[2]CG 3 Tab 6'!A25:F495,6,FALSE),IF(AND(W49=4),VLOOKUP(U19,'[2]CG 4 Tab 6'!A25:F645,6,FALSE),IF(AND(W49=5),VLOOKUP(U19,'[2]CG 5 Tab 6'!A25:F815,6,FALSE),IF(AND(W49=6),VLOOKUP(U19,'[2]CG 6 Tab 6'!A25:F965,6,FALSE),IF(AND(W49=7),VLOOKUP(U19,'[2]CG 7 Tab 6'!A25:F1165,6,FALSE))))))))))))))))) -> 2 | W54: =IF(U19="","",IF(AND(U20=""),"",IF(AND(W49=""),"",IF(AND(F29=""),"",(IF(AND(AM5="M109"),_xlfn.CEILING.MATH(W90),IF(AND(AM5="M114"),_xlfn.CEILING.MATH(W91),(IF(AND(AM5="M119"),2*(IF(AND(W49=1),VLOOKUP(U19,'[2]CG 1 Tab 6'!A26:F366,6,FALSE),IF(AND(W49=2),VLOOKUP(U19,'[2]CG 2 Tab 6'!A26:F426,6,FALSE),IF(AND(W49=3),VLOOKUP(U19,'[2]CG 3 Tab 6'!A25:F495,6,FALSE),IF(AND(W49=4),VLOOKUP(U19,'[2]CG 4 Tab 6'!A25:F645,6,FALSE),IF(AND(W49=5),VLOOKUP(U19,'[2]CG 5 Tab 6'!A25:F815,6,FALSE),IF(AND(W49=6),VLOOKUP(U19,'[2]CG 6 Tab 6'!A25:F965,6,FALSE),IF(AND(W49=7),VLOOKUP(U19,'[2]CG 7 Tab 6'!A25:F1165,6,FALSE)))))))))))))))))) -> 2 | Y54: =IF(Y19="","",IF(AND(Y20=""),"",IF(AND(AA49=""),"",(IF(AND(AM5="M109"),_xlfn.CEILING.MATH(Y90),IF(AND(AM5="M114"),_xlfn.CEILING.MATH(Y91),(IF(AND(AM5="M119"),2*(IF(AND(AA49=1),VLOOKUP(Y19,'[2]CG 1 Tab 6'!A26:F366,6,FALSE),IF(AND(AA49=2),VLOOKUP(Y19,'[2]CG 2 Tab 6'!A26:F426,6,FALSE),IF(AND(AA49=3),VLOOKUP(Y19,'[2]CG 3 Tab 6'!A25:F495,6,FALSE),IF(AND(AA49=4),VLOOKUP(Y19,'[2]CG 4 Tab 6'!A25:F645,6,FALSE),IF(AND(AA49=5),VLOOKUP(Y19,'[2]CG 5 Tab 6'!A25:F815,6,FALSE),IF(AND(AA49=6),VLOOKUP(Y19,'[2]CG 6 Tab 6'!A3:I944,6,FALSE),IF(AND(AA49=7),VLOOKUP(Y19,'[2]CG 7 Tab 6'!A25:F1165,6,FALSE))))))))))))))))) -> 2 | AA54: =IF(Y19="","",IF(AND(Y20=""),"",IF(AND(AA49=""),"",IF(AND(F29=""),"",(IF(AND(AM5="M109"),(AA90),IF(AND(AM5="M114"),(AA91),(IF(AND(AM5="M119"),2*(IF(AND(AA49=1),VLOOKUP(Y19,'[2]CG 1 Tab 6'!A26:F366,6,FALSE),IF(AND(AA49=2),VLOOKUP(Y19,'[2]CG 2 Tab 6'!A26:F426,6,FALSE),IF(AND(AA49=3),VLOOKUP(Y19,'[2]CG 3 Tab 6'!A25:F495,6,FALSE),IF(AND(AA49=4),VLOOKUP(Y19,'[2]CG 4 Tab 6'!A25:F645,6,FALSE),IF(AND(AA49=5),VLOOKUP(Y19,'[2]CG 5 Tab 6'!A25:F815,6,FALSE),IF(AND(AA49=6),VLOOKUP(Y19,'[2]CG 6 Tab 6'!A3:I944,6,FALSE),IF(AND(AA49=7),VLOOKUP(Y19,'[2]CG 7 Tab 6'!A25:F1165,6,FALSE)))))))))))))))))) -> 2 | AC54: =IF(AC19="","",IF(AND(AC20=""),"",IF(AND(AE49=""),"",(IF(AND(AM5="M109"),_xlfn.CEILING.MATH(AC90),IF(AND(AM5="M114"),_xlfn.CEILING.MATH(AC91),(IF(AND(AM5="M119"),2*(IF(AND(AE49=1),VLOOKUP(AC19,'[2]CG 1 Tab 6'!A26:F366,6,FALSE),IF(AND(AE49=2),VLOOKUP(AC19,'[2]CG 2 Tab 6'!A26:F426,6,FALSE),IF(AND(AE49=3),VLOOKUP(AC19,'[2]CG 3 Tab 6'!A25:F495,6,FALSE),IF(AND(AE49=4),VLOOKUP(AC19,'[2]CG 4 Tab 6'!A25:F645,6,FALSE),IF(AND(AE49=5),VLOOKUP(AC19,'[2]CG 5 Tab 6'!A25:F815,6,FALSE),IF(AND(AE49=6),VLOOKUP(AC19,'[2]CG 6 Tab 6'!A25:F965,6,FALSE),IF(AND(AE49=7),VLOOKUP(AC19,'[2]CG 7 Tab 6'!A25:F1165,6,FALSE))))))))))))))))) -> 2 | AE54: =IF(AC19="","",IF(AND(AC20=""),"",IF(AND(AE49=""),"",IF(AND(F29=""),"",(IF(AND(AM5="M109"),_xlfn.CEILING.MATH(AE90),IF(AND(AM5="M114"),_xlfn.CEILING.MATH(AE91),(IF(AND(AM5="M119"),2*(IF(AND(AE49=1),VLOOKUP(AC19,'[2]CG 1 Tab 6'!A26:F366,6,FALSE),IF(AND(AE49=2),VLOOKUP(AC19,'[2]CG 2 Tab 6'!A26:F426,6,FALSE),IF(AND(AE49=3),VLOOKUP(AC19,'[2]CG 3 Tab 6'!A25:F495,6,FALSE),IF(AND(AE49=4),VLOOKUP(AC19,'[2]CG 4 Tab 6'!A25:F645,6,FALSE),IF(AND(AE49=5),VLOOKUP(AC19,'[2]CG 5 Tab 6'!A25:F815,6,FALSE),IF(AND(AE49=6),VLOOKUP(AC19,'[2]CG 6 Tab 6'!A25:F965,6,FALSE),IF(AND(AE49=7),VLOOKUP(AC19,'[2]CG 7 Tab 6'!A25:F1165,6,FALSE)))))))))))))))))) -> 2
C55: Elev Min | I55: =IF(AND(AM5=""),"",IF(I20="","",IF(AND(I19=""),"",IF(AND(AM5=""),"",IF(AND(AM5="M109",K49=1,K49=2,K49=3,K49=4,K49=5,K49=6),"",IF(AND(AM5="M114",K49=1,K49=2,K49=3,K49=4,K49=5,K49=6),"",IF(AND(AM5="M119",K49<>1,K49<>2,K49<>3,K49<>4,K49<>5,K49<>6),"",(IF(K49="","",I50+I51+I52+I53+I54))))))))) -> 84 | K55: =IF(I20="","",IF(AND(I19=""),"",IF(AND(F29=""),"",IF(AND(AM5=""),"",(IF(AND(F29<>"",K49=""),"",IF(AND(F29="Situação de Paz",K49<>""),"--",IF(AND(F29<>"Situação de Paz",F29<>""),K50+K51+K52+K53+K54,IF(AND(AM5=""),"",IF(AND(AM5="M109",K49=1,K49=2,K49=3,K49=4,K49=5,K49=6),"",IF(AND(AM5="M114",K49=1,K49=2,K49=3,K49=4,K49=5,K49=6),"",IF(AND(AM5="M119",K49<>1,K49<>2,K49<>3,K49<>4,K49<>5,K49<>6),"")))))))))))) -> 593 | M55: =IF(AND(AM5=""),"",IF(M19="","",IF(AND(M20=""),"",IF(AND(AM5=""),"",IF(AND(AM5="M109",O49=1,O49=2,O49=3,O49=4,O49=5,O49=6),"",IF(AND(AM5="M114",O49=1,O49=2,O49=3,O49=4,O49=5,O49=6),"",IF(AND(AM5="M119",O49<>1,O49<>2,O49<>3,O49<>4,O49<>5,O49<>6),"",IF(O49="","",M50+M51+M52+M53+M54)))))))) -> 65 | O55: =IF(M20="","",IF(AND(M19=""),"",IF(AND(F29=""),"",IF(AND(AM5=""),"",(IF(AND(F29<>"",O49=""),"",IF(AND(F29="Situação de Paz",O49<>""),"--",IF(AND(F29<>"Situação de Paz",F29<>""),O50+O51+O52+O53+O54,IF(AND(AM5="M109",O49=1,O49=2,O49=3,O49=4,O49=5,O49=6),"",IF(AND(AM5="M114",O49=1,O49=2,O49=3,O49=4,O49=5,O49=6),"",IF(AND(AM5="M119",O49<>1,O49<>2,O49<>3,O49<>4,O49<>5,O49<>6),""))))))))))) -> 623 | Q55: =IF(Q19="","",IF(AND(Q20=""),"",IF(AND(AM5=""),"",IF(AND(AM5="M109",S49=1,S49=2,S49=3,S49=4,S49=5,S49=6),"",IF(AND(AM5="M114",S49=1,S49=2,S49=3,S49=4,S49=5,S49=6),"",IF(AND(AM5="M119",S49<>1,S49<>2,S49<>3,S49<>4,S49<>5,S49<>6),"",IF(S49="","",Q50+Q51+Q52+Q53+Q54))))))) -> 75 | S55: =IF(Q19="","",IF(F29="","",IF(AND(Q20=""),"",IF(AND(AM5=""),"",(IF(AND(F29<>"",S49=""),"",IF(AND(F29="Situação de Paz",S49<>""),"--",IF(AND(F29<>"Situação de Paz",F29<>""),S50+S51+S52+S53+S54,IF(AND(AM5="M109",S49=1,S49=2,S49=3,S49=4,S49=5,S49=6),"",IF(AND(AM5="M114",S49=1,S49=2,S49=3,S49=4,S49=5,S49=6),"",IF(AND(AM5="M119",S49<>1,S49<>2,S49<>3,S49<>4,S49<>5,S49<>6),""))))))))))) -> 633 | U55: =IF(U19="","",IF(AND(U20=""),"",IF(AND(AM5=""),"",IF(AND(AM5=""),"",IF(AND(AM5="M109",W49=1,W49=2,W49=3,W49=4,W49=5,W49=6),"",IF(AND(AM5="M114",W49=1,W49=2,W49=3,W49=4,W49=5,W49=6),"",IF(AND(AM5="M119",W49<>1,W49<>2,W49<>3,W49<>4,W49<>5,W49<>6),"",IF(W49="","",U50+U51+U52+U53+U54)))))))) -> 65 | W55: =IF(U19="","",IF(F29="","",IF(AND(U20=""),"",IF(AND(AM5=""),"",(IF(AND(F29<>"",W49=""),"",IF(AND(F29="Situação de Paz",W49<>""),"--",IF(AND(F29<>"Situação de Paz",F29<>""),W50+W51+W52+W53+W54,IF(AND(AM5="M109",W49=1,W49=2,W49=3,W49=4,W49=5,W49=6),"",IF(AND(AM5="M114",W49=1,W49=2,W49=3,W49=4,W49=5,W49=6),"",IF(AND(AM5="M119",W49<>1,W49<>2,W49<>3,W49<>4,W49<>5,W49<>6),""))))))))))) -> 597 | Y55: =IF(Y19="","",IF(AND(Y20=""),"",IF(AND(AM5=""),"",IF(AND(AM5="M109",AA49=1,AA49=2,AA49=3,AA49=4,AA49=5,AA49=6),"",IF(AND(AM5="M114",AA49=1,AA49=2,AA49=3,AA49=4,AA49=5,AA49=6),"",IF(AND(AM5="M119",AA49<>1,AA49<>2,AA49<>3,AA49<>4,AA49<>5,AA49<>6),"",IF(AA49="","",Y50+Y51+Y52+Y53+Y54))))))) -> 75 | AA55: =IF(Y19="","",IF(F29="","",IF(AND(Y20=""),"",IF(AND(AM5=""),"",(IF(AND(F29<>"",AA49=""),"",IF(AND(F29="Situação de Paz",AA49<>""),"--",IF(AND(F29<>"Situação de Paz",F29<>""),AA50+AA51+AA52+AA53+AA54,IF(AND(AM5="M109",AA49=1,AA49=2,AA49=3,AA49=4,AA49=5,AA49=6),"",IF(AND(AM5="M114",AA49=1,AA49=2,AA49=3,AA49=4,AA49=5,AA49=6),"",IF(AND(AM5="M119",AA49<>1,AA49<>2,AA49<>3,AA49<>4,AA49<>5,AA49<>6),""))))))))))) -> 633 | AC55: =IF(AC19="","",IF(AND(AC20=""),"",IF(AND(AM5=""),"",IF(AND(AM5="M109",AE49=1,AE49=2,AE49=3,AE49=4,AE49=5,AE49=6),"",IF(AND(AM5="M114",AE49=1,AE49=2,AE49=3,AE49=4,AE49=5,AE49=6),"",IF(AND(AM5="M119",AE49<>1,AE49<>2,AE49<>3,AE49<>4,AE49<>5,AE49<>6),"",IF(AE49="","",AC50+AC51+AC52+AC53+AC54))))))) -> 85 | AE55: =IF(AC19="","",IF(F29="","",IF(AND(AC20=""),"",IF(AND(AM5=""),"",(IF(AND(F29<>"",AE49=""),"",IF(AND(F29="Situação de Paz",AE49<>""),"--",IF(AND(F29<>"Situação de Paz",F29<>""),AE50+AE51+AE52+AE53+AE54,IF(AND(AM5="M109",AE49=1,AE49=2,AE49=3,AE49=4,AE49=5,AE49=6),"",IF(AND(AM5="M114",AE49=1,AE49=2,AE49=3,AE49=4,AE49=5,AE49=6),"",IF(AND(AM5="M119",AE49<>1,AE49<>2,AE49<>3,AE49<>4,AE49<>5,AE49<>6),""))))))))))) -> 617 | AG55: Notas:
C56: Dur Trajeto <> alça | I56: =IF(I20="","",IF(AND(I19=""),"",IF(AND(I55=""),"",(IF(AND(AM5="M109"),I92,IF(AND(AM5="M114"),I93,(IF(AND(AM5="M119"),_xlfn.CEILING.MATH(IF(AND(K49=1),VLOOKUP(I19,'[2]CG 1 Tab 6'!A26:G366,7,FALSE),IF(AND(K49=2),VLOOKUP(I19,'[2]CG 2 Tab 6'!A26:G426,7,FALSE),IF(AND(K49=3),VLOOKUP(I19,'[2]CG 3 Tab 6'!A25:G495,7,FALSE),IF(AND(K49=4),VLOOKUP(I19,'[2]CG 4 Tab 6'!A25:G645,7,FALSE),IF(AND(K49=5),VLOOKUP(I19,'[2]CG 5 Tab 6'!A25:G815,7,FALSE),IF(AND(K49=6),VLOOKUP(I19,'[2]CG 6 Tab 6'!A25:G965,7,FALSE),IF(AND(K49=7),VLOOKUP(I19,'[2]CG 7 Tab 6'!A25:G1165,7,FALSE))))))))))))))))) -> 1 | K56: =IF(I20="","",IF(AND(I19=""),"",IF(AND(F29=""),"",IF(AND(K55=""),"",IF(AND(K49=""),"",IF(AND(AM5="M109"),_xlfn.CEILING.MATH(K92),IF(AND(AM5="M114"),_xlfn.CEILING.MATH(K93),IF(AND(AM5="M119"),_xlfn.CEILING.MATH(IF(AND(K49=1),VLOOKUP(I19,'[2]CG 1 Tab 6'!A26:G366,7,FALSE),IF(AND(K49=2),VLOOKUP(I19,'[2]CG 2 Tab 6'!A26:G426,7,FALSE),IF(AND(K49=3),VLOOKUP(I19,'[2]CG 3 Tab 6'!A25:G495,7,FALSE),IF(AND(K49=4),VLOOKUP(I19,'[2]CG 4 Tab 6'!A25:G645,7,FALSE),IF(AND(K49=5),VLOOKUP(I19,'[2]CG 5 Tab 6'!A25:G815,7,FALSE),IF(AND(K49=6),VLOOKUP(I19,'[2]CG 6 Tab 6'!A25:G965,7,FALSE),IF(AND(K49=7),VLOOKUP(I19,'[2]CG 7 Tab 6'!A25:G1165,7,FALSE))))))))))))))))) -> 1 | M56: =IF(M20="","",IF(AND(M19=""),"",IF(AND(M55=""),"",IF(AND(O49=""),"",(IF(AND(AM5="M109"),M92,IF(AND(AM5="M114"),M93,(IF(AND(AM5="M119"),_xlfn.CEILING.MATH(IF(AND(O49=1),VLOOKUP(M19,'[2]CG 1 Tab 6'!A26:G366,7),IF(AND(O49=2),VLOOKUP(M19,'[2]CG 2 Tab 6'!A26:G426,7),IF(AND(O49=3),VLOOKUP(M19,'[2]CG 3 Tab 6'!A25:G495,7),IF(AND(O49=4),VLOOKUP(M19,'[2]CG 4 Tab 6'!A25:G645,7),IF(AND(O49=5),VLOOKUP(M19,'[2]CG 5 Tab 6'!A25:G815,7),IF(AND(O49=6),VLOOKUP(M19,'[2]CG 6 Tab 6'!A3:G943,7),IF(AND(O49=7),VLOOKUP(M19,'[2]CG 7 Tab 6'!A25:G1165,7)))))))))))))))))) -> 1 | O56: =IF(M20="","",IF(AND(M19=""),"",IF(AND(F29=""),"",IF(AND(O55=""),"",IF(AND(O49=""),"",(IF(AND(AM5="M109"),O92,IF(AND(AM5="M114"),O93,IF(AND(AM5="M119"),_xlfn.CEILING.MATH(IF(AND(O49=1),VLOOKUP(M19,'[2]CG 1 Tab 6'!A26:G366,7,FALSE),IF(AND(O49=2),VLOOKUP(M19,'[2]CG 2 Tab 6'!A26:G426,7,FALSE),IF(AND(O49=3),VLOOKUP(M19,'[2]CG 3 Tab 6'!A25:G495,7,FALSE),IF(AND(O49=4),VLOOKUP(M19,'[2]CG 4 Tab 6'!A25:G645,7,FALSE),IF(AND(O49=5),VLOOKUP(M19,'[2]CG 5 Tab 6'!A25:G815,7,FALSE),IF(AND(O49=6),VLOOKUP(M19,'[2]CG 6 Tab 6'!A3:G943,7,FALSE),IF(AND(O49=7),VLOOKUP(M19,'[2]CG 7 Tab 6'!A25:G1165,7,FALSE)))))))))))))))))) -> 1 | Q56: =IF(Q20="","",IF(AND(Q19=""),"",IF(AND(S49=""),"",IF(AND(Q55=""),"",(IF(AND(AM5="M109"),_xlfn.CEILING.MATH(Q92),IF(AND(AM5="M114"),_xlfn.CEILING.MATH(Q93),IF(AND(AM5="M119"),_xlfn.CEILING.MATH(IF(AND(S49=1),VLOOKUP(Q19,'[2]CG 1 Tab 6'!A26:G366,7,FALSE),IF(AND(S49=2),VLOOKUP(Q19,'[2]CG 2 Tab 6'!A26:G426,7,FALSE),IF(AND(S49=3),VLOOKUP(Q19,'[2]CG 3 Tab 6'!A25:G495,7,FALSE),IF(AND(S49=4),VLOOKUP(Q19,'[2]CG 4 Tab 6'!A25:G645,7,FALSE),IF(AND(S49=5),VLOOKUP(Q19,'[2]CG 5 Tab 6'!A25:G815,7,FALSE),IF(AND(S49=6),VLOOKUP(Q19,'[2]CG 6 Tab 6'!A3:G943,7,FALSE),(IF(AND(S49=7),VLOOKUP(Q19,'[2]CG 7 Tab 6'!A25:G1165,7,FALSE)))))))))))))))))) -> 1 | S56: =IF(Q20="","",IF(AND(Q19=""),"",IF(AND(F29=""),"",IF(AND(S55=""),"",IF(AND(S49=""),"",(IF(AND(AM5="M109"),_xlfn.CEILING.MATH(S92),IF(AND(AM5="M114"),_xlfn.CEILING.MATH(S93),IF(AND(AM5="M119"),_xlfn.CEILING.MATH(IF(AND(S49=1),VLOOKUP(Q19,'[2]CG 1 Tab 6'!A26:G366,7,FALSE),IF(AND(S49=2),VLOOKUP(Q19,'[2]CG 2 Tab 6'!A26:G426,7,FALSE),IF(AND(S49=3),VLOOKUP(Q19,'[2]CG 3 Tab 6'!A25:G495,7,FALSE),IF(AND(S49=4),VLOOKUP(Q19,'[2]CG 4 Tab 6'!A25:G645,7,FALSE),IF(AND(S49=5),VLOOKUP(Q19,'[2]CG 5 Tab 6'!A25:G815,7,FALSE),IF(AND(S49=6),VLOOKUP(Q19,'[2]CG 6 Tab 6'!A3:G943,7,FALSE),IF(AND(S49=7),VLOOKUP(Q19,'[2]CG 7 Tab 6'!A25:G1165,7,FALSE)))))))))))))))))) -> 1 | U56: =IF(U20="","",IF(AND(U19=""),"",IF(AND(U55=""),"",(IF(AND(AM5="M109"),_xlfn.CEILING.MATH(U92),IF(AND(AM5="M114"),_xlfn.CEILING.MATH(U93),IF(AND(W49=""),"",IF(AND(AM5="M119"),_xlfn.CEILING.MATH(IF(AND(W49=1),VLOOKUP(U19,'[2]CG 1 Tab 6'!A26:G366,7,FALSE),IF(AND(W49=2),VLOOKUP(U19,'[2]CG 2 Tab 6'!A26:G426,7,FALSE),IF(AND(W49=3),VLOOKUP(U19,'[2]CG 3 Tab 6'!A25:G495,7,FALSE),IF(AND(W49=4),VLOOKUP(U19,'[2]CG 4 Tab 6'!A25:G645,7,FALSE),IF(AND(W49=5),VLOOKUP(U19,'[2]CG 5 Tab 6'!A25:G815,7,FALSE),IF(AND(W49=6),VLOOKUP(U19,'[2]CG 6 Tab 6'!A25:G965,7,FALSE),IF(AND(W49=7),VLOOKUP(U19,'[2]CG 7 Tab 6'!A25:G1165,7,FALSE))))))))))))))))) -> 1 | W56: =IF(U20="","",IF(AND(U19=""),"",IF(AND(F29=""),"",IF(AND(W55=""),"",IF(AND(W49=""),"",(IF(AND(AM5="M109"),_xlfn.CEILING.MATH(W92),IF(AND(AM5="M114"),_xlfn.CEILING.MATH(W93),IF(AND(AM5="M119"),_xlfn.CEILING.MATH(IF(AND(W49=1),VLOOKUP(U19,'[2]CG 1 Tab 6'!A26:G366,7,FALSE),IF(AND(W49=2),VLOOKUP(U19,'[2]CG 2 Tab 6'!A26:G426,7,FALSE),IF(AND(W49=3),VLOOKUP(U19,'[2]CG 3 Tab 6'!A25:G495,7,FALSE),IF(AND(W49=4),VLOOKUP(U19,'[2]CG 4 Tab 6'!A25:G645,7,FALSE),IF(AND(W49=5),VLOOKUP(U19,'[2]CG 5 Tab 6'!A25:G815,7,FALSE),IF(AND(W49=6),VLOOKUP(U19,'[2]CG 6 Tab 6'!A25:G965,7,FALSE),IF(AND(W49=7),VLOOKUP(U19,'[2]CG 7 Tab 6'!A25:G1165,7,FALSE)))))))))))))))))) -> 1 | Y56: =IF(Y20="","",IF(AND(Y19=""),"",IF(AND(Y55=""),"",IF(AND(AA49=""),"",(IF(AND(AM5="M109"),_xlfn.CEILING.MATH(Y92),IF(AND(AM5="M114"),_xlfn.CEILING.MATH(Y93),IF(AND(AM5="M119"),_xlfn.CEILING.MATH(IF(AND(AA49=1),VLOOKUP(Y19,'[2]CG 1 Tab 6'!A26:G366,7,FALSE),IF(AND(AA49=2),VLOOKUP(Y19,'[2]CG 2 Tab 6'!A26:G426,7,FALSE),IF(AND(AA49=3),VLOOKUP(Y19,'[2]CG 3 Tab 6'!A25:G495,7,FALSE),IF(AND(AA49=4),VLOOKUP(Y19,'[2]CG 4 Tab 6'!A25:G645,7,FALSE),IF(AND(AA49=5),VLOOKUP(Y19,'[2]CG 5 Tab 6'!A25:G815,7,FALSE),IF(AND(AA49=6),VLOOKUP(Y19,'[2]CG 6 Tab 6'!A3:G943,7,FALSE),IF(AND(AA49=7),VLOOKUP(Y19,'[2]CG 7 Tab 6'!A25:G1165,7,FALSE))))))))))))))))) -> 1 | AA56: =IF(Y20="","",IF(AND(Y19=""),"",IF(AND(F29=""),"",IF(AND(AA55=""),"",IF(AND(AA49=""),"",(IF(AND(AM5="M109"),_xlfn.CEILING.MATH(AA92),IF(AND(AM5="M114"),_xlfn.CEILING.MATH(AA93),IF(AND(AM5="M119"),_xlfn.CEILING.MATH(IF(AND(AA49=1),VLOOKUP(Y19,'[2]CG 1 Tab 6'!A26:G366,7,FALSE),IF(AND(AA49=2),VLOOKUP(Y19,'[2]CG 2 Tab 6'!A26:G426,7,FALSE),IF(AND(AA49=3),VLOOKUP(Y19,'[2]CG 3 Tab 6'!A25:G495,7,FALSE),IF(AND(AA49=4),VLOOKUP(Y19,'[2]CG 4 Tab 6'!A25:G645,7,FALSE),IF(AND(AA49=5),VLOOKUP(Y19,'[2]CG 5 Tab 6'!A25:G815,7,FALSE),IF(AND(AA49=6),VLOOKUP(Y19,'[2]CG 6 Tab 6'!A3:G943,7,FALSE),IF(AND(AA49=7),VLOOKUP(Y19,'[2]CG 7 Tab 6'!A25:G1165,7,FALSE)))))))))))))))))) -> 1 | AC56: =IF(AC20="","",IF(AND(AC19=""),"",IF(AND(AC55=""),"",(IF(AND(AM5="M109"),_xlfn.CEILING.MATH(AC92),IF(AND(AM5="M114"),_xlfn.CEILING.MATH(AC93),IF(AND(AE49=""),"",IF(AND(AM5="M119"),_xlfn.CEILING.MATH(IF(AND(AE49=1),VLOOKUP(AC19,'[2]CG 1 Tab 6'!A26:G366,7,FALSE),IF(AND(AE49=2),VLOOKUP(AC19,'[2]CG 2 Tab 6'!A26:G426,7,FALSE),IF(AND(AE49=3),VLOOKUP(AC19,'[2]CG 3 Tab 6'!A25:G495,7,FALSE),IF(AND(AE49=4),VLOOKUP(AC19,'[2]CG 4 Tab 6'!A25:G645,7,FALSE),IF(AND(AE49=5),VLOOKUP(AC19,'[2]CG 5 Tab 6'!A25:G815,7,FALSE),IF(AND(AE49=6),VLOOKUP(AC19,'[2]CG 6 Tab 6'!A25:G965,7,FALSE),IF(AND(AE49=7),VLOOKUP(AC19,'[2]CG 7 Tab 6'!A25:G1165,7,FALSE))))))))))))))))) -> 1 | AE56: =IF(AC20="","",IF(AND(AC19=""),"",IF(AND(F29=""),"",IF(AND(AE55=""),"",IF(AND(AE49=""),"",(IF(AND(AM5="M109"),_xlfn.CEILING.MATH(AE92),IF(AND(AM5="M114"),_xlfn.CEILING.MATH(AE93),IF(AND(AM5="M119"),_xlfn.CEILING.MATH(IF(AND(AE49=1),VLOOKUP(AC19,'[2]CG 1 Tab 6'!A26:G366,7,FALSE),IF(AND(AE49=2),VLOOKUP(AC19,'[2]CG 2 Tab 6'!A26:G426,7,FALSE),IF(AND(AE49=3),VLOOKUP(AC19,'[2]CG 3 Tab 6'!A25:G495,7,FALSE),IF(AND(AE49=4),VLOOKUP(AC19,'[2]CG 4 Tab 6'!A25:G645,7,FALSE),IF(AND(AE49=5),VLOOKUP(AC19,'[2]CG 5 Tab 6'!A25:G815,7,FALSE),IF(AND(AE49=6),VLOOKUP(AC19,'[2]CG 6 Tab 6'!A25:G965,7,FALSE),IF(AND(AE49=7),VLOOKUP(AC19,'[2]CG 7 Tab 6'!A25:G1165,7,FALSE)))))))))))))))))) -> 1 | AO56: Dir | AP56: =IF(AND(I17="",M17="",Q17="",U17="",Y17="",AC17=""),"",MINA(I17,M17,Q17,U17,Y17,AC17)) -> 
C57: Dur Trajeto + 5,5 seg | I57: =IF(I20="","",IF(AND(I19=""),"",IF(AND(I56=""),"",IF(K49="","",I56+5.5)))) -> 6.5 | K57: =IF(I20="","",IF(AND(I19=""),"",IF(AND(K56=""),"",IF(K49="","",K56+5.5)))) -> 6.5 | M57: =IF(M20="","",IF(AND(M19=""),"",IF(AND(M56=""),"",IF(O49="","",M56+5.5)))) -> 6.5 | O57: =IF(M20="","",IF(AND(M19=""),"",IF(AND(O56=""),"",IF(O49="","",O56+5.5)))) -> 6.5 | Q57: =IF(Q20="","",IF(AND(Q19=""),"",IF(AND(Q56=""),"",IF(S49="","",Q56+5.5)))) -> 6.5 | S57: =IF(Q20="","",IF(AND(Q19=""),"",IF(AND(S56=""),"",IF(S49="","",S56+5.5)))) -> 6.5 | U57: =IF(U20="","",IF(AND(U19=""),"",IF(AND(U56=""),"",IF(W49="","",U56+5.5)))) -> 6.5 | W57: =IF(U20="","",IF(AND(U19=""),"",IF(AND(W56=""),"",IF(W49="","",W56+5.5)))) -> 6.5 | Y57: =IF(Y20="","",IF(AND(Y19=""),"",IF(AND(Y56=""),"",IF(AA49="","",Y56+5.5)))) -> 6.5 | AA57: =IF(Y20="","",IF(AND(Y19=""),"",IF(AND(AA56=""),"",IF(AA49="","",AA56+5.5)))) -> 6.5 | AC57: =IF(AC20="","",IF(AND(AC19=""),"",IF(AND(AC56=""),"",IF(AE49="","",AC56+5.5)))) -> 6.5 | AE57: =IF(AC20="","",IF(AND(AC19=""),"",IF(AND(AE56=""),"",IF(AE49="","",AE56+5.5)))) -> 6.5
C58: GESM | I58: =IF(I20="","",IF(AND(I19=""),"",IF(AND(I56=""),"",IF(K49="","",ROUND(I57,0))))) -> 7 | K58: =IF(I20="","",IF(AND(I19=""),"",IF(AND(K56=""),"",IF(AND(AM5=""),"",(IF(AND(F29="Situação de Paz"),"--",IF(K49="","",_xlfn.CEILING.MATH(K57)))))))) -> 7 | M58: =IF(M20="","",IF(AND(M19=""),"",IF(AND(M56=""),"",IF(AND(AM5=""),"",IF(O49="","",ROUND(M57,0)))))) -> 7 | O58: =IF(M19="","",IF(AND(M20=""),"",IF(AND(O56=""),"",IF(AND(AM5=""),"",(IF(AND(F29="Situação de Paz"),"--",IF(O49="","",_xlfn.CEILING.MATH(O57)))))))) -> 7 | Q58: =IF(Q20="","",IF(AND(Q19=""),"",IF(AND(Q56=""),"",IF(AND(AM5=""),"",IF(S49="","",ROUND(Q57,0)))))) -> 7 | S58: =IF(Q20="","",IF(AND(Q19=""),"",IF(AND(S56=""),"",IF(AND(AM5=""),"",(IF(AND(F29="Situação de Paz"),"--",IF(S49="","",_xlfn.CEILING.MATH(S57)))))))) -> 7 | U58: =IF(U20="","",IF(AND(U19=""),"",IF(AND(U56=""),"",IF(AND(AM5=""),"",IF(W49="","",ROUND(U57,0)))))) -> 7 | W58: =IF(U20="","",IF(AND(U19=""),"",IF(AND(W56=""),"",IF(AND(AM5=""),"",(IF(AND(F29="Situação de Paz"),"--",IF(W49="","",_xlfn.CEILING.MATH(W57)))))))) -> 7 | Y58: =IF(Y20="","",IF(AND(Y19=""),"",IF(AND(Y56=""),"",IF(AND(AM5=""),"",IF(AA49="","",ROUND(Y57,0)))))) -> 7 | AA58: =IF(Y20="","",IF(AND(Y19=""),"",IF(AND(AA56=""),"",IF(AND(AM5=""),"",(IF(AND(F29="Situação de Paz"),"--",IF(AA49="","",_xlfn.CEILING.MATH(AA57)))))))) -> 7 | AC58: =IF(AC20="","",IF(AND(AC19=""),"",IF(AND(AC56=""),"",IF(AND(AM5=""),"",IF(AE49="","",ROUND(AC57,0)))))) -> 7 | AE58: =IF(AC20="","",IF(AND(AC19=""),"",IF(AND(AE56=""),"",IF(AND(AM5=""),"",(IF(AND(F29="Situação de Paz"),"--",IF(AE49="","",_xlfn.CEILING.MATH(AE57)))))))) -> 7
I60: =IF(AND('[2]RCBT - verso'!Z8>='RCBT - frente'!I38,'[2]RCBT - verso'!Z7>'RCBT - frente'!I35),'RCBT - frente'!I35,IF(AND('[2]RCBT - verso'!Z8>='RCBT - frente'!I38,'[2]RCBT - verso'!Z7<'RCBT - frente'!I35),"X",)) -> 0 | M60: =IF(AND('[2]RCBT - verso'!Z8>=M38,'[2]RCBT - verso'!Z7>M35),M35,IF(AND('[2]RCBT - verso'!Z8>=M38,'[2]RCBT - verso'!Z7<M35),"X",)) -> 0 | Q60: =IF(AND('[2]RCBT - verso'!Z8>=Q38,'[2]RCBT - verso'!Z7>Q35),Q35,IF(AND('[2]RCBT - verso'!Z8>=Q38,'[2]RCBT - verso'!Z7<Q35),"X",)) -> 0 | U60: =IF(AND('[2]RCBT - verso'!Z8>=U38,'[2]RCBT - verso'!Z7>U35),U35,IF(AND('[2]RCBT - verso'!Z8>=U38,'[2]RCBT - verso'!Z7<U35),"X",)) -> 0 | Y60: =IF(AND('[2]RCBT - verso'!Z8>=Y38,'[2]RCBT - verso'!Z7>Y35),Y35,IF(AND('[2]RCBT - verso'!Z8>=Y38,'[2]RCBT - verso'!Z7<Y35),"X",)) -> 0 | AC60: =IF(AND('[2]RCBT - verso'!Z8>=AC38,'[2]RCBT - verso'!Z7>AC35),AC35,IF(AND('[2]RCBT - verso'!Z8>=AC38,'[2]RCBT - verso'!Z7<AC35),"X",)) -> 0 | AG60: =IF('[2]RCBT - verso'!Z28>='RCBT - frente'!I48,(IF(AND('[2]RCBT - verso'!Z27>'RCBT - frente'!I45),'RCBT - frente'!I45,IF('[2]RCBT - verso'!Z28>='RCBT - frente'!I48,(IF(AND('[2]RCBT - verso'!Z27<'RCBT - frente'!I45),"X",)))))) -> FALSE | AH60: =IF('[2]RCBT - verso'!Z28>='RCBT - frente'!M48,(IF(AND('[2]RCBT - verso'!Z27>'RCBT - frente'!M45),'RCBT - frente'!M45,IF('[2]RCBT - verso'!Z28>='RCBT - frente'!M48,(IF(AND('[2]RCBT - verso'!Z27<'RCBT - frente'!M45),"X",)))))) -> FALSE | AI60: =IF('[2]RCBT - verso'!Z28>='RCBT - frente'!Q48,(IF(AND('[2]RCBT - verso'!Z27>'RCBT - frente'!Q45),'RCBT - frente'!Q45,IF('[2]RCBT - verso'!Z28>='RCBT - frente'!Q48,(IF(AND('[2]RCBT - verso'!Z27<'RCBT - frente'!Q45),"X",)))))) -> FALSE | AJ60: =IF('[2]RCBT - verso'!Z8>='RCBT - frente'!U48,(IF(AND('[2]RCBT - verso'!Z7>'RCBT - frente'!U45),'RCBT - frente'!U45,IF('[2]RCBT - verso'!Z8>='RCBT - frente'!U48,(IF(AND('[2]RCBT - verso'!Z7<'RCBT - frente'!U45),"X",)))))) -> FALSE | AK60: =IF('[2]RCBT - verso'!Z28>='RCBT - frente'!Y48,(IF(AND('[2]RCBT - verso'!Z27>'RCBT - frente'!Y45),'RCBT - frente'!Y45,IF('[2]RCBT - verso'!Z28>='RCBT - frente'!Y48,(IF(AND('[2]RCBT - verso'!Z27<'RCBT - frente'!Y45),"X",)))))) -> FALSE | AL60: =IF('[2]RCBT - verso'!Z28>='RCBT - frente'!AC48,(IF(AND('[2]RCBT - verso'!Z27>'RCBT - frente'!AC45),'RCBT - frente'!AC45,IF('[2]RCBT - verso'!Z28>='RCBT - frente'!AC48,(IF(AND('[2]RCBT - verso'!Z27<'RCBT - frente'!AC45),"X",)))))) -> FALSE | AM60: =IF('[2]RCBT - verso'!Z18>='RCBT - frente'!I55,(IF(AND('[2]RCBT - verso'!Z17>'RCBT - frente'!I58),'RCBT - frente'!I55,IF('[2]RCBT - verso'!Z18>='RCBT - frente'!I55,(IF(AND('[2]RCBT - verso'!Z17<'RCBT - frente'!I58),"X",)))))) -> FALSE | AN60: =IF('[2]RCBT - verso'!Z18>='RCBT - frente'!M55,(IF(AND('[2]RCBT - verso'!Z17>'RCBT - frente'!M58),'RCBT - frente'!M55,IF('[2]RCBT - verso'!Z18>='RCBT - frente'!M55,(IF(AND('[2]RCBT - verso'!Z17<'RCBT - frente'!M58),"X",)))))) -> FALSE | AO60: =IF('[2]RCBT - verso'!AA18>='RCBT - frente'!N55,(IF(AND('[2]RCBT - verso'!AA17>'RCBT - frente'!N58),'RCBT - frente'!N55,IF('[2]RCBT - verso'!AA18>='RCBT - frente'!N55,(IF(AND('[2]RCBT - verso'!AA17<'RCBT - frente'!N58),"X",)))))) -> 0 | AP60: =IF('[2]RCBT - verso'!AB18>='RCBT - frente'!O55,(IF(AND('[2]RCBT - verso'!AB17>'RCBT - frente'!O58),'RCBT - frente'!O55,IF('[2]RCBT - verso'!AB18>='RCBT - frente'!O55,(IF(AND('[2]RCBT - verso'!AB17<'RCBT - frente'!O58),"X",)))))) -> FALSE | AQ60: =IF('[2]RCBT - verso'!AC16>='RCBT - frente'!P55,(IF(AND('[2]RCBT - verso'!AC15>'RCBT - frente'!P58),'RCBT - frente'!P55,IF('[2]RCBT - verso'!AC16>='RCBT - frente'!P55,(IF(AND('[2]RCBT - verso'!AC15<'RCBT - frente'!P58),"X",)))))) -> 0 | AR60: =IF('[2]RCBT - verso'!#REF!>='RCBT - frente'!Q55,(IF(AND('[2]RCBT - verso'!#REF!>'RCBT - frente'!Q58),'RCBT - frente'!Q55,IF('[2]RCBT - verso'!#REF!>='RCBT - frente'!Q55,(IF(AND('[2]RCBT - verso'!#REF!<'RCBT - frente'!Q58),"X",)))))) ->  | AS60: =IF('[2]RCBT - verso'!T16>='RCBT - frente'!R55,(IF(AND('[2]RCBT - verso'!T15>'RCBT - frente'!R58),'RCBT - frente'!R55,IF('[2]RCBT - verso'!T16>='RCBT - frente'!R55,(IF(AND('[2]RCBT - verso'!T15<'RCBT - frente'!R58),"X",)))))) -> 0 | AT60: =IF('[2]RCBT - verso'!Z18>='RCBT - frente'!Q55,(IF(AND('[2]RCBT - verso'!Z17>'RCBT - frente'!Q58),'RCBT - frente'!Q55,IF('[2]RCBT - verso'!Z18>='RCBT - frente'!Q55,(IF(AND('[2]RCBT - verso'!Z17<'RCBT - frente'!Q58),"X",)))))) -> FALSE | AU60: =IF('[2]RCBT - verso'!AB18>='RCBT - frente'!U55,(IF(AND('[2]RCBT - verso'!AB17>'RCBT - frente'!U58),'RCBT - frente'!U55,IF('[2]RCBT - verso'!AB18>='RCBT - frente'!U55,(IF(AND('[2]RCBT - verso'!AB17<'RCBT - frente'!U58),"X",)))))) -> FALSE | AV60: =IF('[2]RCBT - verso'!Z18>='RCBT - frente'!Y55,(IF(AND('[2]RCBT - verso'!Z17>'RCBT - frente'!Y58),'RCBT - frente'!Y55,IF('[2]RCBT - verso'!Z18>='RCBT - frente'!Y55,(IF(AND('[2]RCBT - verso'!Z17<'RCBT - frente'!Y58),"X",)))))) -> FALSE | AW60: =IF('[2]RCBT - verso'!Z18>='RCBT - frente'!AC55,(IF(AND('[2]RCBT - verso'!Z17>'RCBT - frente'!AC58),'RCBT - frente'!AC55,IF('[2]RCBT - verso'!Z18>='RCBT - frente'!AC55,(IF(AND('[2]RCBT - verso'!Z17<'RCBT - frente'!AC58),"X",)))))) -> FALSE
I61: =IF(AND('[2]RCBT - verso'!Z8<'RCBT - frente'!K38,'[2]RCBT - verso'!Z7>'RCBT - frente'!K35),'RCBT - frente'!K35,IF(AND('[2]RCBT - verso'!Z8<'RCBT - frente'!K38,'[2]RCBT - verso'!Z7<'RCBT - frente'!K35),"X",)) -> X | M61: =IF(AND('[2]RCBT - verso'!Z8<O38,'[2]RCBT - verso'!Z7>O34),O38,IF(AND('[2]RCBT - verso'!Z8<O38,'[2]RCBT - verso'!Z7<O35),"X",)) -> X | Q61: =IF(AND('[2]RCBT - verso'!Z8<S38,'[2]RCBT - verso'!Z7>S35),S38,IF(AND('[2]RCBT - verso'!Z8<S38,'[2]RCBT - verso'!Z7<S35),"X",)) -> X | U61: =IF(AND('[2]RCBT - verso'!Z8<W38,'[2]RCBT - verso'!Z7>W35),W38,IF(AND('[2]RCBT - verso'!Z8<W38,'[2]RCBT - verso'!Z7<W35),"X",)) -> X | Y61: =IF(AND('[2]RCBT - verso'!Z8<AA38,'[2]RCBT - verso'!Z7>AA35),AA38,IF(AND('[2]RCBT - verso'!Z8<AA38,'[2]RCBT - verso'!Z7<AA35),"X",)) -> X | AC61: =IF(AND('[2]RCBT - verso'!Z8<W38,'[2]RCBT - verso'!Z7>W35),W38,IF(AND('[2]RCBT - verso'!Z8<W38,'[2]RCBT - verso'!Z7<W35),"X",)) -> X | AG61: =IF('[2]RCBT - verso'!Z28<'RCBT - frente'!K48,(IF(AND('[2]RCBT - verso'!Z27>'RCBT - frente'!K45),'RCBT - frente'!K45,IF('[2]RCBT - verso'!Z28<'RCBT - frente'!K48,(IF(AND('[2]RCBT - verso'!Z27<'RCBT - frente'!K45),"X",)))))) -> X | AH61: =IF('[2]RCBT - verso'!Z28<'RCBT - frente'!O48,(IF(AND('[2]RCBT - verso'!Z27>'RCBT - frente'!O45),'RCBT - frente'!O45,IF('[2]RCBT - verso'!Z28<'RCBT - frente'!O48,(IF(AND('[2]RCBT - verso'!Z27<'RCBT - frente'!O45),"X",)))))) -> X | AI61: =IF('[2]RCBT - verso'!Z28<'RCBT - frente'!S48,(IF(AND('[2]RCBT - verso'!Z27>'RCBT - frente'!S45),'RCBT - frente'!S45,IF('[2]RCBT - verso'!Z28<'RCBT - frente'!S48,(IF(AND('[2]RCBT - verso'!Z27<'RCBT - frente'!S45),"X",)))))) -> X | AJ61: =IF('[2]RCBT - verso'!Z28<'RCBT - frente'!W48,(IF(AND('[2]RCBT - verso'!Z27>'RCBT - frente'!W45),'RCBT - frente'!W45,IF('[2]RCBT - verso'!Z28<'RCBT - frente'!W48,(IF(AND('[2]RCBT - verso'!Z27<'RCBT - frente'!W45),"X",)))))) -> X | AK61: =IF('[2]RCBT - verso'!Z28<'RCBT - frente'!AA48,(IF(AND('[2]RCBT - verso'!Z27>'RCBT - frente'!AA45),'RCBT - frente'!AA45,IF('[2]RCBT - verso'!Z28<'RCBT - frente'!AA48,(IF(AND('[2]RCBT - verso'!Z27<'RCBT - frente'!AA45),"X",)))))) -> X | AL61: =IF('[2]RCBT - verso'!AA28<'RCBT - frente'!AE48,(IF(AND('[2]RCBT - verso'!AA27>'RCBT - frente'!AE45),'RCBT - frente'!AE45,IF('[2]RCBT - verso'!AA28<'RCBT - frente'!AE48,(IF(AND('[2]RCBT - verso'!AA27<'RCBT - frente'!AE45),"X",)))))) -> X | AM61: =IF('[2]RCBT - verso'!Z18<'RCBT - frente'!K58,(IF(AND('[2]RCBT - verso'!Z17>'RCBT - frente'!K55),'RCBT - frente'!K55,IF('[2]RCBT - verso'!Z18<'RCBT - frente'!K58,(IF(AND('[2]RCBT - verso'!Z17<'RCBT - frente'!K55),"X",)))))) -> X | AN61: =IF('[2]RCBT - verso'!Z18<'RCBT - frente'!O58,(IF(AND('[2]RCBT - verso'!Z17>'RCBT - frente'!O55),'RCBT - frente'!O55,IF('[2]RCBT - verso'!Z18<'RCBT - frente'!O58,(IF(AND('[2]RCBT - verso'!Z17<'RCBT - frente'!O55),"X",)))))) -> X | AO61: =IF('[2]RCBT - verso'!AA19<'RCBT - frente'!N58,(IF(AND('[2]RCBT - verso'!AA17>'RCBT - frente'!N55),'RCBT - frente'!N55,IF('[2]RCBT - verso'!AA19<'RCBT - frente'!N58,(IF(AND('[2]RCBT - verso'!AA17<'RCBT - frente'!N55),"X",)))))) -> FALSE | AP61: =IF('[2]RCBT - verso'!AB19<'RCBT - frente'!O58,(IF(AND('[2]RCBT - verso'!AB17>'RCBT - frente'!O55),'RCBT - frente'!O55,IF('[2]RCBT - verso'!AB19<'RCBT - frente'!O58,(IF(AND('[2]RCBT - verso'!AB17<'RCBT - frente'!O55),"X",)))))) -> X | AQ61: =IF('[2]RCBT - verso'!#REF!<'RCBT - frente'!P58,(IF(AND('[2]RCBT - verso'!AC15>'RCBT - frente'!P55),'RCBT - frente'!P55,IF('[2]RCBT - verso'!#REF!<'RCBT - frente'!P58,(IF(AND('[2]RCBT - verso'!AC15<'RCBT - frente'!P55),"X",)))))) ->  | AR61: =IF('[2]RCBT - verso'!#REF!<'RCBT - frente'!Q58,(IF(AND('[2]RCBT - verso'!#REF!>'RCBT - frente'!Q55),'RCBT - frente'!Q55,IF('[2]RCBT - verso'!#REF!<'RCBT - frente'!Q58,(IF(AND('[2]RCBT - verso'!#REF!<'RCBT - frente'!Q55),"X",)))))) ->  | AS61: =IF('[2]RCBT - verso'!T17<'RCBT - frente'!R58,(IF(AND('[2]RCBT - verso'!T15>'RCBT - frente'!R55),'RCBT - frente'!R55,IF('[2]RCBT - verso'!T17<'RCBT - frente'!R58,(IF(AND('[2]RCBT - verso'!T15<'RCBT - frente'!R55),"X",)))))) -> FALSE | AT61: =IF('[2]RCBT - verso'!Z18<'RCBT - frente'!S58,(IF(AND('[2]RCBT - verso'!Z17>'RCBT - frente'!S55),'RCBT - frente'!S55,IF('[2]RCBT - verso'!Z18<'RCBT - frente'!S58,(IF(AND('[2]RCBT - verso'!Z17<'RCBT - frente'!S55),"X",)))))) -> X | AU61: =IF('[2]RCBT - verso'!Z18<'RCBT - frente'!W58,(IF(AND('[2]RCBT - verso'!Z17>'RCBT - frente'!W55),'RCBT - frente'!W55,IF('[2]RCBT - verso'!Z18<'RCBT - frente'!W58,(IF(AND('[2]RCBT - verso'!Z17<'RCBT - frente'!W55),"X",)))))) -> X | AV61: =IF('[2]RCBT - verso'!Z18<'RCBT - frente'!AA58,(IF(AND('[2]RCBT - verso'!Z17>'RCBT - frente'!AA55),'RCBT - frente'!AA55,IF('[2]RCBT - verso'!Z18<'RCBT - frente'!AA58,(IF(AND('[2]RCBT - verso'!Z17<'RCBT - frente'!AA55),"X",)))))) -> X | AW61: =IF('[2]RCBT - verso'!Z18<'RCBT - frente'!AE58,(IF(AND('[2]RCBT - verso'!Z17>'RCBT - frente'!AE55),'RCBT - frente'!AE55,IF('[2]RCBT - verso'!Z18<'RCBT - frente'!AE58,(IF(AND('[2]RCBT - verso'!Z17<'RCBT - frente'!AE55),"X",)))))) -> X
